Workbook

Sheet Table of Contents
C2: Table of Contents
C4: Disclaimer and License
C5: Questionnaire
C6: Assessment
C7: Recommendations
C9: Instructions
C10: For detailed instructions, please review the Cloud Readiness Toolkit Assessment Instruction Guide also found in this toolkit.
C12: Country Assessment
C13: 1 | D13: Go to the 'questionnaire' tab and fill in the questions as accurately as possible. If you cannot find the exact answer in the list then select the closest answer.
C14: 2 | D14: If the answer is not known, please attempt to identify an individual who might know the answer.
C15: 4 | D15: Some questions have multiple parts. In those situations, the answer to the initial question determines what other questions need to be answered.
C16: 5 | D16: If the additional questions need to be answered, they will change color to yellow. All of the additional questions must be answered for the entire question to be counted as complete.
C17: 6 | D17: If the additional questions do NOT need to be answered, they will change color to black.
C18: 7 | D18: Once all questions have been answered, go to the 'assessment' tab to view the results. If the questionnaire was not completely filled out, the highest possible score will be shown.
C19: 8 | D19: On the 'assessment' tab, only the high level category weights can be updated. These weights are colored gray.
C20: 9 | D20: Items highlighted in red are "deal breakers" where the readiness score is below 0% and the approach is not feasible.

Sheet Disclaimer and License
B3: Disclaimer
C5: The Toolkit is a diagnostic and planning tool intended to provide recommendations for action based on existing good practice. It does not constitute technical or legal advice and no inference should be drawn as to the completeness, adequacy, accuracy or suitability of the underlying assessment or recommendations. Without limitation to the immunities and privileges of the Bank under its Articles of Agreement and other applicable laws, the Bank shall not be liable for any loss, cost, damage or liability of any kind as a result of this Toolkit or its use.
B13: License
C15: This document, created by The World Bank in collaboration with Accenture, is available under the Creative Commons Attribution 4.0 International (CC BY 4.0) license.

Sheet Questionnaire
B2: Cloud Readiness Assessment | F2: =COUNTIF($L8:$L20020, 1)/COUNTA($C8:$C20020) -> 0 | G2: of Questions Complete
J3: Calculations for Req. ?s | O3: Conditional Formatting | S3: Scoring
Y4: Required? | Z4: Category | AA4: Sub-Category
C5: # | D5: Question | E5: Weight | F5: Response | G5: Comment | H5: Sample Answers | I5: Filter | J5: Sub-? | K5: Question Type | L5: Answer Complete | M5: Highest Possible Score | O5: Header | P5: Optional? | Q5: Required? | S5: Overall | T5: Private | U5: Hybrid | V5: Public | W5: Local Public
D6: General | E6: =SUM(E7,E14,E29) -> 1
D7: Information | E7: N/A | I7: =IF(ISERROR(SEARCH("*Confirm*", G7)), IF(L7<>1, "Unanswered", "Answered"), "Needs Confirmed") -> Unanswered
C8: 1 | D8: =VLOOKUP(C8, 'Scoring Matrix'!A:B, 2, FALSE) -> What is the government's official currency? | E8: N/A | G8: =IF(VLOOKUP(C8,'Scoring Matrix'!A:N, 14, FALSE)=0, "", VLOOKUP(C8,'Scoring Matrix'!A:N, 14, FALSE)) -> Yen | H8: =IF(VLOOKUP(C8,'Scoring Matrix'!A:N, 14, FALSE)=0, "", VLOOKUP(C8,'Scoring Matrix'!A:N, 14, FALSE)) -> Yen | I8: =IF(ISERROR(SEARCH("*Confirm*", G8)), IF(L8<>1, "Unanswered", "Answered"), "Needs Confirmed") -> Unanswered | J8: =IF(OR(AND(F8="No", K8="Parent"),AND(F8="unknown", K8="Parent")),"N/A", IF(AND(J7="N/A", K8="Child"), "N/A", IF(AND(K8="Parent", F8="Yes"), C8, IF(AND(ISNUMBER(J7), K8="Child"), C8, "")))) ->  | K8: =IF(ISNUMBER(C8), IF(VLOOKUP(C8, 'Scoring Matrix'!A:L, 12, FALSE)="Parent", "Parent", IF(VLOOKUP(C8, 'Scoring Matrix'!A:L, 12, FALSE)="Child", "Child", "")), "") ->  | L8: =IF(OR(AND(K8="child", J8="N/A"), AND(K8="", F8<>""), AND(K8="Parent", J8="N/A")), 1, IF(F8<>"", IF(K9="child", IF(AND(F9<>"", L9<>""), 1, ""), 1), "")) ->  | M8: =IF(ISBLANK(C8), "", IF(ISBLANK(F8),0,E8)) -> 0 | O8: =ISBLANK(C8) -> FALSE | P8: =AND(J8="N/A", K8="Child") -> FALSE | Q8: =IF(K8="Child",IF(AND(F8="",ISNUMBER(J8)), TRUE, FALSE)) -> FALSE | S8: =IF(AND($J8="N/A", $K8="Child"), 0, SUMIFS('Scoring Matrix'!G:G, 'Scoring Matrix'!A:A, "="&Questionnaire!$C8, 'Scoring Matrix'!F:F, "="&Questionnaire!F8)) -> 0 | T8: =IF(AND($J8="N/A", $K8="Child"), 0, SUMIFS('Scoring Matrix'!H:H, 'Scoring Matrix'!A:A, "="&Questionnaire!$C8, 'Scoring Matrix'!F:F, "="&Questionnaire!F8)) -> 0 | U8: =IF(AND($J8="N/A", $K8="Child"), 0, SUMIFS('Scoring Matrix'!I:I, 'Scoring Matrix'!A:A, "="&Questionnaire!$C8, 'Scoring Matrix'!F:F, "="&Questionnaire!F8)) -> 0 | V8: =IF(AND($J8="N/A", $K8="Child"), 0, SUMIFS('Scoring Matrix'!J:J, 'Scoring Matrix'!A:A, "="&Questionnaire!$C8, 'Scoring Matrix'!F:F, "="&Questionnaire!F8)) -> 0 | W8: =IF(AND($J8="N/A", $K8="Child"), 0, SUMIFS('Scoring Matrix'!K:K, 'Scoring Matrix'!A:A, "="&Questionnaire!$C8, 'Scoring Matrix'!F:F, "="&Questionnaire!F8)) -> 0 | Y8: =IF(O8, "", IF(VLOOKUP(C8,'Scoring Matrix'!$A$2:W400,13,FALSE)=1,"N/A", "Yes")) -> Yes | Z8: =IF(O8, "", VLOOKUP(C8, 'Scoring Matrix'!A:D, 3, FALSE)) -> General | AA8: =IF(O8, "", VLOOKUP(C8, 'Scoring Matrix'!A:D, 4, FALSE)) -> Country Information
C9: =C8+1 -> 2 | D9: =VLOOKUP(C9, 'Scoring Matrix'!A:B, 2, FALSE) -> What is the current exchange rate for government's official currency to the United Stated dollar ($ USD)? | E9: N/A | G9: =IF(VLOOKUP(C9,'Scoring Matrix'!A:N, 14, FALSE)=0, "", VLOOKUP(C9,'Scoring Matrix'!A:N, 14, FALSE)) -> 0.01 | H9: =IF(VLOOKUP(C9,'Scoring Matrix'!A:N, 14, FALSE)=0, "", VLOOKUP(C9,'Scoring Matrix'!A:N, 14, FALSE)) -> 0.01 | I9: =IF(ISERROR(SEARCH("*Confirm*", G9)), IF(L9<>1, "Unanswered", "Answered"), "Needs Confirmed") -> Unanswered | J9: =IF(OR(AND(F9="No", K9="Parent"),AND(F9="unknown", K9="Parent")),"N/A", IF(AND(J8="N/A", K9="Child"), "N/A", IF(AND(K9="Parent", F9="Yes"), C9, IF(AND(ISNUMBER(J8), K9="Child"), C9, "")))) ->  | K9: =IF(ISNUMBER(C9), IF(VLOOKUP(C9, 'Scoring Matrix'!A:L, 12, FALSE)="Parent", "Parent", IF(VLOOKUP(C9, 'Scoring Matrix'!A:L, 12, FALSE)="Child", "Child", "")), "") ->  | L9: =IF(OR(AND(K9="child", J9="N/A"), AND(K9="", F9<>""), AND(K9="Parent", J9="N/A")), 1, IF(F9<>"", IF(K10="child", IF(AND(F10<>"", L10<>""), 1, ""), 1), "")) ->  | M9: =IF(ISBLANK(C9), "", IF(ISBLANK(F9),0,E9)) -> 0 | O9: =ISBLANK(C9) -> FALSE | P9: =AND(J9="N/A", K9="Child") -> FALSE | Q9: =IF(K9="Child",IF(AND(F9="",ISNUMBER(J9)), TRUE, FALSE)) -> FALSE | S9: =IF(AND($J9="N/A", $K9="Child"), 0, SUMIFS('Scoring Matrix'!G:G, 'Scoring Matrix'!A:A, "="&Questionnaire!$C9, 'Scoring Matrix'!F:F, "="&Questionnaire!F9)) -> 0 | T9: =IF(AND($J9="N/A", $K9="Child"), 0, SUMIFS('Scoring Matrix'!H:H, 'Scoring Matrix'!A:A, "="&Questionnaire!$C9, 'Scoring Matrix'!F:F, "="&Questionnaire!F9)) -> 0 | U9: =IF(AND($J9="N/A", $K9="Child"), 0, SUMIFS('Scoring Matrix'!I:I, 'Scoring Matrix'!A:A, "="&Questionnaire!$C9, 'Scoring Matrix'!F:F, "="&Questionnaire!F9)) -> 0 | V9: =IF(AND($J9="N/A", $K9="Child"), 0, SUMIFS('Scoring Matrix'!J:J, 'Scoring Matrix'!A:A, "="&Questionnaire!$C9, 'Scoring Matrix'!F:F, "="&Questionnaire!F9)) -> 0 | W9: =IF(AND($J9="N/A", $K9="Child"), 0, SUMIFS('Scoring Matrix'!K:K, 'Scoring Matrix'!A:A, "="&Questionnaire!$C9, 'Scoring Matrix'!F:F, "="&Questionnaire!F9)) -> 0 | Y9: =IF(O9, "", IF(VLOOKUP(C9,'Scoring Matrix'!$A$2:W400,13,FALSE)=1,"N/A", "Yes")) -> Yes | Z9: =IF(O9, "", VLOOKUP(C9, 'Scoring Matrix'!A:D, 3, FALSE)) -> General | AA9: =IF(O9, "", VLOOKUP(C9, 'Scoring Matrix'!A:D, 4, FALSE)) -> Country Information
C10: 3 | D10: =VLOOKUP(C10, 'Scoring Matrix'!A:B, 2, FALSE) -> What is the symbol and abbreviation for the official currency? | E10: N/A | G10: =IF(VLOOKUP(C10,'Scoring Matrix'!A:N, 14, FALSE)=0, "", VLOOKUP(C10,'Scoring Matrix'!A:N, 14, FALSE)) -> ¥ (JPY) | H10: =IF(VLOOKUP(C10,'Scoring Matrix'!A:N, 14, FALSE)=0, "", VLOOKUP(C10,'Scoring Matrix'!A:N, 14, FALSE)) -> ¥ (JPY) | I10: Unanswered | K10: =IF(ISNUMBER(C10), IF(VLOOKUP(C10, 'Scoring Matrix'!A:L, 12, FALSE)="Parent", "Parent", IF(VLOOKUP(C10, 'Scoring Matrix'!A:L, 12, FALSE)="Child", "Child", "")), "") ->  | M10: 0 | O10: FALSE | P10: FALSE | Q10: FALSE | S10: =IF(AND($J10="N/A", $K10="Child"), 0, SUMIFS('Scoring Matrix'!G:G, 'Scoring Matrix'!A:A, "="&Questionnaire!$C10, 'Scoring Matrix'!F:F, "="&Questionnaire!F10)) -> 0 | T10: =IF(AND($J10="N/A", $K10="Child"), 0, SUMIFS('Scoring Matrix'!H:H, 'Scoring Matrix'!A:A, "="&Questionnaire!$C10, 'Scoring Matrix'!F:F, "="&Questionnaire!F10)) -> 0 | U10: =IF(AND($J10="N/A", $K10="Child"), 0, SUMIFS('Scoring Matrix'!I:I, 'Scoring Matrix'!A:A, "="&Questionnaire!$C10, 'Scoring Matrix'!F:F, "="&Questionnaire!F10)) -> 0 | V10: =IF(AND($J10="N/A", $K10="Child"), 0, SUMIFS('Scoring Matrix'!J:J, 'Scoring Matrix'!A:A, "="&Questionnaire!$C10, 'Scoring Matrix'!F:F, "="&Questionnaire!F10)) -> 0 | W10: =IF(AND($J10="N/A", $K10="Child"), 0, SUMIFS('Scoring Matrix'!K:K, 'Scoring Matrix'!A:A, "="&Questionnaire!$C10, 'Scoring Matrix'!F:F, "="&Questionnaire!F10)) -> 0 | Y10: =IF(O10, "", IF(VLOOKUP(C10,'Scoring Matrix'!$A$2:W400,13,FALSE)=1,"N/A", "Yes")) -> Yes | Z10: =IF(O10, "", VLOOKUP(C10, 'Scoring Matrix'!A:D, 3, FALSE)) -> General | AA10: =IF(O10, "", VLOOKUP(C10, 'Scoring Matrix'!A:D, 4, FALSE)) -> Country Information
C11: 4 | D11: =VLOOKUP(C11, 'Scoring Matrix'!A:B, 2, FALSE) -> What was the total government budget for last year? | E11: N/A | G11: =IF(VLOOKUP(C11,'Scoring Matrix'!A:N, 14, FALSE)=0, "", VLOOKUP(C11,'Scoring Matrix'!A:N, 14, FALSE)) -> 96000000 | H11: =IF(VLOOKUP(C11,'Scoring Matrix'!A:N, 14, FALSE)=0, "", VLOOKUP(C11,'Scoring Matrix'!A:N, 14, FALSE)) -> 96000000 | I11: Unanswered | K11: =IF(ISNUMBER(C11), IF(VLOOKUP(C11, 'Scoring Matrix'!A:L, 12, FALSE)="Parent", "Parent", IF(VLOOKUP(C11, 'Scoring Matrix'!A:L, 12, FALSE)="Child", "Child", "")), "") ->  | M11: 0 | O11: FALSE | P11: FALSE | Q11: FALSE | S11: =IF(AND($J11="N/A", $K11="Child"), 0, SUMIFS('Scoring Matrix'!G:G, 'Scoring Matrix'!A:A, "="&Questionnaire!$C11, 'Scoring Matrix'!F:F, "="&Questionnaire!F11)) -> 0 | T11: =IF(AND($J11="N/A", $K11="Child"), 0, SUMIFS('Scoring Matrix'!H:H, 'Scoring Matrix'!A:A, "="&Questionnaire!$C11, 'Scoring Matrix'!F:F, "="&Questionnaire!F11)) -> 0 | U11: =IF(AND($J11="N/A", $K11="Child"), 0, SUMIFS('Scoring Matrix'!I:I, 'Scoring Matrix'!A:A, "="&Questionnaire!$C11, 'Scoring Matrix'!F:F, "="&Questionnaire!F11)) -> 0 | V11: =IF(AND($J11="N/A", $K11="Child"), 0, SUMIFS('Scoring Matrix'!J:J, 'Scoring Matrix'!A:A, "="&Questionnaire!$C11, 'Scoring Matrix'!F:F, "="&Questionnaire!F11)) -> 0 | W11: =IF(AND($J11="N/A", $K11="Child"), 0, SUMIFS('Scoring Matrix'!K:K, 'Scoring Matrix'!A:A, "="&Questionnaire!$C11, 'Scoring Matrix'!F:F, "="&Questionnaire!F11)) -> 0 | Y11: =IF(O11, "", IF(VLOOKUP(C11,'Scoring Matrix'!$A$2:W400,13,FALSE)=1,"N/A", "Yes")) -> Yes | Z11: =IF(O11, "", VLOOKUP(C11, 'Scoring Matrix'!A:D, 3, FALSE)) -> General | AA11: =IF(O11, "", VLOOKUP(C11, 'Scoring Matrix'!A:D, 4, FALSE)) -> Country Information
C12: 5 | D12: =VLOOKUP(C12, 'Scoring Matrix'!A:B, 2, FALSE) -> What was the total spent on Information and Communications Technology (ICT) across the entire government last year (ICT budget)? | E12: N/A | G12: =IF(VLOOKUP(C12,'Scoring Matrix'!A:N, 14, FALSE)=0, "", VLOOKUP(C12,'Scoring Matrix'!A:N, 14, FALSE)) -> 250000 | H12: =IF(VLOOKUP(C12,'Scoring Matrix'!A:N, 14, FALSE)=0, "", VLOOKUP(C12,'Scoring Matrix'!A:N, 14, FALSE)) -> 250000 | I12: Unanswered | K12: =IF(ISNUMBER(C12), IF(VLOOKUP(C12, 'Scoring Matrix'!A:L, 12, FALSE)="Parent", "Parent", IF(VLOOKUP(C12, 'Scoring Matrix'!A:L, 12, FALSE)="Child", "Child", "")), "") ->  | M12: 0 | O12: FALSE | P12: FALSE | Q12: FALSE | S12: =IF(AND($J12="N/A", $K12="Child"), 0, SUMIFS('Scoring Matrix'!G:G, 'Scoring Matrix'!A:A, "="&Questionnaire!$C12, 'Scoring Matrix'!F:F, "="&Questionnaire!F12)) -> 0 | T12: =IF(AND($J12="N/A", $K12="Child"), 0, SUMIFS('Scoring Matrix'!H:H, 'Scoring Matrix'!A:A, "="&Questionnaire!$C12, 'Scoring Matrix'!F:F, "="&Questionnaire!F12)) -> 0 | U12: =IF(AND($J12="N/A", $K12="Child"), 0, SUMIFS('Scoring Matrix'!I:I, 'Scoring Matrix'!A:A, "="&Questionnaire!$C12, 'Scoring Matrix'!F:F, "="&Questionnaire!F12)) -> 0 | V12: =IF(AND($J12="N/A", $K12="Child"), 0, SUMIFS('Scoring Matrix'!J:J, 'Scoring Matrix'!A:A, "="&Questionnaire!$C12, 'Scoring Matrix'!F:F, "="&Questionnaire!F12)) -> 0 | W12: =IF(AND($J12="N/A", $K12="Child"), 0, SUMIFS('Scoring Matrix'!K:K, 'Scoring Matrix'!A:A, "="&Questionnaire!$C12, 'Scoring Matrix'!F:F, "="&Questionnaire!F12)) -> 0 | Y12: =IF(O12, "", IF(VLOOKUP(C12,'Scoring Matrix'!$A$2:W400,13,FALSE)=1,"N/A", "Yes")) -> Yes | Z12: =IF(O12, "", VLOOKUP(C12, 'Scoring Matrix'!A:D, 3, FALSE)) -> General | AA12: =IF(O12, "", VLOOKUP(C12, 'Scoring Matrix'!A:D, 4, FALSE)) -> Country Information
C13: 6 | D13: =VLOOKUP(C13, 'Scoring Matrix'!A:B, 2, FALSE) -> How many public sector employees are there? | E13: N/A | G13: =IF(VLOOKUP(C13,'Scoring Matrix'!A:N, 14, FALSE)=0, "", VLOOKUP(C13,'Scoring Matrix'!A:N, 14, FALSE)) -> 10,000 – 100,000 | H13: =IF(VLOOKUP(C13,'Scoring Matrix'!A:N, 14, FALSE)=0, "", VLOOKUP(C13,'Scoring Matrix'!A:N, 14, FALSE)) -> 10,000 – 100,000 | I13: Unanswered | K13: =IF(ISNUMBER(C13), IF(VLOOKUP(C13, 'Scoring Matrix'!A:L, 12, FALSE)="Parent", "Parent", IF(VLOOKUP(C13, 'Scoring Matrix'!A:L, 12, FALSE)="Child", "Child", "")), "") ->  | M13: 0 | O13: FALSE | P13: FALSE | Q13: FALSE | S13: =IF(AND($J13="N/A", $K13="Child"), 0, SUMIFS('Scoring Matrix'!G:G, 'Scoring Matrix'!A:A, "="&Questionnaire!$C13, 'Scoring Matrix'!F:F, "="&Questionnaire!F13)) -> 0 | T13: =IF(AND($J13="N/A", $K13="Child"), 0, SUMIFS('Scoring Matrix'!H:H, 'Scoring Matrix'!A:A, "="&Questionnaire!$C13, 'Scoring Matrix'!F:F, "="&Questionnaire!F13)) -> 0 | U13: =IF(AND($J13="N/A", $K13="Child"), 0, SUMIFS('Scoring Matrix'!I:I, 'Scoring Matrix'!A:A, "="&Questionnaire!$C13, 'Scoring Matrix'!F:F, "="&Questionnaire!F13)) -> 0 | V13: =IF(AND($J13="N/A", $K13="Child"), 0, SUMIFS('Scoring Matrix'!J:J, 'Scoring Matrix'!A:A, "="&Questionnaire!$C13, 'Scoring Matrix'!F:F, "="&Questionnaire!F13)) -> 0 | W13: =IF(AND($J13="N/A", $K13="Child"), 0, SUMIFS('Scoring Matrix'!K:K, 'Scoring Matrix'!A:A, "="&Questionnaire!$C13, 'Scoring Matrix'!F:F, "="&Questionnaire!F13)) -> 0 | Y13: =IF(O13, "", IF(VLOOKUP(C13,'Scoring Matrix'!$A$2:W400,13,FALSE)=1,"N/A", "Yes")) -> Yes | Z13: =IF(O13, "", VLOOKUP(C13, 'Scoring Matrix'!A:D, 3, FALSE)) -> General | AA13: =IF(O13, "", VLOOKUP(C13, 'Scoring Matrix'!A:D, 4, FALSE)) -> Country Information
D14: Cloud Interest | E14: =SUM(E15:E28) -> 0.9 | I14: =IF(ISERROR(SEARCH("*Confirm*", G14)), IF(L14<>1, "Unanswered", "Answered"), "Needs Confirmed") -> Unanswered | K14: =IF(ISNUMBER(C14), IF(VLOOKUP(C14, 'Scoring Matrix'!A:L, 12, FALSE)="Parent", "Parent", IF(VLOOKUP(C14, 'Scoring Matrix'!A:L, 12, FALSE)="Child", "Child", "")), "") ->  | O14: TRUE | P14: FALSE | Q14: FALSE | S14: =IF(AND($J14="N/A", $K14="Child"), 0, SUMIFS('Scoring Matrix'!G:G, 'Scoring Matrix'!A:A, "="&Questionnaire!$C14, 'Scoring Matrix'!F:F, "="&Questionnaire!F14)) -> 0 | T14: =IF(AND($J14="N/A", $K14="Child"), 0, SUMIFS('Scoring Matrix'!H:H, 'Scoring Matrix'!A:A, "="&Questionnaire!$C14, 'Scoring Matrix'!F:F, "="&Questionnaire!F14)) -> 0 | U14: =IF(AND($J14="N/A", $K14="Child"), 0, SUMIFS('Scoring Matrix'!I:I, 'Scoring Matrix'!A:A, "="&Questionnaire!$C14, 'Scoring Matrix'!F:F, "="&Questionnaire!F14)) -> 0 | V14: =IF(AND($J14="N/A", $K14="Child"), 0, SUMIFS('Scoring Matrix'!J:J, 'Scoring Matrix'!A:A, "="&Questionnaire!$C14, 'Scoring Matrix'!F:F, "="&Questionnaire!F14)) -> 0 | W14: =IF(AND($J14="N/A", $K14="Child"), 0, SUMIFS('Scoring Matrix'!K:K, 'Scoring Matrix'!A:A, "="&Questionnaire!$C14, 'Scoring Matrix'!F:F, "="&Questionnaire!F14)) -> 0 | Y14: =IF(O14, "", IF(VLOOKUP(C14,'Scoring Matrix'!$A$2:W400,13,FALSE)=1,"N/A", "Yes")) ->  | Z14: =IF(O14, "", VLOOKUP(C14, 'Scoring Matrix'!A:D, 3, FALSE)) ->  | AA14: =IF(O14, "", VLOOKUP(C14, 'Scoring Matrix'!A:D, 4, FALSE)) -> 
C15: =C13+1 -> 7 | D15: =VLOOKUP(C15, 'Scoring Matrix'!A:B, 2, FALSE) -> Is the government interested in leveraging cloud computing? | E15: =IF(VLOOKUP(C15, 'Scoring Matrix'!A:E, 5, FALSE)=0, "", VLOOKUP(C15, 'Scoring Matrix'!A:E, 5, FALSE)) -> 0.15 | G15: =IF(VLOOKUP(C15,'Scoring Matrix'!A:N, 14, FALSE)=0, "", VLOOKUP(C15,'Scoring Matrix'!A:N, 14, FALSE)) -> Yes | H15: =IF(VLOOKUP(C15,'Scoring Matrix'!A:N, 14, FALSE)=0, "", VLOOKUP(C15,'Scoring Matrix'!A:N, 14, FALSE)) -> Yes | I15: Unanswered | K15: =IF(ISNUMBER(C15), IF(VLOOKUP(C15, 'Scoring Matrix'!A:L, 12, FALSE)="Parent", "Parent", IF(VLOOKUP(C15, 'Scoring Matrix'!A:L, 12, FALSE)="Child", "Child", "")), "") ->  | M15: 0 | O15: FALSE | P15: FALSE | Q15: FALSE | S15: =IF(AND($J15="N/A", $K15="Child"), 0, SUMIFS('Scoring Matrix'!G:G, 'Scoring Matrix'!A:A, "="&Questionnaire!$C15, 'Scoring Matrix'!F:F, "="&Questionnaire!F15)) -> 0 | T15: =IF(AND($J15="N/A", $K15="Child"), 0, SUMIFS('Scoring Matrix'!H:H, 'Scoring Matrix'!A:A, "="&Questionnaire!$C15, 'Scoring Matrix'!F:F, "="&Questionnaire!F15)) -> 0 | U15: =IF(AND($J15="N/A", $K15="Child"), 0, SUMIFS('Scoring Matrix'!I:I, 'Scoring Matrix'!A:A, "="&Questionnaire!$C15, 'Scoring Matrix'!F:F, "="&Questionnaire!F15)) -> 0 | V15: =IF(AND($J15="N/A", $K15="Child"), 0, SUMIFS('Scoring Matrix'!J:J, 'Scoring Matrix'!A:A, "="&Questionnaire!$C15, 'Scoring Matrix'!F:F, "="&Questionnaire!F15)) -> 0 | W15: =IF(AND($J15="N/A", $K15="Child"), 0, SUMIFS('Scoring Matrix'!K:K, 'Scoring Matrix'!A:A, "="&Questionnaire!$C15, 'Scoring Matrix'!F:F, "="&Questionnaire!F15)) -> 0 | Y15: =IF(O15, "", IF(VLOOKUP(C15,'Scoring Matrix'!$A$2:W400,13,FALSE)=1,"N/A", "Yes")) -> Yes | Z15: =IF(O15, "", VLOOKUP(C15, 'Scoring Matrix'!A:D, 3, FALSE)) -> General | AA15: =IF(O15, "", VLOOKUP(C15, 'Scoring Matrix'!A:D, 4, FALSE)) -> Interest Level | AB15: 5
C16: 8 | D16: =VLOOKUP(C16, 'Scoring Matrix'!A:B, 2, FALSE) -> Has the government allocated budget for cloud related activities? | E16: =IF(VLOOKUP(C16, 'Scoring Matrix'!A:E, 5, FALSE)=0, "", VLOOKUP(C16, 'Scoring Matrix'!A:E, 5, FALSE)) -> 0.05 | G16: =IF(VLOOKUP(C16,'Scoring Matrix'!A:N, 14, FALSE)=0, "", VLOOKUP(C16,'Scoring Matrix'!A:N, 14, FALSE)) -> Yes | H16: =IF(VLOOKUP(C16,'Scoring Matrix'!A:N, 14, FALSE)=0, "", VLOOKUP(C16,'Scoring Matrix'!A:N, 14, FALSE)) -> Yes | I16: Unanswered | K16: =IF(ISNUMBER(C16), IF(VLOOKUP(C16, 'Scoring Matrix'!A:L, 12, FALSE)="Parent", "Parent", IF(VLOOKUP(C16, 'Scoring Matrix'!A:L, 12, FALSE)="Child", "Child", "")), "") ->  | M16: 0 | O16: FALSE | P16: FALSE | Q16: FALSE | S16: =IF(AND($J16="N/A", $K16="Child"), 0, SUMIFS('Scoring Matrix'!G:G, 'Scoring Matrix'!A:A, "="&Questionnaire!$C16, 'Scoring Matrix'!F:F, "="&Questionnaire!F16)) -> 0 | T16: =IF(AND($J16="N/A", $K16="Child"), 0, SUMIFS('Scoring Matrix'!H:H, 'Scoring Matrix'!A:A, "="&Questionnaire!$C16, 'Scoring Matrix'!F:F, "="&Questionnaire!F16)) -> 0 | U16: =IF(AND($J16="N/A", $K16="Child"), 0, SUMIFS('Scoring Matrix'!I:I, 'Scoring Matrix'!A:A, "="&Questionnaire!$C16, 'Scoring Matrix'!F:F, "="&Questionnaire!F16)) -> 0 | V16: =IF(AND($J16="N/A", $K16="Child"), 0, SUMIFS('Scoring Matrix'!J:J, 'Scoring Matrix'!A:A, "="&Questionnaire!$C16, 'Scoring Matrix'!F:F, "="&Questionnaire!F16)) -> 0 | W16: =IF(AND($J16="N/A", $K16="Child"), 0, SUMIFS('Scoring Matrix'!K:K, 'Scoring Matrix'!A:A, "="&Questionnaire!$C16, 'Scoring Matrix'!F:F, "="&Questionnaire!F16)) -> 0 | Y16: =IF(O16, "", IF(VLOOKUP(C16,'Scoring Matrix'!$A$2:W400,13,FALSE)=1,"N/A", "Yes")) -> Yes | Z16: =IF(O16, "", VLOOKUP(C16, 'Scoring Matrix'!A:D, 3, FALSE)) -> General | AA16: =IF(O16, "", VLOOKUP(C16, 'Scoring Matrix'!A:D, 4, FALSE)) -> Interest Level
C17: 9 | D17: =VLOOKUP(C17, 'Scoring Matrix'!A:B, 2, FALSE) -> What is the primary driver for migrating to cloud? | E17: =IF(VLOOKUP(C17, 'Scoring Matrix'!A:E, 5, FALSE)=0, "", VLOOKUP(C17, 'Scoring Matrix'!A:E, 5, FALSE)) -> 0.15 | G17: =IF(VLOOKUP(C17,'Scoring Matrix'!A:N, 14, FALSE)=0, "", VLOOKUP(C17,'Scoring Matrix'!A:N, 14, FALSE)) -> Improve Operations (Agility & Scalability) | H17: =IF(VLOOKUP(C17,'Scoring Matrix'!A:N, 14, FALSE)=0, "", VLOOKUP(C17,'Scoring Matrix'!A:N, 14, FALSE)) -> Improve Operations (Agility & Scalability) | I17: Unanswered | K17: =IF(ISNUMBER(C17), IF(VLOOKUP(C17, 'Scoring Matrix'!A:L, 12, FALSE)="Parent", "Parent", IF(VLOOKUP(C17, 'Scoring Matrix'!A:L, 12, FALSE)="Child", "Child", "")), "") ->  | M17: 0 | O17: FALSE | P17: FALSE | Q17: FALSE | S17: =IF(AND($J17="N/A", $K17="Child"), 0, SUMIFS('Scoring Matrix'!G:G, 'Scoring Matrix'!A:A, "="&Questionnaire!$C17, 'Scoring Matrix'!F:F, "="&Questionnaire!F17)) -> 0 | T17: =IF(AND($J17="N/A", $K17="Child"), 0, SUMIFS('Scoring Matrix'!H:H, 'Scoring Matrix'!A:A, "="&Questionnaire!$C17, 'Scoring Matrix'!F:F, "="&Questionnaire!F17)) -> 0 | U17: =IF(AND($J17="N/A", $K17="Child"), 0, SUMIFS('Scoring Matrix'!I:I, 'Scoring Matrix'!A:A, "="&Questionnaire!$C17, 'Scoring Matrix'!F:F, "="&Questionnaire!F17)) -> 0 | V17: =IF(AND($J17="N/A", $K17="Child"), 0, SUMIFS('Scoring Matrix'!J:J, 'Scoring Matrix'!A:A, "="&Questionnaire!$C17, 'Scoring Matrix'!F:F, "="&Questionnaire!F17)) -> 0 | W17: =IF(AND($J17="N/A", $K17="Child"), 0, SUMIFS('Scoring Matrix'!K:K, 'Scoring Matrix'!A:A, "="&Questionnaire!$C17, 'Scoring Matrix'!F:F, "="&Questionnaire!F17)) -> 0 | Y17: =IF(O17, "", IF(VLOOKUP(C17,'Scoring Matrix'!$A$2:W400,13,FALSE)=1,"N/A", "Yes")) -> Yes | Z17: =IF(O17, "", VLOOKUP(C17, 'Scoring Matrix'!A:D, 3, FALSE)) -> General | AA17: =IF(O17, "", VLOOKUP(C17, 'Scoring Matrix'!A:D, 4, FALSE)) -> Interest Level
C18: 10 | D18: =VLOOKUP(C18, 'Scoring Matrix'!A:B, 2, FALSE) -> Has the government articulated a cloud strategy? | E18: =IF(VLOOKUP(C18, 'Scoring Matrix'!A:E, 5, FALSE)=0, "", VLOOKUP(C18, 'Scoring Matrix'!A:E, 5, FALSE)) -> 0.05 | G18: =IF(VLOOKUP(C18,'Scoring Matrix'!A:N, 14, FALSE)=0, "", VLOOKUP(C18,'Scoring Matrix'!A:N, 14, FALSE)) -> Yes | H18: =IF(VLOOKUP(C18,'Scoring Matrix'!A:N, 14, FALSE)=0, "", VLOOKUP(C18,'Scoring Matrix'!A:N, 14, FALSE)) -> Yes | I18: Unanswered | K18: =IF(ISNUMBER(C18), IF(VLOOKUP(C18, 'Scoring Matrix'!A:L, 12, FALSE)="Parent", "Parent", IF(VLOOKUP(C18, 'Scoring Matrix'!A:L, 12, FALSE)="Child", "Child", "")), "") ->  | M18: 0 | O18: FALSE | P18: FALSE | Q18: FALSE | S18: =IF(AND($J18="N/A", $K18="Child"), 0, SUMIFS('Scoring Matrix'!G:G, 'Scoring Matrix'!A:A, "="&Questionnaire!$C18, 'Scoring Matrix'!F:F, "="&Questionnaire!F18)) -> 0 | T18: =IF(AND($J18="N/A", $K18="Child"), 0, SUMIFS('Scoring Matrix'!H:H, 'Scoring Matrix'!A:A, "="&Questionnaire!$C18, 'Scoring Matrix'!F:F, "="&Questionnaire!F18)) -> 0 | U18: =IF(AND($J18="N/A", $K18="Child"), 0, SUMIFS('Scoring Matrix'!I:I, 'Scoring Matrix'!A:A, "="&Questionnaire!$C18, 'Scoring Matrix'!F:F, "="&Questionnaire!F18)) -> 0 | V18: =IF(AND($J18="N/A", $K18="Child"), 0, SUMIFS('Scoring Matrix'!J:J, 'Scoring Matrix'!A:A, "="&Questionnaire!$C18, 'Scoring Matrix'!F:F, "="&Questionnaire!F18)) -> 0 | W18: =IF(AND($J18="N/A", $K18="Child"), 0, SUMIFS('Scoring Matrix'!K:K, 'Scoring Matrix'!A:A, "="&Questionnaire!$C18, 'Scoring Matrix'!F:F, "="&Questionnaire!F18)) -> 0 | Y18: =IF(O18, "", IF(VLOOKUP(C18,'Scoring Matrix'!$A$2:W400,13,FALSE)=1,"N/A", "Yes")) -> Yes | Z18: =IF(O18, "", VLOOKUP(C18, 'Scoring Matrix'!A:D, 3, FALSE)) -> General | AA18: =IF(O18, "", VLOOKUP(C18, 'Scoring Matrix'!A:D, 4, FALSE)) -> Interest Level
C19: 11 | D19: =VLOOKUP(C19, 'Scoring Matrix'!A:B, 2, FALSE) -> Does the government have a preferred cloud adoption approach? | E19: =IF(VLOOKUP(C19, 'Scoring Matrix'!A:E, 5, FALSE)=0, "", VLOOKUP(C19, 'Scoring Matrix'!A:E, 5, FALSE)) -> 0.05 | G19: =IF(VLOOKUP(C19,'Scoring Matrix'!A:N, 14, FALSE)=0, "", VLOOKUP(C19,'Scoring Matrix'!A:N, 14, FALSE)) -> Not at this time | H19: =IF(VLOOKUP(C19,'Scoring Matrix'!A:N, 14, FALSE)=0, "", VLOOKUP(C19,'Scoring Matrix'!A:N, 14, FALSE)) -> Not at this time | I19: Unanswered | K19: =IF(ISNUMBER(C19), IF(VLOOKUP(C19, 'Scoring Matrix'!A:L, 12, FALSE)="Parent", "Parent", IF(VLOOKUP(C19, 'Scoring Matrix'!A:L, 12, FALSE)="Child", "Child", "")), "") ->  | M19: 0 | O19: FALSE | P19: FALSE | Q19: FALSE | S19: =IF(AND($J19="N/A", $K19="Child"), 0, SUMIFS('Scoring Matrix'!G:G, 'Scoring Matrix'!A:A, "="&Questionnaire!$C19, 'Scoring Matrix'!F:F, "="&Questionnaire!F19)) -> 0 | T19: =IF(AND($J19="N/A", $K19="Child"), 0, SUMIFS('Scoring Matrix'!H:H, 'Scoring Matrix'!A:A, "="&Questionnaire!$C19, 'Scoring Matrix'!F:F, "="&Questionnaire!F19)) -> 0 | U19: =IF(AND($J19="N/A", $K19="Child"), 0, SUMIFS('Scoring Matrix'!I:I, 'Scoring Matrix'!A:A, "="&Questionnaire!$C19, 'Scoring Matrix'!F:F, "="&Questionnaire!F19)) -> 0 | V19: =IF(AND($J19="N/A", $K19="Child"), 0, SUMIFS('Scoring Matrix'!J:J, 'Scoring Matrix'!A:A, "="&Questionnaire!$C19, 'Scoring Matrix'!F:F, "="&Questionnaire!F19)) -> 0 | W19: =IF(AND($J19="N/A", $K19="Child"), 0, SUMIFS('Scoring Matrix'!K:K, 'Scoring Matrix'!A:A, "="&Questionnaire!$C19, 'Scoring Matrix'!F:F, "="&Questionnaire!F19)) -> 0 | Y19: =IF(O19, "", IF(VLOOKUP(C19,'Scoring Matrix'!$A$2:W400,13,FALSE)=1,"N/A", "Yes")) -> Yes | Z19: =IF(O19, "", VLOOKUP(C19, 'Scoring Matrix'!A:D, 3, FALSE)) -> General | AA19: =IF(O19, "", VLOOKUP(C19, 'Scoring Matrix'!A:D, 4, FALSE)) -> Interest Level
C20: 12 | D20: =VLOOKUP(C20, 'Scoring Matrix'!A:B, 2, FALSE) -> Will there be a major election within the next 6 months? | E20: =IF(VLOOKUP(C20, 'Scoring Matrix'!A:E, 5, FALSE)=0, "", VLOOKUP(C20, 'Scoring Matrix'!A:E, 5, FALSE)) -> 0.05 | G20: =IF(VLOOKUP(C20,'Scoring Matrix'!A:N, 14, FALSE)=0, "", VLOOKUP(C20,'Scoring Matrix'!A:N, 14, FALSE)) -> Yes | H20: =IF(VLOOKUP(C20,'Scoring Matrix'!A:N, 14, FALSE)=0, "", VLOOKUP(C20,'Scoring Matrix'!A:N, 14, FALSE)) -> Yes | I20: Unanswered | K20: =IF(ISNUMBER(C20), IF(VLOOKUP(C20, 'Scoring Matrix'!A:L, 12, FALSE)="Parent", "Parent", IF(VLOOKUP(C20, 'Scoring Matrix'!A:L, 12, FALSE)="Child", "Child", "")), "") ->  | M20: 0 | O20: FALSE | P20: FALSE | Q20: FALSE | S20: =IF(AND($J20="N/A", $K20="Child"), 0, SUMIFS('Scoring Matrix'!G:G, 'Scoring Matrix'!A:A, "="&Questionnaire!$C20, 'Scoring Matrix'!F:F, "="&Questionnaire!F20)) -> 0 | T20: =IF(AND($J20="N/A", $K20="Child"), 0, SUMIFS('Scoring Matrix'!H:H, 'Scoring Matrix'!A:A, "="&Questionnaire!$C20, 'Scoring Matrix'!F:F, "="&Questionnaire!F20)) -> 0 | U20: =IF(AND($J20="N/A", $K20="Child"), 0, SUMIFS('Scoring Matrix'!I:I, 'Scoring Matrix'!A:A, "="&Questionnaire!$C20, 'Scoring Matrix'!F:F, "="&Questionnaire!F20)) -> 0 | V20: =IF(AND($J20="N/A", $K20="Child"), 0, SUMIFS('Scoring Matrix'!J:J, 'Scoring Matrix'!A:A, "="&Questionnaire!$C20, 'Scoring Matrix'!F:F, "="&Questionnaire!F20)) -> 0 | W20: =IF(AND($J20="N/A", $K20="Child"), 0, SUMIFS('Scoring Matrix'!K:K, 'Scoring Matrix'!A:A, "="&Questionnaire!$C20, 'Scoring Matrix'!F:F, "="&Questionnaire!F20)) -> 0 | Y20: =IF(O20, "", IF(VLOOKUP(C20,'Scoring Matrix'!$A$2:W400,13,FALSE)=1,"N/A", "Yes")) -> Yes | Z20: =IF(O20, "", VLOOKUP(C20, 'Scoring Matrix'!A:D, 3, FALSE)) -> General | AA20: =IF(O20, "", VLOOKUP(C20, 'Scoring Matrix'!A:D, 4, FALSE)) -> Interest Level
C21: 13 | D21: =VLOOKUP(C21, 'Scoring Matrix'!A:B, 2, FALSE) -> Is there a government CIO or cabinet level ICT representative? | E21: =IF(VLOOKUP(C21, 'Scoring Matrix'!A:E, 5, FALSE)=0, "", VLOOKUP(C21, 'Scoring Matrix'!A:E, 5, FALSE)) -> 0.05 | G21: =IF(VLOOKUP(C21,'Scoring Matrix'!A:N, 14, FALSE)=0, "", VLOOKUP(C21,'Scoring Matrix'!A:N, 14, FALSE)) -> Yes | H21: =IF(VLOOKUP(C21,'Scoring Matrix'!A:N, 14, FALSE)=0, "", VLOOKUP(C21,'Scoring Matrix'!A:N, 14, FALSE)) -> Yes | I21: Unanswered | K21: =IF(ISNUMBER(C21), IF(VLOOKUP(C21, 'Scoring Matrix'!A:L, 12, FALSE)="Parent", "Parent", IF(VLOOKUP(C21, 'Scoring Matrix'!A:L, 12, FALSE)="Child", "Child", "")), "") ->  | M21: 0 | O21: FALSE | P21: FALSE | Q21: FALSE | S21: =IF(AND($J21="N/A", $K21="Child"), 0, SUMIFS('Scoring Matrix'!G:G, 'Scoring Matrix'!A:A, "="&Questionnaire!$C21, 'Scoring Matrix'!F:F, "="&Questionnaire!F21)) -> 0 | T21: =IF(AND($J21="N/A", $K21="Child"), 0, SUMIFS('Scoring Matrix'!H:H, 'Scoring Matrix'!A:A, "="&Questionnaire!$C21, 'Scoring Matrix'!F:F, "="&Questionnaire!F21)) -> 0 | U21: =IF(AND($J21="N/A", $K21="Child"), 0, SUMIFS('Scoring Matrix'!I:I, 'Scoring Matrix'!A:A, "="&Questionnaire!$C21, 'Scoring Matrix'!F:F, "="&Questionnaire!F21)) -> 0 | V21: =IF(AND($J21="N/A", $K21="Child"), 0, SUMIFS('Scoring Matrix'!J:J, 'Scoring Matrix'!A:A, "="&Questionnaire!$C21, 'Scoring Matrix'!F:F, "="&Questionnaire!F21)) -> 0 | W21: =IF(AND($J21="N/A", $K21="Child"), 0, SUMIFS('Scoring Matrix'!K:K, 'Scoring Matrix'!A:A, "="&Questionnaire!$C21, 'Scoring Matrix'!F:F, "="&Questionnaire!F21)) -> 0 | Y21: =IF(O21, "", IF(VLOOKUP(C21,'Scoring Matrix'!$A$2:W400,13,FALSE)=1,"N/A", "Yes")) -> Yes | Z21: =IF(O21, "", VLOOKUP(C21, 'Scoring Matrix'!A:D, 3, FALSE)) -> General | AA21: =IF(O21, "", VLOOKUP(C21, 'Scoring Matrix'!A:D, 4, FALSE)) -> Interest Level
C22: 14 | D22: =VLOOKUP(C22, 'Scoring Matrix'!A:B, 2, FALSE) -> Has the government assigned roles and responsibilities for cloud related activities? | E22: =IF(VLOOKUP(C22, 'Scoring Matrix'!A:E, 5, FALSE)=0, "", VLOOKUP(C22, 'Scoring Matrix'!A:E, 5, FALSE)) -> 0.05 | G22: =IF(VLOOKUP(C22,'Scoring Matrix'!A:N, 14, FALSE)=0, "", VLOOKUP(C22,'Scoring Matrix'!A:N, 14, FALSE)) -> There is no one working on cloud related work | H22: =IF(VLOOKUP(C22,'Scoring Matrix'!A:N, 14, FALSE)=0, "", VLOOKUP(C22,'Scoring Matrix'!A:N, 14, FALSE)) -> There is no one working on cloud related work | I22: Unanswered | K22: =IF(ISNUMBER(C22), IF(VLOOKUP(C22, 'Scoring Matrix'!A:L, 12, FALSE)="Parent", "Parent", IF(VLOOKUP(C22, 'Scoring Matrix'!A:L, 12, FALSE)="Child", "Child", "")), "") ->  | M22: 0 | O22: FALSE | P22: FALSE | Q22: FALSE | S22: =IF(AND($J22="N/A", $K22="Child"), 0, SUMIFS('Scoring Matrix'!G:G, 'Scoring Matrix'!A:A, "="&Questionnaire!$C22, 'Scoring Matrix'!F:F, "="&Questionnaire!F22)) -> 0 | T22: =IF(AND($J22="N/A", $K22="Child"), 0, SUMIFS('Scoring Matrix'!H:H, 'Scoring Matrix'!A:A, "="&Questionnaire!$C22, 'Scoring Matrix'!F:F, "="&Questionnaire!F22)) -> 0 | U22: =IF(AND($J22="N/A", $K22="Child"), 0, SUMIFS('Scoring Matrix'!I:I, 'Scoring Matrix'!A:A, "="&Questionnaire!$C22, 'Scoring Matrix'!F:F, "="&Questionnaire!F22)) -> 0 | V22: =IF(AND($J22="N/A", $K22="Child"), 0, SUMIFS('Scoring Matrix'!J:J, 'Scoring Matrix'!A:A, "="&Questionnaire!$C22, 'Scoring Matrix'!F:F, "="&Questionnaire!F22)) -> 0 | W22: =IF(AND($J22="N/A", $K22="Child"), 0, SUMIFS('Scoring Matrix'!K:K, 'Scoring Matrix'!A:A, "="&Questionnaire!$C22, 'Scoring Matrix'!F:F, "="&Questionnaire!F22)) -> 0 | Y22: =IF(O22, "", IF(VLOOKUP(C22,'Scoring Matrix'!$A$2:W400,13,FALSE)=1,"N/A", "Yes")) -> Yes | Z22: =IF(O22, "", VLOOKUP(C22, 'Scoring Matrix'!A:D, 3, FALSE)) -> General | AA22: =IF(O22, "", VLOOKUP(C22, 'Scoring Matrix'!A:D, 4, FALSE)) -> Interest Level
C23: 15 | D23: =VLOOKUP(C23, 'Scoring Matrix'!A:B, 2, FALSE) -> Is there support for cloud adoption? | E23: =IF(VLOOKUP(C23, 'Scoring Matrix'!A:E, 5, FALSE)=0, "", VLOOKUP(C23, 'Scoring Matrix'!A:E, 5, FALSE)) -> 0.05 | G23: =IF(VLOOKUP(C23,'Scoring Matrix'!A:N, 14, FALSE)=0, "", VLOOKUP(C23,'Scoring Matrix'!A:N, 14, FALSE)) -> Yes | H23: =IF(VLOOKUP(C23,'Scoring Matrix'!A:N, 14, FALSE)=0, "", VLOOKUP(C23,'Scoring Matrix'!A:N, 14, FALSE)) -> Yes | I23: Unanswered | K23: =IF(ISNUMBER(C23), IF(VLOOKUP(C23, 'Scoring Matrix'!A:L, 12, FALSE)="Parent", "Parent", IF(VLOOKUP(C23, 'Scoring Matrix'!A:L, 12, FALSE)="Child", "Child", "")), "") ->  | M23: 0 | O23: FALSE | P23: FALSE | Q23: FALSE | S23: =IF(AND($J23="N/A", $K23="Child"), 0, SUMIFS('Scoring Matrix'!G:G, 'Scoring Matrix'!A:A, "="&Questionnaire!$C23, 'Scoring Matrix'!F:F, "="&Questionnaire!F23)) -> 0 | T23: =IF(AND($J23="N/A", $K23="Child"), 0, SUMIFS('Scoring Matrix'!H:H, 'Scoring Matrix'!A:A, "="&Questionnaire!$C23, 'Scoring Matrix'!F:F, "="&Questionnaire!F23)) -> 0 | U23: =IF(AND($J23="N/A", $K23="Child"), 0, SUMIFS('Scoring Matrix'!I:I, 'Scoring Matrix'!A:A, "="&Questionnaire!$C23, 'Scoring Matrix'!F:F, "="&Questionnaire!F23)) -> 0 | V23: =IF(AND($J23="N/A", $K23="Child"), 0, SUMIFS('Scoring Matrix'!J:J, 'Scoring Matrix'!A:A, "="&Questionnaire!$C23, 'Scoring Matrix'!F:F, "="&Questionnaire!F23)) -> 0 | W23: =IF(AND($J23="N/A", $K23="Child"), 0, SUMIFS('Scoring Matrix'!K:K, 'Scoring Matrix'!A:A, "="&Questionnaire!$C23, 'Scoring Matrix'!F:F, "="&Questionnaire!F23)) -> 0 | Y23: =IF(O23, "", IF(VLOOKUP(C23,'Scoring Matrix'!$A$2:W400,13,FALSE)=1,"N/A", "Yes")) -> Yes | Z23: =IF(O23, "", VLOOKUP(C23, 'Scoring Matrix'!A:D, 3, FALSE)) -> General | AA23: =IF(O23, "", VLOOKUP(C23, 'Scoring Matrix'!A:D, 4, FALSE)) -> Interest Level
C24: 16 | D24: =VLOOKUP(C24, 'Scoring Matrix'!A:B, 2, FALSE) -> Is there ongoing evaluation of, or research into, international best practices around adoption and implementation of cloud computing? | E24: =IF(VLOOKUP(C24, 'Scoring Matrix'!A:E, 5, FALSE)=0, "", VLOOKUP(C24, 'Scoring Matrix'!A:E, 5, FALSE)) -> 0.05 | G24: =IF(VLOOKUP(C24,'Scoring Matrix'!A:N, 14, FALSE)=0, "", VLOOKUP(C24,'Scoring Matrix'!A:N, 14, FALSE)) -> No | H24: =IF(VLOOKUP(C24,'Scoring Matrix'!A:N, 14, FALSE)=0, "", VLOOKUP(C24,'Scoring Matrix'!A:N, 14, FALSE)) -> No | I24: Unanswered | K24: =IF(ISNUMBER(C24), IF(VLOOKUP(C24, 'Scoring Matrix'!A:L, 12, FALSE)="Parent", "Parent", IF(VLOOKUP(C24, 'Scoring Matrix'!A:L, 12, FALSE)="Child", "Child", "")), "") ->  | M24: 0 | O24: FALSE | P24: FALSE | Q24: FALSE | S24: =IF(AND($J24="N/A", $K24="Child"), 0, SUMIFS('Scoring Matrix'!G:G, 'Scoring Matrix'!A:A, "="&Questionnaire!$C24, 'Scoring Matrix'!F:F, "="&Questionnaire!F24)) -> 0 | T24: =IF(AND($J24="N/A", $K24="Child"), 0, SUMIFS('Scoring Matrix'!H:H, 'Scoring Matrix'!A:A, "="&Questionnaire!$C24, 'Scoring Matrix'!F:F, "="&Questionnaire!F24)) -> 0 | U24: =IF(AND($J24="N/A", $K24="Child"), 0, SUMIFS('Scoring Matrix'!I:I, 'Scoring Matrix'!A:A, "="&Questionnaire!$C24, 'Scoring Matrix'!F:F, "="&Questionnaire!F24)) -> 0 | V24: =IF(AND($J24="N/A", $K24="Child"), 0, SUMIFS('Scoring Matrix'!J:J, 'Scoring Matrix'!A:A, "="&Questionnaire!$C24, 'Scoring Matrix'!F:F, "="&Questionnaire!F24)) -> 0 | W24: =IF(AND($J24="N/A", $K24="Child"), 0, SUMIFS('Scoring Matrix'!K:K, 'Scoring Matrix'!A:A, "="&Questionnaire!$C24, 'Scoring Matrix'!F:F, "="&Questionnaire!F24)) -> 0 | Y24: =IF(O24, "", IF(VLOOKUP(C24,'Scoring Matrix'!$A$2:W400,13,FALSE)=1,"N/A", "Yes")) -> Yes | Z24: =IF(O24, "", VLOOKUP(C24, 'Scoring Matrix'!A:D, 3, FALSE)) -> General | AA24: =IF(O24, "", VLOOKUP(C24, 'Scoring Matrix'!A:D, 4, FALSE)) -> Interest Level
C25: 17 | D25: =VLOOKUP(C25, 'Scoring Matrix'!A:B, 2, FALSE) -> Has the government investigated any cloud offerings for potential use? | E25: =IF(VLOOKUP(C25, 'Scoring Matrix'!A:E, 5, FALSE)=0, "", VLOOKUP(C25, 'Scoring Matrix'!A:E, 5, FALSE)) -> 0.05 | G25: =IF(VLOOKUP(C25,'Scoring Matrix'!A:N, 14, FALSE)=0, "", VLOOKUP(C25,'Scoring Matrix'!A:N, 14, FALSE)) -> Yes | H25: =IF(VLOOKUP(C25,'Scoring Matrix'!A:N, 14, FALSE)=0, "", VLOOKUP(C25,'Scoring Matrix'!A:N, 14, FALSE)) -> Yes | I25: Unanswered | K25: =IF(ISNUMBER(C25), IF(VLOOKUP(C25, 'Scoring Matrix'!A:L, 12, FALSE)="Parent", "Parent", IF(VLOOKUP(C25, 'Scoring Matrix'!A:L, 12, FALSE)="Child", "Child", "")), "") ->  | L25: =IF(OR(AND(K25="child", J25="N/A"), AND(K25="", F25<>""), AND(K25="Parent", J25="N/A")), 1, IF(F25<>"", IF(K27="child", IF(AND(F27<>"", L27<>""), 1, ""), 1), "")) ->  | M25: 0 | O25: FALSE | P25: FALSE | Q25: FALSE | S25: =IF(AND($J25="N/A", $K25="Child"), 0, SUMIFS('Scoring Matrix'!G:G, 'Scoring Matrix'!A:A, "="&Questionnaire!$C25, 'Scoring Matrix'!F:F, "="&Questionnaire!F25)) -> 0 | T25: =IF(AND($J25="N/A", $K25="Child"), 0, SUMIFS('Scoring Matrix'!H:H, 'Scoring Matrix'!A:A, "="&Questionnaire!$C25, 'Scoring Matrix'!F:F, "="&Questionnaire!F25)) -> 0 | U25: =IF(AND($J25="N/A", $K25="Child"), 0, SUMIFS('Scoring Matrix'!I:I, 'Scoring Matrix'!A:A, "="&Questionnaire!$C25, 'Scoring Matrix'!F:F, "="&Questionnaire!F25)) -> 0 | V25: =IF(AND($J25="N/A", $K25="Child"), 0, SUMIFS('Scoring Matrix'!J:J, 'Scoring Matrix'!A:A, "="&Questionnaire!$C25, 'Scoring Matrix'!F:F, "="&Questionnaire!F25)) -> 0 | W25: =IF(AND($J25="N/A", $K25="Child"), 0, SUMIFS('Scoring Matrix'!K:K, 'Scoring Matrix'!A:A, "="&Questionnaire!$C25, 'Scoring Matrix'!F:F, "="&Questionnaire!F25)) -> 0 | Y25: =IF(O25, "", IF(VLOOKUP(C25,'Scoring Matrix'!$A$2:W400,13,FALSE)=1,"N/A", "Yes")) -> Yes | Z25: =IF(O25, "", VLOOKUP(C25, 'Scoring Matrix'!A:D, 3, FALSE)) -> General | AA25: =IF(O25, "", VLOOKUP(C25, 'Scoring Matrix'!A:D, 4, FALSE)) -> Interest Level
C26: 18 | D26: =VLOOKUP(C26, 'Scoring Matrix'!A:B, 2, FALSE) -> Do you avoid initiating new projects due to unavailable computer hardware? | E26: =IF(VLOOKUP(C26, 'Scoring Matrix'!A:E, 5, FALSE)=0, "", VLOOKUP(C26, 'Scoring Matrix'!A:E, 5, FALSE)) -> 0.05 | G26: =IF(VLOOKUP(C26,'Scoring Matrix'!A:N, 14, FALSE)=0, "", VLOOKUP(C26,'Scoring Matrix'!A:N, 14, FALSE)) -> Yes | H26: =IF(VLOOKUP(C26,'Scoring Matrix'!A:N, 14, FALSE)=0, "", VLOOKUP(C26,'Scoring Matrix'!A:N, 14, FALSE)) -> Yes | I26: =IF(ISERROR(SEARCH("*Confirm*", G26)), IF(L26<>1, "Unanswered", "Answered"), "Needs Confirmed") -> Unanswered | J26: =IF(OR(AND(F26="No", K26="Parent"),AND(F26="unknown", K26="Parent")),"N/A", IF(AND(J25="N/A", K26="Child"), "N/A", IF(AND(K26="Parent", F26="Yes"), C26, IF(AND(ISNUMBER(J25), K26="Child"), C26, "")))) ->  | K26: =IF(ISNUMBER(C26), IF(VLOOKUP(C26, 'Scoring Matrix'!A:L, 12, FALSE)="Parent", "Parent", IF(VLOOKUP(C26, 'Scoring Matrix'!A:L, 12, FALSE)="Child", "Child", "")), "") ->  | L26: =IF(OR(AND(K26="child", J26="N/A"), AND(K26="", F26<>""), AND(K26="Parent", J26="N/A")), 1, IF(F26<>"", IF(#REF!="child", IF(AND(#REF!<>"",#REF!<> ""), 1, ""), 1), "")) ->  | M26: =IF(ISBLANK(C26), "", IF(ISBLANK(F26),0,E26)) -> 0 | O26: =ISBLANK(C26) -> FALSE | P26: =AND(J26="N/A", K26="Child") -> FALSE | Q26: =IF(K26="Child",IF(AND(F26="",ISNUMBER(J26)), TRUE, FALSE)) -> FALSE | S26: =IF(AND($J26="N/A", $K26="Child"), 0, SUMIFS('Scoring Matrix'!G:G, 'Scoring Matrix'!A:A, "="&Questionnaire!$C26, 'Scoring Matrix'!F:F, "="&Questionnaire!F26)) -> 0 | T26: =IF(AND($J26="N/A", $K26="Child"), 0, SUMIFS('Scoring Matrix'!H:H, 'Scoring Matrix'!A:A, "="&Questionnaire!$C26, 'Scoring Matrix'!F:F, "="&Questionnaire!F26)) -> 0 | U26: =IF(AND($J26="N/A", $K26="Child"), 0, SUMIFS('Scoring Matrix'!I:I, 'Scoring Matrix'!A:A, "="&Questionnaire!$C26, 'Scoring Matrix'!F:F, "="&Questionnaire!F26)) -> 0 | V26: =IF(AND($J26="N/A", $K26="Child"), 0, SUMIFS('Scoring Matrix'!J:J, 'Scoring Matrix'!A:A, "="&Questionnaire!$C26, 'Scoring Matrix'!F:F, "="&Questionnaire!F26)) -> 0 | W26: =IF(AND($J26="N/A", $K26="Child"), 0, SUMIFS('Scoring Matrix'!K:K, 'Scoring Matrix'!A:A, "="&Questionnaire!$C26, 'Scoring Matrix'!F:F, "="&Questionnaire!F26)) -> 0 | Y26: =IF(O26, "", IF(VLOOKUP(C26,'Scoring Matrix'!$A$2:W400,13,FALSE)=1,"N/A", "Yes")) -> Yes | Z26: =IF(O26, "", VLOOKUP(C26, 'Scoring Matrix'!A:D, 3, FALSE)) -> General | AA26: =IF(O26, "", VLOOKUP(C26, 'Scoring Matrix'!A:D, 4, FALSE)) -> Interest Level
C27: 19 | D27: =VLOOKUP(C27, 'Scoring Matrix'!A:B, 2, FALSE) -> Over the past three years, what was the largest IT expense? | E27: =IF(VLOOKUP(C27, 'Scoring Matrix'!A:E, 5, FALSE)=0, "", VLOOKUP(C27, 'Scoring Matrix'!A:E, 5, FALSE)) -> 0.05 | G27: =IF(VLOOKUP(C27,'Scoring Matrix'!A:N, 14, FALSE)=0, "", VLOOKUP(C27,'Scoring Matrix'!A:N, 14, FALSE)) -> Personnel | H27: =IF(VLOOKUP(C27,'Scoring Matrix'!A:N, 14, FALSE)=0, "", VLOOKUP(C27,'Scoring Matrix'!A:N, 14, FALSE)) -> Personnel | I27: =IF(ISERROR(SEARCH("*Confirm*", G27)), IF(L27<>1, "Unanswered", "Answered"), "Needs Confirmed") -> Unanswered | J27: =IF(OR(AND(F27="No", K27="Parent"),AND(F27="unknown", K27="Parent")),"N/A", IF(AND(J26="N/A", K27="Child"), "N/A", IF(AND(K27="Parent", F27="Yes"), C27, IF(AND(ISNUMBER(J26), K27="Child"), C27, "")))) ->  | K27: =IF(ISNUMBER(C27), IF(VLOOKUP(C27, 'Scoring Matrix'!A:L, 12, FALSE)="Parent", "Parent", IF(VLOOKUP(C27, 'Scoring Matrix'!A:L, 12, FALSE)="Child", "Child", "")), "") ->  | L27: =IF(OR(AND(K27="child", J27="N/A"), AND(K27="", F27<>""), AND(K27="Parent", J27="N/A")), 1, IF(F27<>"", IF(#REF!="child", IF(AND(#REF!<>"",#REF!<> ""), 1, ""), 1), "")) ->  | M27: =IF(ISBLANK(C27), "", IF(ISBLANK(F27),0,E27)) -> 0 | O27: =ISBLANK(C27) -> FALSE | P27: =AND(J27="N/A", K27="Child") -> FALSE | Q27: =IF(K27="Child",IF(AND(F27="",ISNUMBER(J27)), TRUE, FALSE)) -> FALSE | S27: =IF(AND($J27="N/A", $K27="Child"), 0, SUMIFS('Scoring Matrix'!G:G, 'Scoring Matrix'!A:A, "="&Questionnaire!$C27, 'Scoring Matrix'!F:F, "="&Questionnaire!F27)) -> 0 | T27: =IF(AND($J27="N/A", $K27="Child"), 0, SUMIFS('Scoring Matrix'!H:H, 'Scoring Matrix'!A:A, "="&Questionnaire!$C27, 'Scoring Matrix'!F:F, "="&Questionnaire!F27)) -> 0 | U27: =IF(AND($J27="N/A", $K27="Child"), 0, SUMIFS('Scoring Matrix'!I:I, 'Scoring Matrix'!A:A, "="&Questionnaire!$C27, 'Scoring Matrix'!F:F, "="&Questionnaire!F27)) -> 0 | V27: =IF(AND($J27="N/A", $K27="Child"), 0, SUMIFS('Scoring Matrix'!J:J, 'Scoring Matrix'!A:A, "="&Questionnaire!$C27, 'Scoring Matrix'!F:F, "="&Questionnaire!F27)) -> 0 | W27: =IF(AND($J27="N/A", $K27="Child"), 0, SUMIFS('Scoring Matrix'!K:K, 'Scoring Matrix'!A:A, "="&Questionnaire!$C27, 'Scoring Matrix'!F:F, "="&Questionnaire!F27)) -> 0 | Y27: =IF(O27, "", IF(VLOOKUP(C27,'Scoring Matrix'!$A$2:W400,13,FALSE)=1,"N/A", "Yes")) -> Yes | Z27: =IF(O27, "", VLOOKUP(C27, 'Scoring Matrix'!A:D, 3, FALSE)) -> General | AA27: =IF(O27, "", VLOOKUP(C27, 'Scoring Matrix'!A:D, 4, FALSE)) -> Interest Level
C28: 20 | D28: =VLOOKUP(C28, 'Scoring Matrix'!A:B, 2, FALSE) -> Currently, where are the vast majority of applications hosted? | E28: =IF(VLOOKUP(C28, 'Scoring Matrix'!A:E, 5, FALSE)=0, "", VLOOKUP(C28, 'Scoring Matrix'!A:E, 5, FALSE)) -> 0.05 | G28: =IF(VLOOKUP(C28,'Scoring Matrix'!A:N, 14, FALSE)=0, "", VLOOKUP(C28,'Scoring Matrix'!A:N, 14, FALSE)) -> Single consolidated data center | H28: =IF(VLOOKUP(C28,'Scoring Matrix'!A:N, 14, FALSE)=0, "", VLOOKUP(C28,'Scoring Matrix'!A:N, 14, FALSE)) -> Single consolidated data center | I28: Unanswered | K28: =IF(ISNUMBER(C28), IF(VLOOKUP(C28, 'Scoring Matrix'!A:L, 12, FALSE)="Parent", "Parent", IF(VLOOKUP(C28, 'Scoring Matrix'!A:L, 12, FALSE)="Child", "Child", "")), "") ->  | M28: 0 | O28: FALSE | P28: FALSE | Q28: FALSE | S28: =IF(AND($J28="N/A", $K28="Child"), 0, SUMIFS('Scoring Matrix'!G:G, 'Scoring Matrix'!A:A, "="&Questionnaire!$C28, 'Scoring Matrix'!F:F, "="&Questionnaire!F28)) -> 0 | T28: =IF(AND($J28="N/A", $K28="Child"), 0, SUMIFS('Scoring Matrix'!H:H, 'Scoring Matrix'!A:A, "="&Questionnaire!$C28, 'Scoring Matrix'!F:F, "="&Questionnaire!F28)) -> 0 | U28: =IF(AND($J28="N/A", $K28="Child"), 0, SUMIFS('Scoring Matrix'!I:I, 'Scoring Matrix'!A:A, "="&Questionnaire!$C28, 'Scoring Matrix'!F:F, "="&Questionnaire!F28)) -> 0 | V28: =IF(AND($J28="N/A", $K28="Child"), 0, SUMIFS('Scoring Matrix'!J:J, 'Scoring Matrix'!A:A, "="&Questionnaire!$C28, 'Scoring Matrix'!F:F, "="&Questionnaire!F28)) -> 0 | W28: =IF(AND($J28="N/A", $K28="Child"), 0, SUMIFS('Scoring Matrix'!K:K, 'Scoring Matrix'!A:A, "="&Questionnaire!$C28, 'Scoring Matrix'!F:F, "="&Questionnaire!F28)) -> 0 | Y28: =IF(O28, "", IF(VLOOKUP(C28,'Scoring Matrix'!$A$2:W400,13,FALSE)=1,"N/A", "Yes")) -> Yes | Z28: =IF(O28, "", VLOOKUP(C28, 'Scoring Matrix'!A:D, 3, FALSE)) -> General | AA28: =IF(O28, "", VLOOKUP(C28, 'Scoring Matrix'!A:D, 4, FALSE)) -> Interest Level
D29: Existing Cloud | E29: =SUM(E30:E34) -> 0.1 | I29: =IF(ISERROR(SEARCH("*Confirm*", G29)), IF(L29<>1, "Unanswered", "Answered"), "Needs Confirmed") -> Unanswered | K29: =IF(ISNUMBER(C29), IF(VLOOKUP(C29, 'Scoring Matrix'!A:L, 12, FALSE)="Parent", "Parent", IF(VLOOKUP(C29, 'Scoring Matrix'!A:L, 12, FALSE)="Child", "Child", "")), "") ->  | O29: TRUE | P29: FALSE | Q29: FALSE | S29: =IF(AND($J29="N/A", $K29="Child"), 0, SUMIFS('Scoring Matrix'!G:G, 'Scoring Matrix'!A:A, "="&Questionnaire!$C29, 'Scoring Matrix'!F:F, "="&Questionnaire!F29)) -> 0 | T29: =IF(AND($J29="N/A", $K29="Child"), 0, SUMIFS('Scoring Matrix'!H:H, 'Scoring Matrix'!A:A, "="&Questionnaire!$C29, 'Scoring Matrix'!F:F, "="&Questionnaire!F29)) -> 0 | U29: =IF(AND($J29="N/A", $K29="Child"), 0, SUMIFS('Scoring Matrix'!I:I, 'Scoring Matrix'!A:A, "="&Questionnaire!$C29, 'Scoring Matrix'!F:F, "="&Questionnaire!F29)) -> 0 | V29: =IF(AND($J29="N/A", $K29="Child"), 0, SUMIFS('Scoring Matrix'!J:J, 'Scoring Matrix'!A:A, "="&Questionnaire!$C29, 'Scoring Matrix'!F:F, "="&Questionnaire!F29)) -> 0 | W29: =IF(AND($J29="N/A", $K29="Child"), 0, SUMIFS('Scoring Matrix'!K:K, 'Scoring Matrix'!A:A, "="&Questionnaire!$C29, 'Scoring Matrix'!F:F, "="&Questionnaire!F29)) -> 0 | Y29: =IF(O29, "", IF(VLOOKUP(C29,'Scoring Matrix'!$A$2:W400,13,FALSE)=1,"N/A", "Yes")) ->  | Z29: =IF(O29, "", VLOOKUP(C29, 'Scoring Matrix'!A:D, 3, FALSE)) ->  | AA29: =IF(O29, "", VLOOKUP(C29, 'Scoring Matrix'!A:D, 4, FALSE)) -> 
C30: =C28+1 -> 21 | D30: =VLOOKUP(C30, 'Scoring Matrix'!A:B, 2, FALSE) -> Is the government currently using the cloud in any capacity? | E30: =IF(VLOOKUP(C30, 'Scoring Matrix'!A:E, 5, FALSE)=0, "", VLOOKUP(C30, 'Scoring Matrix'!A:E, 5, FALSE)) -> 0.05 | G30: =IF(VLOOKUP(C30,'Scoring Matrix'!A:N, 14, FALSE)=0, "", VLOOKUP(C30,'Scoring Matrix'!A:N, 14, FALSE)) -> Yes | H30: =IF(VLOOKUP(C30,'Scoring Matrix'!A:N, 14, FALSE)=0, "", VLOOKUP(C30,'Scoring Matrix'!A:N, 14, FALSE)) -> Yes | I30: Unanswered | K30: =IF(ISNUMBER(C30), IF(VLOOKUP(C30, 'Scoring Matrix'!A:L, 12, FALSE)="Parent", "Parent", IF(VLOOKUP(C30, 'Scoring Matrix'!A:L, 12, FALSE)="Child", "Child", "")), "") -> Parent | M30: 0 | O30: FALSE | P30: FALSE | Q30: FALSE | S30: =IF(AND($J30="N/A", $K30="Child"), 0, SUMIFS('Scoring Matrix'!G:G, 'Scoring Matrix'!A:A, "="&Questionnaire!$C30, 'Scoring Matrix'!F:F, "="&Questionnaire!F30)) -> 0 | T30: =IF(AND($J30="N/A", $K30="Child"), 0, SUMIFS('Scoring Matrix'!H:H, 'Scoring Matrix'!A:A, "="&Questionnaire!$C30, 'Scoring Matrix'!F:F, "="&Questionnaire!F30)) -> 0 | U30: =IF(AND($J30="N/A", $K30="Child"), 0, SUMIFS('Scoring Matrix'!I:I, 'Scoring Matrix'!A:A, "="&Questionnaire!$C30, 'Scoring Matrix'!F:F, "="&Questionnaire!F30)) -> 0 | V30: =IF(AND($J30="N/A", $K30="Child"), 0, SUMIFS('Scoring Matrix'!J:J, 'Scoring Matrix'!A:A, "="&Questionnaire!$C30, 'Scoring Matrix'!F:F, "="&Questionnaire!F30)) -> 0 | W30: =IF(AND($J30="N/A", $K30="Child"), 0, SUMIFS('Scoring Matrix'!K:K, 'Scoring Matrix'!A:A, "="&Questionnaire!$C30, 'Scoring Matrix'!F:F, "="&Questionnaire!F30)) -> 0 | Y30: =IF(O30, "", IF(VLOOKUP(C30,'Scoring Matrix'!$A$2:W400,13,FALSE)=1,"N/A", "Yes")) -> Yes | Z30: =IF(O30, "", VLOOKUP(C30, 'Scoring Matrix'!A:D, 3, FALSE)) -> General | AA30: =IF(O30, "", VLOOKUP(C30, 'Scoring Matrix'!A:D, 4, FALSE)) -> Existing Cloud
C31: 22 | D31: =VLOOKUP(C31, 'Scoring Matrix'!A:B, 2, FALSE) -> What type of cloud environment is the government currently using? | G31: =IF(VLOOKUP(C31,'Scoring Matrix'!A:N, 14, FALSE)=0, "", VLOOKUP(C31,'Scoring Matrix'!A:N, 14, FALSE)) -> Hybrid | H31: =IF(VLOOKUP(C31,'Scoring Matrix'!A:N, 14, FALSE)=0, "", VLOOKUP(C31,'Scoring Matrix'!A:N, 14, FALSE)) -> Hybrid | I31: Unanswered | K31: =IF(ISNUMBER(C31), IF(VLOOKUP(C31, 'Scoring Matrix'!A:L, 12, FALSE)="Parent", "Parent", IF(VLOOKUP(C31, 'Scoring Matrix'!A:L, 12, FALSE)="Child", "Child", "")), "") -> Child | M31: 0 | O31: FALSE | P31: FALSE | Q31: FALSE | S31: =IF(AND($J31="N/A", $K31="Child"), 0, SUMIFS('Scoring Matrix'!G:G, 'Scoring Matrix'!A:A, "="&Questionnaire!$C31, 'Scoring Matrix'!F:F, "="&Questionnaire!F31)) -> 0 | T31: =IF(AND($J31="N/A", $K31="Child"), 0, SUMIFS('Scoring Matrix'!H:H, 'Scoring Matrix'!A:A, "="&Questionnaire!$C31, 'Scoring Matrix'!F:F, "="&Questionnaire!F31)) -> 0 | U31: =IF(AND($J31="N/A", $K31="Child"), 0, SUMIFS('Scoring Matrix'!I:I, 'Scoring Matrix'!A:A, "="&Questionnaire!$C31, 'Scoring Matrix'!F:F, "="&Questionnaire!F31)) -> 0 | V31: =IF(AND($J31="N/A", $K31="Child"), 0, SUMIFS('Scoring Matrix'!J:J, 'Scoring Matrix'!A:A, "="&Questionnaire!$C31, 'Scoring Matrix'!F:F, "="&Questionnaire!F31)) -> 0 | W31: =IF(AND($J31="N/A", $K31="Child"), 0, SUMIFS('Scoring Matrix'!K:K, 'Scoring Matrix'!A:A, "="&Questionnaire!$C31, 'Scoring Matrix'!F:F, "="&Questionnaire!F31)) -> 0 | Y31: =IF(O31, "", IF(VLOOKUP(C31,'Scoring Matrix'!$A$2:W400,13,FALSE)=1,"N/A", "Yes")) -> Yes | Z31: =IF(O31, "", VLOOKUP(C31, 'Scoring Matrix'!A:D, 3, FALSE)) -> General | AA31: =IF(O31, "", VLOOKUP(C31, 'Scoring Matrix'!A:D, 4, FALSE)) -> Existing Cloud
C32: 23 | D32: =VLOOKUP(C32, 'Scoring Matrix'!A:B, 2, FALSE) -> How is the cloud currently being used by the government? | G32: =IF(VLOOKUP(C32,'Scoring Matrix'!A:N, 14, FALSE)=0, "", VLOOKUP(C32,'Scoring Matrix'!A:N, 14, FALSE)) -> Ad hoc | H32: =IF(VLOOKUP(C32,'Scoring Matrix'!A:N, 14, FALSE)=0, "", VLOOKUP(C32,'Scoring Matrix'!A:N, 14, FALSE)) -> Ad hoc | I32: =IF(ISERROR( SEARCH("*Confirm*",#REF!)), IF(L32<>1, "Unanswered", "Answered"), "Needs Confirmed") -> Unanswered | J32: =IF(OR(AND(F32="No", K32="Parent"),AND(F32="unknown", K32="Parent")),"N/A", IF(AND(J30="N/A", K32="Child"), "N/A", IF(AND(K32="Parent", F32="Yes"), C32, IF(AND(ISNUMBER(J30), K32="Child"), C32, "")))) ->  | K32: =IF(ISNUMBER(C32), IF(VLOOKUP(C32, 'Scoring Matrix'!A:L, 12, FALSE)="Parent", "Parent", IF(VLOOKUP(C32, 'Scoring Matrix'!A:L, 12, FALSE)="Child", "Child", "")), "") -> Child | M32: 0 | O32: FALSE | P32: FALSE | Q32: FALSE | S32: =IF(AND($J32="N/A", $K32="Child"), 0, SUMIFS('Scoring Matrix'!G:G, 'Scoring Matrix'!A:A, "="&Questionnaire!$C32, 'Scoring Matrix'!F:F, "="&Questionnaire!F32)) -> 0 | T32: =IF(AND($J32="N/A", $K32="Child"), 0, SUMIFS('Scoring Matrix'!H:H, 'Scoring Matrix'!A:A, "="&Questionnaire!$C32, 'Scoring Matrix'!F:F, "="&Questionnaire!F32)) -> 0 | U32: =IF(AND($J32="N/A", $K32="Child"), 0, SUMIFS('Scoring Matrix'!I:I, 'Scoring Matrix'!A:A, "="&Questionnaire!$C32, 'Scoring Matrix'!F:F, "="&Questionnaire!F32)) -> 0 | V32: =IF(AND($J32="N/A", $K32="Child"), 0, SUMIFS('Scoring Matrix'!J:J, 'Scoring Matrix'!A:A, "="&Questionnaire!$C32, 'Scoring Matrix'!F:F, "="&Questionnaire!F32)) -> 0 | W32: =IF(AND($J32="N/A", $K32="Child"), 0, SUMIFS('Scoring Matrix'!K:K, 'Scoring Matrix'!A:A, "="&Questionnaire!$C32, 'Scoring Matrix'!F:F, "="&Questionnaire!F32)) -> 0 | Y32: =IF(O32, "", IF(VLOOKUP(C32,'Scoring Matrix'!$A$2:W400,13,FALSE)=1,"N/A", "Yes")) -> Yes | Z32: =IF(O32, "", VLOOKUP(C32, 'Scoring Matrix'!A:D, 3, FALSE)) -> General | AA32: =IF(O32, "", VLOOKUP(C32, 'Scoring Matrix'!A:D, 4, FALSE)) -> Existing Cloud
C33: =C32+1 -> 24 | D33: =VLOOKUP(C33, 'Scoring Matrix'!A:B, 2, FALSE) -> Is there a local cloud provider? | E33: =IF(VLOOKUP(C33, 'Scoring Matrix'!A:E, 5, FALSE)=0, "", VLOOKUP(C33, 'Scoring Matrix'!A:E, 5, FALSE)) -> 0.05 | G33: =IF(VLOOKUP(C33,'Scoring Matrix'!A:N, 14, FALSE)=0, "", VLOOKUP(C33,'Scoring Matrix'!A:N, 14, FALSE)) -> Yes | H33: =IF(VLOOKUP(C33,'Scoring Matrix'!A:N, 14, FALSE)=0, "", VLOOKUP(C33,'Scoring Matrix'!A:N, 14, FALSE)) -> Yes | I33: Unanswered | K33: =IF(ISNUMBER(C33), IF(VLOOKUP(C33, 'Scoring Matrix'!A:L, 12, FALSE)="Parent", "Parent", IF(VLOOKUP(C33, 'Scoring Matrix'!A:L, 12, FALSE)="Child", "Child", "")), "") -> Parent | M33: 0 | O33: FALSE | P33: FALSE | Q33: FALSE | S33: =IF(AND($J33="N/A", $K33="Child"), 0, SUMIFS('Scoring Matrix'!G:G, 'Scoring Matrix'!A:A, "="&Questionnaire!$C33, 'Scoring Matrix'!F:F, "="&Questionnaire!F33)) -> 0 | T33: =IF(AND($J33="N/A", $K33="Child"), 0, SUMIFS('Scoring Matrix'!H:H, 'Scoring Matrix'!A:A, "="&Questionnaire!$C33, 'Scoring Matrix'!F:F, "="&Questionnaire!F33)) -> 0 | U33: =IF(AND($J33="N/A", $K33="Child"), 0, SUMIFS('Scoring Matrix'!I:I, 'Scoring Matrix'!A:A, "="&Questionnaire!$C33, 'Scoring Matrix'!F:F, "="&Questionnaire!F33)) -> 0 | V33: =IF(AND($J33="N/A", $K33="Child"), 0, SUMIFS('Scoring Matrix'!J:J, 'Scoring Matrix'!A:A, "="&Questionnaire!$C33, 'Scoring Matrix'!F:F, "="&Questionnaire!F33)) -> 0 | W33: =IF(AND($J33="N/A", $K33="Child"), 0, SUMIFS('Scoring Matrix'!K:K, 'Scoring Matrix'!A:A, "="&Questionnaire!$C33, 'Scoring Matrix'!F:F, "="&Questionnaire!F33)) -> 0 | Y33: =IF(O33, "", IF(VLOOKUP(C33,'Scoring Matrix'!$A$2:W400,13,FALSE)=1,"N/A", "Yes")) -> Yes | Z33: =IF(O33, "", VLOOKUP(C33, 'Scoring Matrix'!A:D, 3, FALSE)) -> General | AA33: =IF(O33, "", VLOOKUP(C33, 'Scoring Matrix'!A:D, 4, FALSE)) -> Existing Cloud
C34: =C33+1 -> 25 | D34: =VLOOKUP(C34, 'Scoring Matrix'!A:B, 2, FALSE) -> How many years has the primary cloud provider been in business? | G34: =IF(VLOOKUP(C34,'Scoring Matrix'!A:N, 14, FALSE)=0, "", VLOOKUP(C34,'Scoring Matrix'!A:N, 14, FALSE)) -> >2 and <=5 | H34: =IF(VLOOKUP(C34,'Scoring Matrix'!A:N, 14, FALSE)=0, "", VLOOKUP(C34,'Scoring Matrix'!A:N, 14, FALSE)) -> >2 and <=5 | I34: =IF(ISERROR(SEARCH("*Confirm*", G32)), IF(L34<>1, "Unanswered", "Answered"), "Needs Confirmed") -> Unanswered | J34: =IF(OR(AND(F34="No", K34="Parent"),AND(F34="unknown", K34="Parent")),"N/A", IF(AND(J33="N/A", K34="Child"), "N/A", IF(AND(K34="Parent", F34="Yes"), C34, IF(AND(ISNUMBER(J33), K34="Child"), C34, "")))) ->  | K34: =IF(ISNUMBER(C34), IF(VLOOKUP(C34, 'Scoring Matrix'!A:L, 12, FALSE)="Parent", "Parent", IF(VLOOKUP(C34, 'Scoring Matrix'!A:L, 12, FALSE)="Child", "Child", "")), "") -> Child | L34: =IF(OR(AND(K34="child", J34="N/A"), AND(K34="", F34<>""), AND(K34="Parent", J34="N/A")), 1, IF(F34<>"", IF(K35="child", IF(AND(F35<>"", L35<>""), 1, ""), 1), "")) ->  | M34: =IF(ISBLANK(C34), "", IF(ISBLANK(F34),0,E34)) -> 0 | O34: =ISBLANK(C34) -> FALSE | P34: =AND(J34="N/A", K34="Child") -> FALSE | Q34: =IF(K34="Child",IF(AND(F34="",ISNUMBER(J34)), TRUE, FALSE)) -> FALSE | S34: =IF(AND($J34="N/A", $K34="Child"), 0, SUMIFS('Scoring Matrix'!G:G, 'Scoring Matrix'!A:A, "="&Questionnaire!$C34, 'Scoring Matrix'!F:F, "="&Questionnaire!F34)) -> 0 | T34: =IF(AND($J34="N/A", $K34="Child"), 0, SUMIFS('Scoring Matrix'!H:H, 'Scoring Matrix'!A:A, "="&Questionnaire!$C34, 'Scoring Matrix'!F:F, "="&Questionnaire!F34)) -> 0 | U34: =IF(AND($J34="N/A", $K34="Child"), 0, SUMIFS('Scoring Matrix'!I:I, 'Scoring Matrix'!A:A, "="&Questionnaire!$C34, 'Scoring Matrix'!F:F, "="&Questionnaire!F34)) -> 0 | V34: =IF(AND($J34="N/A", $K34="Child"), 0, SUMIFS('Scoring Matrix'!J:J, 'Scoring Matrix'!A:A, "="&Questionnaire!$C34, 'Scoring Matrix'!F:F, "="&Questionnaire!F34)) -> 0 | W34: =IF(AND($J34="N/A", $K34="Child"), 0, SUMIFS('Scoring Matrix'!K:K, 'Scoring Matrix'!A:A, "="&Questionnaire!$C34, 'Scoring Matrix'!F:F, "="&Questionnaire!F34)) -> 0 | Y34: =IF(O34, "", IF(VLOOKUP(C34,'Scoring Matrix'!$A$2:W400,13,FALSE)=1,"N/A", "Yes")) -> Yes | Z34: =IF(O34, "", VLOOKUP(C34, 'Scoring Matrix'!A:D, 3, FALSE)) -> General | AA34: =IF(O34, "", VLOOKUP(C34, 'Scoring Matrix'!A:D, 4, FALSE)) -> Existing Cloud
C35: =C34+1 -> 26 | D35: =VLOOKUP(C35, 'Scoring Matrix'!A:B, 2, FALSE) -> Does the local cloud provider have a disaster recovery site? | G35: =IF(VLOOKUP(C35,'Scoring Matrix'!A:N, 14, FALSE)=0, "", VLOOKUP(C35,'Scoring Matrix'!A:N, 14, FALSE)) -> >2 and <=5 | H35: =IF(VLOOKUP(C35,'Scoring Matrix'!A:N, 14, FALSE)=0, "", VLOOKUP(C35,'Scoring Matrix'!A:N, 14, FALSE)) -> >2 and <=5 | I35: Unanswered | J35: =IF(OR(AND(F35="No", K35="Parent"),AND(F35="unknown", K35="Parent")),"N/A", IF(AND(J34="N/A", K35="Child"), "N/A", IF(AND(K35="Parent", F35="Yes"), C35, IF(AND(ISNUMBER(J34), K35="Child"), C35, "")))) ->  | K35: =IF(ISNUMBER(C35), IF(VLOOKUP(C35, 'Scoring Matrix'!A:L, 12, FALSE)="Parent", "Parent", IF(VLOOKUP(C35, 'Scoring Matrix'!A:L, 12, FALSE)="Child", "Child", "")), "") -> Child | L35: =IF(OR(AND(K35="child", J35="N/A"), AND(K35="", F35<>""), AND(K35="Parent", J35="N/A")), 1, IF(F35<>"", IF(K36="child", IF(AND(F36<>"", L36<>""), 1, ""), 1), "")) ->  | M35: =IF(ISBLANK(C35), "", IF(ISBLANK(F35),0,E35)) -> 0 | O35: =ISBLANK(C35) -> FALSE | P35: =AND(J35="N/A", K35="Child") -> FALSE | Q35: =IF(K35="Child",IF(AND(F35="",ISNUMBER(J35)), TRUE, FALSE)) -> FALSE | S35: =IF(AND($J35="N/A", $K35="Child"), 0, SUMIFS('Scoring Matrix'!G:G, 'Scoring Matrix'!A:A, "="&Questionnaire!$C35, 'Scoring Matrix'!F:F, "="&Questionnaire!F35)) -> 0 | T35: =IF(AND($J35="N/A", $K35="Child"), 0, SUMIFS('Scoring Matrix'!H:H, 'Scoring Matrix'!A:A, "="&Questionnaire!$C35, 'Scoring Matrix'!F:F, "="&Questionnaire!F35)) -> 0 | U35: =IF(AND($J35="N/A", $K35="Child"), 0, SUMIFS('Scoring Matrix'!I:I, 'Scoring Matrix'!A:A, "="&Questionnaire!$C35, 'Scoring Matrix'!F:F, "="&Questionnaire!F35)) -> 0 | V35: =IF(AND($J35="N/A", $K35="Child"), 0, SUMIFS('Scoring Matrix'!J:J, 'Scoring Matrix'!A:A, "="&Questionnaire!$C35, 'Scoring Matrix'!F:F, "="&Questionnaire!F35)) -> 0 | W35: =IF(AND($J35="N/A", $K35="Child"), 0, SUMIFS('Scoring Matrix'!K:K, 'Scoring Matrix'!A:A, "="&Questionnaire!$C35, 'Scoring Matrix'!F:F, "="&Questionnaire!F35)) -> 0 | Y35: =IF(O35, "", IF(VLOOKUP(C35,'Scoring Matrix'!$A$2:W400,13,FALSE)=1,"N/A", "Yes")) -> Yes | Z35: =IF(O35, "", VLOOKUP(C35, 'Scoring Matrix'!A:D, 3, FALSE)) -> General | AA35: =IF(O35, "", VLOOKUP(C35, 'Scoring Matrix'!A:D, 4, FALSE)) -> Existing Cloud
D36: Resources | E36: =E37+E44+E50 -> 1 | I36: =IF(ISERROR(SEARCH("*Confirm*", G36)), IF(L36<>1, "Unanswered", "Answered"), "Needs Confirmed") -> Unanswered | J36: =IF(OR(AND(F36="No", K36="Parent"),AND(F36="unknown", K36="Parent")),"N/A", IF(AND(J35="N/A", K36="Child"), "N/A", IF(AND(K36="Parent", F36="Yes"), C36, IF(AND(ISNUMBER(J35), K36="Child"), C36, "")))) ->  | K36: =IF(ISNUMBER(C36), IF(VLOOKUP(C36, 'Scoring Matrix'!A:L, 12, FALSE)="Parent", "Parent", IF(VLOOKUP(C36, 'Scoring Matrix'!A:L, 12, FALSE)="Child", "Child", "")), "") ->  | L36: =IF(OR(AND(K36="child", J36="N/A"), AND(K36="", F36<>""), AND(K36="Parent", J36="N/A")), 1, IF(F36<>"", IF(K37="child", IF(AND(F37<>"", L37<>""), 1, ""), 1), "")) ->  | M36: =IF(ISBLANK(C36), "", IF(ISBLANK(F36),0,E36)) ->  | O36: =ISBLANK(C36) -> TRUE | P36: =AND(J36="N/A", K36="Child") -> FALSE | Q36: =IF(K36="Child",IF(AND(F36="",ISNUMBER(J36)), TRUE, FALSE)) -> FALSE | S36: =IF(AND($J36="N/A", $K36="Child"), 0, SUMIFS('Scoring Matrix'!G:G, 'Scoring Matrix'!A:A, "="&Questionnaire!$C36, 'Scoring Matrix'!F:F, "="&Questionnaire!F36)) -> 0 | T36: =IF(AND($J36="N/A", $K36="Child"), 0, SUMIFS('Scoring Matrix'!H:H, 'Scoring Matrix'!A:A, "="&Questionnaire!$C36, 'Scoring Matrix'!F:F, "="&Questionnaire!F36)) -> 0 | U36: =IF(AND($J36="N/A", $K36="Child"), 0, SUMIFS('Scoring Matrix'!I:I, 'Scoring Matrix'!A:A, "="&Questionnaire!$C36, 'Scoring Matrix'!F:F, "="&Questionnaire!F36)) -> 0 | V36: =IF(AND($J36="N/A", $K36="Child"), 0, SUMIFS('Scoring Matrix'!J:J, 'Scoring Matrix'!A:A, "="&Questionnaire!$C36, 'Scoring Matrix'!F:F, "="&Questionnaire!F36)) -> 0 | W36: =IF(AND($J36="N/A", $K36="Child"), 0, SUMIFS('Scoring Matrix'!K:K, 'Scoring Matrix'!A:A, "="&Questionnaire!$C36, 'Scoring Matrix'!F:F, "="&Questionnaire!F36)) -> 0 | Y36: =IF(O36, "", IF(VLOOKUP(C36,'Scoring Matrix'!$A$2:W400,13,FALSE)=1,"N/A", "Yes")) ->  | Z36: =IF(O36, "", VLOOKUP(C36, 'Scoring Matrix'!A:D, 3, FALSE)) ->  | AA36: =IF(O36, "", VLOOKUP(C36, 'Scoring Matrix'!A:D, 4, FALSE)) -> 
D37: Cloud Migration | E37: =SUM(E38:E43) -> 0.45 | I37: =IF(ISERROR(SEARCH("*Confirm*", G37)), IF(L37<>1, "Unanswered", "Answered"), "Needs Confirmed") -> Unanswered | K37: =IF(ISNUMBER(C37), IF(VLOOKUP(C37, 'Scoring Matrix'!A:L, 12, FALSE)="Parent", "Parent", IF(VLOOKUP(C37, 'Scoring Matrix'!A:L, 12, FALSE)="Child", "Child", "")), "") ->  | O37: TRUE | P37: FALSE | Q37: FALSE | S37: =IF(AND($J37="N/A", $K37="Child"), 0, SUMIFS('Scoring Matrix'!G:G, 'Scoring Matrix'!A:A, "="&Questionnaire!$C37, 'Scoring Matrix'!F:F, "="&Questionnaire!F37)) -> 0 | T37: =IF(AND($J37="N/A", $K37="Child"), 0, SUMIFS('Scoring Matrix'!H:H, 'Scoring Matrix'!A:A, "="&Questionnaire!$C37, 'Scoring Matrix'!F:F, "="&Questionnaire!F37)) -> 0 | U37: =IF(AND($J37="N/A", $K37="Child"), 0, SUMIFS('Scoring Matrix'!I:I, 'Scoring Matrix'!A:A, "="&Questionnaire!$C37, 'Scoring Matrix'!F:F, "="&Questionnaire!F37)) -> 0 | V37: =IF(AND($J37="N/A", $K37="Child"), 0, SUMIFS('Scoring Matrix'!J:J, 'Scoring Matrix'!A:A, "="&Questionnaire!$C37, 'Scoring Matrix'!F:F, "="&Questionnaire!F37)) -> 0 | W37: =IF(AND($J37="N/A", $K37="Child"), 0, SUMIFS('Scoring Matrix'!K:K, 'Scoring Matrix'!A:A, "="&Questionnaire!$C37, 'Scoring Matrix'!F:F, "="&Questionnaire!F37)) -> 0 | Y37: =IF(O37, "", IF(VLOOKUP(C37,'Scoring Matrix'!$A$2:W400,13,FALSE)=1,"N/A", "Yes")) ->  | Z37: =IF(O37, "", VLOOKUP(C37, 'Scoring Matrix'!A:D, 3, FALSE)) ->  | AA37: =IF(O37, "", VLOOKUP(C37, 'Scoring Matrix'!A:D, 4, FALSE)) -> 
C38: =C35+1 -> 27 | D38: =VLOOKUP(C38, 'Scoring Matrix'!A:B, 2, FALSE) -> Are there public sector IT employees who have prior experience managing third party vendors or contractors in any capacity? | E38: =IF(VLOOKUP(C38, 'Scoring Matrix'!A:E, 5, FALSE)=0, "", VLOOKUP(C38, 'Scoring Matrix'!A:E, 5, FALSE)) -> 0.05 | G38: =IF(VLOOKUP(C38,'Scoring Matrix'!A:N, 14, FALSE)=0, "", VLOOKUP(C38,'Scoring Matrix'!A:N, 14, FALSE)) -> Unknown | H38: =IF(VLOOKUP(C38,'Scoring Matrix'!A:N, 14, FALSE)=0, "", VLOOKUP(C38,'Scoring Matrix'!A:N, 14, FALSE)) -> Unknown | I38: Unanswered | K38: =IF(ISNUMBER(C38), IF(VLOOKUP(C38, 'Scoring Matrix'!A:L, 12, FALSE)="Parent", "Parent", IF(VLOOKUP(C38, 'Scoring Matrix'!A:L, 12, FALSE)="Child", "Child", "")), "") ->  | M38: 0 | O38: FALSE | P38: FALSE | Q38: FALSE | S38: =IF(AND($J38="N/A", $K38="Child"), 0, SUMIFS('Scoring Matrix'!G:G, 'Scoring Matrix'!A:A, "="&Questionnaire!$C38, 'Scoring Matrix'!F:F, "="&Questionnaire!F38)) -> 0 | T38: =IF(AND($J38="N/A", $K38="Child"), 0, SUMIFS('Scoring Matrix'!H:H, 'Scoring Matrix'!A:A, "="&Questionnaire!$C38, 'Scoring Matrix'!F:F, "="&Questionnaire!F38)) -> 0 | U38: =IF(AND($J38="N/A", $K38="Child"), 0, SUMIFS('Scoring Matrix'!I:I, 'Scoring Matrix'!A:A, "="&Questionnaire!$C38, 'Scoring Matrix'!F:F, "="&Questionnaire!F38)) -> 0 | V38: =IF(AND($J38="N/A", $K38="Child"), 0, SUMIFS('Scoring Matrix'!J:J, 'Scoring Matrix'!A:A, "="&Questionnaire!$C38, 'Scoring Matrix'!F:F, "="&Questionnaire!F38)) -> 0 | W38: =IF(AND($J38="N/A", $K38="Child"), 0, SUMIFS('Scoring Matrix'!K:K, 'Scoring Matrix'!A:A, "="&Questionnaire!$C38, 'Scoring Matrix'!F:F, "="&Questionnaire!F38)) -> 0 | Y38: =IF(O38, "", IF(VLOOKUP(C38,'Scoring Matrix'!$A$2:W400,13,FALSE)=1,"N/A", "Yes")) -> Yes | Z38: =IF(O38, "", VLOOKUP(C38, 'Scoring Matrix'!A:D, 3, FALSE)) -> Resources | AA38: =IF(O38, "", VLOOKUP(C38, 'Scoring Matrix'!A:D, 4, FALSE)) -> Cloud Migration
C39: =C38+1 -> 28 | D39: =VLOOKUP(C39, 'Scoring Matrix'!A:B, 2, FALSE) -> Are there public sector employees with a high degree of familiarity with the application architecture or application code available to assist in a migration to the cloud? | E39: =IF(VLOOKUP(C39, 'Scoring Matrix'!A:E, 5, FALSE)=0, "", VLOOKUP(C39, 'Scoring Matrix'!A:E, 5, FALSE)) -> 0.1 | G39: =IF(VLOOKUP(C39,'Scoring Matrix'!A:N, 14, FALSE)=0, "", VLOOKUP(C39,'Scoring Matrix'!A:N, 14, FALSE)) -> No | H39: =IF(VLOOKUP(C39,'Scoring Matrix'!A:N, 14, FALSE)=0, "", VLOOKUP(C39,'Scoring Matrix'!A:N, 14, FALSE)) -> No | I39: Unanswered | K39: =IF(ISNUMBER(C39), IF(VLOOKUP(C39, 'Scoring Matrix'!A:L, 12, FALSE)="Parent", "Parent", IF(VLOOKUP(C39, 'Scoring Matrix'!A:L, 12, FALSE)="Child", "Child", "")), "") ->  | M39: 0 | O39: FALSE | P39: FALSE | Q39: FALSE | S39: =IF(AND($J39="N/A", $K39="Child"), 0, SUMIFS('Scoring Matrix'!G:G, 'Scoring Matrix'!A:A, "="&Questionnaire!$C39, 'Scoring Matrix'!F:F, "="&Questionnaire!F39)) -> 0 | T39: =IF(AND($J39="N/A", $K39="Child"), 0, SUMIFS('Scoring Matrix'!H:H, 'Scoring Matrix'!A:A, "="&Questionnaire!$C39, 'Scoring Matrix'!F:F, "="&Questionnaire!F39)) -> 0 | U39: =IF(AND($J39="N/A", $K39="Child"), 0, SUMIFS('Scoring Matrix'!I:I, 'Scoring Matrix'!A:A, "="&Questionnaire!$C39, 'Scoring Matrix'!F:F, "="&Questionnaire!F39)) -> 0 | V39: =IF(AND($J39="N/A", $K39="Child"), 0, SUMIFS('Scoring Matrix'!J:J, 'Scoring Matrix'!A:A, "="&Questionnaire!$C39, 'Scoring Matrix'!F:F, "="&Questionnaire!F39)) -> 0 | W39: =IF(AND($J39="N/A", $K39="Child"), 0, SUMIFS('Scoring Matrix'!K:K, 'Scoring Matrix'!A:A, "="&Questionnaire!$C39, 'Scoring Matrix'!F:F, "="&Questionnaire!F39)) -> 0 | Y39: =IF(O39, "", IF(VLOOKUP(C39,'Scoring Matrix'!$A$2:W400,13,FALSE)=1,"N/A", "Yes")) -> Yes | Z39: =IF(O39, "", VLOOKUP(C39, 'Scoring Matrix'!A:D, 3, FALSE)) -> Resources | AA39: =IF(O39, "", VLOOKUP(C39, 'Scoring Matrix'!A:D, 4, FALSE)) -> Cloud Migration
C40: =C39+1 -> 29 | D40: =VLOOKUP(C40, 'Scoring Matrix'!A:B, 2, FALSE) -> Are there resources available in the local workforce with a cloud migration skillset? This experience could be self-taught, taught in a course, or learned at work. | E40: =IF(VLOOKUP(C40, 'Scoring Matrix'!A:E, 5, FALSE)=0, "", VLOOKUP(C40, 'Scoring Matrix'!A:E, 5, FALSE)) -> 0.05 | G40: =IF(VLOOKUP(C40,'Scoring Matrix'!A:N, 14, FALSE)=0, "", VLOOKUP(C40,'Scoring Matrix'!A:N, 14, FALSE)) -> Yes, individuals with this skillset are employed in this field | H40: =IF(VLOOKUP(C40,'Scoring Matrix'!A:N, 14, FALSE)=0, "", VLOOKUP(C40,'Scoring Matrix'!A:N, 14, FALSE)) -> Yes, individuals with this skillset are employed in this field | I40: Unanswered | K40: =IF(ISNUMBER(C40), IF(VLOOKUP(C40, 'Scoring Matrix'!A:L, 12, FALSE)="Parent", "Parent", IF(VLOOKUP(C40, 'Scoring Matrix'!A:L, 12, FALSE)="Child", "Child", "")), "") ->  | M40: 0 | O40: FALSE | P40: FALSE | Q40: FALSE | S40: =IF(AND($J40="N/A", $K40="Child"), 0, SUMIFS('Scoring Matrix'!G:G, 'Scoring Matrix'!A:A, "="&Questionnaire!$C40, 'Scoring Matrix'!F:F, "="&Questionnaire!F40)) -> 0 | T40: =IF(AND($J40="N/A", $K40="Child"), 0, SUMIFS('Scoring Matrix'!H:H, 'Scoring Matrix'!A:A, "="&Questionnaire!$C40, 'Scoring Matrix'!F:F, "="&Questionnaire!F40)) -> 0 | U40: =IF(AND($J40="N/A", $K40="Child"), 0, SUMIFS('Scoring Matrix'!I:I, 'Scoring Matrix'!A:A, "="&Questionnaire!$C40, 'Scoring Matrix'!F:F, "="&Questionnaire!F40)) -> 0 | V40: =IF(AND($J40="N/A", $K40="Child"), 0, SUMIFS('Scoring Matrix'!J:J, 'Scoring Matrix'!A:A, "="&Questionnaire!$C40, 'Scoring Matrix'!F:F, "="&Questionnaire!F40)) -> 0 | W40: =IF(AND($J40="N/A", $K40="Child"), 0, SUMIFS('Scoring Matrix'!K:K, 'Scoring Matrix'!A:A, "="&Questionnaire!$C40, 'Scoring Matrix'!F:F, "="&Questionnaire!F40)) -> 0 | Y40: =IF(O40, "", IF(VLOOKUP(C40,'Scoring Matrix'!$A$2:W400,13,FALSE)=1,"N/A", "Yes")) -> Yes | Z40: =IF(O40, "", VLOOKUP(C40, 'Scoring Matrix'!A:D, 3, FALSE)) -> Resources | AA40: =IF(O40, "", VLOOKUP(C40, 'Scoring Matrix'!A:D, 4, FALSE)) -> Cloud Migration
C41: =C40+1 -> 30 | D41: =VLOOKUP(C41, 'Scoring Matrix'!A:B, 2, FALSE) -> Are there public sector employees available with prior experience in migrating to the cloud? | E41: =IF(VLOOKUP(C41, 'Scoring Matrix'!A:E, 5, FALSE)=0, "", VLOOKUP(C41, 'Scoring Matrix'!A:E, 5, FALSE)) -> 0.25 | G41: =IF(VLOOKUP(C41,'Scoring Matrix'!A:N, 14, FALSE)=0, "", VLOOKUP(C41,'Scoring Matrix'!A:N, 14, FALSE)) -> Yes | H41: =IF(VLOOKUP(C41,'Scoring Matrix'!A:N, 14, FALSE)=0, "", VLOOKUP(C41,'Scoring Matrix'!A:N, 14, FALSE)) -> Yes | I41: Unanswered | K41: =IF(ISNUMBER(C41), IF(VLOOKUP(C41, 'Scoring Matrix'!A:L, 12, FALSE)="Parent", "Parent", IF(VLOOKUP(C41, 'Scoring Matrix'!A:L, 12, FALSE)="Child", "Child", "")), "") -> Parent | M41: 0 | O41: FALSE | P41: FALSE | Q41: FALSE | S41: =IF(AND($J41="N/A", $K41="Child"), 0, SUMIFS('Scoring Matrix'!G:G, 'Scoring Matrix'!A:A, "="&Questionnaire!$C41, 'Scoring Matrix'!F:F, "="&Questionnaire!F41)) -> 0 | T41: =IF(AND($J41="N/A", $K41="Child"), 0, SUMIFS('Scoring Matrix'!H:H, 'Scoring Matrix'!A:A, "="&Questionnaire!$C41, 'Scoring Matrix'!F:F, "="&Questionnaire!F41)) -> 0 | U41: =IF(AND($J41="N/A", $K41="Child"), 0, SUMIFS('Scoring Matrix'!I:I, 'Scoring Matrix'!A:A, "="&Questionnaire!$C41, 'Scoring Matrix'!F:F, "="&Questionnaire!F41)) -> 0 | V41: =IF(AND($J41="N/A", $K41="Child"), 0, SUMIFS('Scoring Matrix'!J:J, 'Scoring Matrix'!A:A, "="&Questionnaire!$C41, 'Scoring Matrix'!F:F, "="&Questionnaire!F41)) -> 0 | W41: =IF(AND($J41="N/A", $K41="Child"), 0, SUMIFS('Scoring Matrix'!K:K, 'Scoring Matrix'!A:A, "="&Questionnaire!$C41, 'Scoring Matrix'!F:F, "="&Questionnaire!F41)) -> 0 | Y41: =IF(O41, "", IF(VLOOKUP(C41,'Scoring Matrix'!$A$2:W400,13,FALSE)=1,"N/A", "Yes")) -> Yes | Z41: =IF(O41, "", VLOOKUP(C41, 'Scoring Matrix'!A:D, 3, FALSE)) -> Resources | AA41: =IF(O41, "", VLOOKUP(C41, 'Scoring Matrix'!A:D, 4, FALSE)) -> Cloud Migration
C42: =C41+1 -> 31 | D42: =VLOOKUP(C42, 'Scoring Matrix'!A:B, 2, FALSE) -> On average, how much prior experience do the resources have migrating applications to the cloud? | G42: =IF(VLOOKUP(C42,'Scoring Matrix'!A:N, 14, FALSE)=0, "", VLOOKUP(C42,'Scoring Matrix'!A:N, 14, FALSE)) -> 3+ years | H42: =IF(VLOOKUP(C42,'Scoring Matrix'!A:N, 14, FALSE)=0, "", VLOOKUP(C42,'Scoring Matrix'!A:N, 14, FALSE)) -> 3+ years | I42: Unanswered | K42: =IF(ISNUMBER(C42), IF(VLOOKUP(C42, 'Scoring Matrix'!A:L, 12, FALSE)="Parent", "Parent", IF(VLOOKUP(C42, 'Scoring Matrix'!A:L, 12, FALSE)="Child", "Child", "")), "") -> Child | M42: 0 | O42: FALSE | P42: FALSE | Q42: FALSE | S42: =IF(AND($J42="N/A", $K42="Child"), 0, SUMIFS('Scoring Matrix'!G:G, 'Scoring Matrix'!A:A, "="&Questionnaire!$C42, 'Scoring Matrix'!F:F, "="&Questionnaire!F42)) -> 0 | T42: =IF(AND($J42="N/A", $K42="Child"), 0, SUMIFS('Scoring Matrix'!H:H, 'Scoring Matrix'!A:A, "="&Questionnaire!$C42, 'Scoring Matrix'!F:F, "="&Questionnaire!F42)) -> 0 | U42: =IF(AND($J42="N/A", $K42="Child"), 0, SUMIFS('Scoring Matrix'!I:I, 'Scoring Matrix'!A:A, "="&Questionnaire!$C42, 'Scoring Matrix'!F:F, "="&Questionnaire!F42)) -> 0 | V42: =IF(AND($J42="N/A", $K42="Child"), 0, SUMIFS('Scoring Matrix'!J:J, 'Scoring Matrix'!A:A, "="&Questionnaire!$C42, 'Scoring Matrix'!F:F, "="&Questionnaire!F42)) -> 0 | W42: =IF(AND($J42="N/A", $K42="Child"), 0, SUMIFS('Scoring Matrix'!K:K, 'Scoring Matrix'!A:A, "="&Questionnaire!$C42, 'Scoring Matrix'!F:F, "="&Questionnaire!F42)) -> 0 | Y42: =IF(O42, "", IF(VLOOKUP(C42,'Scoring Matrix'!$A$2:W400,13,FALSE)=1,"N/A", "Yes")) -> Yes | Z42: =IF(O42, "", VLOOKUP(C42, 'Scoring Matrix'!A:D, 3, FALSE)) -> Resources | AA42: =IF(O42, "", VLOOKUP(C42, 'Scoring Matrix'!A:D, 4, FALSE)) -> Cloud Migration
C43: =C42+1 -> 32 | D43: =VLOOKUP(C43, 'Scoring Matrix'!A:B, 2, FALSE) -> What is the typical turnover rate amongst cloud migration resources? This is the percentage of employees with this skillset that had to be replaced over the past year. | G43: =IF(VLOOKUP(C43,'Scoring Matrix'!A:N, 14, FALSE)=0, "", VLOOKUP(C43,'Scoring Matrix'!A:N, 14, FALSE)) -> 10-25% | H43: =IF(VLOOKUP(C43,'Scoring Matrix'!A:N, 14, FALSE)=0, "", VLOOKUP(C43,'Scoring Matrix'!A:N, 14, FALSE)) -> 10-25% | I43: Unanswered | J43: =IF(OR(AND(F43="No", K43="Parent"),AND(F43="unknown", K43="Parent")),"N/A", IF(AND(J41="N/A", K43="Child"), "N/A", IF(AND(K43="Parent", F43="Yes"), C43, IF(AND(ISNUMBER(J41), K43="Child"), C43, "")))) ->  | K43: =IF(ISNUMBER(C43), IF(VLOOKUP(C43, 'Scoring Matrix'!A:L, 12, FALSE)="Parent", "Parent", IF(VLOOKUP(C43, 'Scoring Matrix'!A:L, 12, FALSE)="Child", "Child", "")), "") -> Child | M43: 0 | O43: FALSE | P43: FALSE | Q43: FALSE | S43: =IF(AND($J43="N/A", $K43="Child"), 0, SUMIFS('Scoring Matrix'!G:G, 'Scoring Matrix'!A:A, "="&Questionnaire!$C43, 'Scoring Matrix'!F:F, "="&Questionnaire!F43)) -> 0 | T43: =IF(AND($J43="N/A", $K43="Child"), 0, SUMIFS('Scoring Matrix'!H:H, 'Scoring Matrix'!A:A, "="&Questionnaire!$C43, 'Scoring Matrix'!F:F, "="&Questionnaire!F43)) -> 0 | U43: =IF(AND($J43="N/A", $K43="Child"), 0, SUMIFS('Scoring Matrix'!I:I, 'Scoring Matrix'!A:A, "="&Questionnaire!$C43, 'Scoring Matrix'!F:F, "="&Questionnaire!F43)) -> 0 | V43: =IF(AND($J43="N/A", $K43="Child"), 0, SUMIFS('Scoring Matrix'!J:J, 'Scoring Matrix'!A:A, "="&Questionnaire!$C43, 'Scoring Matrix'!F:F, "="&Questionnaire!F43)) -> 0 | W43: =IF(AND($J43="N/A", $K43="Child"), 0, SUMIFS('Scoring Matrix'!K:K, 'Scoring Matrix'!A:A, "="&Questionnaire!$C43, 'Scoring Matrix'!F:F, "="&Questionnaire!F43)) -> 0 | Y43: =IF(O43, "", IF(VLOOKUP(C43,'Scoring Matrix'!$A$2:W400,13,FALSE)=1,"N/A", "Yes")) -> Yes | Z43: =IF(O43, "", VLOOKUP(C43, 'Scoring Matrix'!A:D, 3, FALSE)) -> Resources | AA43: =IF(O43, "", VLOOKUP(C43, 'Scoring Matrix'!A:D, 4, FALSE)) -> Cloud Migration
D44: Cloud Security | E44: =SUM(E45:E49) -> 0.35 | I44: =IF(ISERROR(SEARCH("*Confirm*", G44)), IF(L44<>1, "Unanswered", "Answered"), "Needs Confirmed") -> Unanswered | K44: =IF(ISNUMBER(C44), IF(VLOOKUP(C44, 'Scoring Matrix'!A:L, 12, FALSE)="Parent", "Parent", IF(VLOOKUP(C44, 'Scoring Matrix'!A:L, 12, FALSE)="Child", "Child", "")), "") ->  | O44: TRUE | P44: FALSE | Q44: FALSE | S44: =IF(AND($J44="N/A", $K44="Child"), 0, SUMIFS('Scoring Matrix'!G:G, 'Scoring Matrix'!A:A, "="&Questionnaire!$C44, 'Scoring Matrix'!F:F, "="&Questionnaire!F44)) -> 0 | T44: =IF(AND($J44="N/A", $K44="Child"), 0, SUMIFS('Scoring Matrix'!H:H, 'Scoring Matrix'!A:A, "="&Questionnaire!$C44, 'Scoring Matrix'!F:F, "="&Questionnaire!F44)) -> 0 | U44: =IF(AND($J44="N/A", $K44="Child"), 0, SUMIFS('Scoring Matrix'!I:I, 'Scoring Matrix'!A:A, "="&Questionnaire!$C44, 'Scoring Matrix'!F:F, "="&Questionnaire!F44)) -> 0 | V44: =IF(AND($J44="N/A", $K44="Child"), 0, SUMIFS('Scoring Matrix'!J:J, 'Scoring Matrix'!A:A, "="&Questionnaire!$C44, 'Scoring Matrix'!F:F, "="&Questionnaire!F44)) -> 0 | W44: =IF(AND($J44="N/A", $K44="Child"), 0, SUMIFS('Scoring Matrix'!K:K, 'Scoring Matrix'!A:A, "="&Questionnaire!$C44, 'Scoring Matrix'!F:F, "="&Questionnaire!F44)) -> 0 | Y44: =IF(O44, "", IF(VLOOKUP(C44,'Scoring Matrix'!$A$2:W400,13,FALSE)=1,"N/A", "Yes")) ->  | Z44: =IF(O44, "", VLOOKUP(C44, 'Scoring Matrix'!A:D, 3, FALSE)) ->  | AA44: =IF(O44, "", VLOOKUP(C44, 'Scoring Matrix'!A:D, 4, FALSE)) -> 
C45: =C43+1 -> 33 | D45: =VLOOKUP(C45, 'Scoring Matrix'!A:B, 2, FALSE) -> Are there resources available in the local workforce with a cloud security skillset? These resources should be trained by a university or have gained the skillset/certification through prior work experience. | E45: =IF(VLOOKUP(C45, 'Scoring Matrix'!A:E, 5, FALSE)=0, "", VLOOKUP(C45, 'Scoring Matrix'!A:E, 5, FALSE)) -> 0.05 | G45: =IF(VLOOKUP(C45,'Scoring Matrix'!A:N, 14, FALSE)=0, "", VLOOKUP(C45,'Scoring Matrix'!A:N, 14, FALSE)) -> Yes | H45: =IF(VLOOKUP(C45,'Scoring Matrix'!A:N, 14, FALSE)=0, "", VLOOKUP(C45,'Scoring Matrix'!A:N, 14, FALSE)) -> Yes | I45: Unanswered | K45: =IF(ISNUMBER(C45), IF(VLOOKUP(C45, 'Scoring Matrix'!A:L, 12, FALSE)="Parent", "Parent", IF(VLOOKUP(C45, 'Scoring Matrix'!A:L, 12, FALSE)="Child", "Child", "")), "") ->  | M45: 0 | O45: FALSE | P45: FALSE | Q45: FALSE | S45: =IF(AND($J45="N/A", $K45="Child"), 0, SUMIFS('Scoring Matrix'!G:G, 'Scoring Matrix'!A:A, "="&Questionnaire!$C45, 'Scoring Matrix'!F:F, "="&Questionnaire!F45)) -> 0 | T45: =IF(AND($J45="N/A", $K45="Child"), 0, SUMIFS('Scoring Matrix'!H:H, 'Scoring Matrix'!A:A, "="&Questionnaire!$C45, 'Scoring Matrix'!F:F, "="&Questionnaire!F45)) -> 0 | U45: =IF(AND($J45="N/A", $K45="Child"), 0, SUMIFS('Scoring Matrix'!I:I, 'Scoring Matrix'!A:A, "="&Questionnaire!$C45, 'Scoring Matrix'!F:F, "="&Questionnaire!F45)) -> 0 | V45: =IF(AND($J45="N/A", $K45="Child"), 0, SUMIFS('Scoring Matrix'!J:J, 'Scoring Matrix'!A:A, "="&Questionnaire!$C45, 'Scoring Matrix'!F:F, "="&Questionnaire!F45)) -> 0 | W45: =IF(AND($J45="N/A", $K45="Child"), 0, SUMIFS('Scoring Matrix'!K:K, 'Scoring Matrix'!A:A, "="&Questionnaire!$C45, 'Scoring Matrix'!F:F, "="&Questionnaire!F45)) -> 0 | Y45: =IF(O45, "", IF(VLOOKUP(C45,'Scoring Matrix'!$A$2:W400,13,FALSE)=1,"N/A", "Yes")) -> Yes | Z45: =IF(O45, "", VLOOKUP(C45, 'Scoring Matrix'!A:D, 3, FALSE)) -> Resources | AA45: =IF(O45, "", VLOOKUP(C45, 'Scoring Matrix'!A:D, 4, FALSE)) -> Cloud Security
C46: =C45+1 -> 34 | D46: =VLOOKUP(C46, 'Scoring Matrix'!A:B, 2, FALSE) -> Are there public sector employees available with prior experience in cloud security? | E46: =IF(VLOOKUP(C46, 'Scoring Matrix'!A:E, 5, FALSE)=0, "", VLOOKUP(C46, 'Scoring Matrix'!A:E, 5, FALSE)) -> 0.2 | G46: =IF(VLOOKUP(C46,'Scoring Matrix'!A:N, 14, FALSE)=0, "", VLOOKUP(C46,'Scoring Matrix'!A:N, 14, FALSE)) -> Yes | H46: =IF(VLOOKUP(C46,'Scoring Matrix'!A:N, 14, FALSE)=0, "", VLOOKUP(C46,'Scoring Matrix'!A:N, 14, FALSE)) -> Yes | I46: Unanswered | K46: =IF(ISNUMBER(C46), IF(VLOOKUP(C46, 'Scoring Matrix'!A:L, 12, FALSE)="Parent", "Parent", IF(VLOOKUP(C46, 'Scoring Matrix'!A:L, 12, FALSE)="Child", "Child", "")), "") -> Parent | M46: 0 | O46: FALSE | P46: FALSE | Q46: FALSE | S46: =IF(AND($J46="N/A", $K46="Child"), 0, SUMIFS('Scoring Matrix'!G:G, 'Scoring Matrix'!A:A, "="&Questionnaire!$C46, 'Scoring Matrix'!F:F, "="&Questionnaire!F46)) -> 0 | T46: =IF(AND($J46="N/A", $K46="Child"), 0, SUMIFS('Scoring Matrix'!H:H, 'Scoring Matrix'!A:A, "="&Questionnaire!$C46, 'Scoring Matrix'!F:F, "="&Questionnaire!F46)) -> 0 | U46: =IF(AND($J46="N/A", $K46="Child"), 0, SUMIFS('Scoring Matrix'!I:I, 'Scoring Matrix'!A:A, "="&Questionnaire!$C46, 'Scoring Matrix'!F:F, "="&Questionnaire!F46)) -> 0 | V46: =IF(AND($J46="N/A", $K46="Child"), 0, SUMIFS('Scoring Matrix'!J:J, 'Scoring Matrix'!A:A, "="&Questionnaire!$C46, 'Scoring Matrix'!F:F, "="&Questionnaire!F46)) -> 0 | W46: =IF(AND($J46="N/A", $K46="Child"), 0, SUMIFS('Scoring Matrix'!K:K, 'Scoring Matrix'!A:A, "="&Questionnaire!$C46, 'Scoring Matrix'!F:F, "="&Questionnaire!F46)) -> 0 | Y46: =IF(O46, "", IF(VLOOKUP(C46,'Scoring Matrix'!$A$2:W400,13,FALSE)=1,"N/A", "Yes")) -> Yes | Z46: =IF(O46, "", VLOOKUP(C46, 'Scoring Matrix'!A:D, 3, FALSE)) -> Resources | AA46: =IF(O46, "", VLOOKUP(C46, 'Scoring Matrix'!A:D, 4, FALSE)) -> Cloud Security
C47: =C46+1 -> 35 | D47: =VLOOKUP(C47, 'Scoring Matrix'!A:B, 2, FALSE) -> On average, how much prior experience do the resources have? | G47: =IF(VLOOKUP(C47,'Scoring Matrix'!A:N, 14, FALSE)=0, "", VLOOKUP(C47,'Scoring Matrix'!A:N, 14, FALSE)) -> >6 months and <= 18 months | H47: =IF(VLOOKUP(C47,'Scoring Matrix'!A:N, 14, FALSE)=0, "", VLOOKUP(C47,'Scoring Matrix'!A:N, 14, FALSE)) -> >6 months and <= 18 months | I47: Unanswered | K47: =IF(ISNUMBER(C47), IF(VLOOKUP(C47, 'Scoring Matrix'!A:L, 12, FALSE)="Parent", "Parent", IF(VLOOKUP(C47, 'Scoring Matrix'!A:L, 12, FALSE)="Child", "Child", "")), "") -> Child | M47: 0 | O47: FALSE | P47: FALSE | Q47: FALSE | S47: =IF(AND($J47="N/A", $K47="Child"), 0, SUMIFS('Scoring Matrix'!G:G, 'Scoring Matrix'!A:A, "="&Questionnaire!$C47, 'Scoring Matrix'!F:F, "="&Questionnaire!F47)) -> 0 | T47: =IF(AND($J47="N/A", $K47="Child"), 0, SUMIFS('Scoring Matrix'!H:H, 'Scoring Matrix'!A:A, "="&Questionnaire!$C47, 'Scoring Matrix'!F:F, "="&Questionnaire!F47)) -> 0 | U47: =IF(AND($J47="N/A", $K47="Child"), 0, SUMIFS('Scoring Matrix'!I:I, 'Scoring Matrix'!A:A, "="&Questionnaire!$C47, 'Scoring Matrix'!F:F, "="&Questionnaire!F47)) -> 0 | V47: =IF(AND($J47="N/A", $K47="Child"), 0, SUMIFS('Scoring Matrix'!J:J, 'Scoring Matrix'!A:A, "="&Questionnaire!$C47, 'Scoring Matrix'!F:F, "="&Questionnaire!F47)) -> 0 | W47: =IF(AND($J47="N/A", $K47="Child"), 0, SUMIFS('Scoring Matrix'!K:K, 'Scoring Matrix'!A:A, "="&Questionnaire!$C47, 'Scoring Matrix'!F:F, "="&Questionnaire!F47)) -> 0 | Y47: =IF(O47, "", IF(VLOOKUP(C47,'Scoring Matrix'!$A$2:W400,13,FALSE)=1,"N/A", "Yes")) -> Yes | Z47: =IF(O47, "", VLOOKUP(C47, 'Scoring Matrix'!A:D, 3, FALSE)) -> Resources | AA47: =IF(O47, "", VLOOKUP(C47, 'Scoring Matrix'!A:D, 4, FALSE)) -> Cloud Security
C48: =C47+1 -> 36 | D48: =VLOOKUP(C48, 'Scoring Matrix'!A:B, 2, FALSE) -> What is the typical turnover rate amongst security resources? This is the percentage of employees with this skillset that had to be replaced over the past year. | G48: =IF(VLOOKUP(C48,'Scoring Matrix'!A:N, 14, FALSE)=0, "", VLOOKUP(C48,'Scoring Matrix'!A:N, 14, FALSE)) -> 25-50% | H48: =IF(VLOOKUP(C48,'Scoring Matrix'!A:N, 14, FALSE)=0, "", VLOOKUP(C48,'Scoring Matrix'!A:N, 14, FALSE)) -> 25-50% | I48: Unanswered | J48: =IF(OR(AND(F48="No", K48="Parent"),AND(F48="unknown", K48="Parent")),"N/A", IF(AND(J46="N/A", K48="Child"), "N/A", IF(AND(K48="Parent", F48="Yes"), C48, IF(AND(ISNUMBER(J46), K48="Child"), C48, "")))) ->  | K48: =IF(ISNUMBER(C48), IF(VLOOKUP(C48, 'Scoring Matrix'!A:L, 12, FALSE)="Parent", "Parent", IF(VLOOKUP(C48, 'Scoring Matrix'!A:L, 12, FALSE)="Child", "Child", "")), "") -> Child | M48: 0 | O48: FALSE | P48: FALSE | Q48: FALSE | S48: =IF(AND($J48="N/A", $K48="Child"), 0, SUMIFS('Scoring Matrix'!G:G, 'Scoring Matrix'!A:A, "="&Questionnaire!$C48, 'Scoring Matrix'!F:F, "="&Questionnaire!F48)) -> 0 | T48: =IF(AND($J48="N/A", $K48="Child"), 0, SUMIFS('Scoring Matrix'!H:H, 'Scoring Matrix'!A:A, "="&Questionnaire!$C48, 'Scoring Matrix'!F:F, "="&Questionnaire!F48)) -> 0 | U48: =IF(AND($J48="N/A", $K48="Child"), 0, SUMIFS('Scoring Matrix'!I:I, 'Scoring Matrix'!A:A, "="&Questionnaire!$C48, 'Scoring Matrix'!F:F, "="&Questionnaire!F48)) -> 0 | V48: =IF(AND($J48="N/A", $K48="Child"), 0, SUMIFS('Scoring Matrix'!J:J, 'Scoring Matrix'!A:A, "="&Questionnaire!$C48, 'Scoring Matrix'!F:F, "="&Questionnaire!F48)) -> 0 | W48: =IF(AND($J48="N/A", $K48="Child"), 0, SUMIFS('Scoring Matrix'!K:K, 'Scoring Matrix'!A:A, "="&Questionnaire!$C48, 'Scoring Matrix'!F:F, "="&Questionnaire!F48)) -> 0 | Y48: =IF(O48, "", IF(VLOOKUP(C48,'Scoring Matrix'!$A$2:W400,13,FALSE)=1,"N/A", "Yes")) -> Yes | Z48: =IF(O48, "", VLOOKUP(C48, 'Scoring Matrix'!A:D, 3, FALSE)) -> Resources | AA48: =IF(O48, "", VLOOKUP(C48, 'Scoring Matrix'!A:D, 4, FALSE)) -> Cloud Security
C49: =C48+1 -> 37 | D49: =VLOOKUP(C49, 'Scoring Matrix'!A:B, 2, FALSE) -> Are there lawyers with knowledge of cybersecurity and information and communication technology who work for, or with, the government? | E49: =IF(VLOOKUP(C49, 'Scoring Matrix'!A:E, 5, FALSE)=0, "", VLOOKUP(C49, 'Scoring Matrix'!A:E, 5, FALSE)) -> 0.1 | G49: =IF(VLOOKUP(C49,'Scoring Matrix'!A:N, 14, FALSE)=0, "", VLOOKUP(C49,'Scoring Matrix'!A:N, 14, FALSE)) -> Yes | H49: =IF(VLOOKUP(C49,'Scoring Matrix'!A:N, 14, FALSE)=0, "", VLOOKUP(C49,'Scoring Matrix'!A:N, 14, FALSE)) -> Yes | I49: Unanswered | K49: =IF(ISNUMBER(C49), IF(VLOOKUP(C49, 'Scoring Matrix'!A:L, 12, FALSE)="Parent", "Parent", IF(VLOOKUP(C49, 'Scoring Matrix'!A:L, 12, FALSE)="Child", "Child", "")), "") ->  | M49: 0 | O49: FALSE | P49: FALSE | Q49: FALSE | S49: =IF(AND($J49="N/A", $K49="Child"), 0, SUMIFS('Scoring Matrix'!G:G, 'Scoring Matrix'!A:A, "="&Questionnaire!$C49, 'Scoring Matrix'!F:F, "="&Questionnaire!F49)) -> 0 | T49: =IF(AND($J49="N/A", $K49="Child"), 0, SUMIFS('Scoring Matrix'!H:H, 'Scoring Matrix'!A:A, "="&Questionnaire!$C49, 'Scoring Matrix'!F:F, "="&Questionnaire!F49)) -> 0 | U49: =IF(AND($J49="N/A", $K49="Child"), 0, SUMIFS('Scoring Matrix'!I:I, 'Scoring Matrix'!A:A, "="&Questionnaire!$C49, 'Scoring Matrix'!F:F, "="&Questionnaire!F49)) -> 0 | V49: =IF(AND($J49="N/A", $K49="Child"), 0, SUMIFS('Scoring Matrix'!J:J, 'Scoring Matrix'!A:A, "="&Questionnaire!$C49, 'Scoring Matrix'!F:F, "="&Questionnaire!F49)) -> 0 | W49: =IF(AND($J49="N/A", $K49="Child"), 0, SUMIFS('Scoring Matrix'!K:K, 'Scoring Matrix'!A:A, "="&Questionnaire!$C49, 'Scoring Matrix'!F:F, "="&Questionnaire!F49)) -> 0 | Y49: =IF(O49, "", IF(VLOOKUP(C49,'Scoring Matrix'!$A$2:W400,13,FALSE)=1,"N/A", "Yes")) -> Yes | Z49: =IF(O49, "", VLOOKUP(C49, 'Scoring Matrix'!A:D, 3, FALSE)) -> Resources | AA49: =IF(O49, "", VLOOKUP(C49, 'Scoring Matrix'!A:D, 4, FALSE)) -> Cloud Security
D50: Training | E50: =SUM(E51:E54) -> 0.2 | I50: Unanswered | K50: =IF(ISNUMBER(C50), IF(VLOOKUP(C50, 'Scoring Matrix'!A:L, 12, FALSE)="Parent", "Parent", IF(VLOOKUP(C50, 'Scoring Matrix'!A:L, 12, FALSE)="Child", "Child", "")), "") ->  | O50: TRUE | P50: FALSE | Q50: FALSE | S50: =IF(AND($J50="N/A", $K50="Child"), 0, SUMIFS('Scoring Matrix'!G:G, 'Scoring Matrix'!A:A, "="&Questionnaire!$C50, 'Scoring Matrix'!F:F, "="&Questionnaire!F50)) -> 0 | T50: =IF(AND($J50="N/A", $K50="Child"), 0, SUMIFS('Scoring Matrix'!H:H, 'Scoring Matrix'!A:A, "="&Questionnaire!$C50, 'Scoring Matrix'!F:F, "="&Questionnaire!F50)) -> 0 | U50: =IF(AND($J50="N/A", $K50="Child"), 0, SUMIFS('Scoring Matrix'!I:I, 'Scoring Matrix'!A:A, "="&Questionnaire!$C50, 'Scoring Matrix'!F:F, "="&Questionnaire!F50)) -> 0 | V50: =IF(AND($J50="N/A", $K50="Child"), 0, SUMIFS('Scoring Matrix'!J:J, 'Scoring Matrix'!A:A, "="&Questionnaire!$C50, 'Scoring Matrix'!F:F, "="&Questionnaire!F50)) -> 0 | W50: =IF(AND($J50="N/A", $K50="Child"), 0, SUMIFS('Scoring Matrix'!K:K, 'Scoring Matrix'!A:A, "="&Questionnaire!$C50, 'Scoring Matrix'!F:F, "="&Questionnaire!F50)) -> 0 | Y50: =IF(O50, "", IF(VLOOKUP(C50,'Scoring Matrix'!$A$2:W400,13,FALSE)=1,"N/A", "Yes")) ->  | Z50: =IF(O50, "", VLOOKUP(C50, 'Scoring Matrix'!A:D, 3, FALSE)) ->  | AA50: =IF(O50, "", VLOOKUP(C50, 'Scoring Matrix'!A:D, 4, FALSE)) -> 
C51: =C49+1 -> 38 | D51: =VLOOKUP(C51, 'Scoring Matrix'!A:B, 2, FALSE) -> Does the government have existing training processes in place to teach public sector employees how to use applications or technology? | E51: =IF(VLOOKUP(C51, 'Scoring Matrix'!A:E, 5, FALSE)=0, "", VLOOKUP(C51, 'Scoring Matrix'!A:E, 5, FALSE)) -> 0.05 | G51: =IF(VLOOKUP(C51,'Scoring Matrix'!A:N, 14, FALSE)=0, "", VLOOKUP(C51,'Scoring Matrix'!A:N, 14, FALSE)) -> Unknown | H51: =IF(VLOOKUP(C51,'Scoring Matrix'!A:N, 14, FALSE)=0, "", VLOOKUP(C51,'Scoring Matrix'!A:N, 14, FALSE)) -> Unknown | I51: Unanswered | K51: =IF(ISNUMBER(C51), IF(VLOOKUP(C51, 'Scoring Matrix'!A:L, 12, FALSE)="Parent", "Parent", IF(VLOOKUP(C51, 'Scoring Matrix'!A:L, 12, FALSE)="Child", "Child", "")), "") ->  | M51: 0 | O51: FALSE | P51: FALSE | Q51: FALSE | S51: =IF(AND($J51="N/A", $K51="Child"), 0, SUMIFS('Scoring Matrix'!G:G, 'Scoring Matrix'!A:A, "="&Questionnaire!$C51, 'Scoring Matrix'!F:F, "="&Questionnaire!F51)) -> 0 | T51: =IF(AND($J51="N/A", $K51="Child"), 0, SUMIFS('Scoring Matrix'!H:H, 'Scoring Matrix'!A:A, "="&Questionnaire!$C51, 'Scoring Matrix'!F:F, "="&Questionnaire!F51)) -> 0 | U51: =IF(AND($J51="N/A", $K51="Child"), 0, SUMIFS('Scoring Matrix'!I:I, 'Scoring Matrix'!A:A, "="&Questionnaire!$C51, 'Scoring Matrix'!F:F, "="&Questionnaire!F51)) -> 0 | V51: =IF(AND($J51="N/A", $K51="Child"), 0, SUMIFS('Scoring Matrix'!J:J, 'Scoring Matrix'!A:A, "="&Questionnaire!$C51, 'Scoring Matrix'!F:F, "="&Questionnaire!F51)) -> 0 | W51: =IF(AND($J51="N/A", $K51="Child"), 0, SUMIFS('Scoring Matrix'!K:K, 'Scoring Matrix'!A:A, "="&Questionnaire!$C51, 'Scoring Matrix'!F:F, "="&Questionnaire!F51)) -> 0 | Y51: =IF(O51, "", IF(VLOOKUP(C51,'Scoring Matrix'!$A$2:W400,13,FALSE)=1,"N/A", "Yes")) -> Yes | Z51: =IF(O51, "", VLOOKUP(C51, 'Scoring Matrix'!A:D, 3, FALSE)) -> Resources | AA51: =IF(O51, "", VLOOKUP(C51, 'Scoring Matrix'!A:D, 4, FALSE)) -> Training
C52: =C51+1 -> 39 | D52: =VLOOKUP(C52, 'Scoring Matrix'!A:B, 2, FALSE) -> Does the government have dedicated training resources for training activities? | E52: =IF(VLOOKUP(C52, 'Scoring Matrix'!A:E, 5, FALSE)=0, "", VLOOKUP(C52, 'Scoring Matrix'!A:E, 5, FALSE)) -> 0.05 | G52: =IF(VLOOKUP(C52,'Scoring Matrix'!A:N, 14, FALSE)=0, "", VLOOKUP(C52,'Scoring Matrix'!A:N, 14, FALSE)) -> No | H52: =IF(VLOOKUP(C52,'Scoring Matrix'!A:N, 14, FALSE)=0, "", VLOOKUP(C52,'Scoring Matrix'!A:N, 14, FALSE)) -> No | I52: Unanswered | K52: =IF(ISNUMBER(C52), IF(VLOOKUP(C52, 'Scoring Matrix'!A:L, 12, FALSE)="Parent", "Parent", IF(VLOOKUP(C52, 'Scoring Matrix'!A:L, 12, FALSE)="Child", "Child", "")), "") ->  | M52: 0 | O52: FALSE | P52: FALSE | Q52: FALSE | S52: =IF(AND($J52="N/A", $K52="Child"), 0, SUMIFS('Scoring Matrix'!G:G, 'Scoring Matrix'!A:A, "="&Questionnaire!$C52, 'Scoring Matrix'!F:F, "="&Questionnaire!F52)) -> 0 | T52: =IF(AND($J52="N/A", $K52="Child"), 0, SUMIFS('Scoring Matrix'!H:H, 'Scoring Matrix'!A:A, "="&Questionnaire!$C52, 'Scoring Matrix'!F:F, "="&Questionnaire!F52)) -> 0 | U52: =IF(AND($J52="N/A", $K52="Child"), 0, SUMIFS('Scoring Matrix'!I:I, 'Scoring Matrix'!A:A, "="&Questionnaire!$C52, 'Scoring Matrix'!F:F, "="&Questionnaire!F52)) -> 0 | V52: =IF(AND($J52="N/A", $K52="Child"), 0, SUMIFS('Scoring Matrix'!J:J, 'Scoring Matrix'!A:A, "="&Questionnaire!$C52, 'Scoring Matrix'!F:F, "="&Questionnaire!F52)) -> 0 | W52: =IF(AND($J52="N/A", $K52="Child"), 0, SUMIFS('Scoring Matrix'!K:K, 'Scoring Matrix'!A:A, "="&Questionnaire!$C52, 'Scoring Matrix'!F:F, "="&Questionnaire!F52)) -> 0 | Y52: =IF(O52, "", IF(VLOOKUP(C52,'Scoring Matrix'!$A$2:W400,13,FALSE)=1,"N/A", "Yes")) -> Yes | Z52: =IF(O52, "", VLOOKUP(C52, 'Scoring Matrix'!A:D, 3, FALSE)) -> Resources | AA52: =IF(O52, "", VLOOKUP(C52, 'Scoring Matrix'!A:D, 4, FALSE)) -> Training
C53: =C52+1 -> 40 | D53: =VLOOKUP(C53, 'Scoring Matrix'!A:B, 2, FALSE) -> How often do public sector employees take government IT courses? | E53: =IF(VLOOKUP(C53, 'Scoring Matrix'!A:E, 5, FALSE)=0, "", VLOOKUP(C53, 'Scoring Matrix'!A:E, 5, FALSE)) -> 0.05 | G53: =IF(VLOOKUP(C53,'Scoring Matrix'!A:N, 14, FALSE)=0, "", VLOOKUP(C53,'Scoring Matrix'!A:N, 14, FALSE)) -> Upon employment (one-time) | H53: =IF(VLOOKUP(C53,'Scoring Matrix'!A:N, 14, FALSE)=0, "", VLOOKUP(C53,'Scoring Matrix'!A:N, 14, FALSE)) -> Upon employment (one-time) | I53: Unanswered | K53: =IF(ISNUMBER(C53), IF(VLOOKUP(C53, 'Scoring Matrix'!A:L, 12, FALSE)="Parent", "Parent", IF(VLOOKUP(C53, 'Scoring Matrix'!A:L, 12, FALSE)="Child", "Child", "")), "") ->  | M53: 0 | O53: FALSE | P53: FALSE | Q53: FALSE | S53: =IF(AND($J53="N/A", $K53="Child"), 0, SUMIFS('Scoring Matrix'!G:G, 'Scoring Matrix'!A:A, "="&Questionnaire!$C53, 'Scoring Matrix'!F:F, "="&Questionnaire!F53)) -> 0 | T53: =IF(AND($J53="N/A", $K53="Child"), 0, SUMIFS('Scoring Matrix'!H:H, 'Scoring Matrix'!A:A, "="&Questionnaire!$C53, 'Scoring Matrix'!F:F, "="&Questionnaire!F53)) -> 0 | U53: =IF(AND($J53="N/A", $K53="Child"), 0, SUMIFS('Scoring Matrix'!I:I, 'Scoring Matrix'!A:A, "="&Questionnaire!$C53, 'Scoring Matrix'!F:F, "="&Questionnaire!F53)) -> 0 | V53: =IF(AND($J53="N/A", $K53="Child"), 0, SUMIFS('Scoring Matrix'!J:J, 'Scoring Matrix'!A:A, "="&Questionnaire!$C53, 'Scoring Matrix'!F:F, "="&Questionnaire!F53)) -> 0 | W53: =IF(AND($J53="N/A", $K53="Child"), 0, SUMIFS('Scoring Matrix'!K:K, 'Scoring Matrix'!A:A, "="&Questionnaire!$C53, 'Scoring Matrix'!F:F, "="&Questionnaire!F53)) -> 0 | Y53: =IF(O53, "", IF(VLOOKUP(C53,'Scoring Matrix'!$A$2:W400,13,FALSE)=1,"N/A", "Yes")) -> Yes | Z53: =IF(O53, "", VLOOKUP(C53, 'Scoring Matrix'!A:D, 3, FALSE)) -> Resources | AA53: =IF(O53, "", VLOOKUP(C53, 'Scoring Matrix'!A:D, 4, FALSE)) -> Training
C54: =C53+1 -> 41 | D54: =VLOOKUP(C54, 'Scoring Matrix'!A:B, 2, FALSE) -> Are there any government trainings provided for public sector employees related to cloud security, provisioning, or migration? | E54: =IF(VLOOKUP(C54, 'Scoring Matrix'!A:E, 5, FALSE)=0, "", VLOOKUP(C54, 'Scoring Matrix'!A:E, 5, FALSE)) -> 0.05 | G54: =IF(VLOOKUP(C54,'Scoring Matrix'!A:N, 14, FALSE)=0, "", VLOOKUP(C54,'Scoring Matrix'!A:N, 14, FALSE)) -> Not at this time | H54: =IF(VLOOKUP(C54,'Scoring Matrix'!A:N, 14, FALSE)=0, "", VLOOKUP(C54,'Scoring Matrix'!A:N, 14, FALSE)) -> Not at this time | I54: Unanswered | J54: =IF(OR(AND(F54="No", K54="Parent"),AND(F54="unknown", K54="Parent")),"N/A", IF(AND(J53="N/A", K54="Child"), "N/A", IF(AND(K54="Parent", F54="Yes"), C54, IF(AND(ISNUMBER(J53), K54="Child"), C54, "")))) ->  | K54: =IF(ISNUMBER(C54), IF(VLOOKUP(C54, 'Scoring Matrix'!A:L, 12, FALSE)="Parent", "Parent", IF(VLOOKUP(C54, 'Scoring Matrix'!A:L, 12, FALSE)="Child", "Child", "")), "") ->  | L54: =IF(OR(AND(K54="child", J54="N/A"), AND(K54="", F54<>""), AND(K54="Parent", J54="N/A")), 1, IF(F54<>"", IF(K55="child", IF(AND(F55<>"", L55<>""), 1, ""), 1), "")) ->  | M54: =IF(ISBLANK(C54), "", IF(ISBLANK(F54),0,E54)) -> 0 | O54: =ISBLANK(C54) -> FALSE | P54: =AND(J54="N/A", K54="Child") -> FALSE | Q54: =IF(K54="Child",IF(AND(F54="",ISNUMBER(J54)), TRUE, FALSE)) -> FALSE | S54: =IF(AND($J54="N/A", $K54="Child"), 0, SUMIFS('Scoring Matrix'!G:G, 'Scoring Matrix'!A:A, "="&Questionnaire!$C54, 'Scoring Matrix'!F:F, "="&Questionnaire!F54)) -> 0 | T54: =IF(AND($J54="N/A", $K54="Child"), 0, SUMIFS('Scoring Matrix'!H:H, 'Scoring Matrix'!A:A, "="&Questionnaire!$C54, 'Scoring Matrix'!F:F, "="&Questionnaire!F54)) -> 0 | U54: =IF(AND($J54="N/A", $K54="Child"), 0, SUMIFS('Scoring Matrix'!I:I, 'Scoring Matrix'!A:A, "="&Questionnaire!$C54, 'Scoring Matrix'!F:F, "="&Questionnaire!F54)) -> 0 | V54: =IF(AND($J54="N/A", $K54="Child"), 0, SUMIFS('Scoring Matrix'!J:J, 'Scoring Matrix'!A:A, "="&Questionnaire!$C54, 'Scoring Matrix'!F:F, "="&Questionnaire!F54)) -> 0 | W54: =IF(AND($J54="N/A", $K54="Child"), 0, SUMIFS('Scoring Matrix'!K:K, 'Scoring Matrix'!A:A, "="&Questionnaire!$C54, 'Scoring Matrix'!F:F, "="&Questionnaire!F54)) -> 0 | Y54: =IF(O54, "", IF(VLOOKUP(C54,'Scoring Matrix'!$A$2:W400,13,FALSE)=1,"N/A", "Yes")) -> Yes | Z54: =IF(O54, "", VLOOKUP(C54, 'Scoring Matrix'!A:D, 3, FALSE)) -> Resources | AA54: =IF(O54, "", VLOOKUP(C54, 'Scoring Matrix'!A:D, 4, FALSE)) -> Training
D55: Security | E55: =SUM(E56+E62) -> 1 | I55: =IF(ISERROR(SEARCH("*Confirm*", G55)), IF(L55<>1, "Unanswered", "Answered"), "Needs Confirmed") -> Unanswered | J55: =IF(OR(AND(F55="No", K55="Parent"),AND(F55="unknown", K55="Parent")),"N/A", IF(AND(J54="N/A", K55="Child"), "N/A", IF(AND(K55="Parent", F55="Yes"), C55, IF(AND(ISNUMBER(J54), K55="Child"), C55, "")))) ->  | K55: =IF(ISNUMBER(C55), IF(VLOOKUP(C55, 'Scoring Matrix'!A:L, 12, FALSE)="Parent", "Parent", IF(VLOOKUP(C55, 'Scoring Matrix'!A:L, 12, FALSE)="Child", "Child", "")), "") ->  | L55: =IF(OR(AND(K55="child", J55="N/A"), AND(K55="", F55<>""), AND(K55="Parent", J55="N/A")), 1, IF(F55<>"", IF(K56="child", IF(AND(F56<>"", L56<>""), 1, ""), 1), "")) ->  | M55: =IF(ISBLANK(C55), "", IF(ISBLANK(F55),0,E55)) ->  | O55: =ISBLANK(C55) -> TRUE | P55: =AND(J55="N/A", K55="Child") -> FALSE | Q55: =IF(K55="Child",IF(AND(F55="",ISNUMBER(J55)), TRUE, FALSE)) -> FALSE | S55: =IF(AND($J55="N/A", $K55="Child"), 0, SUMIFS('Scoring Matrix'!G:G, 'Scoring Matrix'!A:A, "="&Questionnaire!$C55, 'Scoring Matrix'!F:F, "="&Questionnaire!F55)) -> 0 | T55: =IF(AND($J55="N/A", $K55="Child"), 0, SUMIFS('Scoring Matrix'!H:H, 'Scoring Matrix'!A:A, "="&Questionnaire!$C55, 'Scoring Matrix'!F:F, "="&Questionnaire!F55)) -> 0 | U55: =IF(AND($J55="N/A", $K55="Child"), 0, SUMIFS('Scoring Matrix'!I:I, 'Scoring Matrix'!A:A, "="&Questionnaire!$C55, 'Scoring Matrix'!F:F, "="&Questionnaire!F55)) -> 0 | V55: =IF(AND($J55="N/A", $K55="Child"), 0, SUMIFS('Scoring Matrix'!J:J, 'Scoring Matrix'!A:A, "="&Questionnaire!$C55, 'Scoring Matrix'!F:F, "="&Questionnaire!F55)) -> 0 | W55: =IF(AND($J55="N/A", $K55="Child"), 0, SUMIFS('Scoring Matrix'!K:K, 'Scoring Matrix'!A:A, "="&Questionnaire!$C55, 'Scoring Matrix'!F:F, "="&Questionnaire!F55)) -> 0 | Y55: =IF(O55, "", IF(VLOOKUP(C55,'Scoring Matrix'!$A$2:W400,13,FALSE)=1,"N/A", "Yes")) ->  | Z55: =IF(O55, "", VLOOKUP(C55, 'Scoring Matrix'!A:D, 3, FALSE)) ->  | AA55: =IF(O55, "", VLOOKUP(C55, 'Scoring Matrix'!A:D, 4, FALSE)) -> 
D56: General | E56: =SUM(E57:E61) -> 0.3 | I56: =IF(ISERROR(SEARCH("*Confirm*", G56)), IF(L56<>1, "Unanswered", "Answered"), "Needs Confirmed") -> Unanswered | K56: =IF(ISNUMBER(C56), IF(VLOOKUP(C56, 'Scoring Matrix'!A:L, 12, FALSE)="Parent", "Parent", IF(VLOOKUP(C56, 'Scoring Matrix'!A:L, 12, FALSE)="Child", "Child", "")), "") ->  | O56: TRUE | P56: FALSE | Q56: FALSE | S56: =IF(AND($J56="N/A", $K56="Child"), 0, SUMIFS('Scoring Matrix'!G:G, 'Scoring Matrix'!A:A, "="&Questionnaire!$C56, 'Scoring Matrix'!F:F, "="&Questionnaire!F56)) -> 0 | T56: =IF(AND($J56="N/A", $K56="Child"), 0, SUMIFS('Scoring Matrix'!H:H, 'Scoring Matrix'!A:A, "="&Questionnaire!$C56, 'Scoring Matrix'!F:F, "="&Questionnaire!F56)) -> 0 | U56: =IF(AND($J56="N/A", $K56="Child"), 0, SUMIFS('Scoring Matrix'!I:I, 'Scoring Matrix'!A:A, "="&Questionnaire!$C56, 'Scoring Matrix'!F:F, "="&Questionnaire!F56)) -> 0 | V56: =IF(AND($J56="N/A", $K56="Child"), 0, SUMIFS('Scoring Matrix'!J:J, 'Scoring Matrix'!A:A, "="&Questionnaire!$C56, 'Scoring Matrix'!F:F, "="&Questionnaire!F56)) -> 0 | W56: =IF(AND($J56="N/A", $K56="Child"), 0, SUMIFS('Scoring Matrix'!K:K, 'Scoring Matrix'!A:A, "="&Questionnaire!$C56, 'Scoring Matrix'!F:F, "="&Questionnaire!F56)) -> 0 | Y56: =IF(O56, "", IF(VLOOKUP(C56,'Scoring Matrix'!$A$2:W400,13,FALSE)=1,"N/A", "Yes")) ->  | Z56: =IF(O56, "", VLOOKUP(C56, 'Scoring Matrix'!A:D, 3, FALSE)) ->  | AA56: =IF(O56, "", VLOOKUP(C56, 'Scoring Matrix'!A:D, 4, FALSE)) -> 
C57: =C54+1 -> 42 | D57: =VLOOKUP(C57, 'Scoring Matrix'!A:B, 2, FALSE) -> Are there laws or regulations pertaining to general security requirements for digital data hosting and cloud service providers? | E57: =IF(VLOOKUP(C57, 'Scoring Matrix'!A:E, 5, FALSE)=0, "", VLOOKUP(C57, 'Scoring Matrix'!A:E, 5, FALSE)) -> 0.1 | G57: =IF(VLOOKUP(C57,'Scoring Matrix'!A:N, 14, FALSE)=0, "", VLOOKUP(C57,'Scoring Matrix'!A:N, 14, FALSE)) -> No | H57: =IF(VLOOKUP(C57,'Scoring Matrix'!A:N, 14, FALSE)=0, "", VLOOKUP(C57,'Scoring Matrix'!A:N, 14, FALSE)) -> No | I57: Unanswered | K57: =IF(ISNUMBER(C57), IF(VLOOKUP(C57, 'Scoring Matrix'!A:L, 12, FALSE)="Parent", "Parent", IF(VLOOKUP(C57, 'Scoring Matrix'!A:L, 12, FALSE)="Child", "Child", "")), "") -> Parent | M57: 0 | O57: FALSE | P57: FALSE | Q57: FALSE | S57: =IF(AND($J57="N/A", $K57="Child"), 0, SUMIFS('Scoring Matrix'!G:G, 'Scoring Matrix'!A:A, "="&Questionnaire!$C57, 'Scoring Matrix'!F:F, "="&Questionnaire!F57)) -> 0 | T57: =IF(AND($J57="N/A", $K57="Child"), 0, SUMIFS('Scoring Matrix'!H:H, 'Scoring Matrix'!A:A, "="&Questionnaire!$C57, 'Scoring Matrix'!F:F, "="&Questionnaire!F57)) -> 0 | U57: =IF(AND($J57="N/A", $K57="Child"), 0, SUMIFS('Scoring Matrix'!I:I, 'Scoring Matrix'!A:A, "="&Questionnaire!$C57, 'Scoring Matrix'!F:F, "="&Questionnaire!F57)) -> 0 | V57: =IF(AND($J57="N/A", $K57="Child"), 0, SUMIFS('Scoring Matrix'!J:J, 'Scoring Matrix'!A:A, "="&Questionnaire!$C57, 'Scoring Matrix'!F:F, "="&Questionnaire!F57)) -> 0 | W57: =IF(AND($J57="N/A", $K57="Child"), 0, SUMIFS('Scoring Matrix'!K:K, 'Scoring Matrix'!A:A, "="&Questionnaire!$C57, 'Scoring Matrix'!F:F, "="&Questionnaire!F57)) -> 0 | Y57: =IF(O57, "", IF(VLOOKUP(C57,'Scoring Matrix'!$A$2:W400,13,FALSE)=1,"N/A", "Yes")) -> Yes | Z57: =IF(O57, "", VLOOKUP(C57, 'Scoring Matrix'!A:D, 3, FALSE)) -> Security | AA57: =IF(O57, "", VLOOKUP(C57, 'Scoring Matrix'!A:D, 4, FALSE)) -> General
C58: =C57+1 -> 43 | D58: =VLOOKUP(C58, 'Scoring Matrix'!A:B, 2, FALSE) -> If so, are there security audits of providers? | G58: =IF(VLOOKUP(C58,'Scoring Matrix'!A:N, 14, FALSE)=0, "", VLOOKUP(C58,'Scoring Matrix'!A:N, 14, FALSE)) -> No | H58: =IF(VLOOKUP(C58,'Scoring Matrix'!A:N, 14, FALSE)=0, "", VLOOKUP(C58,'Scoring Matrix'!A:N, 14, FALSE)) -> No | I58: Unanswered | K58: =IF(ISNUMBER(C58), IF(VLOOKUP(C58, 'Scoring Matrix'!A:L, 12, FALSE)="Parent", "Parent", IF(VLOOKUP(C58, 'Scoring Matrix'!A:L, 12, FALSE)="Child", "Child", "")), "") -> Child | L58: =IF(OR(AND(K58="child", J58="N/A"), AND(K58="", F58<>""), AND(K58="Parent", J58="N/A")), 1, IF(F58<>"", IF(K68="child", IF(AND(F68<>"", L68<>""), 1, ""), 1), "")) ->  | M58: 0 | O58: FALSE | P58: FALSE | Q58: FALSE | S58: =IF(AND($J58="N/A", $K58="Child"), 0, SUMIFS('Scoring Matrix'!G:G, 'Scoring Matrix'!A:A, "="&Questionnaire!$C58, 'Scoring Matrix'!F:F, "="&Questionnaire!F58)) -> 0 | T58: =IF(AND($J58="N/A", $K58="Child"), 0, SUMIFS('Scoring Matrix'!H:H, 'Scoring Matrix'!A:A, "="&Questionnaire!$C58, 'Scoring Matrix'!F:F, "="&Questionnaire!F58)) -> 0 | U58: =IF(AND($J58="N/A", $K58="Child"), 0, SUMIFS('Scoring Matrix'!I:I, 'Scoring Matrix'!A:A, "="&Questionnaire!$C58, 'Scoring Matrix'!F:F, "="&Questionnaire!F58)) -> 0 | V58: =IF(AND($J58="N/A", $K58="Child"), 0, SUMIFS('Scoring Matrix'!J:J, 'Scoring Matrix'!A:A, "="&Questionnaire!$C58, 'Scoring Matrix'!F:F, "="&Questionnaire!F58)) -> 0 | W58: =IF(AND($J58="N/A", $K58="Child"), 0, SUMIFS('Scoring Matrix'!K:K, 'Scoring Matrix'!A:A, "="&Questionnaire!$C58, 'Scoring Matrix'!F:F, "="&Questionnaire!F58)) -> 0 | Y58: =IF(O58, "", IF(VLOOKUP(C58,'Scoring Matrix'!$A$2:W400,13,FALSE)=1,"N/A", "Yes")) -> Yes | Z58: =IF(O58, "", VLOOKUP(C58, 'Scoring Matrix'!A:D, 3, FALSE)) -> Security | AA58: =IF(O58, "", VLOOKUP(C58, 'Scoring Matrix'!A:D, 4, FALSE)) -> General
C59: =C58+1 -> 44 | D59: =VLOOKUP(C59, 'Scoring Matrix'!A:B, 2, FALSE) -> Is there currently a secure way for citizens to pay the government online? | E59: =IF(VLOOKUP(C59, 'Scoring Matrix'!A:E, 5, FALSE)=0, "", VLOOKUP(C59, 'Scoring Matrix'!A:E, 5, FALSE)) -> 0.05 | G59: =IF(VLOOKUP(C59,'Scoring Matrix'!A:N, 14, FALSE)=0, "", VLOOKUP(C59,'Scoring Matrix'!A:N, 14, FALSE)) -> No | H59: =IF(VLOOKUP(C59,'Scoring Matrix'!A:N, 14, FALSE)=0, "", VLOOKUP(C59,'Scoring Matrix'!A:N, 14, FALSE)) -> No | I59: Unanswered | J59: =IF(OR(AND(F59="No", K59="Parent"),AND(F59="unknown", K59="Parent")),"N/A", IF(AND(J68="N/A", K59="Child"), "N/A", IF(AND(K59="Parent", F59="Yes"), C59, IF(AND(ISNUMBER(J68), K59="Child"), C59, "")))) ->  | K59: =IF(ISNUMBER(C59), IF(VLOOKUP(C59, 'Scoring Matrix'!A:L, 12, FALSE)="Parent", "Parent", IF(VLOOKUP(C59, 'Scoring Matrix'!A:L, 12, FALSE)="Child", "Child", "")), "") ->  | L59: =IF(OR(AND(K59="child", J59="N/A"), AND(K59="", F59<>""), AND(K59="Parent", J59="N/A")), 1, IF(F59<>"", IF(K60="child", IF(AND(F60<>"", L60<>""), 1, ""), 1), "")) ->  | M59: 0 | O59: FALSE | P59: FALSE | Q59: FALSE | S59: =IF(AND($J59="N/A", $K59="Child"), 0, SUMIFS('Scoring Matrix'!G:G, 'Scoring Matrix'!A:A, "="&Questionnaire!$C59, 'Scoring Matrix'!F:F, "="&Questionnaire!F59)) -> 0 | T59: =IF(AND($J59="N/A", $K59="Child"), 0, SUMIFS('Scoring Matrix'!H:H, 'Scoring Matrix'!A:A, "="&Questionnaire!$C59, 'Scoring Matrix'!F:F, "="&Questionnaire!F59)) -> 0 | U59: =IF(AND($J59="N/A", $K59="Child"), 0, SUMIFS('Scoring Matrix'!I:I, 'Scoring Matrix'!A:A, "="&Questionnaire!$C59, 'Scoring Matrix'!F:F, "="&Questionnaire!F59)) -> 0 | V59: =IF(AND($J59="N/A", $K59="Child"), 0, SUMIFS('Scoring Matrix'!J:J, 'Scoring Matrix'!A:A, "="&Questionnaire!$C59, 'Scoring Matrix'!F:F, "="&Questionnaire!F59)) -> 0 | W59: =IF(AND($J59="N/A", $K59="Child"), 0, SUMIFS('Scoring Matrix'!K:K, 'Scoring Matrix'!A:A, "="&Questionnaire!$C59, 'Scoring Matrix'!F:F, "="&Questionnaire!F59)) -> 0 | Y59: =IF(O59, "", IF(VLOOKUP(C59,'Scoring Matrix'!$A$2:W400,13,FALSE)=1,"N/A", "Yes")) -> Yes | Z59: =IF(O59, "", VLOOKUP(C59, 'Scoring Matrix'!A:D, 3, FALSE)) -> Security | AA59: =IF(O59, "", VLOOKUP(C59, 'Scoring Matrix'!A:D, 4, FALSE)) -> General
C60: =C59+1 -> 45 | D60: =VLOOKUP(C60, 'Scoring Matrix'!A:B, 2, FALSE) -> Is there currently a secure way for the government to pay vendors or service providers online? | E60: =IF(VLOOKUP(C60, 'Scoring Matrix'!A:E, 5, FALSE)=0, "", VLOOKUP(C60, 'Scoring Matrix'!A:E, 5, FALSE)) -> 0.05 | G60: =IF(VLOOKUP(C60,'Scoring Matrix'!A:N, 14, FALSE)=0, "", VLOOKUP(C60,'Scoring Matrix'!A:N, 14, FALSE)) -> Unknown | H60: =IF(VLOOKUP(C60,'Scoring Matrix'!A:N, 14, FALSE)=0, "", VLOOKUP(C60,'Scoring Matrix'!A:N, 14, FALSE)) -> Unknown | I60: Unanswered | K60: =IF(ISNUMBER(C60), IF(VLOOKUP(C60, 'Scoring Matrix'!A:L, 12, FALSE)="Parent", "Parent", IF(VLOOKUP(C60, 'Scoring Matrix'!A:L, 12, FALSE)="Child", "Child", "")), "") ->  | M60: 0 | O60: FALSE | P60: FALSE | Q60: FALSE | S60: =IF(AND($J60="N/A", $K60="Child"), 0, SUMIFS('Scoring Matrix'!G:G, 'Scoring Matrix'!A:A, "="&Questionnaire!$C60, 'Scoring Matrix'!F:F, "="&Questionnaire!F60)) -> 0 | T60: =IF(AND($J60="N/A", $K60="Child"), 0, SUMIFS('Scoring Matrix'!H:H, 'Scoring Matrix'!A:A, "="&Questionnaire!$C60, 'Scoring Matrix'!F:F, "="&Questionnaire!F60)) -> 0 | U60: =IF(AND($J60="N/A", $K60="Child"), 0, SUMIFS('Scoring Matrix'!I:I, 'Scoring Matrix'!A:A, "="&Questionnaire!$C60, 'Scoring Matrix'!F:F, "="&Questionnaire!F60)) -> 0 | V60: =IF(AND($J60="N/A", $K60="Child"), 0, SUMIFS('Scoring Matrix'!J:J, 'Scoring Matrix'!A:A, "="&Questionnaire!$C60, 'Scoring Matrix'!F:F, "="&Questionnaire!F60)) -> 0 | W60: =IF(AND($J60="N/A", $K60="Child"), 0, SUMIFS('Scoring Matrix'!K:K, 'Scoring Matrix'!A:A, "="&Questionnaire!$C60, 'Scoring Matrix'!F:F, "="&Questionnaire!F60)) -> 0 | Y60: =IF(O60, "", IF(VLOOKUP(C60,'Scoring Matrix'!$A$2:W400,13,FALSE)=1,"N/A", "Yes")) -> Yes | Z60: =IF(O60, "", VLOOKUP(C60, 'Scoring Matrix'!A:D, 3, FALSE)) -> Security | AA60: =IF(O60, "", VLOOKUP(C60, 'Scoring Matrix'!A:D, 4, FALSE)) -> General
C61: =C60+1 -> 46 | D61: =VLOOKUP(C61, 'Scoring Matrix'!A:B, 2, FALSE) -> Must IT public sector employees go through a security clearance process in order to work with government applications, systems, or government data in any capacity? | E61: =IF(VLOOKUP(C61, 'Scoring Matrix'!A:E, 5, FALSE)=0, "", VLOOKUP(C61, 'Scoring Matrix'!A:E, 5, FALSE)) -> 0.1 | G61: =IF(VLOOKUP(C61,'Scoring Matrix'!A:N, 14, FALSE)=0, "", VLOOKUP(C61,'Scoring Matrix'!A:N, 14, FALSE)) -> Yes | H61: =IF(VLOOKUP(C61,'Scoring Matrix'!A:N, 14, FALSE)=0, "", VLOOKUP(C61,'Scoring Matrix'!A:N, 14, FALSE)) -> Yes | I61: Unanswered | J61: =IF(OR(AND(F61="No", K61="Parent"),AND(F61="unknown", K61="Parent")),"N/A", IF(AND(J60="N/A", K61="Child"), "N/A", IF(AND(K61="Parent", F61="Yes"), C61, IF(AND(ISNUMBER(J60), K61="Child"), C61, "")))) ->  | K61: =IF(ISNUMBER(C61), IF(VLOOKUP(C61, 'Scoring Matrix'!A:L, 12, FALSE)="Parent", "Parent", IF(VLOOKUP(C61, 'Scoring Matrix'!A:L, 12, FALSE)="Child", "Child", "")), "") ->  | L61: =IF(OR(AND(K61="child", J61="N/A"), AND(K61="", F61<>""), AND(K61="Parent", J61="N/A")), 1, IF(F61<>"", IF(K62="child", IF(AND(F62<>"", L62<>""), 1, ""), 1), "")) ->  | M61: =IF(ISBLANK(C61), "", IF(ISBLANK(F61),0,E61)) -> 0 | O61: =ISBLANK(C61) -> FALSE | P61: =AND(J61="N/A", K61="Child") -> FALSE | Q61: =IF(K61="Child",IF(AND(F61="",ISNUMBER(J61)), TRUE, FALSE)) -> FALSE | S61: =IF(AND($J61="N/A", $K61="Child"), 0, SUMIFS('Scoring Matrix'!G:G, 'Scoring Matrix'!A:A, "="&Questionnaire!$C61, 'Scoring Matrix'!F:F, "="&Questionnaire!F61)) -> 0 | T61: =IF(AND($J61="N/A", $K61="Child"), 0, SUMIFS('Scoring Matrix'!H:H, 'Scoring Matrix'!A:A, "="&Questionnaire!$C61, 'Scoring Matrix'!F:F, "="&Questionnaire!F61)) -> 0 | U61: =IF(AND($J61="N/A", $K61="Child"), 0, SUMIFS('Scoring Matrix'!I:I, 'Scoring Matrix'!A:A, "="&Questionnaire!$C61, 'Scoring Matrix'!F:F, "="&Questionnaire!F61)) -> 0 | V61: =IF(AND($J61="N/A", $K61="Child"), 0, SUMIFS('Scoring Matrix'!J:J, 'Scoring Matrix'!A:A, "="&Questionnaire!$C61, 'Scoring Matrix'!F:F, "="&Questionnaire!F61)) -> 0 | W61: =IF(AND($J61="N/A", $K61="Child"), 0, SUMIFS('Scoring Matrix'!K:K, 'Scoring Matrix'!A:A, "="&Questionnaire!$C61, 'Scoring Matrix'!F:F, "="&Questionnaire!F61)) -> 0 | Y61: =IF(O61, "", IF(VLOOKUP(C61,'Scoring Matrix'!$A$2:W400,13,FALSE)=1,"N/A", "Yes")) -> Yes | Z61: =IF(O61, "", VLOOKUP(C61, 'Scoring Matrix'!A:D, 3, FALSE)) -> Security | AA61: =IF(O61, "", VLOOKUP(C61, 'Scoring Matrix'!A:D, 4, FALSE)) -> General
D62: Data | E62: =SUM(E63:E68) -> 0.7 | I62: =IF(ISERROR(SEARCH("*Confirm*", G62)), IF(L62<>1, "Unanswered", "Answered"), "Needs Confirmed") -> Unanswered | J62: =IF(OR(AND(F62="No", K62="Parent"),AND(F62="unknown", K62="Parent")),"N/A", IF(AND(J61="N/A", K62="Child"), "N/A", IF(AND(K62="Parent", F62="Yes"), C62, IF(AND(ISNUMBER(J61), K62="Child"), C62, "")))) ->  | K62: =IF(ISNUMBER(C62), IF(VLOOKUP(C62, 'Scoring Matrix'!A:L, 12, FALSE)="Parent", "Parent", IF(VLOOKUP(C62, 'Scoring Matrix'!A:L, 12, FALSE)="Child", "Child", "")), "") ->  | O62: TRUE | P62: FALSE | Q62: FALSE | S62: =IF(AND($J62="N/A", $K62="Child"), 0, SUMIFS('Scoring Matrix'!G:G, 'Scoring Matrix'!A:A, "="&Questionnaire!$C62, 'Scoring Matrix'!F:F, "="&Questionnaire!F62)) -> 0 | T62: =IF(AND($J62="N/A", $K62="Child"), 0, SUMIFS('Scoring Matrix'!H:H, 'Scoring Matrix'!A:A, "="&Questionnaire!$C62, 'Scoring Matrix'!F:F, "="&Questionnaire!F62)) -> 0 | U62: =IF(AND($J62="N/A", $K62="Child"), 0, SUMIFS('Scoring Matrix'!I:I, 'Scoring Matrix'!A:A, "="&Questionnaire!$C62, 'Scoring Matrix'!F:F, "="&Questionnaire!F62)) -> 0 | V62: =IF(AND($J62="N/A", $K62="Child"), 0, SUMIFS('Scoring Matrix'!J:J, 'Scoring Matrix'!A:A, "="&Questionnaire!$C62, 'Scoring Matrix'!F:F, "="&Questionnaire!F62)) -> 0 | W62: =IF(AND($J62="N/A", $K62="Child"), 0, SUMIFS('Scoring Matrix'!K:K, 'Scoring Matrix'!A:A, "="&Questionnaire!$C62, 'Scoring Matrix'!F:F, "="&Questionnaire!F62)) -> 0 | Y62: =IF(O62, "", IF(VLOOKUP(C62,'Scoring Matrix'!$A$2:W400,13,FALSE)=1,"N/A", "Yes")) ->  | Z62: =IF(O62, "", VLOOKUP(C62, 'Scoring Matrix'!A:D, 3, FALSE)) ->  | AA62: =IF(O62, "", VLOOKUP(C62, 'Scoring Matrix'!A:D, 4, FALSE)) -> 
C63: =C61+1 -> 47 | D63: =VLOOKUP(C63, 'Scoring Matrix'!A:B, 2, FALSE) -> Are there any laws or regulations requiring that cloud service providers discard any data in their possession upon the termination of a contract? | E63: =IF(VLOOKUP(C63, 'Scoring Matrix'!A:E, 5, FALSE)=0, "", VLOOKUP(C63, 'Scoring Matrix'!A:E, 5, FALSE)) -> 0.15 | G63: =IF(VLOOKUP(C63,'Scoring Matrix'!A:N, 14, FALSE)=0, "", VLOOKUP(C63,'Scoring Matrix'!A:N, 14, FALSE)) -> Yes | H63: =IF(VLOOKUP(C63,'Scoring Matrix'!A:N, 14, FALSE)=0, "", VLOOKUP(C63,'Scoring Matrix'!A:N, 14, FALSE)) -> Yes | I63: =IF(ISERROR(SEARCH("*Confirm*", G63)), IF(L63<>1, "Unanswered", "Answered"), "Needs Confirmed") -> Unanswered | K63: =IF(ISNUMBER(C63), IF(VLOOKUP(C63, 'Scoring Matrix'!A:L, 12, FALSE)="Parent", "Parent", IF(VLOOKUP(C63, 'Scoring Matrix'!A:L, 12, FALSE)="Child", "Child", "")), "") ->  | L63: =IF(OR(AND(K63="child", J63="N/A"), AND(K63="", F63<>""), AND(K63="Parent", J63="N/A")), 1, IF(F63<>"", IF(K64="child", IF(AND(F64<>"", L64<>""), 1, ""), 1), "")) ->  | M63: 0 | O63: FALSE | P63: FALSE | Q63: FALSE | S63: =IF(AND($J63="N/A", $K63="Child"), 0, SUMIFS('Scoring Matrix'!G:G, 'Scoring Matrix'!A:A, "="&Questionnaire!$C63, 'Scoring Matrix'!F:F, "="&Questionnaire!F63)) -> 0 | T63: =IF(AND($J63="N/A", $K63="Child"), 0, SUMIFS('Scoring Matrix'!H:H, 'Scoring Matrix'!A:A, "="&Questionnaire!$C63, 'Scoring Matrix'!F:F, "="&Questionnaire!F63)) -> 0 | U63: =IF(AND($J63="N/A", $K63="Child"), 0, SUMIFS('Scoring Matrix'!I:I, 'Scoring Matrix'!A:A, "="&Questionnaire!$C63, 'Scoring Matrix'!F:F, "="&Questionnaire!F63)) -> 0 | V63: =IF(AND($J63="N/A", $K63="Child"), 0, SUMIFS('Scoring Matrix'!J:J, 'Scoring Matrix'!A:A, "="&Questionnaire!$C63, 'Scoring Matrix'!F:F, "="&Questionnaire!F63)) -> 0 | W63: =IF(AND($J63="N/A", $K63="Child"), 0, SUMIFS('Scoring Matrix'!K:K, 'Scoring Matrix'!A:A, "="&Questionnaire!$C63, 'Scoring Matrix'!F:F, "="&Questionnaire!F63)) -> 0 | Y63: =IF(O63, "", IF(VLOOKUP(C63,'Scoring Matrix'!$A$2:W400,13,FALSE)=1,"N/A", "Yes")) -> Yes | Z63: =IF(O63, "", VLOOKUP(C63, 'Scoring Matrix'!A:D, 3, FALSE)) -> Security | AA63: =IF(O63, "", VLOOKUP(C63, 'Scoring Matrix'!A:D, 4, FALSE)) -> Data
C64: =C63+1 -> 48 | D64: =VLOOKUP(C64, 'Scoring Matrix'!A:B, 2, FALSE) -> Has a security breach of confidential or sensitive government data occurred within the last five years? | E64: =IF(VLOOKUP(C64, 'Scoring Matrix'!A:E, 5, FALSE)=0, "", VLOOKUP(C64, 'Scoring Matrix'!A:E, 5, FALSE)) -> 0.05 | G64: =IF(VLOOKUP(C64,'Scoring Matrix'!A:N, 14, FALSE)=0, "", VLOOKUP(C64,'Scoring Matrix'!A:N, 14, FALSE)) -> Yes | H64: =IF(VLOOKUP(C64,'Scoring Matrix'!A:N, 14, FALSE)=0, "", VLOOKUP(C64,'Scoring Matrix'!A:N, 14, FALSE)) -> Yes | I64: Unanswered | J64: =IF(OR(AND(F64="No", K64="Parent"),AND(F64="unknown", K64="Parent")),"N/A", IF(AND(J63="N/A", K64="Child"), "N/A", IF(AND(K64="Parent", F64="Yes"), C64, IF(AND(ISNUMBER(J63), K64="Child"), C64, "")))) ->  | K64: =IF(ISNUMBER(C64), IF(VLOOKUP(C64, 'Scoring Matrix'!A:L, 12, FALSE)="Parent", "Parent", IF(VLOOKUP(C64, 'Scoring Matrix'!A:L, 12, FALSE)="Child", "Child", "")), "") -> Parent | L64: =IF(OR(AND(K64="child", J64="N/A"), AND(K64="", F64<>""), AND(K64="Parent", J64="N/A")), 1, IF(F64<>"", IF(#REF!="child", IF(AND(#REF!<>"",#REF!<> ""), 1, ""), 1), "")) ->  | M64: 0 | O64: FALSE | P64: FALSE | Q64: FALSE | S64: =IF(AND($J64="N/A", $K64="Child"), 0, SUMIFS('Scoring Matrix'!G:G, 'Scoring Matrix'!A:A, "="&Questionnaire!$C64, 'Scoring Matrix'!F:F, "="&Questionnaire!F64)) -> 0 | T64: =IF(AND($J64="N/A", $K64="Child"), 0, SUMIFS('Scoring Matrix'!H:H, 'Scoring Matrix'!A:A, "="&Questionnaire!$C64, 'Scoring Matrix'!F:F, "="&Questionnaire!F64)) -> 0 | U64: =IF(AND($J64="N/A", $K64="Child"), 0, SUMIFS('Scoring Matrix'!I:I, 'Scoring Matrix'!A:A, "="&Questionnaire!$C64, 'Scoring Matrix'!F:F, "="&Questionnaire!F64)) -> 0 | V64: =IF(AND($J64="N/A", $K64="Child"), 0, SUMIFS('Scoring Matrix'!J:J, 'Scoring Matrix'!A:A, "="&Questionnaire!$C64, 'Scoring Matrix'!F:F, "="&Questionnaire!F64)) -> 0 | W64: =IF(AND($J64="N/A", $K64="Child"), 0, SUMIFS('Scoring Matrix'!K:K, 'Scoring Matrix'!A:A, "="&Questionnaire!$C64, 'Scoring Matrix'!F:F, "="&Questionnaire!F64)) -> 0 | Y64: =IF(O64, "", IF(VLOOKUP(C64,'Scoring Matrix'!$A$2:W400,13,FALSE)=1,"N/A", "Yes")) -> Yes | Z64: =IF(O64, "", VLOOKUP(C64, 'Scoring Matrix'!A:D, 3, FALSE)) -> Security | AA64: =IF(O64, "", VLOOKUP(C64, 'Scoring Matrix'!A:D, 4, FALSE)) -> Data
C65: =C64+1 -> 49 | D65: =VLOOKUP(C65, 'Scoring Matrix'!A:B, 2, FALSE) -> Are there requirements pertaining to user access and authorization management? | E65: =IF(VLOOKUP(C65, 'Scoring Matrix'!A:E, 5, FALSE)=0, "", VLOOKUP(C65, 'Scoring Matrix'!A:E, 5, FALSE)) -> 0.2 | G65: =IF(VLOOKUP(C65,'Scoring Matrix'!A:N, 14, FALSE)=0, "", VLOOKUP(C65,'Scoring Matrix'!A:N, 14, FALSE)) -> No | H65: =IF(VLOOKUP(C65,'Scoring Matrix'!A:N, 14, FALSE)=0, "", VLOOKUP(C65,'Scoring Matrix'!A:N, 14, FALSE)) -> No | I65: Unanswered | J65: =IF(OR(AND(F65="No", K65="Parent"),AND(F65="unknown", K65="Parent")),"N/A", IF(AND(J64="N/A", K65="Child"), "N/A", IF(AND(K65="Parent", F65="Yes"), C65, IF(AND(ISNUMBER(J64), K65="Child"), C65, "")))) ->  | K65: =IF(ISNUMBER(C65), IF(VLOOKUP(C65, 'Scoring Matrix'!A:L, 12, FALSE)="Parent", "Parent", IF(VLOOKUP(C65, 'Scoring Matrix'!A:L, 12, FALSE)="Child", "Child", "")), "") ->  | L65: =IF(OR(AND(K65="child", J65="N/A"), AND(K65="", F65<>""), AND(K65="Parent", J65="N/A")), 1, IF(F65<>"", IF(#REF!="child", IF(AND(#REF!<>"",#REF!<> ""), 1, ""), 1), "")) ->  | M65: =IF(ISBLANK(C65), "", IF(ISBLANK(F65),0,E65)) -> 0 | O65: =ISBLANK(C65) -> FALSE | P65: =AND(J65="N/A", K65="Child") -> FALSE | Q65: =IF(K65="Child",IF(AND(F65="",ISNUMBER(J65)), TRUE, FALSE)) -> FALSE | S65: =IF(AND($J65="N/A", $K65="Child"), 0, SUMIFS('Scoring Matrix'!G:G, 'Scoring Matrix'!A:A, "="&Questionnaire!$C65, 'Scoring Matrix'!F:F, "="&Questionnaire!F65)) -> 0 | T65: =IF(AND($J65="N/A", $K65="Child"), 0, SUMIFS('Scoring Matrix'!H:H, 'Scoring Matrix'!A:A, "="&Questionnaire!$C65, 'Scoring Matrix'!F:F, "="&Questionnaire!F65)) -> 0 | U65: =IF(AND($J65="N/A", $K65="Child"), 0, SUMIFS('Scoring Matrix'!I:I, 'Scoring Matrix'!A:A, "="&Questionnaire!$C65, 'Scoring Matrix'!F:F, "="&Questionnaire!F65)) -> 0 | V65: =IF(AND($J65="N/A", $K65="Child"), 0, SUMIFS('Scoring Matrix'!J:J, 'Scoring Matrix'!A:A, "="&Questionnaire!$C65, 'Scoring Matrix'!F:F, "="&Questionnaire!F65)) -> 0 | W65: =IF(AND($J65="N/A", $K65="Child"), 0, SUMIFS('Scoring Matrix'!K:K, 'Scoring Matrix'!A:A, "="&Questionnaire!$C65, 'Scoring Matrix'!F:F, "="&Questionnaire!F65)) -> 0 | Y65: =IF(O65, "", IF(VLOOKUP(C65,'Scoring Matrix'!$A$2:W400,13,FALSE)=1,"N/A", "Yes")) -> Yes | Z65: =IF(O65, "", VLOOKUP(C65, 'Scoring Matrix'!A:D, 3, FALSE)) -> Security | AA65: =IF(O65, "", VLOOKUP(C65, 'Scoring Matrix'!A:D, 4, FALSE)) -> Data
C66: 50 | D66: =VLOOKUP(C66, 'Scoring Matrix'!A:B, 2, FALSE) -> Are there government-wide encryption requirements in place for certain types of data? | E66: =IF(VLOOKUP(C66, 'Scoring Matrix'!A:E, 5, FALSE)=0, "", VLOOKUP(C66, 'Scoring Matrix'!A:E, 5, FALSE)) -> 0.2 | G66: =IF(VLOOKUP(C66,'Scoring Matrix'!A:N, 14, FALSE)=0, "", VLOOKUP(C66,'Scoring Matrix'!A:N, 14, FALSE)) -> No | H66: =IF(VLOOKUP(C66,'Scoring Matrix'!A:N, 14, FALSE)=0, "", VLOOKUP(C66,'Scoring Matrix'!A:N, 14, FALSE)) -> No | I66: Unanswered | K66: =IF(ISNUMBER(C66), IF(VLOOKUP(C66, 'Scoring Matrix'!A:L, 12, FALSE)="Parent", "Parent", IF(VLOOKUP(C66, 'Scoring Matrix'!A:L, 12, FALSE)="Child", "Child", "")), "") -> Parent | M66: 0 | O66: FALSE | P66: FALSE | Q66: FALSE | S66: =IF(AND($J66="N/A", $K66="Child"), 0, SUMIFS('Scoring Matrix'!G:G, 'Scoring Matrix'!A:A, "="&Questionnaire!$C66, 'Scoring Matrix'!F:F, "="&Questionnaire!F66)) -> 0 | T66: =IF(AND($J66="N/A", $K66="Child"), 0, SUMIFS('Scoring Matrix'!H:H, 'Scoring Matrix'!A:A, "="&Questionnaire!$C66, 'Scoring Matrix'!F:F, "="&Questionnaire!F66)) -> 0 | U66: =IF(AND($J66="N/A", $K66="Child"), 0, SUMIFS('Scoring Matrix'!I:I, 'Scoring Matrix'!A:A, "="&Questionnaire!$C66, 'Scoring Matrix'!F:F, "="&Questionnaire!F66)) -> 0 | V66: =IF(AND($J66="N/A", $K66="Child"), 0, SUMIFS('Scoring Matrix'!J:J, 'Scoring Matrix'!A:A, "="&Questionnaire!$C66, 'Scoring Matrix'!F:F, "="&Questionnaire!F66)) -> 0 | W66: =IF(AND($J66="N/A", $K66="Child"), 0, SUMIFS('Scoring Matrix'!K:K, 'Scoring Matrix'!A:A, "="&Questionnaire!$C66, 'Scoring Matrix'!F:F, "="&Questionnaire!F66)) -> 0 | Y66: =IF(O66, "", IF(VLOOKUP(C66,'Scoring Matrix'!$A$2:W400,13,FALSE)=1,"N/A", "Yes")) -> Yes | Z66: =IF(O66, "", VLOOKUP(C66, 'Scoring Matrix'!A:D, 3, FALSE)) -> Security | AA66: =IF(O66, "", VLOOKUP(C66, 'Scoring Matrix'!A:D, 4, FALSE)) -> Data
C67: 51 | D67: =VLOOKUP(C67, 'Scoring Matrix'!A:B, 2, FALSE) -> Do the encryption requirements follow international encryption standards? | G67: =IF(VLOOKUP(C67,'Scoring Matrix'!A:N, 14, FALSE)=0, "", VLOOKUP(C67,'Scoring Matrix'!A:N, 14, FALSE)) -> Yes | H67: =IF(VLOOKUP(C67,'Scoring Matrix'!A:N, 14, FALSE)=0, "", VLOOKUP(C67,'Scoring Matrix'!A:N, 14, FALSE)) -> Yes | I67: Unanswered | K67: =IF(ISNUMBER(C67), IF(VLOOKUP(C67, 'Scoring Matrix'!A:L, 12, FALSE)="Parent", "Parent", IF(VLOOKUP(C67, 'Scoring Matrix'!A:L, 12, FALSE)="Child", "Child", "")), "") -> Child | L67: =IF(OR(AND(K67="child", J67="N/A"), AND(K67="", F67<>""), AND(K67="Parent", J67="N/A")), 1, IF(F67<>"", IF(K69="child", IF(AND(F69<>"", L69<>""), 1, ""), 1), "")) ->  | M67: 0 | O67: FALSE | P67: FALSE | Q67: FALSE | S67: =IF(AND($J67="N/A", $K67="Child"), 0, SUMIFS('Scoring Matrix'!G:G, 'Scoring Matrix'!A:A, "="&Questionnaire!$C67, 'Scoring Matrix'!F:F, "="&Questionnaire!F67)) -> 0 | T67: =IF(AND($J67="N/A", $K67="Child"), 0, SUMIFS('Scoring Matrix'!H:H, 'Scoring Matrix'!A:A, "="&Questionnaire!$C67, 'Scoring Matrix'!F:F, "="&Questionnaire!F67)) -> 0 | U67: =IF(AND($J67="N/A", $K67="Child"), 0, SUMIFS('Scoring Matrix'!I:I, 'Scoring Matrix'!A:A, "="&Questionnaire!$C67, 'Scoring Matrix'!F:F, "="&Questionnaire!F67)) -> 0 | V67: =IF(AND($J67="N/A", $K67="Child"), 0, SUMIFS('Scoring Matrix'!J:J, 'Scoring Matrix'!A:A, "="&Questionnaire!$C67, 'Scoring Matrix'!F:F, "="&Questionnaire!F67)) -> 0 | W67: =IF(AND($J67="N/A", $K67="Child"), 0, SUMIFS('Scoring Matrix'!K:K, 'Scoring Matrix'!A:A, "="&Questionnaire!$C67, 'Scoring Matrix'!F:F, "="&Questionnaire!F67)) -> 0 | Y67: =IF(O67, "", IF(VLOOKUP(C67,'Scoring Matrix'!$A$2:W400,13,FALSE)=1,"N/A", "Yes")) -> Yes | Z67: =IF(O67, "", VLOOKUP(C67, 'Scoring Matrix'!A:D, 3, FALSE)) -> Security | AA67: =IF(O67, "", VLOOKUP(C67, 'Scoring Matrix'!A:D, 4, FALSE)) -> Data
C68: 52 | D68: =VLOOKUP(C68, 'Scoring Matrix'!A:B, 2, FALSE) -> Do local cloud service providers have the ability to meet government security and encryption requirements? | E68: =IF(VLOOKUP(C68, 'Scoring Matrix'!A:E, 5, FALSE)=0, "", VLOOKUP(C68, 'Scoring Matrix'!A:E, 5, FALSE)) -> 0.1 | G68: =IF(VLOOKUP(C68,'Scoring Matrix'!A:N, 14, FALSE)=0, "", VLOOKUP(C68,'Scoring Matrix'!A:N, 14, FALSE)) -> Unknown | H68: =IF(VLOOKUP(C68,'Scoring Matrix'!A:N, 14, FALSE)=0, "", VLOOKUP(C68,'Scoring Matrix'!A:N, 14, FALSE)) -> Unknown | I68: =IF(ISERROR(SEARCH("*Confirm*", G68)), IF(L68<>1, "Unanswered", "Answered"), "Needs Confirmed") -> Unanswered | J68: =IF(OR(AND(F68="No", K68="Parent"),AND(F68="unknown", K68="Parent")),"N/A", IF(AND(J58="N/A", K68="Child"), "N/A", IF(AND(K68="Parent", F68="Yes"), C68, IF(AND(ISNUMBER(J58), K68="Child"), C68, "")))) ->  | K68: =IF(ISNUMBER(C68), IF(VLOOKUP(C68, 'Scoring Matrix'!A:L, 12, FALSE)="Parent", "Parent", IF(VLOOKUP(C68, 'Scoring Matrix'!A:L, 12, FALSE)="Child", "Child", "")), "") ->  | L68: =IF(OR(AND(K68="child", J68="N/A"), AND(K68="", F68<>""), AND(K68="Parent", J68="N/A")), 1, IF(F68<>"", IF(K59="child", IF(AND(F59<>"", L59<>""), 1, ""), 1), "")) ->  | M68: =IF(ISBLANK(C68), "", IF(ISBLANK(F68),0,E68)) -> 0 | O68: =ISBLANK(C68) -> FALSE | P68: =AND(J68="N/A", K68="Child") -> FALSE | Q68: =IF(K68="Child",IF(AND(F68="",ISNUMBER(J68)), TRUE, FALSE)) -> FALSE | S68: =IF(AND($J68="N/A", $K68="Child"), 0, SUMIFS('Scoring Matrix'!G:G, 'Scoring Matrix'!A:A, "="&Questionnaire!$C68, 'Scoring Matrix'!F:F, "="&Questionnaire!F68)) -> 0 | T68: =IF(AND($J68="N/A", $K68="Child"), 0, SUMIFS('Scoring Matrix'!H:H, 'Scoring Matrix'!A:A, "="&Questionnaire!$C68, 'Scoring Matrix'!F:F, "="&Questionnaire!F68)) -> 0 | U68: =IF(AND($J68="N/A", $K68="Child"), 0, SUMIFS('Scoring Matrix'!I:I, 'Scoring Matrix'!A:A, "="&Questionnaire!$C68, 'Scoring Matrix'!F:F, "="&Questionnaire!F68)) -> 0 | V68: =IF(AND($J68="N/A", $K68="Child"), 0, SUMIFS('Scoring Matrix'!J:J, 'Scoring Matrix'!A:A, "="&Questionnaire!$C68, 'Scoring Matrix'!F:F, "="&Questionnaire!F68)) -> 0 | W68: =IF(AND($J68="N/A", $K68="Child"), 0, SUMIFS('Scoring Matrix'!K:K, 'Scoring Matrix'!A:A, "="&Questionnaire!$C68, 'Scoring Matrix'!F:F, "="&Questionnaire!F68)) -> 0 | Y68: =IF(O68, "", IF(VLOOKUP(C68,'Scoring Matrix'!$A$2:W400,13,FALSE)=1,"N/A", "Yes")) -> Yes | Z68: =IF(O68, "", VLOOKUP(C68, 'Scoring Matrix'!A:D, 3, FALSE)) -> Security | AA68: =IF(O68, "", VLOOKUP(C68, 'Scoring Matrix'!A:D, 4, FALSE)) -> Data
D69: Regulations | E69: =E70+E80+E89 -> 1 | I69: =IF(ISERROR(SEARCH("*Confirm*", G69)), IF(L69<>1, "Unanswered", "Answered"), "Needs Confirmed") -> Unanswered | J69: =IF(OR(AND(F69="No", K69="Parent"),AND(F69="unknown", K69="Parent")),"N/A", IF(AND(J67="N/A", K69="Child"), "N/A", IF(AND(K69="Parent", F69="Yes"), C69, IF(AND(ISNUMBER(J67), K69="Child"), C69, "")))) ->  | K69: =IF(ISNUMBER(C69), IF(VLOOKUP(C69, 'Scoring Matrix'!A:L, 12, FALSE)="Parent", "Parent", IF(VLOOKUP(C69, 'Scoring Matrix'!A:L, 12, FALSE)="Child", "Child", "")), "") ->  | O69: TRUE | P69: FALSE | Q69: FALSE | S69: =IF(AND($J69="N/A", $K69="Child"), 0, SUMIFS('Scoring Matrix'!G:G, 'Scoring Matrix'!A:A, "="&Questionnaire!$C69, 'Scoring Matrix'!F:F, "="&Questionnaire!F69)) -> 0 | T69: =IF(AND($J69="N/A", $K69="Child"), 0, SUMIFS('Scoring Matrix'!H:H, 'Scoring Matrix'!A:A, "="&Questionnaire!$C69, 'Scoring Matrix'!F:F, "="&Questionnaire!F69)) -> 0 | U69: =IF(AND($J69="N/A", $K69="Child"), 0, SUMIFS('Scoring Matrix'!I:I, 'Scoring Matrix'!A:A, "="&Questionnaire!$C69, 'Scoring Matrix'!F:F, "="&Questionnaire!F69)) -> 0 | V69: =IF(AND($J69="N/A", $K69="Child"), 0, SUMIFS('Scoring Matrix'!J:J, 'Scoring Matrix'!A:A, "="&Questionnaire!$C69, 'Scoring Matrix'!F:F, "="&Questionnaire!F69)) -> 0 | W69: =IF(AND($J69="N/A", $K69="Child"), 0, SUMIFS('Scoring Matrix'!K:K, 'Scoring Matrix'!A:A, "="&Questionnaire!$C69, 'Scoring Matrix'!F:F, "="&Questionnaire!F69)) -> 0 | Y69: =IF(O69, "", IF(VLOOKUP(C69,'Scoring Matrix'!$A$2:W400,13,FALSE)=1,"N/A", "Yes")) ->  | Z69: =IF(O69, "", VLOOKUP(C69, 'Scoring Matrix'!A:D, 3, FALSE)) ->  | AA69: =IF(O69, "", VLOOKUP(C69, 'Scoring Matrix'!A:D, 4, FALSE)) -> 
D70: General | E70: =SUM(E71:E79) -> 0.4 | I70: =IF(ISERROR(SEARCH("*Confirm*", G70)), IF(L70<>1, "Unanswered", "Answered"), "Needs Confirmed") -> Unanswered | K70: =IF(ISNUMBER(C70), IF(VLOOKUP(C70, 'Scoring Matrix'!A:L, 12, FALSE)="Parent", "Parent", IF(VLOOKUP(C70, 'Scoring Matrix'!A:L, 12, FALSE)="Child", "Child", "")), "") ->  | O70: TRUE | P70: FALSE | Q70: FALSE | S70: =IF(AND($J70="N/A", $K70="Child"), 0, SUMIFS('Scoring Matrix'!G:G, 'Scoring Matrix'!A:A, "="&Questionnaire!$C70, 'Scoring Matrix'!F:F, "="&Questionnaire!F70)) -> 0 | T70: =IF(AND($J70="N/A", $K70="Child"), 0, SUMIFS('Scoring Matrix'!H:H, 'Scoring Matrix'!A:A, "="&Questionnaire!$C70, 'Scoring Matrix'!F:F, "="&Questionnaire!F70)) -> 0 | U70: =IF(AND($J70="N/A", $K70="Child"), 0, SUMIFS('Scoring Matrix'!I:I, 'Scoring Matrix'!A:A, "="&Questionnaire!$C70, 'Scoring Matrix'!F:F, "="&Questionnaire!F70)) -> 0 | V70: =IF(AND($J70="N/A", $K70="Child"), 0, SUMIFS('Scoring Matrix'!J:J, 'Scoring Matrix'!A:A, "="&Questionnaire!$C70, 'Scoring Matrix'!F:F, "="&Questionnaire!F70)) -> 0 | W70: =IF(AND($J70="N/A", $K70="Child"), 0, SUMIFS('Scoring Matrix'!K:K, 'Scoring Matrix'!A:A, "="&Questionnaire!$C70, 'Scoring Matrix'!F:F, "="&Questionnaire!F70)) -> 0 | Y70: =IF(O70, "", IF(VLOOKUP(C70,'Scoring Matrix'!$A$2:W400,13,FALSE)=1,"N/A", "Yes")) ->  | Z70: =IF(O70, "", VLOOKUP(C70, 'Scoring Matrix'!A:D, 3, FALSE)) ->  | AA70: =IF(O70, "", VLOOKUP(C70, 'Scoring Matrix'!A:D, 4, FALSE)) -> 
C71: =C68+1 -> 53 | D71: =VLOOKUP(C71, 'Scoring Matrix'!A:B, 2, FALSE) -> Are there laws or regulations that require that certain documents exist in written form. | E71: =IF(VLOOKUP(C71, 'Scoring Matrix'!A:E, 5, FALSE)=0, "", VLOOKUP(C71, 'Scoring Matrix'!A:E, 5, FALSE)) -> 0.05 | G71: =IF(VLOOKUP(C71,'Scoring Matrix'!A:N, 14, FALSE)=0, "", VLOOKUP(C71,'Scoring Matrix'!A:N, 14, FALSE)) -> Unknown | H71: =IF(VLOOKUP(C71,'Scoring Matrix'!A:N, 14, FALSE)=0, "", VLOOKUP(C71,'Scoring Matrix'!A:N, 14, FALSE)) -> Unknown | I71: Unanswered | K71: =IF(ISNUMBER(C71), IF(VLOOKUP(C71, 'Scoring Matrix'!A:L, 12, FALSE)="Parent", "Parent", IF(VLOOKUP(C71, 'Scoring Matrix'!A:L, 12, FALSE)="Child", "Child", "")), "") -> Parent | L71: =IF(OR(AND(K71="child", J71="N/A"), AND(K71="", F71<>""), AND(K71="Parent", J71="N/A")), 1, IF(F71<>"", IF(K73="child", IF(AND(F73<>"", L73<>""), 1, ""), 1), "")) ->  | M71: 0 | O71: FALSE | P71: FALSE | Q71: FALSE | S71: =IF(AND($J71="N/A", $K71="Child"), 0, SUMIFS('Scoring Matrix'!G:G, 'Scoring Matrix'!A:A, "="&Questionnaire!$C71, 'Scoring Matrix'!F:F, "="&Questionnaire!F71)) -> 0 | T71: =IF(AND($J71="N/A", $K71="Child"), 0, SUMIFS('Scoring Matrix'!H:H, 'Scoring Matrix'!A:A, "="&Questionnaire!$C71, 'Scoring Matrix'!F:F, "="&Questionnaire!F71)) -> 0 | U71: =IF(AND($J71="N/A", $K71="Child"), 0, SUMIFS('Scoring Matrix'!I:I, 'Scoring Matrix'!A:A, "="&Questionnaire!$C71, 'Scoring Matrix'!F:F, "="&Questionnaire!F71)) -> 0 | V71: =IF(AND($J71="N/A", $K71="Child"), 0, SUMIFS('Scoring Matrix'!J:J, 'Scoring Matrix'!A:A, "="&Questionnaire!$C71, 'Scoring Matrix'!F:F, "="&Questionnaire!F71)) -> 0 | W71: =IF(AND($J71="N/A", $K71="Child"), 0, SUMIFS('Scoring Matrix'!K:K, 'Scoring Matrix'!A:A, "="&Questionnaire!$C71, 'Scoring Matrix'!F:F, "="&Questionnaire!F71)) -> 0 | Y71: =IF(O71, "", IF(VLOOKUP(C71,'Scoring Matrix'!$A$2:W400,13,FALSE)=1,"N/A", "Yes")) -> Yes | Z71: =IF(O71, "", VLOOKUP(C71, 'Scoring Matrix'!A:D, 3, FALSE)) -> Regulations | AA71: =IF(O71, "", VLOOKUP(C71, 'Scoring Matrix'!A:D, 4, FALSE)) -> General
C72: =C71+1 -> 54 | D72: =VLOOKUP(C72, 'Scoring Matrix'!A:B, 2, FALSE) -> If so, approximately how many processes only exist in paper form? | G72: =IF(VLOOKUP(C72,'Scoring Matrix'!A:N, 14, FALSE)=0, "", VLOOKUP(C72,'Scoring Matrix'!A:N, 14, FALSE)) -> <75% and >=25% | H72: =IF(VLOOKUP(C72,'Scoring Matrix'!A:N, 14, FALSE)=0, "", VLOOKUP(C72,'Scoring Matrix'!A:N, 14, FALSE)) -> <75% and >=25% | I72: =IF(ISERROR(SEARCH("*Confirm*", G72)), IF(L72<>1, "Unanswered", "Answered"), "Needs Confirmed") -> Unanswered | J72: =IF(OR(AND(F72="No", K72="Parent"),AND(F72="unknown", K72="Parent")),"N/A", IF(AND(J71="N/A", K72="Child"), "N/A", IF(AND(K72="Parent", F72="Yes"), C72, IF(AND(ISNUMBER(J71), K72="Child"), C72, "")))) ->  | K72: =IF(ISNUMBER(C72), IF(VLOOKUP(C72, 'Scoring Matrix'!A:L, 12, FALSE)="Parent", "Parent", IF(VLOOKUP(C72, 'Scoring Matrix'!A:L, 12, FALSE)="Child", "Child", "")), "") -> Child | L72: =IF(OR(AND(K72="child", J72="N/A"), AND(K72="", F72<>""), AND(K72="Parent", J72="N/A")), 1, IF(F72<>"", IF(K74="child", IF(AND(F74<>"", L74<>""), 1, ""), 1), "")) ->  | M72: =IF(ISBLANK(C72), "", IF(ISBLANK(F72),0,E72)) -> 0 | O72: =ISBLANK(C72) -> FALSE | P72: =AND(J72="N/A", K72="Child") -> FALSE | Q72: =IF(K72="Child",IF(AND(F72="",ISNUMBER(J72)), TRUE, FALSE)) -> FALSE | S72: =IF(AND($J72="N/A", $K72="Child"), 0, SUMIFS('Scoring Matrix'!G:G, 'Scoring Matrix'!A:A, "="&Questionnaire!$C72, 'Scoring Matrix'!F:F, "="&Questionnaire!F72)) -> 0 | T72: =IF(AND($J72="N/A", $K72="Child"), 0, SUMIFS('Scoring Matrix'!H:H, 'Scoring Matrix'!A:A, "="&Questionnaire!$C72, 'Scoring Matrix'!F:F, "="&Questionnaire!F72)) -> 0 | U72: =IF(AND($J72="N/A", $K72="Child"), 0, SUMIFS('Scoring Matrix'!I:I, 'Scoring Matrix'!A:A, "="&Questionnaire!$C72, 'Scoring Matrix'!F:F, "="&Questionnaire!F72)) -> 0 | V72: =IF(AND($J72="N/A", $K72="Child"), 0, SUMIFS('Scoring Matrix'!J:J, 'Scoring Matrix'!A:A, "="&Questionnaire!$C72, 'Scoring Matrix'!F:F, "="&Questionnaire!F72)) -> 0 | W72: =IF(AND($J72="N/A", $K72="Child"), 0, SUMIFS('Scoring Matrix'!K:K, 'Scoring Matrix'!A:A, "="&Questionnaire!$C72, 'Scoring Matrix'!F:F, "="&Questionnaire!F72)) -> 0 | Y72: =IF(O72, "", IF(VLOOKUP(C72,'Scoring Matrix'!$A$2:W400,13,FALSE)=1,"N/A", "Yes")) -> Yes | Z72: =IF(O72, "", VLOOKUP(C72, 'Scoring Matrix'!A:D, 3, FALSE)) -> Regulations | AA72: =IF(O72, "", VLOOKUP(C72, 'Scoring Matrix'!A:D, 4, FALSE)) -> General
C73: =C72+1 -> 55 | D73: =VLOOKUP(C73, 'Scoring Matrix'!A:B, 2, FALSE) -> Are there laws or policies that strongly discourage or prevent the government from contracting with foreign companies? | E73: =IF(VLOOKUP(C73, 'Scoring Matrix'!A:E, 5, FALSE)=0, "", VLOOKUP(C73, 'Scoring Matrix'!A:E, 5, FALSE)) -> 0.05 | G73: =IF(VLOOKUP(C73,'Scoring Matrix'!A:N, 14, FALSE)=0, "", VLOOKUP(C73,'Scoring Matrix'!A:N, 14, FALSE)) -> Unknown | H73: =IF(VLOOKUP(C73,'Scoring Matrix'!A:N, 14, FALSE)=0, "", VLOOKUP(C73,'Scoring Matrix'!A:N, 14, FALSE)) -> Unknown | I73: Unanswered | J73: =IF(OR(AND(F73="No", K73="Parent"),AND(F73="unknown", K73="Parent")),"N/A", IF(AND(J71="N/A", K73="Child"), "N/A", IF(AND(K73="Parent", F73="Yes"), C73, IF(AND(ISNUMBER(J71), K73="Child"), C73, "")))) ->  | K73: =IF(ISNUMBER(C73), IF(VLOOKUP(C73, 'Scoring Matrix'!A:L, 12, FALSE)="Parent", "Parent", IF(VLOOKUP(C73, 'Scoring Matrix'!A:L, 12, FALSE)="Child", "Child", "")), "") ->  | M73: 0 | O73: FALSE | P73: FALSE | Q73: FALSE | S73: =IF(AND($J73="N/A", $K73="Child"), 0, SUMIFS('Scoring Matrix'!G:G, 'Scoring Matrix'!A:A, "="&Questionnaire!$C73, 'Scoring Matrix'!F:F, "="&Questionnaire!F73)) -> 0 | T73: =IF(AND($J73="N/A", $K73="Child"), 0, SUMIFS('Scoring Matrix'!H:H, 'Scoring Matrix'!A:A, "="&Questionnaire!$C73, 'Scoring Matrix'!F:F, "="&Questionnaire!F73)) -> 0 | U73: =IF(AND($J73="N/A", $K73="Child"), 0, SUMIFS('Scoring Matrix'!I:I, 'Scoring Matrix'!A:A, "="&Questionnaire!$C73, 'Scoring Matrix'!F:F, "="&Questionnaire!F73)) -> 0 | V73: =IF(AND($J73="N/A", $K73="Child"), 0, SUMIFS('Scoring Matrix'!J:J, 'Scoring Matrix'!A:A, "="&Questionnaire!$C73, 'Scoring Matrix'!F:F, "="&Questionnaire!F73)) -> 0 | W73: =IF(AND($J73="N/A", $K73="Child"), 0, SUMIFS('Scoring Matrix'!K:K, 'Scoring Matrix'!A:A, "="&Questionnaire!$C73, 'Scoring Matrix'!F:F, "="&Questionnaire!F73)) -> 0 | Y73: =IF(O73, "", IF(VLOOKUP(C73,'Scoring Matrix'!$A$2:W400,13,FALSE)=1,"N/A", "Yes")) -> Yes | Z73: =IF(O73, "", VLOOKUP(C73, 'Scoring Matrix'!A:D, 3, FALSE)) -> Regulations | AA73: =IF(O73, "", VLOOKUP(C73, 'Scoring Matrix'!A:D, 4, FALSE)) -> General
C74: =C73+1 -> 56 | D74: =VLOOKUP(C74, 'Scoring Matrix'!A:B, 2, FALSE) -> Are there laws or policies restricting the employment of foreign citizens by government vendors or contractors? | E74: =IF(VLOOKUP(C74, 'Scoring Matrix'!A:E, 5, FALSE)=0, "", VLOOKUP(C74, 'Scoring Matrix'!A:E, 5, FALSE)) -> 0.05 | G74: =IF(VLOOKUP(C74,'Scoring Matrix'!A:N, 14, FALSE)=0, "", VLOOKUP(C74,'Scoring Matrix'!A:N, 14, FALSE)) -> No | H74: =IF(VLOOKUP(C74,'Scoring Matrix'!A:N, 14, FALSE)=0, "", VLOOKUP(C74,'Scoring Matrix'!A:N, 14, FALSE)) -> No | I74: Unanswered | K74: =IF(ISNUMBER(C74), IF(VLOOKUP(C74, 'Scoring Matrix'!A:L, 12, FALSE)="Parent", "Parent", IF(VLOOKUP(C74, 'Scoring Matrix'!A:L, 12, FALSE)="Child", "Child", "")), "") ->  | M74: 0 | O74: FALSE | P74: FALSE | Q74: FALSE | S74: =IF(AND($J74="N/A", $K74="Child"), 0, SUMIFS('Scoring Matrix'!G:G, 'Scoring Matrix'!A:A, "="&Questionnaire!$C74, 'Scoring Matrix'!F:F, "="&Questionnaire!F74)) -> 0 | T74: =IF(AND($J74="N/A", $K74="Child"), 0, SUMIFS('Scoring Matrix'!H:H, 'Scoring Matrix'!A:A, "="&Questionnaire!$C74, 'Scoring Matrix'!F:F, "="&Questionnaire!F74)) -> 0 | U74: =IF(AND($J74="N/A", $K74="Child"), 0, SUMIFS('Scoring Matrix'!I:I, 'Scoring Matrix'!A:A, "="&Questionnaire!$C74, 'Scoring Matrix'!F:F, "="&Questionnaire!F74)) -> 0 | V74: =IF(AND($J74="N/A", $K74="Child"), 0, SUMIFS('Scoring Matrix'!J:J, 'Scoring Matrix'!A:A, "="&Questionnaire!$C74, 'Scoring Matrix'!F:F, "="&Questionnaire!F74)) -> 0 | W74: =IF(AND($J74="N/A", $K74="Child"), 0, SUMIFS('Scoring Matrix'!K:K, 'Scoring Matrix'!A:A, "="&Questionnaire!$C74, 'Scoring Matrix'!F:F, "="&Questionnaire!F74)) -> 0 | Y74: =IF(O74, "", IF(VLOOKUP(C74,'Scoring Matrix'!$A$2:W400,13,FALSE)=1,"N/A", "Yes")) -> Yes | Z74: =IF(O74, "", VLOOKUP(C74, 'Scoring Matrix'!A:D, 3, FALSE)) -> Regulations | AA74: =IF(O74, "", VLOOKUP(C74, 'Scoring Matrix'!A:D, 4, FALSE)) -> General
C75: 57 | D75: =VLOOKUP(C75, 'Scoring Matrix'!A:B, 2, FALSE) -> Are there laws or policies that impact the government's ability to hire resources based on nationality? | E75: =IF(VLOOKUP(C75, 'Scoring Matrix'!A:E, 5, FALSE)=0, "", VLOOKUP(C75, 'Scoring Matrix'!A:E, 5, FALSE)) -> 0.05 | G75: =IF(VLOOKUP(C75,'Scoring Matrix'!A:N, 14, FALSE)=0, "", VLOOKUP(C75,'Scoring Matrix'!A:N, 14, FALSE)) -> No | H75: =IF(VLOOKUP(C75,'Scoring Matrix'!A:N, 14, FALSE)=0, "", VLOOKUP(C75,'Scoring Matrix'!A:N, 14, FALSE)) -> No | I75: Unanswered | K75: =IF(ISNUMBER(C75), IF(VLOOKUP(C75, 'Scoring Matrix'!A:L, 12, FALSE)="Parent", "Parent", IF(VLOOKUP(C75, 'Scoring Matrix'!A:L, 12, FALSE)="Child", "Child", "")), "") ->  | M75: 0 | O75: FALSE | P75: FALSE | Q75: FALSE | S75: =IF(AND($J75="N/A", $K75="Child"), 0, SUMIFS('Scoring Matrix'!G:G, 'Scoring Matrix'!A:A, "="&Questionnaire!$C75, 'Scoring Matrix'!F:F, "="&Questionnaire!F75)) -> 0 | T75: =IF(AND($J75="N/A", $K75="Child"), 0, SUMIFS('Scoring Matrix'!H:H, 'Scoring Matrix'!A:A, "="&Questionnaire!$C75, 'Scoring Matrix'!F:F, "="&Questionnaire!F75)) -> 0 | U75: =IF(AND($J75="N/A", $K75="Child"), 0, SUMIFS('Scoring Matrix'!I:I, 'Scoring Matrix'!A:A, "="&Questionnaire!$C75, 'Scoring Matrix'!F:F, "="&Questionnaire!F75)) -> 0 | V75: =IF(AND($J75="N/A", $K75="Child"), 0, SUMIFS('Scoring Matrix'!J:J, 'Scoring Matrix'!A:A, "="&Questionnaire!$C75, 'Scoring Matrix'!F:F, "="&Questionnaire!F75)) -> 0 | W75: =IF(AND($J75="N/A", $K75="Child"), 0, SUMIFS('Scoring Matrix'!K:K, 'Scoring Matrix'!A:A, "="&Questionnaire!$C75, 'Scoring Matrix'!F:F, "="&Questionnaire!F75)) -> 0 | Y75: =IF(O75, "", IF(VLOOKUP(C75,'Scoring Matrix'!$A$2:W400,13,FALSE)=1,"N/A", "Yes")) -> Yes | Z75: =IF(O75, "", VLOOKUP(C75, 'Scoring Matrix'!A:D, 3, FALSE)) -> Regulations | AA75: =IF(O75, "", VLOOKUP(C75, 'Scoring Matrix'!A:D, 4, FALSE)) -> General
C76: 58 | D76: =VLOOKUP(C76, 'Scoring Matrix'!A:B, 2, FALSE) -> Are there any laws or policies that require the government to use specific products? | E76: =IF(VLOOKUP(C76, 'Scoring Matrix'!A:E, 5, FALSE)=0, "", VLOOKUP(C76, 'Scoring Matrix'!A:E, 5, FALSE)) -> 0.05 | G76: =IF(VLOOKUP(C76,'Scoring Matrix'!A:N, 14, FALSE)=0, "", VLOOKUP(C76,'Scoring Matrix'!A:N, 14, FALSE)) -> Yes | H76: =IF(VLOOKUP(C76,'Scoring Matrix'!A:N, 14, FALSE)=0, "", VLOOKUP(C76,'Scoring Matrix'!A:N, 14, FALSE)) -> Yes | I76: Unanswered | K76: =IF(ISNUMBER(C76), IF(VLOOKUP(C76, 'Scoring Matrix'!A:L, 12, FALSE)="Parent", "Parent", IF(VLOOKUP(C76, 'Scoring Matrix'!A:L, 12, FALSE)="Child", "Child", "")), "") ->  | M76: 0 | O76: FALSE | P76: FALSE | Q76: FALSE | S76: =IF(AND($J76="N/A", $K76="Child"), 0, SUMIFS('Scoring Matrix'!G:G, 'Scoring Matrix'!A:A, "="&Questionnaire!$C76, 'Scoring Matrix'!F:F, "="&Questionnaire!F76)) -> 0 | T76: =IF(AND($J76="N/A", $K76="Child"), 0, SUMIFS('Scoring Matrix'!H:H, 'Scoring Matrix'!A:A, "="&Questionnaire!$C76, 'Scoring Matrix'!F:F, "="&Questionnaire!F76)) -> 0 | U76: =IF(AND($J76="N/A", $K76="Child"), 0, SUMIFS('Scoring Matrix'!I:I, 'Scoring Matrix'!A:A, "="&Questionnaire!$C76, 'Scoring Matrix'!F:F, "="&Questionnaire!F76)) -> 0 | V76: =IF(AND($J76="N/A", $K76="Child"), 0, SUMIFS('Scoring Matrix'!J:J, 'Scoring Matrix'!A:A, "="&Questionnaire!$C76, 'Scoring Matrix'!F:F, "="&Questionnaire!F76)) -> 0 | W76: =IF(AND($J76="N/A", $K76="Child"), 0, SUMIFS('Scoring Matrix'!K:K, 'Scoring Matrix'!A:A, "="&Questionnaire!$C76, 'Scoring Matrix'!F:F, "="&Questionnaire!F76)) -> 0 | Y76: =IF(O76, "", IF(VLOOKUP(C76,'Scoring Matrix'!$A$2:W400,13,FALSE)=1,"N/A", "Yes")) -> Yes | Z76: =IF(O76, "", VLOOKUP(C76, 'Scoring Matrix'!A:D, 3, FALSE)) -> Regulations | AA76: =IF(O76, "", VLOOKUP(C76, 'Scoring Matrix'!A:D, 4, FALSE)) -> General
C77: 59 | D77: =VLOOKUP(C77, 'Scoring Matrix'!A:B, 2, FALSE) -> Are there any laws or policies that require government contractors or vendors to use specific products? | E77: =IF(VLOOKUP(C77, 'Scoring Matrix'!A:E, 5, FALSE)=0, "", VLOOKUP(C77, 'Scoring Matrix'!A:E, 5, FALSE)) -> 0.05 | G77: =IF(VLOOKUP(C77,'Scoring Matrix'!A:N, 14, FALSE)=0, "", VLOOKUP(C77,'Scoring Matrix'!A:N, 14, FALSE)) -> No | H77: =IF(VLOOKUP(C77,'Scoring Matrix'!A:N, 14, FALSE)=0, "", VLOOKUP(C77,'Scoring Matrix'!A:N, 14, FALSE)) -> No | I77: Unanswered | K77: =IF(ISNUMBER(C77), IF(VLOOKUP(C77, 'Scoring Matrix'!A:L, 12, FALSE)="Parent", "Parent", IF(VLOOKUP(C77, 'Scoring Matrix'!A:L, 12, FALSE)="Child", "Child", "")), "") ->  | M77: 0 | O77: FALSE | P77: FALSE | Q77: FALSE | S77: =IF(AND($J77="N/A", $K77="Child"), 0, SUMIFS('Scoring Matrix'!G:G, 'Scoring Matrix'!A:A, "="&Questionnaire!$C77, 'Scoring Matrix'!F:F, "="&Questionnaire!F77)) -> 0 | T77: =IF(AND($J77="N/A", $K77="Child"), 0, SUMIFS('Scoring Matrix'!H:H, 'Scoring Matrix'!A:A, "="&Questionnaire!$C77, 'Scoring Matrix'!F:F, "="&Questionnaire!F77)) -> 0 | U77: =IF(AND($J77="N/A", $K77="Child"), 0, SUMIFS('Scoring Matrix'!I:I, 'Scoring Matrix'!A:A, "="&Questionnaire!$C77, 'Scoring Matrix'!F:F, "="&Questionnaire!F77)) -> 0 | V77: =IF(AND($J77="N/A", $K77="Child"), 0, SUMIFS('Scoring Matrix'!J:J, 'Scoring Matrix'!A:A, "="&Questionnaire!$C77, 'Scoring Matrix'!F:F, "="&Questionnaire!F77)) -> 0 | W77: =IF(AND($J77="N/A", $K77="Child"), 0, SUMIFS('Scoring Matrix'!K:K, 'Scoring Matrix'!A:A, "="&Questionnaire!$C77, 'Scoring Matrix'!F:F, "="&Questionnaire!F77)) -> 0 | Y77: =IF(O77, "", IF(VLOOKUP(C77,'Scoring Matrix'!$A$2:W400,13,FALSE)=1,"N/A", "Yes")) -> Yes | Z77: =IF(O77, "", VLOOKUP(C77, 'Scoring Matrix'!A:D, 3, FALSE)) -> Regulations | AA77: =IF(O77, "", VLOOKUP(C77, 'Scoring Matrix'!A:D, 4, FALSE)) -> General
C78: 60 | D78: =VLOOKUP(C78, 'Scoring Matrix'!A:B, 2, FALSE) -> Does your country have a law to allow access/freedom of information requests? | E78: =IF(VLOOKUP(C78, 'Scoring Matrix'!A:E, 5, FALSE)=0, "", VLOOKUP(C78, 'Scoring Matrix'!A:E, 5, FALSE)) -> 0.05 | G78: =IF(VLOOKUP(C78,'Scoring Matrix'!A:N, 14, FALSE)=0, "", VLOOKUP(C78,'Scoring Matrix'!A:N, 14, FALSE)) -> Yes | H78: =IF(VLOOKUP(C78,'Scoring Matrix'!A:N, 14, FALSE)=0, "", VLOOKUP(C78,'Scoring Matrix'!A:N, 14, FALSE)) -> Yes | I78: Unanswered | J78: =IF(OR(AND(F78="No", K78="Parent"),AND(F78="unknown", K78="Parent")),"N/A", IF(AND(J77="N/A", K78="Child"), "N/A", IF(AND(K78="Parent", F78="Yes"), C78, IF(AND(ISNUMBER(J77), K78="Child"), C78, "")))) ->  | K78: =IF(ISNUMBER(C78), IF(VLOOKUP(C78, 'Scoring Matrix'!A:L, 12, FALSE)="Parent", "Parent", IF(VLOOKUP(C78, 'Scoring Matrix'!A:L, 12, FALSE)="Child", "Child", "")), "") ->  | L78: =IF(OR(AND(K78="child", J78="N/A"), AND(K78="", F78<>""), AND(K78="Parent", J78="N/A")), 1, IF(F78<>"", IF(K79="child", IF(AND(F79<>"", L79<>""), 1, ""), 1), "")) ->  | M78: =IF(ISBLANK(C78), "", IF(ISBLANK(F78),0,E78)) -> 0 | O78: =ISBLANK(C78) -> FALSE | P78: =AND(J78="N/A", K78="Child") -> FALSE | Q78: =IF(K78="Child",IF(AND(F78="",ISNUMBER(J78)), TRUE, FALSE)) -> FALSE | S78: =IF(AND($J78="N/A", $K78="Child"), 0, SUMIFS('Scoring Matrix'!G:G, 'Scoring Matrix'!A:A, "="&Questionnaire!$C78, 'Scoring Matrix'!F:F, "="&Questionnaire!F78)) -> 0 | T78: =IF(AND($J78="N/A", $K78="Child"), 0, SUMIFS('Scoring Matrix'!H:H, 'Scoring Matrix'!A:A, "="&Questionnaire!$C78, 'Scoring Matrix'!F:F, "="&Questionnaire!F78)) -> 0 | U78: =IF(AND($J78="N/A", $K78="Child"), 0, SUMIFS('Scoring Matrix'!I:I, 'Scoring Matrix'!A:A, "="&Questionnaire!$C78, 'Scoring Matrix'!F:F, "="&Questionnaire!F78)) -> 0 | V78: =IF(AND($J78="N/A", $K78="Child"), 0, SUMIFS('Scoring Matrix'!J:J, 'Scoring Matrix'!A:A, "="&Questionnaire!$C78, 'Scoring Matrix'!F:F, "="&Questionnaire!F78)) -> 0 | W78: =IF(AND($J78="N/A", $K78="Child"), 0, SUMIFS('Scoring Matrix'!K:K, 'Scoring Matrix'!A:A, "="&Questionnaire!$C78, 'Scoring Matrix'!F:F, "="&Questionnaire!F78)) -> 0 | Y78: =IF(O78, "", IF(VLOOKUP(C78,'Scoring Matrix'!$A$2:W400,13,FALSE)=1,"N/A", "Yes")) -> Yes | Z78: =IF(O78, "", VLOOKUP(C78, 'Scoring Matrix'!A:D, 3, FALSE)) -> Regulations | AA78: =IF(O78, "", VLOOKUP(C78, 'Scoring Matrix'!A:D, 4, FALSE)) -> General
C79: 61 | D79: =VLOOKUP(C79, 'Scoring Matrix'!A:B, 2, FALSE) -> Are there tariffs or similar fees imposed only when downloading applications or digital data from foreign cloud service providers? | E79: =IF(VLOOKUP(C79, 'Scoring Matrix'!A:E, 5, FALSE)=0, "", VLOOKUP(C79, 'Scoring Matrix'!A:E, 5, FALSE)) -> 0.05 | G79: =IF(VLOOKUP(C79,'Scoring Matrix'!A:N, 14, FALSE)=0, "", VLOOKUP(C79,'Scoring Matrix'!A:N, 14, FALSE)) -> Yes | H79: =IF(VLOOKUP(C79,'Scoring Matrix'!A:N, 14, FALSE)=0, "", VLOOKUP(C79,'Scoring Matrix'!A:N, 14, FALSE)) -> Yes | I79: Unanswered | J79: =IF(OR(AND(F79="No", K79="Parent"),AND(F79="unknown", K79="Parent")),"N/A", IF(AND(J78="N/A", K79="Child"), "N/A", IF(AND(K79="Parent", F79="Yes"), C79, IF(AND(ISNUMBER(J78), K79="Child"), C79, "")))) ->  | K79: =IF(ISNUMBER(C79), IF(VLOOKUP(C79, 'Scoring Matrix'!A:L, 12, FALSE)="Parent", "Parent", IF(VLOOKUP(C79, 'Scoring Matrix'!A:L, 12, FALSE)="Child", "Child", "")), "") ->  | L79: =IF(OR(AND(K79="child", J79="N/A"), AND(K79="", F79<>""), AND(K79="Parent", J79="N/A")), 1, IF(F79<>"", IF(K80="child", IF(AND(F80<>"", L80<>""), 1, ""), 1), "")) ->  | M79: =IF(ISBLANK(C79), "", IF(ISBLANK(F79),0,E79)) -> 0 | O79: =ISBLANK(C79) -> FALSE | P79: =AND(J79="N/A", K79="Child") -> FALSE | Q79: =IF(K79="Child",IF(AND(F79="",ISNUMBER(J79)), TRUE, FALSE)) -> FALSE | S79: =IF(AND($J79="N/A", $K79="Child"), 0, SUMIFS('Scoring Matrix'!G:G, 'Scoring Matrix'!A:A, "="&Questionnaire!$C79, 'Scoring Matrix'!F:F, "="&Questionnaire!F79)) -> 0 | T79: =IF(AND($J79="N/A", $K79="Child"), 0, SUMIFS('Scoring Matrix'!H:H, 'Scoring Matrix'!A:A, "="&Questionnaire!$C79, 'Scoring Matrix'!F:F, "="&Questionnaire!F79)) -> 0 | U79: =IF(AND($J79="N/A", $K79="Child"), 0, SUMIFS('Scoring Matrix'!I:I, 'Scoring Matrix'!A:A, "="&Questionnaire!$C79, 'Scoring Matrix'!F:F, "="&Questionnaire!F79)) -> 0 | V79: =IF(AND($J79="N/A", $K79="Child"), 0, SUMIFS('Scoring Matrix'!J:J, 'Scoring Matrix'!A:A, "="&Questionnaire!$C79, 'Scoring Matrix'!F:F, "="&Questionnaire!F79)) -> 0 | W79: =IF(AND($J79="N/A", $K79="Child"), 0, SUMIFS('Scoring Matrix'!K:K, 'Scoring Matrix'!A:A, "="&Questionnaire!$C79, 'Scoring Matrix'!F:F, "="&Questionnaire!F79)) -> 0 | Y79: =IF(O79, "", IF(VLOOKUP(C79,'Scoring Matrix'!$A$2:W400,13,FALSE)=1,"N/A", "Yes")) -> Yes | Z79: =IF(O79, "", VLOOKUP(C79, 'Scoring Matrix'!A:D, 3, FALSE)) -> Regulations | AA79: =IF(O79, "", VLOOKUP(C79, 'Scoring Matrix'!A:D, 4, FALSE)) -> General
D80: Cybercrime | E80: =SUM(E81:E88) -> 0.3 | I80: =IF(ISERROR(SEARCH("*Confirm*", G80)), IF(L80<>1, "Unanswered", "Answered"), "Needs Confirmed") -> Unanswered | K80: =IF(ISNUMBER(C80), IF(VLOOKUP(C80, 'Scoring Matrix'!A:L, 12, FALSE)="Parent", "Parent", IF(VLOOKUP(C80, 'Scoring Matrix'!A:L, 12, FALSE)="Child", "Child", "")), "") ->  | O80: TRUE | P80: FALSE | Q80: FALSE | S80: =IF(AND($J80="N/A", $K80="Child"), 0, SUMIFS('Scoring Matrix'!G:G, 'Scoring Matrix'!A:A, "="&Questionnaire!$C80, 'Scoring Matrix'!F:F, "="&Questionnaire!F80)) -> 0 | T80: =IF(AND($J80="N/A", $K80="Child"), 0, SUMIFS('Scoring Matrix'!H:H, 'Scoring Matrix'!A:A, "="&Questionnaire!$C80, 'Scoring Matrix'!F:F, "="&Questionnaire!F80)) -> 0 | U80: =IF(AND($J80="N/A", $K80="Child"), 0, SUMIFS('Scoring Matrix'!I:I, 'Scoring Matrix'!A:A, "="&Questionnaire!$C80, 'Scoring Matrix'!F:F, "="&Questionnaire!F80)) -> 0 | V80: =IF(AND($J80="N/A", $K80="Child"), 0, SUMIFS('Scoring Matrix'!J:J, 'Scoring Matrix'!A:A, "="&Questionnaire!$C80, 'Scoring Matrix'!F:F, "="&Questionnaire!F80)) -> 0 | W80: =IF(AND($J80="N/A", $K80="Child"), 0, SUMIFS('Scoring Matrix'!K:K, 'Scoring Matrix'!A:A, "="&Questionnaire!$C80, 'Scoring Matrix'!F:F, "="&Questionnaire!F80)) -> 0 | Y80: =IF(O80, "", IF(VLOOKUP(C80,'Scoring Matrix'!$A$2:W400,13,FALSE)=1,"N/A", "Yes")) ->  | Z80: =IF(O80, "", VLOOKUP(C80, 'Scoring Matrix'!A:D, 3, FALSE)) ->  | AA80: =IF(O80, "", VLOOKUP(C80, 'Scoring Matrix'!A:D, 4, FALSE)) -> 
C81: =C79+1 -> 62 | D81: =VLOOKUP(C81, 'Scoring Matrix'!A:B, 2, FALSE) -> Are there cybercrime laws in place? | E81: =IF(VLOOKUP(C81, 'Scoring Matrix'!A:E, 5, FALSE)=0, "", VLOOKUP(C81, 'Scoring Matrix'!A:E, 5, FALSE)) -> 0.05 | G81: =IF(VLOOKUP(C81,'Scoring Matrix'!A:N, 14, FALSE)=0, "", VLOOKUP(C81,'Scoring Matrix'!A:N, 14, FALSE)) -> No | H81: =IF(VLOOKUP(C81,'Scoring Matrix'!A:N, 14, FALSE)=0, "", VLOOKUP(C81,'Scoring Matrix'!A:N, 14, FALSE)) -> No | I81: Unanswered | K81: =IF(ISNUMBER(C81), IF(VLOOKUP(C81, 'Scoring Matrix'!A:L, 12, FALSE)="Parent", "Parent", IF(VLOOKUP(C81, 'Scoring Matrix'!A:L, 12, FALSE)="Child", "Child", "")), "") ->  | M81: 0 | O81: FALSE | P81: FALSE | Q81: FALSE | S81: =IF(AND($J81="N/A", $K81="Child"), 0, SUMIFS('Scoring Matrix'!G:G, 'Scoring Matrix'!A:A, "="&Questionnaire!$C81, 'Scoring Matrix'!F:F, "="&Questionnaire!F81)) -> 0 | T81: =IF(AND($J81="N/A", $K81="Child"), 0, SUMIFS('Scoring Matrix'!H:H, 'Scoring Matrix'!A:A, "="&Questionnaire!$C81, 'Scoring Matrix'!F:F, "="&Questionnaire!F81)) -> 0 | U81: =IF(AND($J81="N/A", $K81="Child"), 0, SUMIFS('Scoring Matrix'!I:I, 'Scoring Matrix'!A:A, "="&Questionnaire!$C81, 'Scoring Matrix'!F:F, "="&Questionnaire!F81)) -> 0 | V81: =IF(AND($J81="N/A", $K81="Child"), 0, SUMIFS('Scoring Matrix'!J:J, 'Scoring Matrix'!A:A, "="&Questionnaire!$C81, 'Scoring Matrix'!F:F, "="&Questionnaire!F81)) -> 0 | W81: =IF(AND($J81="N/A", $K81="Child"), 0, SUMIFS('Scoring Matrix'!K:K, 'Scoring Matrix'!A:A, "="&Questionnaire!$C81, 'Scoring Matrix'!F:F, "="&Questionnaire!F81)) -> 0 | Y81: =IF(O81, "", IF(VLOOKUP(C81,'Scoring Matrix'!$A$2:W400,13,FALSE)=1,"N/A", "Yes")) -> Yes | Z81: =IF(O81, "", VLOOKUP(C81, 'Scoring Matrix'!A:D, 3, FALSE)) -> Regulations | AA81: =IF(O81, "", VLOOKUP(C81, 'Scoring Matrix'!A:D, 4, FALSE)) -> Cybercrime
C82: =C81+1 -> 63 | D82: =VLOOKUP(C82, 'Scoring Matrix'!A:B, 2, FALSE) -> Is it a crime to distribute copyrighted or material owned by individuals without their permission on the Internet? For example, distributing songs, photographs, or books without permission from the author. | E82: =IF(VLOOKUP(C82, 'Scoring Matrix'!A:E, 5, FALSE)=0, "", VLOOKUP(C82, 'Scoring Matrix'!A:E, 5, FALSE)) -> 0.05 | G82: =IF(VLOOKUP(C82,'Scoring Matrix'!A:N, 14, FALSE)=0, "", VLOOKUP(C82,'Scoring Matrix'!A:N, 14, FALSE)) -> Yes | H82: =IF(VLOOKUP(C82,'Scoring Matrix'!A:N, 14, FALSE)=0, "", VLOOKUP(C82,'Scoring Matrix'!A:N, 14, FALSE)) -> Yes | I82: Unanswered | K82: =IF(ISNUMBER(C82), IF(VLOOKUP(C82, 'Scoring Matrix'!A:L, 12, FALSE)="Parent", "Parent", IF(VLOOKUP(C82, 'Scoring Matrix'!A:L, 12, FALSE)="Child", "Child", "")), "") ->  | M82: 0 | O82: FALSE | P82: FALSE | Q82: FALSE | S82: =IF(AND($J82="N/A", $K82="Child"), 0, SUMIFS('Scoring Matrix'!G:G, 'Scoring Matrix'!A:A, "="&Questionnaire!$C82, 'Scoring Matrix'!F:F, "="&Questionnaire!F82)) -> 0 | T82: =IF(AND($J82="N/A", $K82="Child"), 0, SUMIFS('Scoring Matrix'!H:H, 'Scoring Matrix'!A:A, "="&Questionnaire!$C82, 'Scoring Matrix'!F:F, "="&Questionnaire!F82)) -> 0 | U82: =IF(AND($J82="N/A", $K82="Child"), 0, SUMIFS('Scoring Matrix'!I:I, 'Scoring Matrix'!A:A, "="&Questionnaire!$C82, 'Scoring Matrix'!F:F, "="&Questionnaire!F82)) -> 0 | V82: =IF(AND($J82="N/A", $K82="Child"), 0, SUMIFS('Scoring Matrix'!J:J, 'Scoring Matrix'!A:A, "="&Questionnaire!$C82, 'Scoring Matrix'!F:F, "="&Questionnaire!F82)) -> 0 | W82: =IF(AND($J82="N/A", $K82="Child"), 0, SUMIFS('Scoring Matrix'!K:K, 'Scoring Matrix'!A:A, "="&Questionnaire!$C82, 'Scoring Matrix'!F:F, "="&Questionnaire!F82)) -> 0 | Y82: =IF(O82, "", IF(VLOOKUP(C82,'Scoring Matrix'!$A$2:W400,13,FALSE)=1,"N/A", "Yes")) -> Yes | Z82: =IF(O82, "", VLOOKUP(C82, 'Scoring Matrix'!A:D, 3, FALSE)) -> Regulations | AA82: =IF(O82, "", VLOOKUP(C82, 'Scoring Matrix'!A:D, 4, FALSE)) -> Cybercrime
C83: 64 | D83: =VLOOKUP(C83, 'Scoring Matrix'!A:B, 2, FALSE) -> Are there laws governing the liability of internet intermediaries for copyrighted materials? | E83: =IF(VLOOKUP(C83, 'Scoring Matrix'!A:E, 5, FALSE)=0, "", VLOOKUP(C83, 'Scoring Matrix'!A:E, 5, FALSE)) -> 0.05 | G83: =IF(VLOOKUP(C83,'Scoring Matrix'!A:N, 14, FALSE)=0, "", VLOOKUP(C83,'Scoring Matrix'!A:N, 14, FALSE)) -> No | H83: =IF(VLOOKUP(C83,'Scoring Matrix'!A:N, 14, FALSE)=0, "", VLOOKUP(C83,'Scoring Matrix'!A:N, 14, FALSE)) -> No | I83: =IF(ISERROR(SEARCH("*Confirm*", G84)), IF(L83<>1, "Unanswered", "Answered"), "Needs Confirmed") -> Unanswered | K83: =IF(ISNUMBER(C83), IF(VLOOKUP(C83, 'Scoring Matrix'!A:L, 12, FALSE)="Parent", "Parent", IF(VLOOKUP(C83, 'Scoring Matrix'!A:L, 12, FALSE)="Child", "Child", "")), "") ->  | M83: 0 | O83: FALSE | P83: FALSE | Q83: FALSE | S83: =IF(AND($J83="N/A", $K83="Child"), 0, SUMIFS('Scoring Matrix'!G:G, 'Scoring Matrix'!A:A, "="&Questionnaire!$C83, 'Scoring Matrix'!F:F, "="&Questionnaire!F83)) -> 0 | T83: =IF(AND($J83="N/A", $K83="Child"), 0, SUMIFS('Scoring Matrix'!H:H, 'Scoring Matrix'!A:A, "="&Questionnaire!$C83, 'Scoring Matrix'!F:F, "="&Questionnaire!F83)) -> 0 | U83: =IF(AND($J83="N/A", $K83="Child"), 0, SUMIFS('Scoring Matrix'!I:I, 'Scoring Matrix'!A:A, "="&Questionnaire!$C83, 'Scoring Matrix'!F:F, "="&Questionnaire!F83)) -> 0 | V83: =IF(AND($J83="N/A", $K83="Child"), 0, SUMIFS('Scoring Matrix'!J:J, 'Scoring Matrix'!A:A, "="&Questionnaire!$C83, 'Scoring Matrix'!F:F, "="&Questionnaire!F83)) -> 0 | W83: =IF(AND($J83="N/A", $K83="Child"), 0, SUMIFS('Scoring Matrix'!K:K, 'Scoring Matrix'!A:A, "="&Questionnaire!$C83, 'Scoring Matrix'!F:F, "="&Questionnaire!F83)) -> 0 | Y83: =IF(O83, "", IF(VLOOKUP(C83,'Scoring Matrix'!$A$2:W400,13,FALSE)=1,"N/A", "Yes")) -> Yes | Z83: =IF(O83, "", VLOOKUP(C83, 'Scoring Matrix'!A:D, 3, FALSE)) -> Regulations | AA83: =IF(O83, "", VLOOKUP(C83, 'Scoring Matrix'!A:D, 4, FALSE)) -> Cybercrime
C84: 65 | D84: =VLOOKUP(C84, 'Scoring Matrix'!A:B, 2, FALSE) -> Do courts order ISPs to take down content once it is proven to be in violation of copyright? | E84: =IF(VLOOKUP(C84, 'Scoring Matrix'!A:E, 5, FALSE)=0, "", VLOOKUP(C84, 'Scoring Matrix'!A:E, 5, FALSE)) -> 0.05 | G84: =IF(VLOOKUP(C84,'Scoring Matrix'!A:N, 14, FALSE)=0, "", VLOOKUP(C84,'Scoring Matrix'!A:N, 14, FALSE)) -> No | H84: =IF(VLOOKUP(C84,'Scoring Matrix'!A:N, 14, FALSE)=0, "", VLOOKUP(C84,'Scoring Matrix'!A:N, 14, FALSE)) -> No | I84: =IF(ISERROR( SEARCH("*Confirm*",#REF!)), IF(L84<>1, "Unanswered", "Answered"), "Needs Confirmed") -> Unanswered | K84: =IF(ISNUMBER(C84), IF(VLOOKUP(C84, 'Scoring Matrix'!A:L, 12, FALSE)="Parent", "Parent", IF(VLOOKUP(C84, 'Scoring Matrix'!A:L, 12, FALSE)="Child", "Child", "")), "") ->  | M84: 0 | O84: FALSE | P84: FALSE | Q84: FALSE | S84: =IF(AND($J84="N/A", $K84="Child"), 0, SUMIFS('Scoring Matrix'!G:G, 'Scoring Matrix'!A:A, "="&Questionnaire!$C84, 'Scoring Matrix'!F:F, "="&Questionnaire!F84)) -> 0 | T84: =IF(AND($J84="N/A", $K84="Child"), 0, SUMIFS('Scoring Matrix'!H:H, 'Scoring Matrix'!A:A, "="&Questionnaire!$C84, 'Scoring Matrix'!F:F, "="&Questionnaire!F84)) -> 0 | U84: =IF(AND($J84="N/A", $K84="Child"), 0, SUMIFS('Scoring Matrix'!I:I, 'Scoring Matrix'!A:A, "="&Questionnaire!$C84, 'Scoring Matrix'!F:F, "="&Questionnaire!F84)) -> 0 | V84: =IF(AND($J84="N/A", $K84="Child"), 0, SUMIFS('Scoring Matrix'!J:J, 'Scoring Matrix'!A:A, "="&Questionnaire!$C84, 'Scoring Matrix'!F:F, "="&Questionnaire!F84)) -> 0 | W84: =IF(AND($J84="N/A", $K84="Child"), 0, SUMIFS('Scoring Matrix'!K:K, 'Scoring Matrix'!A:A, "="&Questionnaire!$C84, 'Scoring Matrix'!F:F, "="&Questionnaire!F84)) -> 0 | Y84: =IF(O84, "", IF(VLOOKUP(C84,'Scoring Matrix'!$A$2:W400,13,FALSE)=1,"N/A", "Yes")) -> Yes | Z84: =IF(O84, "", VLOOKUP(C84, 'Scoring Matrix'!A:D, 3, FALSE)) -> Regulations | AA84: =IF(O84, "", VLOOKUP(C84, 'Scoring Matrix'!A:D, 4, FALSE)) -> Cybercrime
C85: 66 | D85: =VLOOKUP(C85, 'Scoring Matrix'!A:B, 2, FALSE) -> Are Internet Service Providers and content service providers free from censoring? | E85: =IF(VLOOKUP(C85, 'Scoring Matrix'!A:E, 5, FALSE)=0, "", VLOOKUP(C85, 'Scoring Matrix'!A:E, 5, FALSE)) -> 0.05 | G85: =IF(VLOOKUP(C85,'Scoring Matrix'!A:N, 14, FALSE)=0, "", VLOOKUP(C85,'Scoring Matrix'!A:N, 14, FALSE)) -> Unknown | H85: =IF(VLOOKUP(C85,'Scoring Matrix'!A:N, 14, FALSE)=0, "", VLOOKUP(C85,'Scoring Matrix'!A:N, 14, FALSE)) -> Unknown | I85: Unanswered | K85: =IF(ISNUMBER(C85), IF(VLOOKUP(C85, 'Scoring Matrix'!A:L, 12, FALSE)="Parent", "Parent", IF(VLOOKUP(C85, 'Scoring Matrix'!A:L, 12, FALSE)="Child", "Child", "")), "") ->  | M85: 0 | O85: FALSE | P85: FALSE | Q85: FALSE | S85: =IF(AND($J85="N/A", $K85="Child"), 0, SUMIFS('Scoring Matrix'!G:G, 'Scoring Matrix'!A:A, "="&Questionnaire!$C85, 'Scoring Matrix'!F:F, "="&Questionnaire!F85)) -> 0 | T85: =IF(AND($J85="N/A", $K85="Child"), 0, SUMIFS('Scoring Matrix'!H:H, 'Scoring Matrix'!A:A, "="&Questionnaire!$C85, 'Scoring Matrix'!F:F, "="&Questionnaire!F85)) -> 0 | U85: =IF(AND($J85="N/A", $K85="Child"), 0, SUMIFS('Scoring Matrix'!I:I, 'Scoring Matrix'!A:A, "="&Questionnaire!$C85, 'Scoring Matrix'!F:F, "="&Questionnaire!F85)) -> 0 | V85: =IF(AND($J85="N/A", $K85="Child"), 0, SUMIFS('Scoring Matrix'!J:J, 'Scoring Matrix'!A:A, "="&Questionnaire!$C85, 'Scoring Matrix'!F:F, "="&Questionnaire!F85)) -> 0 | W85: =IF(AND($J85="N/A", $K85="Child"), 0, SUMIFS('Scoring Matrix'!K:K, 'Scoring Matrix'!A:A, "="&Questionnaire!$C85, 'Scoring Matrix'!F:F, "="&Questionnaire!F85)) -> 0 | Y85: =IF(O85, "", IF(VLOOKUP(C85,'Scoring Matrix'!$A$2:W400,13,FALSE)=1,"N/A", "Yes")) -> Yes | Z85: =IF(O85, "", VLOOKUP(C85, 'Scoring Matrix'!A:D, 3, FALSE)) -> Regulations | AA85: =IF(O85, "", VLOOKUP(C85, 'Scoring Matrix'!A:D, 4, FALSE)) -> Cybercrime
C86: 67 | D86: =VLOOKUP(C86, 'Scoring Matrix'!A:B, 2, FALSE) -> Is there a law or regulation that gives electronic signatures legal weight? | E86: =IF(VLOOKUP(C86, 'Scoring Matrix'!A:E, 5, FALSE)=0, "", VLOOKUP(C86, 'Scoring Matrix'!A:E, 5, FALSE)) -> 0.05 | G86: =IF(VLOOKUP(C86,'Scoring Matrix'!A:N, 14, FALSE)=0, "", VLOOKUP(C86,'Scoring Matrix'!A:N, 14, FALSE)) -> Yes | H86: =IF(VLOOKUP(C86,'Scoring Matrix'!A:N, 14, FALSE)=0, "", VLOOKUP(C86,'Scoring Matrix'!A:N, 14, FALSE)) -> Yes | I86: Unanswered | K86: =IF(ISNUMBER(C86), IF(VLOOKUP(C86, 'Scoring Matrix'!A:L, 12, FALSE)="Parent", "Parent", IF(VLOOKUP(C86, 'Scoring Matrix'!A:L, 12, FALSE)="Child", "Child", "")), "") -> Parent | M86: 0 | O86: FALSE | P86: FALSE | Q86: FALSE | S86: =IF(AND($J86="N/A", $K86="Child"), 0, SUMIFS('Scoring Matrix'!G:G, 'Scoring Matrix'!A:A, "="&Questionnaire!$C86, 'Scoring Matrix'!F:F, "="&Questionnaire!F86)) -> 0 | T86: =IF(AND($J86="N/A", $K86="Child"), 0, SUMIFS('Scoring Matrix'!H:H, 'Scoring Matrix'!A:A, "="&Questionnaire!$C86, 'Scoring Matrix'!F:F, "="&Questionnaire!F86)) -> 0 | U86: =IF(AND($J86="N/A", $K86="Child"), 0, SUMIFS('Scoring Matrix'!I:I, 'Scoring Matrix'!A:A, "="&Questionnaire!$C86, 'Scoring Matrix'!F:F, "="&Questionnaire!F86)) -> 0 | V86: =IF(AND($J86="N/A", $K86="Child"), 0, SUMIFS('Scoring Matrix'!J:J, 'Scoring Matrix'!A:A, "="&Questionnaire!$C86, 'Scoring Matrix'!F:F, "="&Questionnaire!F86)) -> 0 | W86: =IF(AND($J86="N/A", $K86="Child"), 0, SUMIFS('Scoring Matrix'!K:K, 'Scoring Matrix'!A:A, "="&Questionnaire!$C86, 'Scoring Matrix'!F:F, "="&Questionnaire!F86)) -> 0 | Y86: =IF(O86, "", IF(VLOOKUP(C86,'Scoring Matrix'!$A$2:W400,13,FALSE)=1,"N/A", "Yes")) -> Yes | Z86: =IF(O86, "", VLOOKUP(C86, 'Scoring Matrix'!A:D, 3, FALSE)) -> Regulations | AA86: =IF(O86, "", VLOOKUP(C86, 'Scoring Matrix'!A:D, 4, FALSE)) -> Cybercrime
C87: 68 | D87: =VLOOKUP(C87, 'Scoring Matrix'!A:B, 2, FALSE) -> Is there a process for issuing and tracking digital certificates (i.e. PKI)? | G87: =IF(VLOOKUP(C87,'Scoring Matrix'!A:N, 14, FALSE)=0, "", VLOOKUP(C87,'Scoring Matrix'!A:N, 14, FALSE)) -> Yes | H87: =IF(VLOOKUP(C87,'Scoring Matrix'!A:N, 14, FALSE)=0, "", VLOOKUP(C87,'Scoring Matrix'!A:N, 14, FALSE)) -> Yes | I87: Unanswered | K87: =IF(ISNUMBER(C87), IF(VLOOKUP(C87, 'Scoring Matrix'!A:L, 12, FALSE)="Parent", "Parent", IF(VLOOKUP(C87, 'Scoring Matrix'!A:L, 12, FALSE)="Child", "Child", "")), "") -> Child | M87: 0 | O87: FALSE | P87: FALSE | Q87: FALSE | S87: =IF(AND($J87="N/A", $K87="Child"), 0, SUMIFS('Scoring Matrix'!G:G, 'Scoring Matrix'!A:A, "="&Questionnaire!$C87, 'Scoring Matrix'!F:F, "="&Questionnaire!F87)) -> 0 | T87: =IF(AND($J87="N/A", $K87="Child"), 0, SUMIFS('Scoring Matrix'!H:H, 'Scoring Matrix'!A:A, "="&Questionnaire!$C87, 'Scoring Matrix'!F:F, "="&Questionnaire!F87)) -> 0 | U87: =IF(AND($J87="N/A", $K87="Child"), 0, SUMIFS('Scoring Matrix'!I:I, 'Scoring Matrix'!A:A, "="&Questionnaire!$C87, 'Scoring Matrix'!F:F, "="&Questionnaire!F87)) -> 0 | V87: =IF(AND($J87="N/A", $K87="Child"), 0, SUMIFS('Scoring Matrix'!J:J, 'Scoring Matrix'!A:A, "="&Questionnaire!$C87, 'Scoring Matrix'!F:F, "="&Questionnaire!F87)) -> 0 | W87: =IF(AND($J87="N/A", $K87="Child"), 0, SUMIFS('Scoring Matrix'!K:K, 'Scoring Matrix'!A:A, "="&Questionnaire!$C87, 'Scoring Matrix'!F:F, "="&Questionnaire!F87)) -> 0 | Y87: =IF(O87, "", IF(VLOOKUP(C87,'Scoring Matrix'!$A$2:W400,13,FALSE)=1,"N/A", "Yes")) -> Yes | Z87: =IF(O87, "", VLOOKUP(C87, 'Scoring Matrix'!A:D, 3, FALSE)) -> Regulations | AA87: =IF(O87, "", VLOOKUP(C87, 'Scoring Matrix'!A:D, 4, FALSE)) -> Cybercrime
C88: 69 | D88: =VLOOKUP(C88, 'Scoring Matrix'!A:B, 2, FALSE) -> Are there any existing government applications that use electronic signatures? | G88: =IF(VLOOKUP(C88,'Scoring Matrix'!A:N, 14, FALSE)=0, "", VLOOKUP(C88,'Scoring Matrix'!A:N, 14, FALSE)) -> Unknown | H88: =IF(VLOOKUP(C88,'Scoring Matrix'!A:N, 14, FALSE)=0, "", VLOOKUP(C88,'Scoring Matrix'!A:N, 14, FALSE)) -> Unknown | I88: Unanswered | J88: =IF(OR(AND(F88="No", K88="Parent"),AND(F88="unknown", K88="Parent")),"N/A", IF(AND(J86="N/A", K88="Child"), "N/A", IF(AND(K88="Parent", F88="Yes"), C88, IF(AND(ISNUMBER(J86), K88="Child"), C88, "")))) ->  | K88: =IF(ISNUMBER(C88), IF(VLOOKUP(C88, 'Scoring Matrix'!A:L, 12, FALSE)="Parent", "Parent", IF(VLOOKUP(C88, 'Scoring Matrix'!A:L, 12, FALSE)="Child", "Child", "")), "") -> Child | M88: 0 | O88: FALSE | P88: FALSE | Q88: FALSE | S88: =IF(AND($J88="N/A", $K88="Child"), 0, SUMIFS('Scoring Matrix'!G:G, 'Scoring Matrix'!A:A, "="&Questionnaire!$C88, 'Scoring Matrix'!F:F, "="&Questionnaire!F88)) -> 0 | T88: =IF(AND($J88="N/A", $K88="Child"), 0, SUMIFS('Scoring Matrix'!H:H, 'Scoring Matrix'!A:A, "="&Questionnaire!$C88, 'Scoring Matrix'!F:F, "="&Questionnaire!F88)) -> 0 | U88: =IF(AND($J88="N/A", $K88="Child"), 0, SUMIFS('Scoring Matrix'!I:I, 'Scoring Matrix'!A:A, "="&Questionnaire!$C88, 'Scoring Matrix'!F:F, "="&Questionnaire!F88)) -> 0 | V88: =IF(AND($J88="N/A", $K88="Child"), 0, SUMIFS('Scoring Matrix'!J:J, 'Scoring Matrix'!A:A, "="&Questionnaire!$C88, 'Scoring Matrix'!F:F, "="&Questionnaire!F88)) -> 0 | W88: =IF(AND($J88="N/A", $K88="Child"), 0, SUMIFS('Scoring Matrix'!K:K, 'Scoring Matrix'!A:A, "="&Questionnaire!$C88, 'Scoring Matrix'!F:F, "="&Questionnaire!F88)) -> 0 | Y88: =IF(O88, "", IF(VLOOKUP(C88,'Scoring Matrix'!$A$2:W400,13,FALSE)=1,"N/A", "Yes")) -> Yes | Z88: =IF(O88, "", VLOOKUP(C88, 'Scoring Matrix'!A:D, 3, FALSE)) -> Regulations | AA88: =IF(O88, "", VLOOKUP(C88, 'Scoring Matrix'!A:D, 4, FALSE)) -> Cybercrime
D89: Data Protection | E89: =SUM(E90:E94) -> 0.3 | I89: =IF(ISERROR(SEARCH("*Confirm*", G89)), IF(L89<>1, "Unanswered", "Answered"), "Needs Confirmed") -> Unanswered | K89: =IF(ISNUMBER(C89), IF(VLOOKUP(C89, 'Scoring Matrix'!A:L, 12, FALSE)="Parent", "Parent", IF(VLOOKUP(C89, 'Scoring Matrix'!A:L, 12, FALSE)="Child", "Child", "")), "") ->  | O89: TRUE | P89: FALSE | Q89: FALSE | S89: =IF(AND($J89="N/A", $K89="Child"), 0, SUMIFS('Scoring Matrix'!G:G, 'Scoring Matrix'!A:A, "="&Questionnaire!$C89, 'Scoring Matrix'!F:F, "="&Questionnaire!F89)) -> 0 | T89: =IF(AND($J89="N/A", $K89="Child"), 0, SUMIFS('Scoring Matrix'!H:H, 'Scoring Matrix'!A:A, "="&Questionnaire!$C89, 'Scoring Matrix'!F:F, "="&Questionnaire!F89)) -> 0 | U89: =IF(AND($J89="N/A", $K89="Child"), 0, SUMIFS('Scoring Matrix'!I:I, 'Scoring Matrix'!A:A, "="&Questionnaire!$C89, 'Scoring Matrix'!F:F, "="&Questionnaire!F89)) -> 0 | V89: =IF(AND($J89="N/A", $K89="Child"), 0, SUMIFS('Scoring Matrix'!J:J, 'Scoring Matrix'!A:A, "="&Questionnaire!$C89, 'Scoring Matrix'!F:F, "="&Questionnaire!F89)) -> 0 | W89: =IF(AND($J89="N/A", $K89="Child"), 0, SUMIFS('Scoring Matrix'!K:K, 'Scoring Matrix'!A:A, "="&Questionnaire!$C89, 'Scoring Matrix'!F:F, "="&Questionnaire!F89)) -> 0 | Y89: =IF(O89, "", IF(VLOOKUP(C89,'Scoring Matrix'!$A$2:W400,13,FALSE)=1,"N/A", "Yes")) ->  | Z89: =IF(O89, "", VLOOKUP(C89, 'Scoring Matrix'!A:D, 3, FALSE)) ->  | AA89: =IF(O89, "", VLOOKUP(C89, 'Scoring Matrix'!A:D, 4, FALSE)) -> 
C90: =C88+1 -> 70 | D90: =VLOOKUP(C90, 'Scoring Matrix'!A:B, 2, FALSE) -> Are there privacy laws or laws governing the protection of private digital information? | E90: =IF(VLOOKUP(C90, 'Scoring Matrix'!A:E, 5, FALSE)=0, "", VLOOKUP(C90, 'Scoring Matrix'!A:E, 5, FALSE)) -> 0.1 | G90: =IF(VLOOKUP(C90,'Scoring Matrix'!A:N, 14, FALSE)=0, "", VLOOKUP(C90,'Scoring Matrix'!A:N, 14, FALSE)) -> Yes | H90: =IF(VLOOKUP(C90,'Scoring Matrix'!A:N, 14, FALSE)=0, "", VLOOKUP(C90,'Scoring Matrix'!A:N, 14, FALSE)) -> Yes | I90: Unanswered | K90: =IF(ISNUMBER(C90), IF(VLOOKUP(C90, 'Scoring Matrix'!A:L, 12, FALSE)="Parent", "Parent", IF(VLOOKUP(C90, 'Scoring Matrix'!A:L, 12, FALSE)="Child", "Child", "")), "") ->  | M90: 0 | O90: FALSE | P90: FALSE | Q90: FALSE | S90: =IF(AND($J90="N/A", $K90="Child"), 0, SUMIFS('Scoring Matrix'!G:G, 'Scoring Matrix'!A:A, "="&Questionnaire!$C90, 'Scoring Matrix'!F:F, "="&Questionnaire!F90)) -> 0 | T90: =IF(AND($J90="N/A", $K90="Child"), 0, SUMIFS('Scoring Matrix'!H:H, 'Scoring Matrix'!A:A, "="&Questionnaire!$C90, 'Scoring Matrix'!F:F, "="&Questionnaire!F90)) -> 0 | U90: =IF(AND($J90="N/A", $K90="Child"), 0, SUMIFS('Scoring Matrix'!I:I, 'Scoring Matrix'!A:A, "="&Questionnaire!$C90, 'Scoring Matrix'!F:F, "="&Questionnaire!F90)) -> 0 | V90: =IF(AND($J90="N/A", $K90="Child"), 0, SUMIFS('Scoring Matrix'!J:J, 'Scoring Matrix'!A:A, "="&Questionnaire!$C90, 'Scoring Matrix'!F:F, "="&Questionnaire!F90)) -> 0 | W90: =IF(AND($J90="N/A", $K90="Child"), 0, SUMIFS('Scoring Matrix'!K:K, 'Scoring Matrix'!A:A, "="&Questionnaire!$C90, 'Scoring Matrix'!F:F, "="&Questionnaire!F90)) -> 0 | Y90: =IF(O90, "", IF(VLOOKUP(C90,'Scoring Matrix'!$A$2:W400,13,FALSE)=1,"N/A", "Yes")) -> Yes | Z90: =IF(O90, "", VLOOKUP(C90, 'Scoring Matrix'!A:D, 3, FALSE)) -> Regulations | AA90: =IF(O90, "", VLOOKUP(C90, 'Scoring Matrix'!A:D, 4, FALSE)) -> Data Protection
C91: =C90+1 -> 71 | D91: =VLOOKUP(C91, 'Scoring Matrix'!A:B, 2, FALSE) -> Is there an agency (or regulator) tasked with the enforcement of privacy laws? | E91: =IF(VLOOKUP(C91, 'Scoring Matrix'!A:E, 5, FALSE)=0, "", VLOOKUP(C91, 'Scoring Matrix'!A:E, 5, FALSE)) -> 0.05 | G91: =IF(VLOOKUP(C91,'Scoring Matrix'!A:N, 14, FALSE)=0, "", VLOOKUP(C91,'Scoring Matrix'!A:N, 14, FALSE)) -> Yes | H91: =IF(VLOOKUP(C91,'Scoring Matrix'!A:N, 14, FALSE)=0, "", VLOOKUP(C91,'Scoring Matrix'!A:N, 14, FALSE)) -> Yes | I91: Unanswered | K91: =IF(ISNUMBER(C91), IF(VLOOKUP(C91, 'Scoring Matrix'!A:L, 12, FALSE)="Parent", "Parent", IF(VLOOKUP(C91, 'Scoring Matrix'!A:L, 12, FALSE)="Child", "Child", "")), "") ->  | M91: 0 | O91: FALSE | P91: FALSE | Q91: FALSE | S91: =IF(AND($J91="N/A", $K91="Child"), 0, SUMIFS('Scoring Matrix'!G:G, 'Scoring Matrix'!A:A, "="&Questionnaire!$C91, 'Scoring Matrix'!F:F, "="&Questionnaire!F91)) -> 0 | T91: =IF(AND($J91="N/A", $K91="Child"), 0, SUMIFS('Scoring Matrix'!H:H, 'Scoring Matrix'!A:A, "="&Questionnaire!$C91, 'Scoring Matrix'!F:F, "="&Questionnaire!F91)) -> 0 | U91: =IF(AND($J91="N/A", $K91="Child"), 0, SUMIFS('Scoring Matrix'!I:I, 'Scoring Matrix'!A:A, "="&Questionnaire!$C91, 'Scoring Matrix'!F:F, "="&Questionnaire!F91)) -> 0 | V91: =IF(AND($J91="N/A", $K91="Child"), 0, SUMIFS('Scoring Matrix'!J:J, 'Scoring Matrix'!A:A, "="&Questionnaire!$C91, 'Scoring Matrix'!F:F, "="&Questionnaire!F91)) -> 0 | W91: =IF(AND($J91="N/A", $K91="Child"), 0, SUMIFS('Scoring Matrix'!K:K, 'Scoring Matrix'!A:A, "="&Questionnaire!$C91, 'Scoring Matrix'!F:F, "="&Questionnaire!F91)) -> 0 | Y91: =IF(O91, "", IF(VLOOKUP(C91,'Scoring Matrix'!$A$2:W400,13,FALSE)=1,"N/A", "Yes")) -> Yes | Z91: =IF(O91, "", VLOOKUP(C91, 'Scoring Matrix'!A:D, 3, FALSE)) -> Regulations | AA91: =IF(O91, "", VLOOKUP(C91, 'Scoring Matrix'!A:D, 4, FALSE)) -> Data Protection
C92: 72 | D92: =VLOOKUP(C92, 'Scoring Matrix'!A:B, 2, FALSE) -> Are there laws preventing the collection of an individual's digital information outside the public domain (i.e. emails) without permission outside of criminal investigations? | E92: =IF(VLOOKUP(C92, 'Scoring Matrix'!A:E, 5, FALSE)=0, "", VLOOKUP(C92, 'Scoring Matrix'!A:E, 5, FALSE)) -> 0.05 | G92: =IF(VLOOKUP(C92,'Scoring Matrix'!A:N, 14, FALSE)=0, "", VLOOKUP(C92,'Scoring Matrix'!A:N, 14, FALSE)) -> Unknown | H92: =IF(VLOOKUP(C92,'Scoring Matrix'!A:N, 14, FALSE)=0, "", VLOOKUP(C92,'Scoring Matrix'!A:N, 14, FALSE)) -> Unknown | I92: Unanswered | K92: =IF(ISNUMBER(C92), IF(VLOOKUP(C92, 'Scoring Matrix'!A:L, 12, FALSE)="Parent", "Parent", IF(VLOOKUP(C92, 'Scoring Matrix'!A:L, 12, FALSE)="Child", "Child", "")), "") ->  | M92: 0 | O92: FALSE | P92: FALSE | Q92: FALSE | S92: =IF(AND($J92="N/A", $K92="Child"), 0, SUMIFS('Scoring Matrix'!G:G, 'Scoring Matrix'!A:A, "="&Questionnaire!$C92, 'Scoring Matrix'!F:F, "="&Questionnaire!F92)) -> 0 | T92: =IF(AND($J92="N/A", $K92="Child"), 0, SUMIFS('Scoring Matrix'!H:H, 'Scoring Matrix'!A:A, "="&Questionnaire!$C92, 'Scoring Matrix'!F:F, "="&Questionnaire!F92)) -> 0 | U92: =IF(AND($J92="N/A", $K92="Child"), 0, SUMIFS('Scoring Matrix'!I:I, 'Scoring Matrix'!A:A, "="&Questionnaire!$C92, 'Scoring Matrix'!F:F, "="&Questionnaire!F92)) -> 0 | V92: =IF(AND($J92="N/A", $K92="Child"), 0, SUMIFS('Scoring Matrix'!J:J, 'Scoring Matrix'!A:A, "="&Questionnaire!$C92, 'Scoring Matrix'!F:F, "="&Questionnaire!F92)) -> 0 | W92: =IF(AND($J92="N/A", $K92="Child"), 0, SUMIFS('Scoring Matrix'!K:K, 'Scoring Matrix'!A:A, "="&Questionnaire!$C92, 'Scoring Matrix'!F:F, "="&Questionnaire!F92)) -> 0 | Y92: =IF(O92, "", IF(VLOOKUP(C92,'Scoring Matrix'!$A$2:W400,13,FALSE)=1,"N/A", "Yes")) -> Yes | Z92: =IF(O92, "", VLOOKUP(C92, 'Scoring Matrix'!A:D, 3, FALSE)) -> Regulations | AA92: =IF(O92, "", VLOOKUP(C92, 'Scoring Matrix'!A:D, 4, FALSE)) -> Data Protection
C93: 73 | D93: =VLOOKUP(C93, 'Scoring Matrix'!A:B, 2, FALSE) -> Are there laws preventing the collection of an individual's digital information without oversight, such as a warrant, during a criminal investigation? | E93: =IF(VLOOKUP(C93, 'Scoring Matrix'!A:E, 5, FALSE)=0, "", VLOOKUP(C93, 'Scoring Matrix'!A:E, 5, FALSE)) -> 0.05 | G93: =IF(VLOOKUP(C93,'Scoring Matrix'!A:N, 14, FALSE)=0, "", VLOOKUP(C93,'Scoring Matrix'!A:N, 14, FALSE)) -> No | H93: =IF(VLOOKUP(C93,'Scoring Matrix'!A:N, 14, FALSE)=0, "", VLOOKUP(C93,'Scoring Matrix'!A:N, 14, FALSE)) -> No | I93: Unanswered | K93: =IF(ISNUMBER(C93), IF(VLOOKUP(C93, 'Scoring Matrix'!A:L, 12, FALSE)="Parent", "Parent", IF(VLOOKUP(C93, 'Scoring Matrix'!A:L, 12, FALSE)="Child", "Child", "")), "") ->  | M93: 0 | O93: FALSE | P93: FALSE | Q93: FALSE | S93: =IF(AND($J93="N/A", $K93="Child"), 0, SUMIFS('Scoring Matrix'!G:G, 'Scoring Matrix'!A:A, "="&Questionnaire!$C93, 'Scoring Matrix'!F:F, "="&Questionnaire!F93)) -> 0 | T93: =IF(AND($J93="N/A", $K93="Child"), 0, SUMIFS('Scoring Matrix'!H:H, 'Scoring Matrix'!A:A, "="&Questionnaire!$C93, 'Scoring Matrix'!F:F, "="&Questionnaire!F93)) -> 0 | U93: =IF(AND($J93="N/A", $K93="Child"), 0, SUMIFS('Scoring Matrix'!I:I, 'Scoring Matrix'!A:A, "="&Questionnaire!$C93, 'Scoring Matrix'!F:F, "="&Questionnaire!F93)) -> 0 | V93: =IF(AND($J93="N/A", $K93="Child"), 0, SUMIFS('Scoring Matrix'!J:J, 'Scoring Matrix'!A:A, "="&Questionnaire!$C93, 'Scoring Matrix'!F:F, "="&Questionnaire!F93)) -> 0 | W93: =IF(AND($J93="N/A", $K93="Child"), 0, SUMIFS('Scoring Matrix'!K:K, 'Scoring Matrix'!A:A, "="&Questionnaire!$C93, 'Scoring Matrix'!F:F, "="&Questionnaire!F93)) -> 0 | Y93: =IF(O93, "", IF(VLOOKUP(C93,'Scoring Matrix'!$A$2:W400,13,FALSE)=1,"N/A", "Yes")) -> Yes | Z93: =IF(O93, "", VLOOKUP(C93, 'Scoring Matrix'!A:D, 3, FALSE)) -> Regulations | AA93: =IF(O93, "", VLOOKUP(C93, 'Scoring Matrix'!A:D, 4, FALSE)) -> Data Protection
C94: 74 | D94: =VLOOKUP(C94, 'Scoring Matrix'!A:B, 2, FALSE) -> Is there a breach notification law? These types of laws require that individuals whose data has been compromised be notified in the event of a security incident. | E94: =IF(VLOOKUP(C94, 'Scoring Matrix'!A:E, 5, FALSE)=0, "", VLOOKUP(C94, 'Scoring Matrix'!A:E, 5, FALSE)) -> 0.05 | G94: =IF(VLOOKUP(C94,'Scoring Matrix'!A:N, 14, FALSE)=0, "", VLOOKUP(C94,'Scoring Matrix'!A:N, 14, FALSE)) -> Yes | H94: =IF(VLOOKUP(C94,'Scoring Matrix'!A:N, 14, FALSE)=0, "", VLOOKUP(C94,'Scoring Matrix'!A:N, 14, FALSE)) -> Yes | I94: Unanswered | K94: =IF(ISNUMBER(C94), IF(VLOOKUP(C94, 'Scoring Matrix'!A:L, 12, FALSE)="Parent", "Parent", IF(VLOOKUP(C94, 'Scoring Matrix'!A:L, 12, FALSE)="Child", "Child", "")), "") ->  | M94: 0 | O94: FALSE | P94: FALSE | Q94: FALSE | S94: =IF(AND($J94="N/A", $K94="Child"), 0, SUMIFS('Scoring Matrix'!G:G, 'Scoring Matrix'!A:A, "="&Questionnaire!$C94, 'Scoring Matrix'!F:F, "="&Questionnaire!F94)) -> 0 | T94: =IF(AND($J94="N/A", $K94="Child"), 0, SUMIFS('Scoring Matrix'!H:H, 'Scoring Matrix'!A:A, "="&Questionnaire!$C94, 'Scoring Matrix'!F:F, "="&Questionnaire!F94)) -> 0 | U94: =IF(AND($J94="N/A", $K94="Child"), 0, SUMIFS('Scoring Matrix'!I:I, 'Scoring Matrix'!A:A, "="&Questionnaire!$C94, 'Scoring Matrix'!F:F, "="&Questionnaire!F94)) -> 0 | V94: =IF(AND($J94="N/A", $K94="Child"), 0, SUMIFS('Scoring Matrix'!J:J, 'Scoring Matrix'!A:A, "="&Questionnaire!$C94, 'Scoring Matrix'!F:F, "="&Questionnaire!F94)) -> 0 | W94: =IF(AND($J94="N/A", $K94="Child"), 0, SUMIFS('Scoring Matrix'!K:K, 'Scoring Matrix'!A:A, "="&Questionnaire!$C94, 'Scoring Matrix'!F:F, "="&Questionnaire!F94)) -> 0 | Y94: =IF(O94, "", IF(VLOOKUP(C94,'Scoring Matrix'!$A$2:W400,13,FALSE)=1,"N/A", "Yes")) -> Yes | Z94: =IF(O94, "", VLOOKUP(C94, 'Scoring Matrix'!A:D, 3, FALSE)) -> Regulations | AA94: =IF(O94, "", VLOOKUP(C94, 'Scoring Matrix'!A:D, 4, FALSE)) -> Data Protection
D95: Governance of ICT Systems | E95: =SUM(E96:E106) -> 1 | I95: =IF(ISERROR(SEARCH("*Confirm*", G95)), IF(L95<>1, "Unanswered", "Answered"), "Needs Confirmed") -> Unanswered | K95: =IF(ISNUMBER(C95), IF(VLOOKUP(C95, 'Scoring Matrix'!A:L, 12, FALSE)="Parent", "Parent", IF(VLOOKUP(C95, 'Scoring Matrix'!A:L, 12, FALSE)="Child", "Child", "")), "") ->  | O95: TRUE | P95: FALSE | Q95: FALSE | S95: =IF(AND($J95="N/A", $K95="Child"), 0, SUMIFS('Scoring Matrix'!G:G, 'Scoring Matrix'!A:A, "="&Questionnaire!$C95, 'Scoring Matrix'!F:F, "="&Questionnaire!F95)) -> 0 | T95: =IF(AND($J95="N/A", $K95="Child"), 0, SUMIFS('Scoring Matrix'!H:H, 'Scoring Matrix'!A:A, "="&Questionnaire!$C95, 'Scoring Matrix'!F:F, "="&Questionnaire!F95)) -> 0 | U95: =IF(AND($J95="N/A", $K95="Child"), 0, SUMIFS('Scoring Matrix'!I:I, 'Scoring Matrix'!A:A, "="&Questionnaire!$C95, 'Scoring Matrix'!F:F, "="&Questionnaire!F95)) -> 0 | V95: =IF(AND($J95="N/A", $K95="Child"), 0, SUMIFS('Scoring Matrix'!J:J, 'Scoring Matrix'!A:A, "="&Questionnaire!$C95, 'Scoring Matrix'!F:F, "="&Questionnaire!F95)) -> 0 | W95: =IF(AND($J95="N/A", $K95="Child"), 0, SUMIFS('Scoring Matrix'!K:K, 'Scoring Matrix'!A:A, "="&Questionnaire!$C95, 'Scoring Matrix'!F:F, "="&Questionnaire!F95)) -> 0 | Y95: =IF(O95, "", IF(VLOOKUP(C95,'Scoring Matrix'!$A$2:W400,13,FALSE)=1,"N/A", "Yes")) ->  | Z95: =IF(O95, "", VLOOKUP(C95, 'Scoring Matrix'!A:D, 3, FALSE)) ->  | AA95: =IF(O95, "", VLOOKUP(C95, 'Scoring Matrix'!A:D, 4, FALSE)) -> 
C96: =C94+1 -> 75 | D96: =VLOOKUP(C96, 'Scoring Matrix'!A:B, 2, FALSE) -> Are there processes in place around creating standardized application documentation? | E96: =IF(VLOOKUP(C96, 'Scoring Matrix'!A:E, 5, FALSE)=0, "", VLOOKUP(C96, 'Scoring Matrix'!A:E, 5, FALSE)) -> 0.15 | G96: =IF(VLOOKUP(C96,'Scoring Matrix'!A:N, 14, FALSE)=0, "", VLOOKUP(C96,'Scoring Matrix'!A:N, 14, FALSE)) -> Yes | H96: =IF(VLOOKUP(C96,'Scoring Matrix'!A:N, 14, FALSE)=0, "", VLOOKUP(C96,'Scoring Matrix'!A:N, 14, FALSE)) -> Yes | I96: Unanswered | K96: =IF(ISNUMBER(C96), IF(VLOOKUP(C96, 'Scoring Matrix'!A:L, 12, FALSE)="Parent", "Parent", IF(VLOOKUP(C96, 'Scoring Matrix'!A:L, 12, FALSE)="Child", "Child", "")), "") -> Parent | M96: 0 | O96: FALSE | P96: FALSE | Q96: FALSE | S96: =IF(AND($J96="N/A", $K96="Child"), 0, SUMIFS('Scoring Matrix'!G:G, 'Scoring Matrix'!A:A, "="&Questionnaire!$C96, 'Scoring Matrix'!F:F, "="&Questionnaire!F96)) -> 0 | T96: =IF(AND($J96="N/A", $K96="Child"), 0, SUMIFS('Scoring Matrix'!H:H, 'Scoring Matrix'!A:A, "="&Questionnaire!$C96, 'Scoring Matrix'!F:F, "="&Questionnaire!F96)) -> 0 | U96: =IF(AND($J96="N/A", $K96="Child"), 0, SUMIFS('Scoring Matrix'!I:I, 'Scoring Matrix'!A:A, "="&Questionnaire!$C96, 'Scoring Matrix'!F:F, "="&Questionnaire!F96)) -> 0 | V96: =IF(AND($J96="N/A", $K96="Child"), 0, SUMIFS('Scoring Matrix'!J:J, 'Scoring Matrix'!A:A, "="&Questionnaire!$C96, 'Scoring Matrix'!F:F, "="&Questionnaire!F96)) -> 0 | W96: =IF(AND($J96="N/A", $K96="Child"), 0, SUMIFS('Scoring Matrix'!K:K, 'Scoring Matrix'!A:A, "="&Questionnaire!$C96, 'Scoring Matrix'!F:F, "="&Questionnaire!F96)) -> 0 | Y96: =IF(O96, "", IF(VLOOKUP(C96,'Scoring Matrix'!$A$2:W400,13,FALSE)=1,"N/A", "Yes")) -> Yes | Z96: =IF(O96, "", VLOOKUP(C96, 'Scoring Matrix'!A:D, 3, FALSE)) -> Governance of ICT Systems | AA96: =IF(O96, "", VLOOKUP(C96, 'Scoring Matrix'!A:D, 4, FALSE)) -> Documentation
C97: 76 | D97: =VLOOKUP(C97, 'Scoring Matrix'!A:B, 2, FALSE) -> If so, are the processes around documenting enforced? | G97: =IF(VLOOKUP(C97,'Scoring Matrix'!A:N, 14, FALSE)=0, "", VLOOKUP(C97,'Scoring Matrix'!A:N, 14, FALSE)) -> No | H97: =IF(VLOOKUP(C97,'Scoring Matrix'!A:N, 14, FALSE)=0, "", VLOOKUP(C97,'Scoring Matrix'!A:N, 14, FALSE)) -> No | I97: Unanswered | K97: =IF(ISNUMBER(C97), IF(VLOOKUP(C97, 'Scoring Matrix'!A:L, 12, FALSE)="Parent", "Parent", IF(VLOOKUP(C97, 'Scoring Matrix'!A:L, 12, FALSE)="Child", "Child", "")), "") -> Child | M97: 0 | O97: FALSE | P97: FALSE | Q97: FALSE | S97: =IF(AND($J97="N/A", $K97="Child"), 0, SUMIFS('Scoring Matrix'!G:G, 'Scoring Matrix'!A:A, "="&Questionnaire!$C97, 'Scoring Matrix'!F:F, "="&Questionnaire!F97)) -> 0 | T97: =IF(AND($J97="N/A", $K97="Child"), 0, SUMIFS('Scoring Matrix'!H:H, 'Scoring Matrix'!A:A, "="&Questionnaire!$C97, 'Scoring Matrix'!F:F, "="&Questionnaire!F97)) -> 0 | U97: =IF(AND($J97="N/A", $K97="Child"), 0, SUMIFS('Scoring Matrix'!I:I, 'Scoring Matrix'!A:A, "="&Questionnaire!$C97, 'Scoring Matrix'!F:F, "="&Questionnaire!F97)) -> 0 | V97: =IF(AND($J97="N/A", $K97="Child"), 0, SUMIFS('Scoring Matrix'!J:J, 'Scoring Matrix'!A:A, "="&Questionnaire!$C97, 'Scoring Matrix'!F:F, "="&Questionnaire!F97)) -> 0 | W97: =IF(AND($J97="N/A", $K97="Child"), 0, SUMIFS('Scoring Matrix'!K:K, 'Scoring Matrix'!A:A, "="&Questionnaire!$C97, 'Scoring Matrix'!F:F, "="&Questionnaire!F97)) -> 0 | Y97: =IF(O97, "", IF(VLOOKUP(C97,'Scoring Matrix'!$A$2:W400,13,FALSE)=1,"N/A", "Yes")) -> Yes | Z97: =IF(O97, "", VLOOKUP(C97, 'Scoring Matrix'!A:D, 3, FALSE)) -> Governance of ICT Systems | AA97: =IF(O97, "", VLOOKUP(C97, 'Scoring Matrix'!A:D, 4, FALSE)) -> Documentation
C98: 77 | D98: =VLOOKUP(C98, 'Scoring Matrix'!A:B, 2, FALSE) -> Are there guidelines for enabling applications to communicate across ministries/departments? | E98: =IF(VLOOKUP(C98, 'Scoring Matrix'!A:E, 5, FALSE)=0, "", VLOOKUP(C98, 'Scoring Matrix'!A:E, 5, FALSE)) -> 0.2 | G98: =IF(VLOOKUP(C98,'Scoring Matrix'!A:N, 14, FALSE)=0, "", VLOOKUP(C98,'Scoring Matrix'!A:N, 14, FALSE)) -> Yes | H98: =IF(VLOOKUP(C98,'Scoring Matrix'!A:N, 14, FALSE)=0, "", VLOOKUP(C98,'Scoring Matrix'!A:N, 14, FALSE)) -> Yes | I98: Unanswered | K98: =IF(ISNUMBER(C98), IF(VLOOKUP(C98, 'Scoring Matrix'!A:L, 12, FALSE)="Parent", "Parent", IF(VLOOKUP(C98, 'Scoring Matrix'!A:L, 12, FALSE)="Child", "Child", "")), "") ->  | M98: 0 | O98: FALSE | P98: FALSE | Q98: FALSE | S98: =IF(AND($J98="N/A", $K98="Child"), 0, SUMIFS('Scoring Matrix'!G:G, 'Scoring Matrix'!A:A, "="&Questionnaire!$C98, 'Scoring Matrix'!F:F, "="&Questionnaire!F98)) -> 0 | T98: =IF(AND($J98="N/A", $K98="Child"), 0, SUMIFS('Scoring Matrix'!H:H, 'Scoring Matrix'!A:A, "="&Questionnaire!$C98, 'Scoring Matrix'!F:F, "="&Questionnaire!F98)) -> 0 | U98: =IF(AND($J98="N/A", $K98="Child"), 0, SUMIFS('Scoring Matrix'!I:I, 'Scoring Matrix'!A:A, "="&Questionnaire!$C98, 'Scoring Matrix'!F:F, "="&Questionnaire!F98)) -> 0 | V98: =IF(AND($J98="N/A", $K98="Child"), 0, SUMIFS('Scoring Matrix'!J:J, 'Scoring Matrix'!A:A, "="&Questionnaire!$C98, 'Scoring Matrix'!F:F, "="&Questionnaire!F98)) -> 0 | W98: =IF(AND($J98="N/A", $K98="Child"), 0, SUMIFS('Scoring Matrix'!K:K, 'Scoring Matrix'!A:A, "="&Questionnaire!$C98, 'Scoring Matrix'!F:F, "="&Questionnaire!F98)) -> 0 | Y98: =IF(O98, "", IF(VLOOKUP(C98,'Scoring Matrix'!$A$2:W400,13,FALSE)=1,"N/A", "Yes")) -> Yes | Z98: =IF(O98, "", VLOOKUP(C98, 'Scoring Matrix'!A:D, 3, FALSE)) -> Governance of ICT Systems | AA98: =IF(O98, "", VLOOKUP(C98, 'Scoring Matrix'!A:D, 4, FALSE)) -> Processes
C99: 78 | D99: =VLOOKUP(C99, 'Scoring Matrix'!A:B, 2, FALSE) -> Is there a disaster recovery process in place? | E99: =IF(VLOOKUP(C99, 'Scoring Matrix'!A:E, 5, FALSE)=0, "", VLOOKUP(C99, 'Scoring Matrix'!A:E, 5, FALSE)) -> 0.2 | G99: =IF(VLOOKUP(C99,'Scoring Matrix'!A:N, 14, FALSE)=0, "", VLOOKUP(C99,'Scoring Matrix'!A:N, 14, FALSE)) -> Yes | H99: =IF(VLOOKUP(C99,'Scoring Matrix'!A:N, 14, FALSE)=0, "", VLOOKUP(C99,'Scoring Matrix'!A:N, 14, FALSE)) -> Yes | I99: Unanswered | K99: =IF(ISNUMBER(C99), IF(VLOOKUP(C99, 'Scoring Matrix'!A:L, 12, FALSE)="Parent", "Parent", IF(VLOOKUP(C99, 'Scoring Matrix'!A:L, 12, FALSE)="Child", "Child", "")), "") -> Parent | M99: 0 | O99: FALSE | P99: FALSE | Q99: FALSE | S99: =IF(AND($J99="N/A", $K99="Child"), 0, SUMIFS('Scoring Matrix'!G:G, 'Scoring Matrix'!A:A, "="&Questionnaire!$C99, 'Scoring Matrix'!F:F, "="&Questionnaire!F99)) -> 0 | T99: =IF(AND($J99="N/A", $K99="Child"), 0, SUMIFS('Scoring Matrix'!H:H, 'Scoring Matrix'!A:A, "="&Questionnaire!$C99, 'Scoring Matrix'!F:F, "="&Questionnaire!F99)) -> 0 | U99: =IF(AND($J99="N/A", $K99="Child"), 0, SUMIFS('Scoring Matrix'!I:I, 'Scoring Matrix'!A:A, "="&Questionnaire!$C99, 'Scoring Matrix'!F:F, "="&Questionnaire!F99)) -> 0 | V99: =IF(AND($J99="N/A", $K99="Child"), 0, SUMIFS('Scoring Matrix'!J:J, 'Scoring Matrix'!A:A, "="&Questionnaire!$C99, 'Scoring Matrix'!F:F, "="&Questionnaire!F99)) -> 0 | W99: =IF(AND($J99="N/A", $K99="Child"), 0, SUMIFS('Scoring Matrix'!K:K, 'Scoring Matrix'!A:A, "="&Questionnaire!$C99, 'Scoring Matrix'!F:F, "="&Questionnaire!F99)) -> 0 | Y99: =IF(O99, "", IF(VLOOKUP(C99,'Scoring Matrix'!$A$2:W400,13,FALSE)=1,"N/A", "Yes")) -> Yes | Z99: =IF(O99, "", VLOOKUP(C99, 'Scoring Matrix'!A:D, 3, FALSE)) -> Governance of ICT Systems | AA99: =IF(O99, "", VLOOKUP(C99, 'Scoring Matrix'!A:D, 4, FALSE)) -> Processes
C100: =C99+1 -> 79 | D100: =VLOOKUP(C100, 'Scoring Matrix'!A:B, 2, FALSE) -> If so, has the process been updated to include cloud based applications? | G100: =IF(VLOOKUP(C100,'Scoring Matrix'!A:N, 14, FALSE)=0, "", VLOOKUP(C100,'Scoring Matrix'!A:N, 14, FALSE)) -> No | H100: =IF(VLOOKUP(C100,'Scoring Matrix'!A:N, 14, FALSE)=0, "", VLOOKUP(C100,'Scoring Matrix'!A:N, 14, FALSE)) -> No | I100: Unanswered | K100: =IF(ISNUMBER(C100), IF(VLOOKUP(C100, 'Scoring Matrix'!A:L, 12, FALSE)="Parent", "Parent", IF(VLOOKUP(C100, 'Scoring Matrix'!A:L, 12, FALSE)="Child", "Child", "")), "") -> Child | M100: 0 | O100: FALSE | P100: FALSE | Q100: FALSE | S100: =IF(AND($J100="N/A", $K100="Child"), 0, SUMIFS('Scoring Matrix'!G:G, 'Scoring Matrix'!A:A, "="&Questionnaire!$C100, 'Scoring Matrix'!F:F, "="&Questionnaire!F100)) -> 0 | T100: =IF(AND($J100="N/A", $K100="Child"), 0, SUMIFS('Scoring Matrix'!H:H, 'Scoring Matrix'!A:A, "="&Questionnaire!$C100, 'Scoring Matrix'!F:F, "="&Questionnaire!F100)) -> 0 | U100: =IF(AND($J100="N/A", $K100="Child"), 0, SUMIFS('Scoring Matrix'!I:I, 'Scoring Matrix'!A:A, "="&Questionnaire!$C100, 'Scoring Matrix'!F:F, "="&Questionnaire!F100)) -> 0 | V100: =IF(AND($J100="N/A", $K100="Child"), 0, SUMIFS('Scoring Matrix'!J:J, 'Scoring Matrix'!A:A, "="&Questionnaire!$C100, 'Scoring Matrix'!F:F, "="&Questionnaire!F100)) -> 0 | W100: =IF(AND($J100="N/A", $K100="Child"), 0, SUMIFS('Scoring Matrix'!K:K, 'Scoring Matrix'!A:A, "="&Questionnaire!$C100, 'Scoring Matrix'!F:F, "="&Questionnaire!F100)) -> 0 | Y100: =IF(O100, "", IF(VLOOKUP(C100,'Scoring Matrix'!$A$2:W400,13,FALSE)=1,"N/A", "Yes")) -> Yes | Z100: =IF(O100, "", VLOOKUP(C100, 'Scoring Matrix'!A:D, 3, FALSE)) -> Governance of ICT Systems | AA100: =IF(O100, "", VLOOKUP(C100, 'Scoring Matrix'!A:D, 4, FALSE)) -> Processes
C101: =C100+1 -> 80 | D101: =VLOOKUP(C101, 'Scoring Matrix'!A:B, 2, FALSE) -> Are there any government level coding standards currently in place? | E101: =IF(VLOOKUP(C101, 'Scoring Matrix'!A:E, 5, FALSE)=0, "", VLOOKUP(C101, 'Scoring Matrix'!A:E, 5, FALSE)) -> 0.1 | G101: =IF(VLOOKUP(C101,'Scoring Matrix'!A:N, 14, FALSE)=0, "", VLOOKUP(C101,'Scoring Matrix'!A:N, 14, FALSE)) -> Yes, at the government level | H101: =IF(VLOOKUP(C101,'Scoring Matrix'!A:N, 14, FALSE)=0, "", VLOOKUP(C101,'Scoring Matrix'!A:N, 14, FALSE)) -> Yes, at the government level | I101: Unanswered | K101: =IF(ISNUMBER(C101), IF(VLOOKUP(C101, 'Scoring Matrix'!A:L, 12, FALSE)="Parent", "Parent", IF(VLOOKUP(C101, 'Scoring Matrix'!A:L, 12, FALSE)="Child", "Child", "")), "") -> Parent | M101: 0 | O101: FALSE | P101: FALSE | Q101: FALSE | S101: =IF(AND($J101="N/A", $K101="Child"), 0, SUMIFS('Scoring Matrix'!G:G, 'Scoring Matrix'!A:A, "="&Questionnaire!$C101, 'Scoring Matrix'!F:F, "="&Questionnaire!F101)) -> 0 | T101: =IF(AND($J101="N/A", $K101="Child"), 0, SUMIFS('Scoring Matrix'!H:H, 'Scoring Matrix'!A:A, "="&Questionnaire!$C101, 'Scoring Matrix'!F:F, "="&Questionnaire!F101)) -> 0 | U101: =IF(AND($J101="N/A", $K101="Child"), 0, SUMIFS('Scoring Matrix'!I:I, 'Scoring Matrix'!A:A, "="&Questionnaire!$C101, 'Scoring Matrix'!F:F, "="&Questionnaire!F101)) -> 0 | V101: =IF(AND($J101="N/A", $K101="Child"), 0, SUMIFS('Scoring Matrix'!J:J, 'Scoring Matrix'!A:A, "="&Questionnaire!$C101, 'Scoring Matrix'!F:F, "="&Questionnaire!F101)) -> 0 | W101: =IF(AND($J101="N/A", $K101="Child"), 0, SUMIFS('Scoring Matrix'!K:K, 'Scoring Matrix'!A:A, "="&Questionnaire!$C101, 'Scoring Matrix'!F:F, "="&Questionnaire!F101)) -> 0 | Y101: =IF(O101, "", IF(VLOOKUP(C101,'Scoring Matrix'!$A$2:W400,13,FALSE)=1,"N/A", "Yes")) -> Yes | Z101: =IF(O101, "", VLOOKUP(C101, 'Scoring Matrix'!A:D, 3, FALSE)) -> Governance of ICT Systems | AA101: =IF(O101, "", VLOOKUP(C101, 'Scoring Matrix'!A:D, 4, FALSE)) -> Processes
C102: 81 | D102: =VLOOKUP(C102, 'Scoring Matrix'!A:B, 2, FALSE) -> Is there a standard solution development life cycle in place for developing new applications? | E102: =IF(VLOOKUP(C102, 'Scoring Matrix'!A:E, 5, FALSE)=0, "", VLOOKUP(C102, 'Scoring Matrix'!A:E, 5, FALSE)) -> 0.15 | G102: =IF(VLOOKUP(C102,'Scoring Matrix'!A:N, 14, FALSE)=0, "", VLOOKUP(C102,'Scoring Matrix'!A:N, 14, FALSE)) -> Yes | H102: =IF(VLOOKUP(C102,'Scoring Matrix'!A:N, 14, FALSE)=0, "", VLOOKUP(C102,'Scoring Matrix'!A:N, 14, FALSE)) -> Yes | I102: Unanswered | K102: =IF(ISNUMBER(C102), IF(VLOOKUP(C102, 'Scoring Matrix'!A:L, 12, FALSE)="Parent", "Parent", IF(VLOOKUP(C102, 'Scoring Matrix'!A:L, 12, FALSE)="Child", "Child", "")), "") -> Parent | M102: 0 | O102: FALSE | P102: FALSE | Q102: FALSE | S102: =IF(AND($J102="N/A", $K102="Child"), 0, SUMIFS('Scoring Matrix'!G:G, 'Scoring Matrix'!A:A, "="&Questionnaire!$C102, 'Scoring Matrix'!F:F, "="&Questionnaire!F102)) -> 0 | T102: =IF(AND($J102="N/A", $K102="Child"), 0, SUMIFS('Scoring Matrix'!H:H, 'Scoring Matrix'!A:A, "="&Questionnaire!$C102, 'Scoring Matrix'!F:F, "="&Questionnaire!F102)) -> 0 | U102: =IF(AND($J102="N/A", $K102="Child"), 0, SUMIFS('Scoring Matrix'!I:I, 'Scoring Matrix'!A:A, "="&Questionnaire!$C102, 'Scoring Matrix'!F:F, "="&Questionnaire!F102)) -> 0 | V102: =IF(AND($J102="N/A", $K102="Child"), 0, SUMIFS('Scoring Matrix'!J:J, 'Scoring Matrix'!A:A, "="&Questionnaire!$C102, 'Scoring Matrix'!F:F, "="&Questionnaire!F102)) -> 0 | W102: =IF(AND($J102="N/A", $K102="Child"), 0, SUMIFS('Scoring Matrix'!K:K, 'Scoring Matrix'!A:A, "="&Questionnaire!$C102, 'Scoring Matrix'!F:F, "="&Questionnaire!F102)) -> 0 | Y102: =IF(O102, "", IF(VLOOKUP(C102,'Scoring Matrix'!$A$2:W400,13,FALSE)=1,"N/A", "Yes")) -> Yes | Z102: =IF(O102, "", VLOOKUP(C102, 'Scoring Matrix'!A:D, 3, FALSE)) -> Governance of ICT Systems | AA102: =IF(O102, "", VLOOKUP(C102, 'Scoring Matrix'!A:D, 4, FALSE)) -> Processes
C103: 82 | D103: =VLOOKUP(C103, 'Scoring Matrix'!A:B, 2, FALSE) -> If so, has this life cycle been adapted for the cloud? | G103: =IF(VLOOKUP(C103,'Scoring Matrix'!A:N, 14, FALSE)=0, "", VLOOKUP(C103,'Scoring Matrix'!A:N, 14, FALSE)) -> Unknown | H103: =IF(VLOOKUP(C103,'Scoring Matrix'!A:N, 14, FALSE)=0, "", VLOOKUP(C103,'Scoring Matrix'!A:N, 14, FALSE)) -> Unknown | I103: Unanswered | K103: =IF(ISNUMBER(C103), IF(VLOOKUP(C103, 'Scoring Matrix'!A:L, 12, FALSE)="Parent", "Parent", IF(VLOOKUP(C103, 'Scoring Matrix'!A:L, 12, FALSE)="Child", "Child", "")), "") -> Child | M103: 0 | O103: FALSE | P103: FALSE | Q103: FALSE | S103: =IF(AND($J103="N/A", $K103="Child"), 0, SUMIFS('Scoring Matrix'!G:G, 'Scoring Matrix'!A:A, "="&Questionnaire!$C103, 'Scoring Matrix'!F:F, "="&Questionnaire!F103)) -> 0 | T103: =IF(AND($J103="N/A", $K103="Child"), 0, SUMIFS('Scoring Matrix'!H:H, 'Scoring Matrix'!A:A, "="&Questionnaire!$C103, 'Scoring Matrix'!F:F, "="&Questionnaire!F103)) -> 0 | U103: =IF(AND($J103="N/A", $K103="Child"), 0, SUMIFS('Scoring Matrix'!I:I, 'Scoring Matrix'!A:A, "="&Questionnaire!$C103, 'Scoring Matrix'!F:F, "="&Questionnaire!F103)) -> 0 | V103: =IF(AND($J103="N/A", $K103="Child"), 0, SUMIFS('Scoring Matrix'!J:J, 'Scoring Matrix'!A:A, "="&Questionnaire!$C103, 'Scoring Matrix'!F:F, "="&Questionnaire!F103)) -> 0 | W103: =IF(AND($J103="N/A", $K103="Child"), 0, SUMIFS('Scoring Matrix'!K:K, 'Scoring Matrix'!A:A, "="&Questionnaire!$C103, 'Scoring Matrix'!F:F, "="&Questionnaire!F103)) -> 0 | Y103: =IF(O103, "", IF(VLOOKUP(C103,'Scoring Matrix'!$A$2:W400,13,FALSE)=1,"N/A", "Yes")) -> Yes | Z103: =IF(O103, "", VLOOKUP(C103, 'Scoring Matrix'!A:D, 3, FALSE)) -> Governance of ICT Systems | AA103: =IF(O103, "", VLOOKUP(C103, 'Scoring Matrix'!A:D, 4, FALSE)) -> Processes
C104: 83 | D104: =VLOOKUP(C104, 'Scoring Matrix'!A:B, 2, FALSE) -> Does your country have technical architecture standards that are part of the development process? | E104: =IF(VLOOKUP(C104, 'Scoring Matrix'!A:E, 5, FALSE)=0, "", VLOOKUP(C104, 'Scoring Matrix'!A:E, 5, FALSE)) -> 0.2 | G104: =IF(VLOOKUP(C104,'Scoring Matrix'!A:N, 14, FALSE)=0, "", VLOOKUP(C104,'Scoring Matrix'!A:N, 14, FALSE)) -> Yes | H104: =IF(VLOOKUP(C104,'Scoring Matrix'!A:N, 14, FALSE)=0, "", VLOOKUP(C104,'Scoring Matrix'!A:N, 14, FALSE)) -> Yes | I104: Unanswered | K104: =IF(ISNUMBER(C104), IF(VLOOKUP(C104, 'Scoring Matrix'!A:L, 12, FALSE)="Parent", "Parent", IF(VLOOKUP(C104, 'Scoring Matrix'!A:L, 12, FALSE)="Child", "Child", "")), "") -> Parent | M104: 0 | O104: FALSE | P104: FALSE | Q104: FALSE | S104: =IF(AND($J104="N/A", $K104="Child"), 0, SUMIFS('Scoring Matrix'!G:G, 'Scoring Matrix'!A:A, "="&Questionnaire!$C104, 'Scoring Matrix'!F:F, "="&Questionnaire!F104)) -> 0 | T104: =IF(AND($J104="N/A", $K104="Child"), 0, SUMIFS('Scoring Matrix'!H:H, 'Scoring Matrix'!A:A, "="&Questionnaire!$C104, 'Scoring Matrix'!F:F, "="&Questionnaire!F104)) -> 0 | U104: =IF(AND($J104="N/A", $K104="Child"), 0, SUMIFS('Scoring Matrix'!I:I, 'Scoring Matrix'!A:A, "="&Questionnaire!$C104, 'Scoring Matrix'!F:F, "="&Questionnaire!F104)) -> 0 | V104: =IF(AND($J104="N/A", $K104="Child"), 0, SUMIFS('Scoring Matrix'!J:J, 'Scoring Matrix'!A:A, "="&Questionnaire!$C104, 'Scoring Matrix'!F:F, "="&Questionnaire!F104)) -> 0 | W104: =IF(AND($J104="N/A", $K104="Child"), 0, SUMIFS('Scoring Matrix'!K:K, 'Scoring Matrix'!A:A, "="&Questionnaire!$C104, 'Scoring Matrix'!F:F, "="&Questionnaire!F104)) -> 0 | Y104: =IF(O104, "", IF(VLOOKUP(C104,'Scoring Matrix'!$A$2:W400,13,FALSE)=1,"N/A", "Yes")) -> Yes | Z104: =IF(O104, "", VLOOKUP(C104, 'Scoring Matrix'!A:D, 3, FALSE)) -> Governance of ICT Systems | AA104: =IF(O104, "", VLOOKUP(C104, 'Scoring Matrix'!A:D, 4, FALSE)) -> Processes
C105: 84 | D105: =VLOOKUP(C105, 'Scoring Matrix'!A:B, 2, FALSE) -> Do these technical architecture standards reflect practices that would take advantage of a cloud architecture, such as scalability? | G105: =IF(VLOOKUP(C105,'Scoring Matrix'!A:N, 14, FALSE)=0, "", VLOOKUP(C105,'Scoring Matrix'!A:N, 14, FALSE)) -> No | H105: =IF(VLOOKUP(C105,'Scoring Matrix'!A:N, 14, FALSE)=0, "", VLOOKUP(C105,'Scoring Matrix'!A:N, 14, FALSE)) -> No | I105: Unanswered | K105: =IF(ISNUMBER(C105), IF(VLOOKUP(C105, 'Scoring Matrix'!A:L, 12, FALSE)="Parent", "Parent", IF(VLOOKUP(C105, 'Scoring Matrix'!A:L, 12, FALSE)="Child", "Child", "")), "") -> Child | M105: 0 | O105: FALSE | P105: FALSE | Q105: FALSE | S105: =IF(AND($J105="N/A", $K105="Child"), 0, SUMIFS('Scoring Matrix'!G:G, 'Scoring Matrix'!A:A, "="&Questionnaire!$C105, 'Scoring Matrix'!F:F, "="&Questionnaire!F105)) -> 0 | T105: =IF(AND($J105="N/A", $K105="Child"), 0, SUMIFS('Scoring Matrix'!H:H, 'Scoring Matrix'!A:A, "="&Questionnaire!$C105, 'Scoring Matrix'!F:F, "="&Questionnaire!F105)) -> 0 | U105: =IF(AND($J105="N/A", $K105="Child"), 0, SUMIFS('Scoring Matrix'!I:I, 'Scoring Matrix'!A:A, "="&Questionnaire!$C105, 'Scoring Matrix'!F:F, "="&Questionnaire!F105)) -> 0 | V105: =IF(AND($J105="N/A", $K105="Child"), 0, SUMIFS('Scoring Matrix'!J:J, 'Scoring Matrix'!A:A, "="&Questionnaire!$C105, 'Scoring Matrix'!F:F, "="&Questionnaire!F105)) -> 0 | W105: =IF(AND($J105="N/A", $K105="Child"), 0, SUMIFS('Scoring Matrix'!K:K, 'Scoring Matrix'!A:A, "="&Questionnaire!$C105, 'Scoring Matrix'!F:F, "="&Questionnaire!F105)) -> 0 | Y105: =IF(O105, "", IF(VLOOKUP(C105,'Scoring Matrix'!$A$2:W400,13,FALSE)=1,"N/A", "Yes")) -> Yes | Z105: =IF(O105, "", VLOOKUP(C105, 'Scoring Matrix'!A:D, 3, FALSE)) -> Governance of ICT Systems | AA105: =IF(O105, "", VLOOKUP(C105, 'Scoring Matrix'!A:D, 4, FALSE)) -> Processes
C106: =C105+1 -> 85 | D106: =VLOOKUP(C106, 'Scoring Matrix'!A:B, 2, FALSE) -> Are these standards being applied to applications currently being developed? | G106: =IF(VLOOKUP(C106,'Scoring Matrix'!A:N, 14, FALSE)=0, "", VLOOKUP(C106,'Scoring Matrix'!A:N, 14, FALSE)) -> >40% and <=60% | H106: =IF(VLOOKUP(C106,'Scoring Matrix'!A:N, 14, FALSE)=0, "", VLOOKUP(C106,'Scoring Matrix'!A:N, 14, FALSE)) -> >40% and <=60% | I106: Unanswered | J106: =IF(OR(AND(F106="No", K106="Parent"),AND(F106="unknown", K106="Parent")),"N/A", IF(AND(J104="N/A", K106="Child"), "N/A", IF(AND(K106="Parent", F106="Yes"), C106, IF(AND(ISNUMBER(J104), K106="Child"), C106, "")))) ->  | K106: =IF(ISNUMBER(C106), IF(VLOOKUP(C106, 'Scoring Matrix'!A:L, 12, FALSE)="Parent", "Parent", IF(VLOOKUP(C106, 'Scoring Matrix'!A:L, 12, FALSE)="Child", "Child", "")), "") -> Child | M106: 0 | O106: FALSE | P106: FALSE | Q106: FALSE | S106: =IF(AND($J106="N/A", $K106="Child"), 0, SUMIFS('Scoring Matrix'!G:G, 'Scoring Matrix'!A:A, "="&Questionnaire!$C106, 'Scoring Matrix'!F:F, "="&Questionnaire!F106)) -> 0 | T106: =IF(AND($J106="N/A", $K106="Child"), 0, SUMIFS('Scoring Matrix'!H:H, 'Scoring Matrix'!A:A, "="&Questionnaire!$C106, 'Scoring Matrix'!F:F, "="&Questionnaire!F106)) -> 0 | U106: =IF(AND($J106="N/A", $K106="Child"), 0, SUMIFS('Scoring Matrix'!I:I, 'Scoring Matrix'!A:A, "="&Questionnaire!$C106, 'Scoring Matrix'!F:F, "="&Questionnaire!F106)) -> 0 | V106: =IF(AND($J106="N/A", $K106="Child"), 0, SUMIFS('Scoring Matrix'!J:J, 'Scoring Matrix'!A:A, "="&Questionnaire!$C106, 'Scoring Matrix'!F:F, "="&Questionnaire!F106)) -> 0 | W106: =IF(AND($J106="N/A", $K106="Child"), 0, SUMIFS('Scoring Matrix'!K:K, 'Scoring Matrix'!A:A, "="&Questionnaire!$C106, 'Scoring Matrix'!F:F, "="&Questionnaire!F106)) -> 0 | Y106: =IF(O106, "", IF(VLOOKUP(C106,'Scoring Matrix'!$A$2:W400,13,FALSE)=1,"N/A", "Yes")) -> Yes | Z106: =IF(O106, "", VLOOKUP(C106, 'Scoring Matrix'!A:D, 3, FALSE)) -> Governance of ICT Systems | AA106: =IF(O106, "", VLOOKUP(C106, 'Scoring Matrix'!A:D, 4, FALSE)) -> Processes
D107: Data | E107: =SUM(E108,E115) -> 1 | I107: =IF(ISERROR(SEARCH("*Confirm*", G107)), IF(L107<>1, "Unanswered", "Answered"), "Needs Confirmed") -> Unanswered | K107: =IF(ISNUMBER(C107), IF(VLOOKUP(C107, 'Scoring Matrix'!A:L, 12, FALSE)="Parent", "Parent", IF(VLOOKUP(C107, 'Scoring Matrix'!A:L, 12, FALSE)="Child", "Child", "")), "") ->  | O107: TRUE | P107: FALSE | Q107: FALSE | S107: =IF(AND($J107="N/A", $K107="Child"), 0, SUMIFS('Scoring Matrix'!G:G, 'Scoring Matrix'!A:A, "="&Questionnaire!$C107, 'Scoring Matrix'!F:F, "="&Questionnaire!F107)) -> 0 | T107: =IF(AND($J107="N/A", $K107="Child"), 0, SUMIFS('Scoring Matrix'!H:H, 'Scoring Matrix'!A:A, "="&Questionnaire!$C107, 'Scoring Matrix'!F:F, "="&Questionnaire!F107)) -> 0 | U107: =IF(AND($J107="N/A", $K107="Child"), 0, SUMIFS('Scoring Matrix'!I:I, 'Scoring Matrix'!A:A, "="&Questionnaire!$C107, 'Scoring Matrix'!F:F, "="&Questionnaire!F107)) -> 0 | V107: =IF(AND($J107="N/A", $K107="Child"), 0, SUMIFS('Scoring Matrix'!J:J, 'Scoring Matrix'!A:A, "="&Questionnaire!$C107, 'Scoring Matrix'!F:F, "="&Questionnaire!F107)) -> 0 | W107: =IF(AND($J107="N/A", $K107="Child"), 0, SUMIFS('Scoring Matrix'!K:K, 'Scoring Matrix'!A:A, "="&Questionnaire!$C107, 'Scoring Matrix'!F:F, "="&Questionnaire!F107)) -> 0 | Y107: =IF(O107, "", IF(VLOOKUP(C107,'Scoring Matrix'!$A$2:W400,13,FALSE)=1,"N/A", "Yes")) ->  | Z107: =IF(O107, "", VLOOKUP(C107, 'Scoring Matrix'!A:D, 3, FALSE)) ->  | AA107: =IF(O107, "", VLOOKUP(C107, 'Scoring Matrix'!A:D, 4, FALSE)) -> 
D108: Location | E108: =SUM(E109:E114) -> 0.75 | I108: =IF(ISERROR(SEARCH("*Confirm*", G108)), IF(L108<>1, "Unanswered", "Answered"), "Needs Confirmed") -> Unanswered | K108: =IF(ISNUMBER(C108), IF(VLOOKUP(C108, 'Scoring Matrix'!A:L, 12, FALSE)="Parent", "Parent", IF(VLOOKUP(C108, 'Scoring Matrix'!A:L, 12, FALSE)="Child", "Child", "")), "") ->  | O108: TRUE | P108: FALSE | Q108: FALSE | S108: =IF(AND($J108="N/A", $K108="Child"), 0, SUMIFS('Scoring Matrix'!G:G, 'Scoring Matrix'!A:A, "="&Questionnaire!$C108, 'Scoring Matrix'!F:F, "="&Questionnaire!F108)) -> 0 | T108: =IF(AND($J108="N/A", $K108="Child"), 0, SUMIFS('Scoring Matrix'!H:H, 'Scoring Matrix'!A:A, "="&Questionnaire!$C108, 'Scoring Matrix'!F:F, "="&Questionnaire!F108)) -> 0 | U108: =IF(AND($J108="N/A", $K108="Child"), 0, SUMIFS('Scoring Matrix'!I:I, 'Scoring Matrix'!A:A, "="&Questionnaire!$C108, 'Scoring Matrix'!F:F, "="&Questionnaire!F108)) -> 0 | V108: =IF(AND($J108="N/A", $K108="Child"), 0, SUMIFS('Scoring Matrix'!J:J, 'Scoring Matrix'!A:A, "="&Questionnaire!$C108, 'Scoring Matrix'!F:F, "="&Questionnaire!F108)) -> 0 | W108: =IF(AND($J108="N/A", $K108="Child"), 0, SUMIFS('Scoring Matrix'!K:K, 'Scoring Matrix'!A:A, "="&Questionnaire!$C108, 'Scoring Matrix'!F:F, "="&Questionnaire!F108)) -> 0 | Y108: =IF(O108, "", IF(VLOOKUP(C108,'Scoring Matrix'!$A$2:W400,13,FALSE)=1,"N/A", "Yes")) ->  | Z108: =IF(O108, "", VLOOKUP(C108, 'Scoring Matrix'!A:D, 3, FALSE)) ->  | AA108: =IF(O108, "", VLOOKUP(C108, 'Scoring Matrix'!A:D, 4, FALSE)) -> 
C109: =C106+1 -> 86 | D109: =VLOOKUP(C109, 'Scoring Matrix'!A:B, 2, FALSE) -> Does your organization share data or allow connections with external (non-government) organizations? | E109: =IF(VLOOKUP(C109, 'Scoring Matrix'!A:E, 5, FALSE)=0, "", VLOOKUP(C109, 'Scoring Matrix'!A:E, 5, FALSE)) -> 0.05 | G109: =IF(VLOOKUP(C109,'Scoring Matrix'!A:N, 14, FALSE)=0, "", VLOOKUP(C109,'Scoring Matrix'!A:N, 14, FALSE)) -> No, all data is kept inside the government | H109: =IF(VLOOKUP(C109,'Scoring Matrix'!A:N, 14, FALSE)=0, "", VLOOKUP(C109,'Scoring Matrix'!A:N, 14, FALSE)) -> No, all data is kept inside the government | I109: =IF(ISERROR(SEARCH("*Confirm*", G109)), IF(L109<>1, "Unanswered", "Answered"), "Needs Confirmed") -> Unanswered | K109: =IF(ISNUMBER(C109), IF(VLOOKUP(C109, 'Scoring Matrix'!A:L, 12, FALSE)="Parent", "Parent", IF(VLOOKUP(C109, 'Scoring Matrix'!A:L, 12, FALSE)="Child", "Child", "")), "") ->  | M109: 0 | O109: FALSE | P109: FALSE | Q109: FALSE | S109: =IF(AND($J109="N/A", $K109="Child"), 0, SUMIFS('Scoring Matrix'!G:G, 'Scoring Matrix'!A:A, "="&Questionnaire!$C109, 'Scoring Matrix'!F:F, "="&Questionnaire!F109)) -> 0 | T109: =IF(AND($J109="N/A", $K109="Child"), 0, SUMIFS('Scoring Matrix'!H:H, 'Scoring Matrix'!A:A, "="&Questionnaire!$C109, 'Scoring Matrix'!F:F, "="&Questionnaire!F109)) -> 0 | U109: =IF(AND($J109="N/A", $K109="Child"), 0, SUMIFS('Scoring Matrix'!I:I, 'Scoring Matrix'!A:A, "="&Questionnaire!$C109, 'Scoring Matrix'!F:F, "="&Questionnaire!F109)) -> 0 | V109: =IF(AND($J109="N/A", $K109="Child"), 0, SUMIFS('Scoring Matrix'!J:J, 'Scoring Matrix'!A:A, "="&Questionnaire!$C109, 'Scoring Matrix'!F:F, "="&Questionnaire!F109)) -> 0 | W109: =IF(AND($J109="N/A", $K109="Child"), 0, SUMIFS('Scoring Matrix'!K:K, 'Scoring Matrix'!A:A, "="&Questionnaire!$C109, 'Scoring Matrix'!F:F, "="&Questionnaire!F109)) -> 0 | Y109: =IF(O109, "", IF(VLOOKUP(C109,'Scoring Matrix'!$A$2:W400,13,FALSE)=1,"N/A", "Yes")) -> Yes | Z109: =IF(O109, "", VLOOKUP(C109, 'Scoring Matrix'!A:D, 3, FALSE)) -> Data | AA109: =IF(O109, "", VLOOKUP(C109, 'Scoring Matrix'!A:D, 4, FALSE)) -> Location
C110: =C109+1 -> 87 | D110: =VLOOKUP(C110, 'Scoring Matrix'!A:B, 2, FALSE) -> What is the government’s policy on multi-tenancy? | E110: =IF(VLOOKUP(C110, 'Scoring Matrix'!A:E, 5, FALSE)=0, "", VLOOKUP(C110, 'Scoring Matrix'!A:E, 5, FALSE)) -> 0.05 | G110: =IF(VLOOKUP(C110,'Scoring Matrix'!A:N, 14, FALSE)=0, "", VLOOKUP(C110,'Scoring Matrix'!A:N, 14, FALSE)) -> Cross Ministry multi-tenancy allowed | H110: =IF(VLOOKUP(C110,'Scoring Matrix'!A:N, 14, FALSE)=0, "", VLOOKUP(C110,'Scoring Matrix'!A:N, 14, FALSE)) -> Cross Ministry multi-tenancy allowed | I110: Unanswered | K110: =IF(ISNUMBER(C110), IF(VLOOKUP(C110, 'Scoring Matrix'!A:L, 12, FALSE)="Parent", "Parent", IF(VLOOKUP(C110, 'Scoring Matrix'!A:L, 12, FALSE)="Child", "Child", "")), "") ->  | M110: 0 | O110: FALSE | P110: FALSE | Q110: FALSE | S110: =IF(AND($J110="N/A", $K110="Child"), 0, SUMIFS('Scoring Matrix'!G:G, 'Scoring Matrix'!A:A, "="&Questionnaire!$C110, 'Scoring Matrix'!F:F, "="&Questionnaire!F110)) -> 0 | T110: =IF(AND($J110="N/A", $K110="Child"), 0, SUMIFS('Scoring Matrix'!H:H, 'Scoring Matrix'!A:A, "="&Questionnaire!$C110, 'Scoring Matrix'!F:F, "="&Questionnaire!F110)) -> 0 | U110: =IF(AND($J110="N/A", $K110="Child"), 0, SUMIFS('Scoring Matrix'!I:I, 'Scoring Matrix'!A:A, "="&Questionnaire!$C110, 'Scoring Matrix'!F:F, "="&Questionnaire!F110)) -> 0 | V110: =IF(AND($J110="N/A", $K110="Child"), 0, SUMIFS('Scoring Matrix'!J:J, 'Scoring Matrix'!A:A, "="&Questionnaire!$C110, 'Scoring Matrix'!F:F, "="&Questionnaire!F110)) -> 0 | W110: =IF(AND($J110="N/A", $K110="Child"), 0, SUMIFS('Scoring Matrix'!K:K, 'Scoring Matrix'!A:A, "="&Questionnaire!$C110, 'Scoring Matrix'!F:F, "="&Questionnaire!F110)) -> 0 | Y110: =IF(O110, "", IF(VLOOKUP(C110,'Scoring Matrix'!$A$2:W400,13,FALSE)=1,"N/A", "Yes")) -> Yes | Z110: =IF(O110, "", VLOOKUP(C110, 'Scoring Matrix'!A:D, 3, FALSE)) -> Data | AA110: =IF(O110, "", VLOOKUP(C110, 'Scoring Matrix'!A:D, 4, FALSE)) -> Location
C111: 88 | D111: =VLOOKUP(C111, 'Scoring Matrix'!A:B, 2, FALSE) -> Can data be stored on public servers? | E111: =IF(VLOOKUP(C111, 'Scoring Matrix'!A:E, 5, FALSE)=0, "", VLOOKUP(C111, 'Scoring Matrix'!A:E, 5, FALSE)) -> 0.15 | G111: =IF(VLOOKUP(C111,'Scoring Matrix'!A:N, 14, FALSE)=0, "", VLOOKUP(C111,'Scoring Matrix'!A:N, 14, FALSE)) -> Yes | H111: =IF(VLOOKUP(C111,'Scoring Matrix'!A:N, 14, FALSE)=0, "", VLOOKUP(C111,'Scoring Matrix'!A:N, 14, FALSE)) -> Yes | I111: Unanswered | K111: =IF(ISNUMBER(C111), IF(VLOOKUP(C111, 'Scoring Matrix'!A:L, 12, FALSE)="Parent", "Parent", IF(VLOOKUP(C111, 'Scoring Matrix'!A:L, 12, FALSE)="Child", "Child", "")), "") ->  | M111: 0 | O111: FALSE | P111: FALSE | Q111: FALSE | S111: =IF(AND($J111="N/A", $K111="Child"), 0, SUMIFS('Scoring Matrix'!G:G, 'Scoring Matrix'!A:A, "="&Questionnaire!$C111, 'Scoring Matrix'!F:F, "="&Questionnaire!F111)) -> 0 | T111: =IF(AND($J111="N/A", $K111="Child"), 0, SUMIFS('Scoring Matrix'!H:H, 'Scoring Matrix'!A:A, "="&Questionnaire!$C111, 'Scoring Matrix'!F:F, "="&Questionnaire!F111)) -> 0 | U111: =IF(AND($J111="N/A", $K111="Child"), 0, SUMIFS('Scoring Matrix'!I:I, 'Scoring Matrix'!A:A, "="&Questionnaire!$C111, 'Scoring Matrix'!F:F, "="&Questionnaire!F111)) -> 0 | V111: =IF(AND($J111="N/A", $K111="Child"), 0, SUMIFS('Scoring Matrix'!J:J, 'Scoring Matrix'!A:A, "="&Questionnaire!$C111, 'Scoring Matrix'!F:F, "="&Questionnaire!F111)) -> 0 | W111: =IF(AND($J111="N/A", $K111="Child"), 0, SUMIFS('Scoring Matrix'!K:K, 'Scoring Matrix'!A:A, "="&Questionnaire!$C111, 'Scoring Matrix'!F:F, "="&Questionnaire!F111)) -> 0 | Y111: =IF(O111, "", IF(VLOOKUP(C111,'Scoring Matrix'!$A$2:W400,13,FALSE)=1,"N/A", "Yes")) -> Yes | Z111: =IF(O111, "", VLOOKUP(C111, 'Scoring Matrix'!A:D, 3, FALSE)) -> Data | AA111: =IF(O111, "", VLOOKUP(C111, 'Scoring Matrix'!A:D, 4, FALSE)) -> Location
C112: 89 | D112: =VLOOKUP(C112, 'Scoring Matrix'!A:B, 2, FALSE) -> Can sensitive data such as classified data or data containing personally identifiable information be stored outside the country? | E112: =IF(VLOOKUP(C112, 'Scoring Matrix'!A:E, 5, FALSE)=0, "", VLOOKUP(C112, 'Scoring Matrix'!A:E, 5, FALSE)) -> 0.15 | G112: =IF(VLOOKUP(C112,'Scoring Matrix'!A:N, 14, FALSE)=0, "", VLOOKUP(C112,'Scoring Matrix'!A:N, 14, FALSE)) -> Yes | H112: =IF(VLOOKUP(C112,'Scoring Matrix'!A:N, 14, FALSE)=0, "", VLOOKUP(C112,'Scoring Matrix'!A:N, 14, FALSE)) -> Yes | I112: Unanswered | K112: =IF(ISNUMBER(C112), IF(VLOOKUP(C112, 'Scoring Matrix'!A:L, 12, FALSE)="Parent", "Parent", IF(VLOOKUP(C112, 'Scoring Matrix'!A:L, 12, FALSE)="Child", "Child", "")), "") ->  | M112: 0 | O112: FALSE | P112: FALSE | Q112: FALSE | S112: =IF(AND($J112="N/A", $K112="Child"), 0, SUMIFS('Scoring Matrix'!G:G, 'Scoring Matrix'!A:A, "="&Questionnaire!$C112, 'Scoring Matrix'!F:F, "="&Questionnaire!F112)) -> 0 | T112: =IF(AND($J112="N/A", $K112="Child"), 0, SUMIFS('Scoring Matrix'!H:H, 'Scoring Matrix'!A:A, "="&Questionnaire!$C112, 'Scoring Matrix'!F:F, "="&Questionnaire!F112)) -> 0 | U112: =IF(AND($J112="N/A", $K112="Child"), 0, SUMIFS('Scoring Matrix'!I:I, 'Scoring Matrix'!A:A, "="&Questionnaire!$C112, 'Scoring Matrix'!F:F, "="&Questionnaire!F112)) -> 0 | V112: =IF(AND($J112="N/A", $K112="Child"), 0, SUMIFS('Scoring Matrix'!J:J, 'Scoring Matrix'!A:A, "="&Questionnaire!$C112, 'Scoring Matrix'!F:F, "="&Questionnaire!F112)) -> 0 | W112: =IF(AND($J112="N/A", $K112="Child"), 0, SUMIFS('Scoring Matrix'!K:K, 'Scoring Matrix'!A:A, "="&Questionnaire!$C112, 'Scoring Matrix'!F:F, "="&Questionnaire!F112)) -> 0 | Y112: =IF(O112, "", IF(VLOOKUP(C112,'Scoring Matrix'!$A$2:W400,13,FALSE)=1,"N/A", "Yes")) -> Yes | Z112: =IF(O112, "", VLOOKUP(C112, 'Scoring Matrix'!A:D, 3, FALSE)) -> Data | AA112: =IF(O112, "", VLOOKUP(C112, 'Scoring Matrix'!A:D, 4, FALSE)) -> Location
C113: 90 | D113: =VLOOKUP(C113, 'Scoring Matrix'!A:B, 2, FALSE) -> Can non-sensitive data be stored outside the country? | E113: =IF(VLOOKUP(C113, 'Scoring Matrix'!A:E, 5, FALSE)=0, "", VLOOKUP(C113, 'Scoring Matrix'!A:E, 5, FALSE)) -> 0.2 | G113: =IF(VLOOKUP(C113,'Scoring Matrix'!A:N, 14, FALSE)=0, "", VLOOKUP(C113,'Scoring Matrix'!A:N, 14, FALSE)) -> No | H113: =IF(VLOOKUP(C113,'Scoring Matrix'!A:N, 14, FALSE)=0, "", VLOOKUP(C113,'Scoring Matrix'!A:N, 14, FALSE)) -> No | I113: Unanswered | K113: =IF(ISNUMBER(C113), IF(VLOOKUP(C113, 'Scoring Matrix'!A:L, 12, FALSE)="Parent", "Parent", IF(VLOOKUP(C113, 'Scoring Matrix'!A:L, 12, FALSE)="Child", "Child", "")), "") ->  | M113: 0 | O113: FALSE | P113: FALSE | Q113: FALSE | S113: =IF(AND($J113="N/A", $K113="Child"), 0, SUMIFS('Scoring Matrix'!G:G, 'Scoring Matrix'!A:A, "="&Questionnaire!$C113, 'Scoring Matrix'!F:F, "="&Questionnaire!F113)) -> 0 | T113: =IF(AND($J113="N/A", $K113="Child"), 0, SUMIFS('Scoring Matrix'!H:H, 'Scoring Matrix'!A:A, "="&Questionnaire!$C113, 'Scoring Matrix'!F:F, "="&Questionnaire!F113)) -> 0 | U113: =IF(AND($J113="N/A", $K113="Child"), 0, SUMIFS('Scoring Matrix'!I:I, 'Scoring Matrix'!A:A, "="&Questionnaire!$C113, 'Scoring Matrix'!F:F, "="&Questionnaire!F113)) -> 0 | V113: =IF(AND($J113="N/A", $K113="Child"), 0, SUMIFS('Scoring Matrix'!J:J, 'Scoring Matrix'!A:A, "="&Questionnaire!$C113, 'Scoring Matrix'!F:F, "="&Questionnaire!F113)) -> 0 | W113: =IF(AND($J113="N/A", $K113="Child"), 0, SUMIFS('Scoring Matrix'!K:K, 'Scoring Matrix'!A:A, "="&Questionnaire!$C113, 'Scoring Matrix'!F:F, "="&Questionnaire!F113)) -> 0 | Y113: =IF(O113, "", IF(VLOOKUP(C113,'Scoring Matrix'!$A$2:W400,13,FALSE)=1,"N/A", "Yes")) -> Yes | Z113: =IF(O113, "", VLOOKUP(C113, 'Scoring Matrix'!A:D, 3, FALSE)) -> Data | AA113: =IF(O113, "", VLOOKUP(C113, 'Scoring Matrix'!A:D, 4, FALSE)) -> Location
C114: 91 | D114: =VLOOKUP(C114, 'Scoring Matrix'!A:B, 2, FALSE) -> Are there any laws or regulations around where data can be stored geographically or physically (i.e. public server)? | E114: =IF(VLOOKUP(C114, 'Scoring Matrix'!A:E, 5, FALSE)=0, "", VLOOKUP(C114, 'Scoring Matrix'!A:E, 5, FALSE)) -> 0.15 | G114: =IF(VLOOKUP(C114,'Scoring Matrix'!A:N, 14, FALSE)=0, "", VLOOKUP(C114,'Scoring Matrix'!A:N, 14, FALSE)) -> Yes | H114: =IF(VLOOKUP(C114,'Scoring Matrix'!A:N, 14, FALSE)=0, "", VLOOKUP(C114,'Scoring Matrix'!A:N, 14, FALSE)) -> Yes | I114: =IF(ISERROR(SEARCH("*Confirm*", G114)), IF(L114<>1, "Unanswered", "Answered"), "Needs Confirmed") -> Unanswered | J114: =IF(OR(AND(F114="No", K114="Parent"),AND(F114="unknown", K114="Parent")),"N/A", IF(AND(J113="N/A", K114="Child"), "N/A", IF(AND(K114="Parent", F114="Yes"), C114, IF(AND(ISNUMBER(J113), K114="Child"), C114, "")))) ->  | K114: =IF(ISNUMBER(C114), IF(VLOOKUP(C114, 'Scoring Matrix'!A:L, 12, FALSE)="Parent", "Parent", IF(VLOOKUP(C114, 'Scoring Matrix'!A:L, 12, FALSE)="Child", "Child", "")), "") ->  | L114: =IF(OR(AND(K114="child", J114="N/A"), AND(K114="", F114<>""), AND(K114="Parent", J114="N/A")), 1, IF(F114<>"", IF(K115="child", IF(AND(F115<>"", L115<>""), 1, ""), 1), "")) ->  | M114: =IF(ISBLANK(C114), "", IF(ISBLANK(F114),0,E114)) -> 0 | O114: =ISBLANK(C114) -> FALSE | P114: =AND(J114="N/A", K114="Child") -> FALSE | Q114: =IF(K114="Child",IF(AND(F114="",ISNUMBER(J114)), TRUE, FALSE)) -> FALSE | S114: =IF(AND($J114="N/A", $K114="Child"), 0, SUMIFS('Scoring Matrix'!G:G, 'Scoring Matrix'!A:A, "="&Questionnaire!$C114, 'Scoring Matrix'!F:F, "="&Questionnaire!F114)) -> 0 | T114: =IF(AND($J114="N/A", $K114="Child"), 0, SUMIFS('Scoring Matrix'!H:H, 'Scoring Matrix'!A:A, "="&Questionnaire!$C114, 'Scoring Matrix'!F:F, "="&Questionnaire!F114)) -> 0 | U114: =IF(AND($J114="N/A", $K114="Child"), 0, SUMIFS('Scoring Matrix'!I:I, 'Scoring Matrix'!A:A, "="&Questionnaire!$C114, 'Scoring Matrix'!F:F, "="&Questionnaire!F114)) -> 0 | V114: =IF(AND($J114="N/A", $K114="Child"), 0, SUMIFS('Scoring Matrix'!J:J, 'Scoring Matrix'!A:A, "="&Questionnaire!$C114, 'Scoring Matrix'!F:F, "="&Questionnaire!F114)) -> 0 | W114: =IF(AND($J114="N/A", $K114="Child"), 0, SUMIFS('Scoring Matrix'!K:K, 'Scoring Matrix'!A:A, "="&Questionnaire!$C114, 'Scoring Matrix'!F:F, "="&Questionnaire!F114)) -> 0 | Y114: =IF(O114, "", IF(VLOOKUP(C114,'Scoring Matrix'!$A$2:W400,13,FALSE)=1,"N/A", "Yes")) -> Yes | Z114: =IF(O114, "", VLOOKUP(C114, 'Scoring Matrix'!A:D, 3, FALSE)) -> Data | AA114: =IF(O114, "", VLOOKUP(C114, 'Scoring Matrix'!A:D, 4, FALSE)) -> Location
D115: Retention and Validation | E115: =SUM(E116:E123) -> 0.25 | I115: =IF(ISERROR(SEARCH("*Confirm*", G115)), IF(L115<>1, "Unanswered", "Answered"), "Needs Confirmed") -> Unanswered | J115: =IF(OR(AND(F115="No", K115="Parent"),AND(F115="unknown", K115="Parent")),"N/A", IF(AND(J114="N/A", K115="Child"), "N/A", IF(AND(K115="Parent", F115="Yes"), C115, IF(AND(ISNUMBER(J114), K115="Child"), C115, "")))) ->  | K115: =IF(ISNUMBER(C115), IF(VLOOKUP(C115, 'Scoring Matrix'!A:L, 12, FALSE)="Parent", "Parent", IF(VLOOKUP(C115, 'Scoring Matrix'!A:L, 12, FALSE)="Child", "Child", "")), "") ->  | L115: =IF(OR(AND(K115="child", J115="N/A"), AND(K115="", F115<>""), AND(K115="Parent", J115="N/A")), 1, IF(F115<>"", IF(K116="child", IF(AND(F116<>"", L116<>""), 1, ""), 1), "")) ->  | M115: =IF(ISBLANK(C115), "", IF(ISBLANK(F115),0,E115)) ->  | O115: =ISBLANK(C115) -> TRUE | P115: =AND(J115="N/A", K115="Child") -> FALSE | Q115: =IF(K115="Child",IF(AND(F115="",ISNUMBER(J115)), TRUE, FALSE)) -> FALSE | S115: =IF(AND($J115="N/A", $K115="Child"), 0, SUMIFS('Scoring Matrix'!G:G, 'Scoring Matrix'!A:A, "="&Questionnaire!$C115, 'Scoring Matrix'!F:F, "="&Questionnaire!F115)) -> 0 | T115: =IF(AND($J115="N/A", $K115="Child"), 0, SUMIFS('Scoring Matrix'!H:H, 'Scoring Matrix'!A:A, "="&Questionnaire!$C115, 'Scoring Matrix'!F:F, "="&Questionnaire!F115)) -> 0 | U115: =IF(AND($J115="N/A", $K115="Child"), 0, SUMIFS('Scoring Matrix'!I:I, 'Scoring Matrix'!A:A, "="&Questionnaire!$C115, 'Scoring Matrix'!F:F, "="&Questionnaire!F115)) -> 0 | V115: =IF(AND($J115="N/A", $K115="Child"), 0, SUMIFS('Scoring Matrix'!J:J, 'Scoring Matrix'!A:A, "="&Questionnaire!$C115, 'Scoring Matrix'!F:F, "="&Questionnaire!F115)) -> 0 | W115: =IF(AND($J115="N/A", $K115="Child"), 0, SUMIFS('Scoring Matrix'!K:K, 'Scoring Matrix'!A:A, "="&Questionnaire!$C115, 'Scoring Matrix'!F:F, "="&Questionnaire!F115)) -> 0 | Y115: =IF(O115, "", IF(VLOOKUP(C115,'Scoring Matrix'!$A$2:W400,13,FALSE)=1,"N/A", "Yes")) ->  | Z115: =IF(O115, "", VLOOKUP(C115, 'Scoring Matrix'!A:D, 3, FALSE)) ->  | AA115: =IF(O115, "", VLOOKUP(C115, 'Scoring Matrix'!A:D, 4, FALSE)) -> 
C116: =C114+1 -> 92 | D116: =VLOOKUP(C116, 'Scoring Matrix'!A:B, 2, FALSE) -> Are there rules regarding how data is classified (i.e. confidential, internal use, public, etc.)? | E116: =IF(VLOOKUP(C116, 'Scoring Matrix'!A:E, 5, FALSE)=0, "", VLOOKUP(C116, 'Scoring Matrix'!A:E, 5, FALSE)) -> 0.05 | G116: =IF(VLOOKUP(C116,'Scoring Matrix'!A:N, 14, FALSE)=0, "", VLOOKUP(C116,'Scoring Matrix'!A:N, 14, FALSE)) -> Always | H116: =IF(VLOOKUP(C116,'Scoring Matrix'!A:N, 14, FALSE)=0, "", VLOOKUP(C116,'Scoring Matrix'!A:N, 14, FALSE)) -> Always | I116: Unanswered | K116: =IF(ISNUMBER(C116), IF(VLOOKUP(C116, 'Scoring Matrix'!A:L, 12, FALSE)="Parent", "Parent", IF(VLOOKUP(C116, 'Scoring Matrix'!A:L, 12, FALSE)="Child", "Child", "")), "") ->  | M116: 0 | O116: FALSE | P116: FALSE | Q116: FALSE | S116: =IF(AND($J116="N/A", $K116="Child"), 0, SUMIFS('Scoring Matrix'!G:G, 'Scoring Matrix'!A:A, "="&Questionnaire!$C116, 'Scoring Matrix'!F:F, "="&Questionnaire!F116)) -> 0 | T116: =IF(AND($J116="N/A", $K116="Child"), 0, SUMIFS('Scoring Matrix'!H:H, 'Scoring Matrix'!A:A, "="&Questionnaire!$C116, 'Scoring Matrix'!F:F, "="&Questionnaire!F116)) -> 0 | U116: =IF(AND($J116="N/A", $K116="Child"), 0, SUMIFS('Scoring Matrix'!I:I, 'Scoring Matrix'!A:A, "="&Questionnaire!$C116, 'Scoring Matrix'!F:F, "="&Questionnaire!F116)) -> 0 | V116: =IF(AND($J116="N/A", $K116="Child"), 0, SUMIFS('Scoring Matrix'!J:J, 'Scoring Matrix'!A:A, "="&Questionnaire!$C116, 'Scoring Matrix'!F:F, "="&Questionnaire!F116)) -> 0 | W116: =IF(AND($J116="N/A", $K116="Child"), 0, SUMIFS('Scoring Matrix'!K:K, 'Scoring Matrix'!A:A, "="&Questionnaire!$C116, 'Scoring Matrix'!F:F, "="&Questionnaire!F116)) -> 0 | Y116: =IF(O116, "", IF(VLOOKUP(C116,'Scoring Matrix'!$A$2:W400,13,FALSE)=1,"N/A", "Yes")) -> Yes | Z116: =IF(O116, "", VLOOKUP(C116, 'Scoring Matrix'!A:D, 3, FALSE)) -> Data | AA116: =IF(O116, "", VLOOKUP(C116, 'Scoring Matrix'!A:D, 4, FALSE)) -> Retention & Validation
C117: =C116+1 -> 93 | D117: =VLOOKUP(C117, 'Scoring Matrix'!A:B, 2, FALSE) -> Is there a clear understanding of who owns and maintains data sets? | E117: =IF(VLOOKUP(C117, 'Scoring Matrix'!A:E, 5, FALSE)=0, "", VLOOKUP(C117, 'Scoring Matrix'!A:E, 5, FALSE)) -> 0.05 | G117: =IF(VLOOKUP(C117,'Scoring Matrix'!A:N, 14, FALSE)=0, "", VLOOKUP(C117,'Scoring Matrix'!A:N, 14, FALSE)) -> No | H117: =IF(VLOOKUP(C117,'Scoring Matrix'!A:N, 14, FALSE)=0, "", VLOOKUP(C117,'Scoring Matrix'!A:N, 14, FALSE)) -> No | I117: Unanswered | K117: =IF(ISNUMBER(C117), IF(VLOOKUP(C117, 'Scoring Matrix'!A:L, 12, FALSE)="Parent", "Parent", IF(VLOOKUP(C117, 'Scoring Matrix'!A:L, 12, FALSE)="Child", "Child", "")), "") ->  | M117: 0 | O117: FALSE | P117: FALSE | Q117: FALSE | S117: =IF(AND($J117="N/A", $K117="Child"), 0, SUMIFS('Scoring Matrix'!G:G, 'Scoring Matrix'!A:A, "="&Questionnaire!$C117, 'Scoring Matrix'!F:F, "="&Questionnaire!F117)) -> 0 | T117: =IF(AND($J117="N/A", $K117="Child"), 0, SUMIFS('Scoring Matrix'!H:H, 'Scoring Matrix'!A:A, "="&Questionnaire!$C117, 'Scoring Matrix'!F:F, "="&Questionnaire!F117)) -> 0 | U117: =IF(AND($J117="N/A", $K117="Child"), 0, SUMIFS('Scoring Matrix'!I:I, 'Scoring Matrix'!A:A, "="&Questionnaire!$C117, 'Scoring Matrix'!F:F, "="&Questionnaire!F117)) -> 0 | V117: =IF(AND($J117="N/A", $K117="Child"), 0, SUMIFS('Scoring Matrix'!J:J, 'Scoring Matrix'!A:A, "="&Questionnaire!$C117, 'Scoring Matrix'!F:F, "="&Questionnaire!F117)) -> 0 | W117: =IF(AND($J117="N/A", $K117="Child"), 0, SUMIFS('Scoring Matrix'!K:K, 'Scoring Matrix'!A:A, "="&Questionnaire!$C117, 'Scoring Matrix'!F:F, "="&Questionnaire!F117)) -> 0 | Y117: =IF(O117, "", IF(VLOOKUP(C117,'Scoring Matrix'!$A$2:W400,13,FALSE)=1,"N/A", "Yes")) -> Yes | Z117: =IF(O117, "", VLOOKUP(C117, 'Scoring Matrix'!A:D, 3, FALSE)) -> Data | AA117: =IF(O117, "", VLOOKUP(C117, 'Scoring Matrix'!A:D, 4, FALSE)) -> Retention & Validation
C118: =C117+1 -> 94 | D118: =VLOOKUP(C118, 'Scoring Matrix'!A:B, 2, FALSE) -> Is there a data retention policy in place? | E118: =IF(VLOOKUP(C118, 'Scoring Matrix'!A:E, 5, FALSE)=0, "", VLOOKUP(C118, 'Scoring Matrix'!A:E, 5, FALSE)) -> 0.05 | G118: =IF(VLOOKUP(C118,'Scoring Matrix'!A:N, 14, FALSE)=0, "", VLOOKUP(C118,'Scoring Matrix'!A:N, 14, FALSE)) -> No | H118: =IF(VLOOKUP(C118,'Scoring Matrix'!A:N, 14, FALSE)=0, "", VLOOKUP(C118,'Scoring Matrix'!A:N, 14, FALSE)) -> No | I118: Unanswered | K118: =IF(ISNUMBER(C118), IF(VLOOKUP(C118, 'Scoring Matrix'!A:L, 12, FALSE)="Parent", "Parent", IF(VLOOKUP(C118, 'Scoring Matrix'!A:L, 12, FALSE)="Child", "Child", "")), "") -> Parent | M118: 0 | O118: FALSE | P118: FALSE | Q118: FALSE | S118: =IF(AND($J118="N/A", $K118="Child"), 0, SUMIFS('Scoring Matrix'!G:G, 'Scoring Matrix'!A:A, "="&Questionnaire!$C118, 'Scoring Matrix'!F:F, "="&Questionnaire!F118)) -> 0 | T118: =IF(AND($J118="N/A", $K118="Child"), 0, SUMIFS('Scoring Matrix'!H:H, 'Scoring Matrix'!A:A, "="&Questionnaire!$C118, 'Scoring Matrix'!F:F, "="&Questionnaire!F118)) -> 0 | U118: =IF(AND($J118="N/A", $K118="Child"), 0, SUMIFS('Scoring Matrix'!I:I, 'Scoring Matrix'!A:A, "="&Questionnaire!$C118, 'Scoring Matrix'!F:F, "="&Questionnaire!F118)) -> 0 | V118: =IF(AND($J118="N/A", $K118="Child"), 0, SUMIFS('Scoring Matrix'!J:J, 'Scoring Matrix'!A:A, "="&Questionnaire!$C118, 'Scoring Matrix'!F:F, "="&Questionnaire!F118)) -> 0 | W118: =IF(AND($J118="N/A", $K118="Child"), 0, SUMIFS('Scoring Matrix'!K:K, 'Scoring Matrix'!A:A, "="&Questionnaire!$C118, 'Scoring Matrix'!F:F, "="&Questionnaire!F118)) -> 0 | Y118: =IF(O118, "", IF(VLOOKUP(C118,'Scoring Matrix'!$A$2:W400,13,FALSE)=1,"N/A", "Yes")) -> Yes | Z118: =IF(O118, "", VLOOKUP(C118, 'Scoring Matrix'!A:D, 3, FALSE)) -> Data | AA118: =IF(O118, "", VLOOKUP(C118, 'Scoring Matrix'!A:D, 4, FALSE)) -> Retention & Validation
C119: 95 | D119: =VLOOKUP(C119, 'Scoring Matrix'!A:B, 2, FALSE) -> If so, has the process been updated to include cloud based applications? | G119: =IF(VLOOKUP(C119,'Scoring Matrix'!A:N, 14, FALSE)=0, "", VLOOKUP(C119,'Scoring Matrix'!A:N, 14, FALSE)) -> Unknown | H119: =IF(VLOOKUP(C119,'Scoring Matrix'!A:N, 14, FALSE)=0, "", VLOOKUP(C119,'Scoring Matrix'!A:N, 14, FALSE)) -> Unknown | I119: Unanswered | K119: =IF(ISNUMBER(C119), IF(VLOOKUP(C119, 'Scoring Matrix'!A:L, 12, FALSE)="Parent", "Parent", IF(VLOOKUP(C119, 'Scoring Matrix'!A:L, 12, FALSE)="Child", "Child", "")), "") -> Child | M119: 0 | O119: FALSE | P119: FALSE | Q119: FALSE | S119: =IF(AND($J119="N/A", $K119="Child"), 0, SUMIFS('Scoring Matrix'!G:G, 'Scoring Matrix'!A:A, "="&Questionnaire!$C119, 'Scoring Matrix'!F:F, "="&Questionnaire!F119)) -> 0 | T119: =IF(AND($J119="N/A", $K119="Child"), 0, SUMIFS('Scoring Matrix'!H:H, 'Scoring Matrix'!A:A, "="&Questionnaire!$C119, 'Scoring Matrix'!F:F, "="&Questionnaire!F119)) -> 0 | U119: =IF(AND($J119="N/A", $K119="Child"), 0, SUMIFS('Scoring Matrix'!I:I, 'Scoring Matrix'!A:A, "="&Questionnaire!$C119, 'Scoring Matrix'!F:F, "="&Questionnaire!F119)) -> 0 | V119: =IF(AND($J119="N/A", $K119="Child"), 0, SUMIFS('Scoring Matrix'!J:J, 'Scoring Matrix'!A:A, "="&Questionnaire!$C119, 'Scoring Matrix'!F:F, "="&Questionnaire!F119)) -> 0 | W119: =IF(AND($J119="N/A", $K119="Child"), 0, SUMIFS('Scoring Matrix'!K:K, 'Scoring Matrix'!A:A, "="&Questionnaire!$C119, 'Scoring Matrix'!F:F, "="&Questionnaire!F119)) -> 0 | Y119: =IF(O119, "", IF(VLOOKUP(C119,'Scoring Matrix'!$A$2:W400,13,FALSE)=1,"N/A", "Yes")) -> Yes | Z119: =IF(O119, "", VLOOKUP(C119, 'Scoring Matrix'!A:D, 3, FALSE)) -> Data | AA119: =IF(O119, "", VLOOKUP(C119, 'Scoring Matrix'!A:D, 4, FALSE)) -> Retention & Validation
C120: 96 | D120: =VLOOKUP(C120, 'Scoring Matrix'!A:B, 2, FALSE) -> Are there standards that are used to guide how data is captured and stored? These standards would help prevent storing the same data in multiple places, etc. | E120: =IF(VLOOKUP(C120, 'Scoring Matrix'!A:E, 5, FALSE)=0, "", VLOOKUP(C120, 'Scoring Matrix'!A:E, 5, FALSE)) -> 0.05 | G120: =IF(VLOOKUP(C120,'Scoring Matrix'!A:N, 14, FALSE)=0, "", VLOOKUP(C120,'Scoring Matrix'!A:N, 14, FALSE)) -> Yes | H120: =IF(VLOOKUP(C120,'Scoring Matrix'!A:N, 14, FALSE)=0, "", VLOOKUP(C120,'Scoring Matrix'!A:N, 14, FALSE)) -> Yes | I120: Unanswered | K120: =IF(ISNUMBER(C120), IF(VLOOKUP(C120, 'Scoring Matrix'!A:L, 12, FALSE)="Parent", "Parent", IF(VLOOKUP(C120, 'Scoring Matrix'!A:L, 12, FALSE)="Child", "Child", "")), "") -> Parent | M120: 0 | O120: FALSE | P120: FALSE | Q120: FALSE | S120: =IF(AND($J120="N/A", $K120="Child"), 0, SUMIFS('Scoring Matrix'!G:G, 'Scoring Matrix'!A:A, "="&Questionnaire!$C120, 'Scoring Matrix'!F:F, "="&Questionnaire!F120)) -> 0 | T120: =IF(AND($J120="N/A", $K120="Child"), 0, SUMIFS('Scoring Matrix'!H:H, 'Scoring Matrix'!A:A, "="&Questionnaire!$C120, 'Scoring Matrix'!F:F, "="&Questionnaire!F120)) -> 0 | U120: =IF(AND($J120="N/A", $K120="Child"), 0, SUMIFS('Scoring Matrix'!I:I, 'Scoring Matrix'!A:A, "="&Questionnaire!$C120, 'Scoring Matrix'!F:F, "="&Questionnaire!F120)) -> 0 | V120: =IF(AND($J120="N/A", $K120="Child"), 0, SUMIFS('Scoring Matrix'!J:J, 'Scoring Matrix'!A:A, "="&Questionnaire!$C120, 'Scoring Matrix'!F:F, "="&Questionnaire!F120)) -> 0 | W120: =IF(AND($J120="N/A", $K120="Child"), 0, SUMIFS('Scoring Matrix'!K:K, 'Scoring Matrix'!A:A, "="&Questionnaire!$C120, 'Scoring Matrix'!F:F, "="&Questionnaire!F120)) -> 0 | Y120: =IF(O120, "", IF(VLOOKUP(C120,'Scoring Matrix'!$A$2:W400,13,FALSE)=1,"N/A", "Yes")) -> Yes | Z120: =IF(O120, "", VLOOKUP(C120, 'Scoring Matrix'!A:D, 3, FALSE)) -> Data | AA120: =IF(O120, "", VLOOKUP(C120, 'Scoring Matrix'!A:D, 4, FALSE)) -> Retention & Validation
C121: =C120+1 -> 97 | D121: =VLOOKUP(C121, 'Scoring Matrix'!A:B, 2, FALSE) -> Are these standards consistent across departments/ministries? | G121: =IF(VLOOKUP(C121,'Scoring Matrix'!A:N, 14, FALSE)=0, "", VLOOKUP(C121,'Scoring Matrix'!A:N, 14, FALSE)) -> Unknown | H121: =IF(VLOOKUP(C121,'Scoring Matrix'!A:N, 14, FALSE)=0, "", VLOOKUP(C121,'Scoring Matrix'!A:N, 14, FALSE)) -> Unknown | I121: Unanswered | K121: =IF(ISNUMBER(C121), IF(VLOOKUP(C121, 'Scoring Matrix'!A:L, 12, FALSE)="Parent", "Parent", IF(VLOOKUP(C121, 'Scoring Matrix'!A:L, 12, FALSE)="Child", "Child", "")), "") -> Child | M121: 0 | O121: FALSE | P121: FALSE | Q121: FALSE | S121: =IF(AND($J121="N/A", $K121="Child"), 0, SUMIFS('Scoring Matrix'!G:G, 'Scoring Matrix'!A:A, "="&Questionnaire!$C121, 'Scoring Matrix'!F:F, "="&Questionnaire!F121)) -> 0 | T121: =IF(AND($J121="N/A", $K121="Child"), 0, SUMIFS('Scoring Matrix'!H:H, 'Scoring Matrix'!A:A, "="&Questionnaire!$C121, 'Scoring Matrix'!F:F, "="&Questionnaire!F121)) -> 0 | U121: =IF(AND($J121="N/A", $K121="Child"), 0, SUMIFS('Scoring Matrix'!I:I, 'Scoring Matrix'!A:A, "="&Questionnaire!$C121, 'Scoring Matrix'!F:F, "="&Questionnaire!F121)) -> 0 | V121: =IF(AND($J121="N/A", $K121="Child"), 0, SUMIFS('Scoring Matrix'!J:J, 'Scoring Matrix'!A:A, "="&Questionnaire!$C121, 'Scoring Matrix'!F:F, "="&Questionnaire!F121)) -> 0 | W121: =IF(AND($J121="N/A", $K121="Child"), 0, SUMIFS('Scoring Matrix'!K:K, 'Scoring Matrix'!A:A, "="&Questionnaire!$C121, 'Scoring Matrix'!F:F, "="&Questionnaire!F121)) -> 0 | Y121: =IF(O121, "", IF(VLOOKUP(C121,'Scoring Matrix'!$A$2:W400,13,FALSE)=1,"N/A", "Yes")) -> Yes | Z121: =IF(O121, "", VLOOKUP(C121, 'Scoring Matrix'!A:D, 3, FALSE)) -> Data | AA121: =IF(O121, "", VLOOKUP(C121, 'Scoring Matrix'!A:D, 4, FALSE)) -> Retention & Validation
C122: =C121+1 -> 98 | D122: =VLOOKUP(C122, 'Scoring Matrix'!A:B, 2, FALSE) -> Are these standards enforced? | G122: =IF(VLOOKUP(C122,'Scoring Matrix'!A:N, 14, FALSE)=0, "", VLOOKUP(C122,'Scoring Matrix'!A:N, 14, FALSE)) -> Always | H122: =IF(VLOOKUP(C122,'Scoring Matrix'!A:N, 14, FALSE)=0, "", VLOOKUP(C122,'Scoring Matrix'!A:N, 14, FALSE)) -> Always | I122: Unanswered | K122: =IF(ISNUMBER(C122), IF(VLOOKUP(C122, 'Scoring Matrix'!A:L, 12, FALSE)="Parent", "Parent", IF(VLOOKUP(C122, 'Scoring Matrix'!A:L, 12, FALSE)="Child", "Child", "")), "") -> Child | M122: 0 | O122: FALSE | P122: FALSE | Q122: FALSE | S122: =IF(AND($J122="N/A", $K122="Child"), 0, SUMIFS('Scoring Matrix'!G:G, 'Scoring Matrix'!A:A, "="&Questionnaire!$C122, 'Scoring Matrix'!F:F, "="&Questionnaire!F122)) -> 0 | T122: =IF(AND($J122="N/A", $K122="Child"), 0, SUMIFS('Scoring Matrix'!H:H, 'Scoring Matrix'!A:A, "="&Questionnaire!$C122, 'Scoring Matrix'!F:F, "="&Questionnaire!F122)) -> 0 | U122: =IF(AND($J122="N/A", $K122="Child"), 0, SUMIFS('Scoring Matrix'!I:I, 'Scoring Matrix'!A:A, "="&Questionnaire!$C122, 'Scoring Matrix'!F:F, "="&Questionnaire!F122)) -> 0 | V122: =IF(AND($J122="N/A", $K122="Child"), 0, SUMIFS('Scoring Matrix'!J:J, 'Scoring Matrix'!A:A, "="&Questionnaire!$C122, 'Scoring Matrix'!F:F, "="&Questionnaire!F122)) -> 0 | W122: =IF(AND($J122="N/A", $K122="Child"), 0, SUMIFS('Scoring Matrix'!K:K, 'Scoring Matrix'!A:A, "="&Questionnaire!$C122, 'Scoring Matrix'!F:F, "="&Questionnaire!F122)) -> 0 | Y122: =IF(O122, "", IF(VLOOKUP(C122,'Scoring Matrix'!$A$2:W400,13,FALSE)=1,"N/A", "Yes")) -> Yes | Z122: =IF(O122, "", VLOOKUP(C122, 'Scoring Matrix'!A:D, 3, FALSE)) -> Data | AA122: =IF(O122, "", VLOOKUP(C122, 'Scoring Matrix'!A:D, 4, FALSE)) -> Retention & Validation
C123: 99 | D123: =VLOOKUP(C123, 'Scoring Matrix'!A:B, 2, FALSE) -> Are there existing and enforced checks on data added to the system (data validation)? | E123: =IF(VLOOKUP(C123, 'Scoring Matrix'!A:E, 5, FALSE)=0, "", VLOOKUP(C123, 'Scoring Matrix'!A:E, 5, FALSE)) -> 0.05 | G123: =IF(VLOOKUP(C123,'Scoring Matrix'!A:N, 14, FALSE)=0, "", VLOOKUP(C123,'Scoring Matrix'!A:N, 14, FALSE)) -> Always | H123: =IF(VLOOKUP(C123,'Scoring Matrix'!A:N, 14, FALSE)=0, "", VLOOKUP(C123,'Scoring Matrix'!A:N, 14, FALSE)) -> Always | I123: Unanswered | K123: =IF(ISNUMBER(C123), IF(VLOOKUP(C123, 'Scoring Matrix'!A:L, 12, FALSE)="Parent", "Parent", IF(VLOOKUP(C123, 'Scoring Matrix'!A:L, 12, FALSE)="Child", "Child", "")), "") ->  | M123: 0 | O123: FALSE | P123: FALSE | Q123: FALSE | S123: =IF(AND($J123="N/A", $K123="Child"), 0, SUMIFS('Scoring Matrix'!G:G, 'Scoring Matrix'!A:A, "="&Questionnaire!$C123, 'Scoring Matrix'!F:F, "="&Questionnaire!F123)) -> 0 | T123: =IF(AND($J123="N/A", $K123="Child"), 0, SUMIFS('Scoring Matrix'!H:H, 'Scoring Matrix'!A:A, "="&Questionnaire!$C123, 'Scoring Matrix'!F:F, "="&Questionnaire!F123)) -> 0 | U123: =IF(AND($J123="N/A", $K123="Child"), 0, SUMIFS('Scoring Matrix'!I:I, 'Scoring Matrix'!A:A, "="&Questionnaire!$C123, 'Scoring Matrix'!F:F, "="&Questionnaire!F123)) -> 0 | V123: =IF(AND($J123="N/A", $K123="Child"), 0, SUMIFS('Scoring Matrix'!J:J, 'Scoring Matrix'!A:A, "="&Questionnaire!$C123, 'Scoring Matrix'!F:F, "="&Questionnaire!F123)) -> 0 | W123: =IF(AND($J123="N/A", $K123="Child"), 0, SUMIFS('Scoring Matrix'!K:K, 'Scoring Matrix'!A:A, "="&Questionnaire!$C123, 'Scoring Matrix'!F:F, "="&Questionnaire!F123)) -> 0 | Y123: =IF(O123, "", IF(VLOOKUP(C123,'Scoring Matrix'!$A$2:W400,13,FALSE)=1,"N/A", "Yes")) -> Yes | Z123: =IF(O123, "", VLOOKUP(C123, 'Scoring Matrix'!A:D, 3, FALSE)) -> Data | AA123: =IF(O123, "", VLOOKUP(C123, 'Scoring Matrix'!A:D, 4, FALSE)) -> Retention & Validation
D124: Infrastructure | E124: =E125+E132+E142 -> 1 | I124: Unanswered | K124: =IF(ISNUMBER(C124), IF(VLOOKUP(C124, 'Scoring Matrix'!A:L, 12, FALSE)="Parent", "Parent", IF(VLOOKUP(C124, 'Scoring Matrix'!A:L, 12, FALSE)="Child", "Child", "")), "") ->  | O124: TRUE | P124: FALSE | Q124: FALSE | S124: =IF(AND($J124="N/A", $K124="Child"), 0, SUMIFS('Scoring Matrix'!G:G, 'Scoring Matrix'!A:A, "="&Questionnaire!$C124, 'Scoring Matrix'!F:F, "="&Questionnaire!F124)) -> 0 | T124: =IF(AND($J124="N/A", $K124="Child"), 0, SUMIFS('Scoring Matrix'!H:H, 'Scoring Matrix'!A:A, "="&Questionnaire!$C124, 'Scoring Matrix'!F:F, "="&Questionnaire!F124)) -> 0 | U124: =IF(AND($J124="N/A", $K124="Child"), 0, SUMIFS('Scoring Matrix'!I:I, 'Scoring Matrix'!A:A, "="&Questionnaire!$C124, 'Scoring Matrix'!F:F, "="&Questionnaire!F124)) -> 0 | V124: =IF(AND($J124="N/A", $K124="Child"), 0, SUMIFS('Scoring Matrix'!J:J, 'Scoring Matrix'!A:A, "="&Questionnaire!$C124, 'Scoring Matrix'!F:F, "="&Questionnaire!F124)) -> 0 | W124: =IF(AND($J124="N/A", $K124="Child"), 0, SUMIFS('Scoring Matrix'!K:K, 'Scoring Matrix'!A:A, "="&Questionnaire!$C124, 'Scoring Matrix'!F:F, "="&Questionnaire!F124)) -> 0 | Y124: =IF(O124, "", IF(VLOOKUP(C124,'Scoring Matrix'!$A$2:W400,13,FALSE)=1,"N/A", "Yes")) ->  | Z124: =IF(O124, "", VLOOKUP(C124, 'Scoring Matrix'!A:D, 3, FALSE)) ->  | AA124: =IF(O124, "", VLOOKUP(C124, 'Scoring Matrix'!A:D, 4, FALSE)) -> 
D125: Capacity | E125: =SUM(E126:E131) -> 0.25 | I125: Unanswered | K125: =IF(ISNUMBER(C125), IF(VLOOKUP(C125, 'Scoring Matrix'!A:L, 12, FALSE)="Parent", "Parent", IF(VLOOKUP(C125, 'Scoring Matrix'!A:L, 12, FALSE)="Child", "Child", "")), "") ->  | O125: TRUE | P125: FALSE | Q125: FALSE | S125: =IF(AND($J125="N/A", $K125="Child"), 0, SUMIFS('Scoring Matrix'!G:G, 'Scoring Matrix'!A:A, "="&Questionnaire!$C125, 'Scoring Matrix'!F:F, "="&Questionnaire!F125)) -> 0 | T125: =IF(AND($J125="N/A", $K125="Child"), 0, SUMIFS('Scoring Matrix'!H:H, 'Scoring Matrix'!A:A, "="&Questionnaire!$C125, 'Scoring Matrix'!F:F, "="&Questionnaire!F125)) -> 0 | U125: =IF(AND($J125="N/A", $K125="Child"), 0, SUMIFS('Scoring Matrix'!I:I, 'Scoring Matrix'!A:A, "="&Questionnaire!$C125, 'Scoring Matrix'!F:F, "="&Questionnaire!F125)) -> 0 | V125: =IF(AND($J125="N/A", $K125="Child"), 0, SUMIFS('Scoring Matrix'!J:J, 'Scoring Matrix'!A:A, "="&Questionnaire!$C125, 'Scoring Matrix'!F:F, "="&Questionnaire!F125)) -> 0 | W125: =IF(AND($J125="N/A", $K125="Child"), 0, SUMIFS('Scoring Matrix'!K:K, 'Scoring Matrix'!A:A, "="&Questionnaire!$C125, 'Scoring Matrix'!F:F, "="&Questionnaire!F125)) -> 0 | Y125: =IF(O125, "", IF(VLOOKUP(C125,'Scoring Matrix'!$A$2:W400,13,FALSE)=1,"N/A", "Yes")) ->  | Z125: =IF(O125, "", VLOOKUP(C125, 'Scoring Matrix'!A:D, 3, FALSE)) ->  | AA125: =IF(O125, "", VLOOKUP(C125, 'Scoring Matrix'!A:D, 4, FALSE)) -> 
C126: =C123+1 -> 100 | D126: =VLOOKUP(C126, 'Scoring Matrix'!A:B, 2, FALSE) -> Does the government have a location specifically to house servers (dedicated data center)? | E126: =IF(VLOOKUP(C126, 'Scoring Matrix'!A:E, 5, FALSE)=0, "", VLOOKUP(C126, 'Scoring Matrix'!A:E, 5, FALSE)) -> 0.15 | G126: =IF(VLOOKUP(C126,'Scoring Matrix'!A:N, 14, FALSE)=0, "", VLOOKUP(C126,'Scoring Matrix'!A:N, 14, FALSE)) -> Yes | H126: =IF(VLOOKUP(C126,'Scoring Matrix'!A:N, 14, FALSE)=0, "", VLOOKUP(C126,'Scoring Matrix'!A:N, 14, FALSE)) -> Yes | I126: Unanswered | K126: =IF(ISNUMBER(C126), IF(VLOOKUP(C126, 'Scoring Matrix'!A:L, 12, FALSE)="Parent", "Parent", IF(VLOOKUP(C126, 'Scoring Matrix'!A:L, 12, FALSE)="Child", "Child", "")), "") -> Parent | M126: 0 | O126: FALSE | P126: FALSE | Q126: FALSE | S126: =IF(AND($J126="N/A", $K126="Child"), 0, SUMIFS('Scoring Matrix'!G:G, 'Scoring Matrix'!A:A, "="&Questionnaire!$C126, 'Scoring Matrix'!F:F, "="&Questionnaire!F126)) -> 0 | T126: =IF(AND($J126="N/A", $K126="Child"), 0, SUMIFS('Scoring Matrix'!H:H, 'Scoring Matrix'!A:A, "="&Questionnaire!$C126, 'Scoring Matrix'!F:F, "="&Questionnaire!F126)) -> 0 | U126: =IF(AND($J126="N/A", $K126="Child"), 0, SUMIFS('Scoring Matrix'!I:I, 'Scoring Matrix'!A:A, "="&Questionnaire!$C126, 'Scoring Matrix'!F:F, "="&Questionnaire!F126)) -> 0 | V126: =IF(AND($J126="N/A", $K126="Child"), 0, SUMIFS('Scoring Matrix'!J:J, 'Scoring Matrix'!A:A, "="&Questionnaire!$C126, 'Scoring Matrix'!F:F, "="&Questionnaire!F126)) -> 0 | W126: =IF(AND($J126="N/A", $K126="Child"), 0, SUMIFS('Scoring Matrix'!K:K, 'Scoring Matrix'!A:A, "="&Questionnaire!$C126, 'Scoring Matrix'!F:F, "="&Questionnaire!F126)) -> 0 | Y126: =IF(O126, "", IF(VLOOKUP(C126,'Scoring Matrix'!$A$2:W400,13,FALSE)=1,"N/A", "Yes")) -> Yes | Z126: =IF(O126, "", VLOOKUP(C126, 'Scoring Matrix'!A:D, 3, FALSE)) -> Infrastructure | AA126: =IF(O126, "", VLOOKUP(C126, 'Scoring Matrix'!A:D, 4, FALSE)) -> Capacity
C127: 101 | D127: =VLOOKUP(C127, 'Scoring Matrix'!A:B, 2, FALSE) -> How many dedicated data centers are there? | G127: =IF(VLOOKUP(C127,'Scoring Matrix'!A:N, 14, FALSE)=0, "", VLOOKUP(C127,'Scoring Matrix'!A:N, 14, FALSE)) -> 1 | H127: =IF(VLOOKUP(C127,'Scoring Matrix'!A:N, 14, FALSE)=0, "", VLOOKUP(C127,'Scoring Matrix'!A:N, 14, FALSE)) -> 1 | I127: Unanswered | K127: =IF(ISNUMBER(C127), IF(VLOOKUP(C127, 'Scoring Matrix'!A:L, 12, FALSE)="Parent", "Parent", IF(VLOOKUP(C127, 'Scoring Matrix'!A:L, 12, FALSE)="Child", "Child", "")), "") -> Child | M127: 0 | O127: FALSE | P127: FALSE | Q127: FALSE | S127: =IF(AND($J127="N/A", $K127="Child"), 0, SUMIFS('Scoring Matrix'!G:G, 'Scoring Matrix'!A:A, "="&Questionnaire!$C127, 'Scoring Matrix'!F:F, "="&Questionnaire!F127)) -> 0 | T127: =IF(AND($J127="N/A", $K127="Child"), 0, SUMIFS('Scoring Matrix'!H:H, 'Scoring Matrix'!A:A, "="&Questionnaire!$C127, 'Scoring Matrix'!F:F, "="&Questionnaire!F127)) -> 0 | U127: =IF(AND($J127="N/A", $K127="Child"), 0, SUMIFS('Scoring Matrix'!I:I, 'Scoring Matrix'!A:A, "="&Questionnaire!$C127, 'Scoring Matrix'!F:F, "="&Questionnaire!F127)) -> 0 | V127: =IF(AND($J127="N/A", $K127="Child"), 0, SUMIFS('Scoring Matrix'!J:J, 'Scoring Matrix'!A:A, "="&Questionnaire!$C127, 'Scoring Matrix'!F:F, "="&Questionnaire!F127)) -> 0 | W127: =IF(AND($J127="N/A", $K127="Child"), 0, SUMIFS('Scoring Matrix'!K:K, 'Scoring Matrix'!A:A, "="&Questionnaire!$C127, 'Scoring Matrix'!F:F, "="&Questionnaire!F127)) -> 0 | Y127: =IF(O127, "", IF(VLOOKUP(C127,'Scoring Matrix'!$A$2:W400,13,FALSE)=1,"N/A", "Yes")) -> Yes | Z127: =IF(O127, "", VLOOKUP(C127, 'Scoring Matrix'!A:D, 3, FALSE)) -> Infrastructure | AA127: =IF(O127, "", VLOOKUP(C127, 'Scoring Matrix'!A:D, 4, FALSE)) -> Capacity
C128: =C127+1 -> 102 | D128: =VLOOKUP(C128, 'Scoring Matrix'!A:B, 2, FALSE) -> Do the dedicated data centers have backup power or failover capabilities? | G128: =IF(VLOOKUP(C128,'Scoring Matrix'!A:N, 14, FALSE)=0, "", VLOOKUP(C128,'Scoring Matrix'!A:N, 14, FALSE)) -> Yes | H128: =IF(VLOOKUP(C128,'Scoring Matrix'!A:N, 14, FALSE)=0, "", VLOOKUP(C128,'Scoring Matrix'!A:N, 14, FALSE)) -> Yes | I128: Unanswered | K128: =IF(ISNUMBER(C128), IF(VLOOKUP(C128, 'Scoring Matrix'!A:L, 12, FALSE)="Parent", "Parent", IF(VLOOKUP(C128, 'Scoring Matrix'!A:L, 12, FALSE)="Child", "Child", "")), "") -> Child | M128: 0 | O128: FALSE | P128: FALSE | Q128: FALSE | S128: =IF(AND($J128="N/A", $K128="Child"), 0, SUMIFS('Scoring Matrix'!G:G, 'Scoring Matrix'!A:A, "="&Questionnaire!$C128, 'Scoring Matrix'!F:F, "="&Questionnaire!F128)) -> 0 | T128: =IF(AND($J128="N/A", $K128="Child"), 0, SUMIFS('Scoring Matrix'!H:H, 'Scoring Matrix'!A:A, "="&Questionnaire!$C128, 'Scoring Matrix'!F:F, "="&Questionnaire!F128)) -> 0 | U128: =IF(AND($J128="N/A", $K128="Child"), 0, SUMIFS('Scoring Matrix'!I:I, 'Scoring Matrix'!A:A, "="&Questionnaire!$C128, 'Scoring Matrix'!F:F, "="&Questionnaire!F128)) -> 0 | V128: =IF(AND($J128="N/A", $K128="Child"), 0, SUMIFS('Scoring Matrix'!J:J, 'Scoring Matrix'!A:A, "="&Questionnaire!$C128, 'Scoring Matrix'!F:F, "="&Questionnaire!F128)) -> 0 | W128: =IF(AND($J128="N/A", $K128="Child"), 0, SUMIFS('Scoring Matrix'!K:K, 'Scoring Matrix'!A:A, "="&Questionnaire!$C128, 'Scoring Matrix'!F:F, "="&Questionnaire!F128)) -> 0 | Y128: =IF(O128, "", IF(VLOOKUP(C128,'Scoring Matrix'!$A$2:W400,13,FALSE)=1,"N/A", "Yes")) -> Yes | Z128: =IF(O128, "", VLOOKUP(C128, 'Scoring Matrix'!A:D, 3, FALSE)) -> Infrastructure | AA128: =IF(O128, "", VLOOKUP(C128, 'Scoring Matrix'!A:D, 4, FALSE)) -> Capacity
C129: =C128+1 -> 103 | D129: =VLOOKUP(C129, 'Scoring Matrix'!A:B, 2, FALSE) -> Are the buildings owned or leased? | G129: =IF(VLOOKUP(C129,'Scoring Matrix'!A:N, 14, FALSE)=0, "", VLOOKUP(C129,'Scoring Matrix'!A:N, 14, FALSE)) -> Leased | H129: =IF(VLOOKUP(C129,'Scoring Matrix'!A:N, 14, FALSE)=0, "", VLOOKUP(C129,'Scoring Matrix'!A:N, 14, FALSE)) -> Leased | I129: Unanswered | K129: =IF(ISNUMBER(C129), IF(VLOOKUP(C129, 'Scoring Matrix'!A:L, 12, FALSE)="Parent", "Parent", IF(VLOOKUP(C129, 'Scoring Matrix'!A:L, 12, FALSE)="Child", "Child", "")), "") -> Child | M129: 0 | O129: FALSE | P129: FALSE | Q129: FALSE | S129: =IF(AND($J129="N/A", $K129="Child"), 0, SUMIFS('Scoring Matrix'!G:G, 'Scoring Matrix'!A:A, "="&Questionnaire!$C129, 'Scoring Matrix'!F:F, "="&Questionnaire!F129)) -> 0 | T129: =IF(AND($J129="N/A", $K129="Child"), 0, SUMIFS('Scoring Matrix'!H:H, 'Scoring Matrix'!A:A, "="&Questionnaire!$C129, 'Scoring Matrix'!F:F, "="&Questionnaire!F129)) -> 0 | U129: =IF(AND($J129="N/A", $K129="Child"), 0, SUMIFS('Scoring Matrix'!I:I, 'Scoring Matrix'!A:A, "="&Questionnaire!$C129, 'Scoring Matrix'!F:F, "="&Questionnaire!F129)) -> 0 | V129: =IF(AND($J129="N/A", $K129="Child"), 0, SUMIFS('Scoring Matrix'!J:J, 'Scoring Matrix'!A:A, "="&Questionnaire!$C129, 'Scoring Matrix'!F:F, "="&Questionnaire!F129)) -> 0 | W129: =IF(AND($J129="N/A", $K129="Child"), 0, SUMIFS('Scoring Matrix'!K:K, 'Scoring Matrix'!A:A, "="&Questionnaire!$C129, 'Scoring Matrix'!F:F, "="&Questionnaire!F129)) -> 0 | Y129: =IF(O129, "", IF(VLOOKUP(C129,'Scoring Matrix'!$A$2:W400,13,FALSE)=1,"N/A", "Yes")) -> Yes | Z129: =IF(O129, "", VLOOKUP(C129, 'Scoring Matrix'!A:D, 3, FALSE)) -> Infrastructure | AA129: =IF(O129, "", VLOOKUP(C129, 'Scoring Matrix'!A:D, 4, FALSE)) -> Capacity
C130: =C129+1 -> 104 | D130: =VLOOKUP(C130, 'Scoring Matrix'!A:B, 2, FALSE) -> Is there physical space (i.e. rack or floor) for additional servers in existing server areas? | E130: =IF(VLOOKUP(C130, 'Scoring Matrix'!A:E, 5, FALSE)=0, "", VLOOKUP(C130, 'Scoring Matrix'!A:E, 5, FALSE)) -> 0.05 | G130: =IF(VLOOKUP(C130,'Scoring Matrix'!A:N, 14, FALSE)=0, "", VLOOKUP(C130,'Scoring Matrix'!A:N, 14, FALSE)) -> Yes | H130: =IF(VLOOKUP(C130,'Scoring Matrix'!A:N, 14, FALSE)=0, "", VLOOKUP(C130,'Scoring Matrix'!A:N, 14, FALSE)) -> Yes | I130: Unanswered | K130: =IF(ISNUMBER(C130), IF(VLOOKUP(C130, 'Scoring Matrix'!A:L, 12, FALSE)="Parent", "Parent", IF(VLOOKUP(C130, 'Scoring Matrix'!A:L, 12, FALSE)="Child", "Child", "")), "") ->  | M130: 0 | O130: FALSE | P130: FALSE | Q130: FALSE | S130: =IF(AND($J130="N/A", $K130="Child"), 0, SUMIFS('Scoring Matrix'!G:G, 'Scoring Matrix'!A:A, "="&Questionnaire!$C130, 'Scoring Matrix'!F:F, "="&Questionnaire!F130)) -> 0 | T130: =IF(AND($J130="N/A", $K130="Child"), 0, SUMIFS('Scoring Matrix'!H:H, 'Scoring Matrix'!A:A, "="&Questionnaire!$C130, 'Scoring Matrix'!F:F, "="&Questionnaire!F130)) -> 0 | U130: =IF(AND($J130="N/A", $K130="Child"), 0, SUMIFS('Scoring Matrix'!I:I, 'Scoring Matrix'!A:A, "="&Questionnaire!$C130, 'Scoring Matrix'!F:F, "="&Questionnaire!F130)) -> 0 | V130: =IF(AND($J130="N/A", $K130="Child"), 0, SUMIFS('Scoring Matrix'!J:J, 'Scoring Matrix'!A:A, "="&Questionnaire!$C130, 'Scoring Matrix'!F:F, "="&Questionnaire!F130)) -> 0 | W130: =IF(AND($J130="N/A", $K130="Child"), 0, SUMIFS('Scoring Matrix'!K:K, 'Scoring Matrix'!A:A, "="&Questionnaire!$C130, 'Scoring Matrix'!F:F, "="&Questionnaire!F130)) -> 0 | Y130: =IF(O130, "", IF(VLOOKUP(C130,'Scoring Matrix'!$A$2:W400,13,FALSE)=1,"N/A", "Yes")) -> Yes | Z130: =IF(O130, "", VLOOKUP(C130, 'Scoring Matrix'!A:D, 3, FALSE)) -> Infrastructure | AA130: =IF(O130, "", VLOOKUP(C130, 'Scoring Matrix'!A:D, 4, FALSE)) -> Capacity
C131: =C130+1 -> 105 | D131: =VLOOKUP(C131, 'Scoring Matrix'!A:B, 2, FALSE) -> How long does it take to procure a server? | E131: =IF(VLOOKUP(C131, 'Scoring Matrix'!A:E, 5, FALSE)=0, "", VLOOKUP(C131, 'Scoring Matrix'!A:E, 5, FALSE)) -> 0.05 | G131: =IF(VLOOKUP(C131,'Scoring Matrix'!A:N, 14, FALSE)=0, "", VLOOKUP(C131,'Scoring Matrix'!A:N, 14, FALSE)) -> 1 - 6 Months | H131: =IF(VLOOKUP(C131,'Scoring Matrix'!A:N, 14, FALSE)=0, "", VLOOKUP(C131,'Scoring Matrix'!A:N, 14, FALSE)) -> 1 - 6 Months | I131: Unanswered | K131: =IF(ISNUMBER(C131), IF(VLOOKUP(C131, 'Scoring Matrix'!A:L, 12, FALSE)="Parent", "Parent", IF(VLOOKUP(C131, 'Scoring Matrix'!A:L, 12, FALSE)="Child", "Child", "")), "") ->  | M131: 0 | O131: FALSE | P131: FALSE | Q131: FALSE | S131: =IF(AND($J131="N/A", $K131="Child"), 0, SUMIFS('Scoring Matrix'!G:G, 'Scoring Matrix'!A:A, "="&Questionnaire!$C131, 'Scoring Matrix'!F:F, "="&Questionnaire!F131)) -> 0 | T131: =IF(AND($J131="N/A", $K131="Child"), 0, SUMIFS('Scoring Matrix'!H:H, 'Scoring Matrix'!A:A, "="&Questionnaire!$C131, 'Scoring Matrix'!F:F, "="&Questionnaire!F131)) -> 0 | U131: =IF(AND($J131="N/A", $K131="Child"), 0, SUMIFS('Scoring Matrix'!I:I, 'Scoring Matrix'!A:A, "="&Questionnaire!$C131, 'Scoring Matrix'!F:F, "="&Questionnaire!F131)) -> 0 | V131: =IF(AND($J131="N/A", $K131="Child"), 0, SUMIFS('Scoring Matrix'!J:J, 'Scoring Matrix'!A:A, "="&Questionnaire!$C131, 'Scoring Matrix'!F:F, "="&Questionnaire!F131)) -> 0 | W131: =IF(AND($J131="N/A", $K131="Child"), 0, SUMIFS('Scoring Matrix'!K:K, 'Scoring Matrix'!A:A, "="&Questionnaire!$C131, 'Scoring Matrix'!F:F, "="&Questionnaire!F131)) -> 0 | Y131: =IF(O131, "", IF(VLOOKUP(C131,'Scoring Matrix'!$A$2:W400,13,FALSE)=1,"N/A", "Yes")) -> Yes | Z131: =IF(O131, "", VLOOKUP(C131, 'Scoring Matrix'!A:D, 3, FALSE)) -> Infrastructure | AA131: =IF(O131, "", VLOOKUP(C131, 'Scoring Matrix'!A:D, 4, FALSE)) -> Capacity
D132: Network | E132: =SUM(E133:E141) -> 0.5 | I132: Unanswered | K132: =IF(ISNUMBER(C132), IF(VLOOKUP(C132, 'Scoring Matrix'!A:L, 12, FALSE)="Parent", "Parent", IF(VLOOKUP(C132, 'Scoring Matrix'!A:L, 12, FALSE)="Child", "Child", "")), "") ->  | O132: TRUE | P132: FALSE | Q132: FALSE | S132: =IF(AND($J132="N/A", $K132="Child"), 0, SUMIFS('Scoring Matrix'!G:G, 'Scoring Matrix'!A:A, "="&Questionnaire!$C132, 'Scoring Matrix'!F:F, "="&Questionnaire!F132)) -> 0 | T132: =IF(AND($J132="N/A", $K132="Child"), 0, SUMIFS('Scoring Matrix'!H:H, 'Scoring Matrix'!A:A, "="&Questionnaire!$C132, 'Scoring Matrix'!F:F, "="&Questionnaire!F132)) -> 0 | U132: =IF(AND($J132="N/A", $K132="Child"), 0, SUMIFS('Scoring Matrix'!I:I, 'Scoring Matrix'!A:A, "="&Questionnaire!$C132, 'Scoring Matrix'!F:F, "="&Questionnaire!F132)) -> 0 | V132: =IF(AND($J132="N/A", $K132="Child"), 0, SUMIFS('Scoring Matrix'!J:J, 'Scoring Matrix'!A:A, "="&Questionnaire!$C132, 'Scoring Matrix'!F:F, "="&Questionnaire!F132)) -> 0 | W132: =IF(AND($J132="N/A", $K132="Child"), 0, SUMIFS('Scoring Matrix'!K:K, 'Scoring Matrix'!A:A, "="&Questionnaire!$C132, 'Scoring Matrix'!F:F, "="&Questionnaire!F132)) -> 0 | Y132: =IF(O132, "", IF(VLOOKUP(C132,'Scoring Matrix'!$A$2:W400,13,FALSE)=1,"N/A", "Yes")) ->  | Z132: =IF(O132, "", VLOOKUP(C132, 'Scoring Matrix'!A:D, 3, FALSE)) ->  | AA132: =IF(O132, "", VLOOKUP(C132, 'Scoring Matrix'!A:D, 4, FALSE)) -> 
C133: =C131+1 -> 106 | D133: =VLOOKUP(C133, 'Scoring Matrix'!A:B, 2, FALSE) -> What is the current average utilization of the internet network for citizens? This refers to the average utilization of the underlying internet infrastructure for the country. | E133: =IF(VLOOKUP(C133, 'Scoring Matrix'!A:E, 5, FALSE)=0, "", VLOOKUP(C133, 'Scoring Matrix'!A:E, 5, FALSE)) -> 0.05 | G133: =IF(VLOOKUP(C133,'Scoring Matrix'!A:N, 14, FALSE)=0, "", VLOOKUP(C133,'Scoring Matrix'!A:N, 14, FALSE)) -> >60% and <=79% | H133: =IF(VLOOKUP(C133,'Scoring Matrix'!A:N, 14, FALSE)=0, "", VLOOKUP(C133,'Scoring Matrix'!A:N, 14, FALSE)) -> >60% and <=79% | I133: Unanswered | K133: =IF(ISNUMBER(C133), IF(VLOOKUP(C133, 'Scoring Matrix'!A:L, 12, FALSE)="Parent", "Parent", IF(VLOOKUP(C133, 'Scoring Matrix'!A:L, 12, FALSE)="Child", "Child", "")), "") ->  | M133: 0 | O133: FALSE | P133: FALSE | Q133: FALSE | S133: =IF(AND($J133="N/A", $K133="Child"), 0, SUMIFS('Scoring Matrix'!G:G, 'Scoring Matrix'!A:A, "="&Questionnaire!$C133, 'Scoring Matrix'!F:F, "="&Questionnaire!F133)) -> 0 | T133: =IF(AND($J133="N/A", $K133="Child"), 0, SUMIFS('Scoring Matrix'!H:H, 'Scoring Matrix'!A:A, "="&Questionnaire!$C133, 'Scoring Matrix'!F:F, "="&Questionnaire!F133)) -> 0 | U133: =IF(AND($J133="N/A", $K133="Child"), 0, SUMIFS('Scoring Matrix'!I:I, 'Scoring Matrix'!A:A, "="&Questionnaire!$C133, 'Scoring Matrix'!F:F, "="&Questionnaire!F133)) -> 0 | V133: =IF(AND($J133="N/A", $K133="Child"), 0, SUMIFS('Scoring Matrix'!J:J, 'Scoring Matrix'!A:A, "="&Questionnaire!$C133, 'Scoring Matrix'!F:F, "="&Questionnaire!F133)) -> 0 | W133: =IF(AND($J133="N/A", $K133="Child"), 0, SUMIFS('Scoring Matrix'!K:K, 'Scoring Matrix'!A:A, "="&Questionnaire!$C133, 'Scoring Matrix'!F:F, "="&Questionnaire!F133)) -> 0 | Y133: =IF(O133, "", IF(VLOOKUP(C133,'Scoring Matrix'!$A$2:W400,13,FALSE)=1,"N/A", "Yes")) -> Yes | Z133: =IF(O133, "", VLOOKUP(C133, 'Scoring Matrix'!A:D, 3, FALSE)) -> Infrastructure | AA133: =IF(O133, "", VLOOKUP(C133, 'Scoring Matrix'!A:D, 4, FALSE)) -> Network
C134: 107 | D134: =VLOOKUP(C134, 'Scoring Matrix'!A:B, 2, FALSE) -> What is the current peak utilization of the internet network within a 12 month period? This refers to the peak utilization of the underlying internet infrastructure for the country. | E134: =IF(VLOOKUP(C134, 'Scoring Matrix'!A:E, 5, FALSE)=0, "", VLOOKUP(C134, 'Scoring Matrix'!A:E, 5, FALSE)) -> 0.05 | G134: =IF(VLOOKUP(C134,'Scoring Matrix'!A:N, 14, FALSE)=0, "", VLOOKUP(C134,'Scoring Matrix'!A:N, 14, FALSE)) -> >80% | H134: =IF(VLOOKUP(C134,'Scoring Matrix'!A:N, 14, FALSE)=0, "", VLOOKUP(C134,'Scoring Matrix'!A:N, 14, FALSE)) -> >80% | I134: Unanswered | K134: =IF(ISNUMBER(C134), IF(VLOOKUP(C134, 'Scoring Matrix'!A:L, 12, FALSE)="Parent", "Parent", IF(VLOOKUP(C134, 'Scoring Matrix'!A:L, 12, FALSE)="Child", "Child", "")), "") ->  | M134: 0 | O134: FALSE | P134: FALSE | Q134: FALSE | S134: =IF(AND($J134="N/A", $K134="Child"), 0, SUMIFS('Scoring Matrix'!G:G, 'Scoring Matrix'!A:A, "="&Questionnaire!$C134, 'Scoring Matrix'!F:F, "="&Questionnaire!F134)) -> 0 | T134: =IF(AND($J134="N/A", $K134="Child"), 0, SUMIFS('Scoring Matrix'!H:H, 'Scoring Matrix'!A:A, "="&Questionnaire!$C134, 'Scoring Matrix'!F:F, "="&Questionnaire!F134)) -> 0 | U134: =IF(AND($J134="N/A", $K134="Child"), 0, SUMIFS('Scoring Matrix'!I:I, 'Scoring Matrix'!A:A, "="&Questionnaire!$C134, 'Scoring Matrix'!F:F, "="&Questionnaire!F134)) -> 0 | V134: =IF(AND($J134="N/A", $K134="Child"), 0, SUMIFS('Scoring Matrix'!J:J, 'Scoring Matrix'!A:A, "="&Questionnaire!$C134, 'Scoring Matrix'!F:F, "="&Questionnaire!F134)) -> 0 | W134: =IF(AND($J134="N/A", $K134="Child"), 0, SUMIFS('Scoring Matrix'!K:K, 'Scoring Matrix'!A:A, "="&Questionnaire!$C134, 'Scoring Matrix'!F:F, "="&Questionnaire!F134)) -> 0 | Y134: =IF(O134, "", IF(VLOOKUP(C134,'Scoring Matrix'!$A$2:W400,13,FALSE)=1,"N/A", "Yes")) -> Yes | Z134: =IF(O134, "", VLOOKUP(C134, 'Scoring Matrix'!A:D, 3, FALSE)) -> Infrastructure | AA134: =IF(O134, "", VLOOKUP(C134, 'Scoring Matrix'!A:D, 4, FALSE)) -> Network
C135: 108 | D135: =VLOOKUP(C135, 'Scoring Matrix'!A:B, 2, FALSE) -> How many high-capability links outside of the country (international gateways to the internet) are there? | E135: =IF(VLOOKUP(C135, 'Scoring Matrix'!A:E, 5, FALSE)=0, "", VLOOKUP(C135, 'Scoring Matrix'!A:E, 5, FALSE)) -> 0.05 | G135: =IF(VLOOKUP(C135,'Scoring Matrix'!A:N, 14, FALSE)=0, "", VLOOKUP(C135,'Scoring Matrix'!A:N, 14, FALSE)) -> 3-4 high-capability links outside of the country | H135: =IF(VLOOKUP(C135,'Scoring Matrix'!A:N, 14, FALSE)=0, "", VLOOKUP(C135,'Scoring Matrix'!A:N, 14, FALSE)) -> 3-4 high-capability links outside of the country | I135: Unanswered | K135: =IF(ISNUMBER(C135), IF(VLOOKUP(C135, 'Scoring Matrix'!A:L, 12, FALSE)="Parent", "Parent", IF(VLOOKUP(C135, 'Scoring Matrix'!A:L, 12, FALSE)="Child", "Child", "")), "") ->  | M135: 0 | O135: FALSE | P135: FALSE | Q135: FALSE | S135: =IF(AND($J135="N/A", $K135="Child"), 0, SUMIFS('Scoring Matrix'!G:G, 'Scoring Matrix'!A:A, "="&Questionnaire!$C135, 'Scoring Matrix'!F:F, "="&Questionnaire!F135)) -> 0 | T135: =IF(AND($J135="N/A", $K135="Child"), 0, SUMIFS('Scoring Matrix'!H:H, 'Scoring Matrix'!A:A, "="&Questionnaire!$C135, 'Scoring Matrix'!F:F, "="&Questionnaire!F135)) -> 0 | U135: =IF(AND($J135="N/A", $K135="Child"), 0, SUMIFS('Scoring Matrix'!I:I, 'Scoring Matrix'!A:A, "="&Questionnaire!$C135, 'Scoring Matrix'!F:F, "="&Questionnaire!F135)) -> 0 | V135: =IF(AND($J135="N/A", $K135="Child"), 0, SUMIFS('Scoring Matrix'!J:J, 'Scoring Matrix'!A:A, "="&Questionnaire!$C135, 'Scoring Matrix'!F:F, "="&Questionnaire!F135)) -> 0 | W135: =IF(AND($J135="N/A", $K135="Child"), 0, SUMIFS('Scoring Matrix'!K:K, 'Scoring Matrix'!A:A, "="&Questionnaire!$C135, 'Scoring Matrix'!F:F, "="&Questionnaire!F135)) -> 0 | Y135: =IF(O135, "", IF(VLOOKUP(C135,'Scoring Matrix'!$A$2:W400,13,FALSE)=1,"N/A", "Yes")) -> Yes | Z135: =IF(O135, "", VLOOKUP(C135, 'Scoring Matrix'!A:D, 3, FALSE)) -> Infrastructure | AA135: =IF(O135, "", VLOOKUP(C135, 'Scoring Matrix'!A:D, 4, FALSE)) -> Network
C136: 109 | D136: =VLOOKUP(C136, 'Scoring Matrix'!A:B, 2, FALSE) -> What percentage of ministry/government buildings have access to the internet? | E136: =IF(VLOOKUP(C136, 'Scoring Matrix'!A:E, 5, FALSE)=0, "", VLOOKUP(C136, 'Scoring Matrix'!A:E, 5, FALSE)) -> 0.1 | G136: =IF(VLOOKUP(C136,'Scoring Matrix'!A:N, 14, FALSE)=0, "", VLOOKUP(C136,'Scoring Matrix'!A:N, 14, FALSE)) -> 61-80% | H136: =IF(VLOOKUP(C136,'Scoring Matrix'!A:N, 14, FALSE)=0, "", VLOOKUP(C136,'Scoring Matrix'!A:N, 14, FALSE)) -> 61-80% | I136: Unanswered | K136: =IF(ISNUMBER(C136), IF(VLOOKUP(C136, 'Scoring Matrix'!A:L, 12, FALSE)="Parent", "Parent", IF(VLOOKUP(C136, 'Scoring Matrix'!A:L, 12, FALSE)="Child", "Child", "")), "") ->  | M136: 0 | O136: FALSE | P136: FALSE | Q136: FALSE | S136: =IF(AND($J136="N/A", $K136="Child"), 0, SUMIFS('Scoring Matrix'!G:G, 'Scoring Matrix'!A:A, "="&Questionnaire!$C136, 'Scoring Matrix'!F:F, "="&Questionnaire!F136)) -> 0 | T136: =IF(AND($J136="N/A", $K136="Child"), 0, SUMIFS('Scoring Matrix'!H:H, 'Scoring Matrix'!A:A, "="&Questionnaire!$C136, 'Scoring Matrix'!F:F, "="&Questionnaire!F136)) -> 0 | U136: =IF(AND($J136="N/A", $K136="Child"), 0, SUMIFS('Scoring Matrix'!I:I, 'Scoring Matrix'!A:A, "="&Questionnaire!$C136, 'Scoring Matrix'!F:F, "="&Questionnaire!F136)) -> 0 | V136: =IF(AND($J136="N/A", $K136="Child"), 0, SUMIFS('Scoring Matrix'!J:J, 'Scoring Matrix'!A:A, "="&Questionnaire!$C136, 'Scoring Matrix'!F:F, "="&Questionnaire!F136)) -> 0 | W136: =IF(AND($J136="N/A", $K136="Child"), 0, SUMIFS('Scoring Matrix'!K:K, 'Scoring Matrix'!A:A, "="&Questionnaire!$C136, 'Scoring Matrix'!F:F, "="&Questionnaire!F136)) -> 0 | Y136: =IF(O136, "", IF(VLOOKUP(C136,'Scoring Matrix'!$A$2:W400,13,FALSE)=1,"N/A", "Yes")) -> Yes | Z136: =IF(O136, "", VLOOKUP(C136, 'Scoring Matrix'!A:D, 3, FALSE)) -> Infrastructure | AA136: =IF(O136, "", VLOOKUP(C136, 'Scoring Matrix'!A:D, 4, FALSE)) -> Network
C137: 110 | D137: =VLOOKUP(C137, 'Scoring Matrix'!A:B, 2, FALSE) -> What is the timeframe for connecting any ministries/departments not currently connected to the internet? | E137: =IF(VLOOKUP(C137, 'Scoring Matrix'!A:E, 5, FALSE)=0, "", VLOOKUP(C137, 'Scoring Matrix'!A:E, 5, FALSE)) -> 0.05 | G137: =IF(VLOOKUP(C137,'Scoring Matrix'!A:N, 14, FALSE)=0, "", VLOOKUP(C137,'Scoring Matrix'!A:N, 14, FALSE)) -> < 6 Months | H137: =IF(VLOOKUP(C137,'Scoring Matrix'!A:N, 14, FALSE)=0, "", VLOOKUP(C137,'Scoring Matrix'!A:N, 14, FALSE)) -> < 6 Months | I137: Unanswered | K137: =IF(ISNUMBER(C137), IF(VLOOKUP(C137, 'Scoring Matrix'!A:L, 12, FALSE)="Parent", "Parent", IF(VLOOKUP(C137, 'Scoring Matrix'!A:L, 12, FALSE)="Child", "Child", "")), "") ->  | M137: 0 | O137: FALSE | P137: FALSE | Q137: FALSE | S137: =IF(AND($J137="N/A", $K137="Child"), 0, SUMIFS('Scoring Matrix'!G:G, 'Scoring Matrix'!A:A, "="&Questionnaire!$C137, 'Scoring Matrix'!F:F, "="&Questionnaire!F137)) -> 0 | T137: =IF(AND($J137="N/A", $K137="Child"), 0, SUMIFS('Scoring Matrix'!H:H, 'Scoring Matrix'!A:A, "="&Questionnaire!$C137, 'Scoring Matrix'!F:F, "="&Questionnaire!F137)) -> 0 | U137: =IF(AND($J137="N/A", $K137="Child"), 0, SUMIFS('Scoring Matrix'!I:I, 'Scoring Matrix'!A:A, "="&Questionnaire!$C137, 'Scoring Matrix'!F:F, "="&Questionnaire!F137)) -> 0 | V137: =IF(AND($J137="N/A", $K137="Child"), 0, SUMIFS('Scoring Matrix'!J:J, 'Scoring Matrix'!A:A, "="&Questionnaire!$C137, 'Scoring Matrix'!F:F, "="&Questionnaire!F137)) -> 0 | W137: =IF(AND($J137="N/A", $K137="Child"), 0, SUMIFS('Scoring Matrix'!K:K, 'Scoring Matrix'!A:A, "="&Questionnaire!$C137, 'Scoring Matrix'!F:F, "="&Questionnaire!F137)) -> 0 | Y137: =IF(O137, "", IF(VLOOKUP(C137,'Scoring Matrix'!$A$2:W400,13,FALSE)=1,"N/A", "Yes")) -> Yes | Z137: =IF(O137, "", VLOOKUP(C137, 'Scoring Matrix'!A:D, 3, FALSE)) -> Infrastructure | AA137: =IF(O137, "", VLOOKUP(C137, 'Scoring Matrix'!A:D, 4, FALSE)) -> Network
C138: 111 | D138: =VLOOKUP(C138, 'Scoring Matrix'!A:B, 2, FALSE) -> How are government resources (data and applications) accessed? | E138: =IF(VLOOKUP(C138, 'Scoring Matrix'!A:E, 5, FALSE)=0, "", VLOOKUP(C138, 'Scoring Matrix'!A:E, 5, FALSE)) -> 0.05 | G138: =IF(VLOOKUP(C138,'Scoring Matrix'!A:N, 14, FALSE)=0, "", VLOOKUP(C138,'Scoring Matrix'!A:N, 14, FALSE)) -> Commercial Internet Service Provider (ISP) | H138: =IF(VLOOKUP(C138,'Scoring Matrix'!A:N, 14, FALSE)=0, "", VLOOKUP(C138,'Scoring Matrix'!A:N, 14, FALSE)) -> Commercial Internet Service Provider (ISP) | I138: Unanswered | K138: =IF(ISNUMBER(C138), IF(VLOOKUP(C138, 'Scoring Matrix'!A:L, 12, FALSE)="Parent", "Parent", IF(VLOOKUP(C138, 'Scoring Matrix'!A:L, 12, FALSE)="Child", "Child", "")), "") ->  | M138: 0 | O138: FALSE | P138: FALSE | Q138: FALSE | S138: =IF(AND($J138="N/A", $K138="Child"), 0, SUMIFS('Scoring Matrix'!G:G, 'Scoring Matrix'!A:A, "="&Questionnaire!$C138, 'Scoring Matrix'!F:F, "="&Questionnaire!F138)) -> 0 | T138: =IF(AND($J138="N/A", $K138="Child"), 0, SUMIFS('Scoring Matrix'!H:H, 'Scoring Matrix'!A:A, "="&Questionnaire!$C138, 'Scoring Matrix'!F:F, "="&Questionnaire!F138)) -> 0 | U138: =IF(AND($J138="N/A", $K138="Child"), 0, SUMIFS('Scoring Matrix'!I:I, 'Scoring Matrix'!A:A, "="&Questionnaire!$C138, 'Scoring Matrix'!F:F, "="&Questionnaire!F138)) -> 0 | V138: =IF(AND($J138="N/A", $K138="Child"), 0, SUMIFS('Scoring Matrix'!J:J, 'Scoring Matrix'!A:A, "="&Questionnaire!$C138, 'Scoring Matrix'!F:F, "="&Questionnaire!F138)) -> 0 | W138: =IF(AND($J138="N/A", $K138="Child"), 0, SUMIFS('Scoring Matrix'!K:K, 'Scoring Matrix'!A:A, "="&Questionnaire!$C138, 'Scoring Matrix'!F:F, "="&Questionnaire!F138)) -> 0 | Y138: =IF(O138, "", IF(VLOOKUP(C138,'Scoring Matrix'!$A$2:W400,13,FALSE)=1,"N/A", "Yes")) -> Yes | Z138: =IF(O138, "", VLOOKUP(C138, 'Scoring Matrix'!A:D, 3, FALSE)) -> Infrastructure | AA138: =IF(O138, "", VLOOKUP(C138, 'Scoring Matrix'!A:D, 4, FALSE)) -> Network
C139: =C138+1 -> 112 | D139: =VLOOKUP(C139, 'Scoring Matrix'!A:B, 2, FALSE) -> On average, what percentage of the time is the network available during a given week? | E139: =IF(VLOOKUP(C139, 'Scoring Matrix'!A:E, 5, FALSE)=0, "", VLOOKUP(C139, 'Scoring Matrix'!A:E, 5, FALSE)) -> 0.05 | G139: =IF(VLOOKUP(C139,'Scoring Matrix'!A:N, 14, FALSE)=0, "", VLOOKUP(C139,'Scoring Matrix'!A:N, 14, FALSE)) -> >10mbps | H139: =IF(VLOOKUP(C139,'Scoring Matrix'!A:N, 14, FALSE)=0, "", VLOOKUP(C139,'Scoring Matrix'!A:N, 14, FALSE)) -> >10mbps | I139: Unanswered | K139: =IF(ISNUMBER(C139), IF(VLOOKUP(C139, 'Scoring Matrix'!A:L, 12, FALSE)="Parent", "Parent", IF(VLOOKUP(C139, 'Scoring Matrix'!A:L, 12, FALSE)="Child", "Child", "")), "") ->  | M139: 0 | O139: FALSE | P139: FALSE | Q139: FALSE | S139: =IF(AND($J139="N/A", $K139="Child"), 0, SUMIFS('Scoring Matrix'!G:G, 'Scoring Matrix'!A:A, "="&Questionnaire!$C139, 'Scoring Matrix'!F:F, "="&Questionnaire!F139)) -> 0 | T139: =IF(AND($J139="N/A", $K139="Child"), 0, SUMIFS('Scoring Matrix'!H:H, 'Scoring Matrix'!A:A, "="&Questionnaire!$C139, 'Scoring Matrix'!F:F, "="&Questionnaire!F139)) -> 0 | U139: =IF(AND($J139="N/A", $K139="Child"), 0, SUMIFS('Scoring Matrix'!I:I, 'Scoring Matrix'!A:A, "="&Questionnaire!$C139, 'Scoring Matrix'!F:F, "="&Questionnaire!F139)) -> 0 | V139: =IF(AND($J139="N/A", $K139="Child"), 0, SUMIFS('Scoring Matrix'!J:J, 'Scoring Matrix'!A:A, "="&Questionnaire!$C139, 'Scoring Matrix'!F:F, "="&Questionnaire!F139)) -> 0 | W139: =IF(AND($J139="N/A", $K139="Child"), 0, SUMIFS('Scoring Matrix'!K:K, 'Scoring Matrix'!A:A, "="&Questionnaire!$C139, 'Scoring Matrix'!F:F, "="&Questionnaire!F139)) -> 0 | Y139: =IF(O139, "", IF(VLOOKUP(C139,'Scoring Matrix'!$A$2:W400,13,FALSE)=1,"N/A", "Yes")) -> Yes | Z139: =IF(O139, "", VLOOKUP(C139, 'Scoring Matrix'!A:D, 3, FALSE)) -> Infrastructure | AA139: =IF(O139, "", VLOOKUP(C139, 'Scoring Matrix'!A:D, 4, FALSE)) -> Network
C140: =C139+1 -> 113 | D140: =VLOOKUP(C140, 'Scoring Matrix'!A:B, 2, FALSE) -> What is the average inbound network speed for a ministry/government building connected to the network? | E140: =IF(VLOOKUP(C140, 'Scoring Matrix'!A:E, 5, FALSE)=0, "", VLOOKUP(C140, 'Scoring Matrix'!A:E, 5, FALSE)) -> 0.05 | G140: =IF(VLOOKUP(C140,'Scoring Matrix'!A:N, 14, FALSE)=0, "", VLOOKUP(C140,'Scoring Matrix'!A:N, 14, FALSE)) -> 1.5-10mbps | H140: =IF(VLOOKUP(C140,'Scoring Matrix'!A:N, 14, FALSE)=0, "", VLOOKUP(C140,'Scoring Matrix'!A:N, 14, FALSE)) -> 1.5-10mbps | I140: Unanswered | K140: =IF(ISNUMBER(C140), IF(VLOOKUP(C140, 'Scoring Matrix'!A:L, 12, FALSE)="Parent", "Parent", IF(VLOOKUP(C140, 'Scoring Matrix'!A:L, 12, FALSE)="Child", "Child", "")), "") ->  | M140: 0 | O140: FALSE | P140: FALSE | Q140: FALSE | S140: =IF(AND($J140="N/A", $K140="Child"), 0, SUMIFS('Scoring Matrix'!G:G, 'Scoring Matrix'!A:A, "="&Questionnaire!$C140, 'Scoring Matrix'!F:F, "="&Questionnaire!F140)) -> 0 | T140: =IF(AND($J140="N/A", $K140="Child"), 0, SUMIFS('Scoring Matrix'!H:H, 'Scoring Matrix'!A:A, "="&Questionnaire!$C140, 'Scoring Matrix'!F:F, "="&Questionnaire!F140)) -> 0 | U140: =IF(AND($J140="N/A", $K140="Child"), 0, SUMIFS('Scoring Matrix'!I:I, 'Scoring Matrix'!A:A, "="&Questionnaire!$C140, 'Scoring Matrix'!F:F, "="&Questionnaire!F140)) -> 0 | V140: =IF(AND($J140="N/A", $K140="Child"), 0, SUMIFS('Scoring Matrix'!J:J, 'Scoring Matrix'!A:A, "="&Questionnaire!$C140, 'Scoring Matrix'!F:F, "="&Questionnaire!F140)) -> 0 | W140: =IF(AND($J140="N/A", $K140="Child"), 0, SUMIFS('Scoring Matrix'!K:K, 'Scoring Matrix'!A:A, "="&Questionnaire!$C140, 'Scoring Matrix'!F:F, "="&Questionnaire!F140)) -> 0 | Y140: =IF(O140, "", IF(VLOOKUP(C140,'Scoring Matrix'!$A$2:W400,13,FALSE)=1,"N/A", "Yes")) -> Yes | Z140: =IF(O140, "", VLOOKUP(C140, 'Scoring Matrix'!A:D, 3, FALSE)) -> Infrastructure | AA140: =IF(O140, "", VLOOKUP(C140, 'Scoring Matrix'!A:D, 4, FALSE)) -> Network
C141: =C140+1 -> 114 | D141: =VLOOKUP(C141, 'Scoring Matrix'!A:B, 2, FALSE) -> What is the average outbound network speed for a ministry/government building connected to the network? | E141: =IF(VLOOKUP(C141, 'Scoring Matrix'!A:E, 5, FALSE)=0, "", VLOOKUP(C141, 'Scoring Matrix'!A:E, 5, FALSE)) -> 0.05 | G141: =IF(VLOOKUP(C141,'Scoring Matrix'!A:N, 14, FALSE)=0, "", VLOOKUP(C141,'Scoring Matrix'!A:N, 14, FALSE)) -> 1.5-10mbps | H141: =IF(VLOOKUP(C141,'Scoring Matrix'!A:N, 14, FALSE)=0, "", VLOOKUP(C141,'Scoring Matrix'!A:N, 14, FALSE)) -> 1.5-10mbps | I141: Unanswered | K141: =IF(ISNUMBER(C141), IF(VLOOKUP(C141, 'Scoring Matrix'!A:L, 12, FALSE)="Parent", "Parent", IF(VLOOKUP(C141, 'Scoring Matrix'!A:L, 12, FALSE)="Child", "Child", "")), "") ->  | M141: 0 | O141: FALSE | P141: FALSE | Q141: FALSE | S141: =IF(AND($J141="N/A", $K141="Child"), 0, SUMIFS('Scoring Matrix'!G:G, 'Scoring Matrix'!A:A, "="&Questionnaire!$C141, 'Scoring Matrix'!F:F, "="&Questionnaire!F141)) -> 0 | T141: =IF(AND($J141="N/A", $K141="Child"), 0, SUMIFS('Scoring Matrix'!H:H, 'Scoring Matrix'!A:A, "="&Questionnaire!$C141, 'Scoring Matrix'!F:F, "="&Questionnaire!F141)) -> 0 | U141: =IF(AND($J141="N/A", $K141="Child"), 0, SUMIFS('Scoring Matrix'!I:I, 'Scoring Matrix'!A:A, "="&Questionnaire!$C141, 'Scoring Matrix'!F:F, "="&Questionnaire!F141)) -> 0 | V141: =IF(AND($J141="N/A", $K141="Child"), 0, SUMIFS('Scoring Matrix'!J:J, 'Scoring Matrix'!A:A, "="&Questionnaire!$C141, 'Scoring Matrix'!F:F, "="&Questionnaire!F141)) -> 0 | W141: =IF(AND($J141="N/A", $K141="Child"), 0, SUMIFS('Scoring Matrix'!K:K, 'Scoring Matrix'!A:A, "="&Questionnaire!$C141, 'Scoring Matrix'!F:F, "="&Questionnaire!F141)) -> 0 | Y141: =IF(O141, "", IF(VLOOKUP(C141,'Scoring Matrix'!$A$2:W400,13,FALSE)=1,"N/A", "Yes")) -> Yes | Z141: =IF(O141, "", VLOOKUP(C141, 'Scoring Matrix'!A:D, 3, FALSE)) -> Infrastructure | AA141: =IF(O141, "", VLOOKUP(C141, 'Scoring Matrix'!A:D, 4, FALSE)) -> Network
D142: End User | E142: =SUM(E143:E146) -> 0.25 | I142: Unanswered | K142: =IF(ISNUMBER(C142), IF(VLOOKUP(C142, 'Scoring Matrix'!A:L, 12, FALSE)="Parent", "Parent", IF(VLOOKUP(C142, 'Scoring Matrix'!A:L, 12, FALSE)="Child", "Child", "")), "") ->  | O142: TRUE | P142: FALSE | Q142: FALSE | S142: =IF(AND($J142="N/A", $K142="Child"), 0, SUMIFS('Scoring Matrix'!G:G, 'Scoring Matrix'!A:A, "="&Questionnaire!$C142, 'Scoring Matrix'!F:F, "="&Questionnaire!F142)) -> 0 | T142: =IF(AND($J142="N/A", $K142="Child"), 0, SUMIFS('Scoring Matrix'!H:H, 'Scoring Matrix'!A:A, "="&Questionnaire!$C142, 'Scoring Matrix'!F:F, "="&Questionnaire!F142)) -> 0 | U142: =IF(AND($J142="N/A", $K142="Child"), 0, SUMIFS('Scoring Matrix'!I:I, 'Scoring Matrix'!A:A, "="&Questionnaire!$C142, 'Scoring Matrix'!F:F, "="&Questionnaire!F142)) -> 0 | V142: =IF(AND($J142="N/A", $K142="Child"), 0, SUMIFS('Scoring Matrix'!J:J, 'Scoring Matrix'!A:A, "="&Questionnaire!$C142, 'Scoring Matrix'!F:F, "="&Questionnaire!F142)) -> 0 | W142: =IF(AND($J142="N/A", $K142="Child"), 0, SUMIFS('Scoring Matrix'!K:K, 'Scoring Matrix'!A:A, "="&Questionnaire!$C142, 'Scoring Matrix'!F:F, "="&Questionnaire!F142)) -> 0 | Y142: =IF(O142, "", IF(VLOOKUP(C142,'Scoring Matrix'!$A$2:W400,13,FALSE)=1,"N/A", "Yes")) ->  | Z142: =IF(O142, "", VLOOKUP(C142, 'Scoring Matrix'!A:D, 3, FALSE)) ->  | AA142: =IF(O142, "", VLOOKUP(C142, 'Scoring Matrix'!A:D, 4, FALSE)) -> 
C143: =C141+1 -> 115 | D143: =VLOOKUP(C143, 'Scoring Matrix'!A:B, 2, FALSE) -> Is a printed document (i.e. birth certificate) required to request standard government services. | E143: =IF(VLOOKUP(C143, 'Scoring Matrix'!A:E, 5, FALSE)=0, "", VLOOKUP(C143, 'Scoring Matrix'!A:E, 5, FALSE)) -> 0.1 | G143: =IF(VLOOKUP(C143,'Scoring Matrix'!A:N, 14, FALSE)=0, "", VLOOKUP(C143,'Scoring Matrix'!A:N, 14, FALSE)) -> No | H143: =IF(VLOOKUP(C143,'Scoring Matrix'!A:N, 14, FALSE)=0, "", VLOOKUP(C143,'Scoring Matrix'!A:N, 14, FALSE)) -> No | I143: Unanswered | K143: =IF(ISNUMBER(C143), IF(VLOOKUP(C143, 'Scoring Matrix'!A:L, 12, FALSE)="Parent", "Parent", IF(VLOOKUP(C143, 'Scoring Matrix'!A:L, 12, FALSE)="Child", "Child", "")), "") ->  | M143: 0 | O143: FALSE | P143: FALSE | Q143: FALSE | S143: =IF(AND($J143="N/A", $K143="Child"), 0, SUMIFS('Scoring Matrix'!G:G, 'Scoring Matrix'!A:A, "="&Questionnaire!$C143, 'Scoring Matrix'!F:F, "="&Questionnaire!F143)) -> 0 | T143: =IF(AND($J143="N/A", $K143="Child"), 0, SUMIFS('Scoring Matrix'!H:H, 'Scoring Matrix'!A:A, "="&Questionnaire!$C143, 'Scoring Matrix'!F:F, "="&Questionnaire!F143)) -> 0 | U143: =IF(AND($J143="N/A", $K143="Child"), 0, SUMIFS('Scoring Matrix'!I:I, 'Scoring Matrix'!A:A, "="&Questionnaire!$C143, 'Scoring Matrix'!F:F, "="&Questionnaire!F143)) -> 0 | V143: =IF(AND($J143="N/A", $K143="Child"), 0, SUMIFS('Scoring Matrix'!J:J, 'Scoring Matrix'!A:A, "="&Questionnaire!$C143, 'Scoring Matrix'!F:F, "="&Questionnaire!F143)) -> 0 | W143: =IF(AND($J143="N/A", $K143="Child"), 0, SUMIFS('Scoring Matrix'!K:K, 'Scoring Matrix'!A:A, "="&Questionnaire!$C143, 'Scoring Matrix'!F:F, "="&Questionnaire!F143)) -> 0 | Y143: =IF(O143, "", IF(VLOOKUP(C143,'Scoring Matrix'!$A$2:W400,13,FALSE)=1,"N/A", "Yes")) -> Yes | Z143: =IF(O143, "", VLOOKUP(C143, 'Scoring Matrix'!A:D, 3, FALSE)) -> Infrastructure | AA143: =IF(O143, "", VLOOKUP(C143, 'Scoring Matrix'!A:D, 4, FALSE)) -> End User
C144: 116 | D144: =VLOOKUP(C144, 'Scoring Matrix'!A:B, 2, FALSE) -> How do the majority of citizens connect to government applications or systems? | E144: =IF(VLOOKUP(C144, 'Scoring Matrix'!A:E, 5, FALSE)=0, "", VLOOKUP(C144, 'Scoring Matrix'!A:E, 5, FALSE)) -> 0.05 | G144: =IF(VLOOKUP(C144,'Scoring Matrix'!A:N, 14, FALSE)=0, "", VLOOKUP(C144,'Scoring Matrix'!A:N, 14, FALSE)) -> Government-owned devices | H144: =IF(VLOOKUP(C144,'Scoring Matrix'!A:N, 14, FALSE)=0, "", VLOOKUP(C144,'Scoring Matrix'!A:N, 14, FALSE)) -> Government-owned devices | I144: Unanswered | K144: =IF(ISNUMBER(C144), IF(VLOOKUP(C144, 'Scoring Matrix'!A:L, 12, FALSE)="Parent", "Parent", IF(VLOOKUP(C144, 'Scoring Matrix'!A:L, 12, FALSE)="Child", "Child", "")), "") ->  | M144: 0 | O144: FALSE | P144: FALSE | Q144: FALSE | S144: =IF(AND($J144="N/A", $K144="Child"), 0, SUMIFS('Scoring Matrix'!G:G, 'Scoring Matrix'!A:A, "="&Questionnaire!$C144, 'Scoring Matrix'!F:F, "="&Questionnaire!F144)) -> 0 | T144: =IF(AND($J144="N/A", $K144="Child"), 0, SUMIFS('Scoring Matrix'!H:H, 'Scoring Matrix'!A:A, "="&Questionnaire!$C144, 'Scoring Matrix'!F:F, "="&Questionnaire!F144)) -> 0 | U144: =IF(AND($J144="N/A", $K144="Child"), 0, SUMIFS('Scoring Matrix'!I:I, 'Scoring Matrix'!A:A, "="&Questionnaire!$C144, 'Scoring Matrix'!F:F, "="&Questionnaire!F144)) -> 0 | V144: =IF(AND($J144="N/A", $K144="Child"), 0, SUMIFS('Scoring Matrix'!J:J, 'Scoring Matrix'!A:A, "="&Questionnaire!$C144, 'Scoring Matrix'!F:F, "="&Questionnaire!F144)) -> 0 | W144: =IF(AND($J144="N/A", $K144="Child"), 0, SUMIFS('Scoring Matrix'!K:K, 'Scoring Matrix'!A:A, "="&Questionnaire!$C144, 'Scoring Matrix'!F:F, "="&Questionnaire!F144)) -> 0 | Y144: =IF(O144, "", IF(VLOOKUP(C144,'Scoring Matrix'!$A$2:W400,13,FALSE)=1,"N/A", "Yes")) -> Yes | Z144: =IF(O144, "", VLOOKUP(C144, 'Scoring Matrix'!A:D, 3, FALSE)) -> Infrastructure | AA144: =IF(O144, "", VLOOKUP(C144, 'Scoring Matrix'!A:D, 4, FALSE)) -> End User
C145: 117 | D145: =VLOOKUP(C145, 'Scoring Matrix'!A:B, 2, FALSE) -> Is there a government initiative to increase public access to the internet? | E145: =IF(VLOOKUP(C145, 'Scoring Matrix'!A:E, 5, FALSE)=0, "", VLOOKUP(C145, 'Scoring Matrix'!A:E, 5, FALSE)) -> 0.05 | G145: =IF(VLOOKUP(C145,'Scoring Matrix'!A:N, 14, FALSE)=0, "", VLOOKUP(C145,'Scoring Matrix'!A:N, 14, FALSE)) -> No | H145: =IF(VLOOKUP(C145,'Scoring Matrix'!A:N, 14, FALSE)=0, "", VLOOKUP(C145,'Scoring Matrix'!A:N, 14, FALSE)) -> No | I145: Unanswered | K145: =IF(ISNUMBER(C145), IF(VLOOKUP(C145, 'Scoring Matrix'!A:L, 12, FALSE)="Parent", "Parent", IF(VLOOKUP(C145, 'Scoring Matrix'!A:L, 12, FALSE)="Child", "Child", "")), "") ->  | M145: 0 | O145: FALSE | P145: FALSE | Q145: FALSE | S145: =IF(AND($J145="N/A", $K145="Child"), 0, SUMIFS('Scoring Matrix'!G:G, 'Scoring Matrix'!A:A, "="&Questionnaire!$C145, 'Scoring Matrix'!F:F, "="&Questionnaire!F145)) -> 0 | T145: =IF(AND($J145="N/A", $K145="Child"), 0, SUMIFS('Scoring Matrix'!H:H, 'Scoring Matrix'!A:A, "="&Questionnaire!$C145, 'Scoring Matrix'!F:F, "="&Questionnaire!F145)) -> 0 | U145: =IF(AND($J145="N/A", $K145="Child"), 0, SUMIFS('Scoring Matrix'!I:I, 'Scoring Matrix'!A:A, "="&Questionnaire!$C145, 'Scoring Matrix'!F:F, "="&Questionnaire!F145)) -> 0 | V145: =IF(AND($J145="N/A", $K145="Child"), 0, SUMIFS('Scoring Matrix'!J:J, 'Scoring Matrix'!A:A, "="&Questionnaire!$C145, 'Scoring Matrix'!F:F, "="&Questionnaire!F145)) -> 0 | W145: =IF(AND($J145="N/A", $K145="Child"), 0, SUMIFS('Scoring Matrix'!K:K, 'Scoring Matrix'!A:A, "="&Questionnaire!$C145, 'Scoring Matrix'!F:F, "="&Questionnaire!F145)) -> 0 | Y145: =IF(O145, "", IF(VLOOKUP(C145,'Scoring Matrix'!$A$2:W400,13,FALSE)=1,"N/A", "Yes")) -> Yes | Z145: =IF(O145, "", VLOOKUP(C145, 'Scoring Matrix'!A:D, 3, FALSE)) -> Infrastructure | AA145: =IF(O145, "", VLOOKUP(C145, 'Scoring Matrix'!A:D, 4, FALSE)) -> End User
C146: 118 | D146: =VLOOKUP(C146, 'Scoring Matrix'!A:B, 2, FALSE) -> What IT support is currently available to government employees? | E146: =IF(VLOOKUP(C146, 'Scoring Matrix'!A:E, 5, FALSE)=0, "", VLOOKUP(C146, 'Scoring Matrix'!A:E, 5, FALSE)) -> 0.05 | G146: =IF(VLOOKUP(C146,'Scoring Matrix'!A:N, 14, FALSE)=0, "", VLOOKUP(C146,'Scoring Matrix'!A:N, 14, FALSE)) -> No help desk number, but support available | H146: =IF(VLOOKUP(C146,'Scoring Matrix'!A:N, 14, FALSE)=0, "", VLOOKUP(C146,'Scoring Matrix'!A:N, 14, FALSE)) -> No help desk number, but support available | I146: Unanswered | K146: =IF(ISNUMBER(C146), IF(VLOOKUP(C146, 'Scoring Matrix'!A:L, 12, FALSE)="Parent", "Parent", IF(VLOOKUP(C146, 'Scoring Matrix'!A:L, 12, FALSE)="Child", "Child", "")), "") ->  | L146: =IF(OR(AND(K146="child", J146="N/A"), AND(K146="", F146<>""), AND(K146="Parent", J146="N/A")), 1, IF(F146<>"", IF(#REF!="child", IF(AND(#REF!<>"",#REF!<> ""), 1, ""), 1), "")) ->  | M146: 0 | O146: FALSE | P146: FALSE | Q146: FALSE | S146: =IF(AND($J146="N/A", $K146="Child"), 0, SUMIFS('Scoring Matrix'!G:G, 'Scoring Matrix'!A:A, "="&Questionnaire!$C146, 'Scoring Matrix'!F:F, "="&Questionnaire!F146)) -> 0 | T146: =IF(AND($J146="N/A", $K146="Child"), 0, SUMIFS('Scoring Matrix'!H:H, 'Scoring Matrix'!A:A, "="&Questionnaire!$C146, 'Scoring Matrix'!F:F, "="&Questionnaire!F146)) -> 0 | U146: =IF(AND($J146="N/A", $K146="Child"), 0, SUMIFS('Scoring Matrix'!I:I, 'Scoring Matrix'!A:A, "="&Questionnaire!$C146, 'Scoring Matrix'!F:F, "="&Questionnaire!F146)) -> 0 | V146: =IF(AND($J146="N/A", $K146="Child"), 0, SUMIFS('Scoring Matrix'!J:J, 'Scoring Matrix'!A:A, "="&Questionnaire!$C146, 'Scoring Matrix'!F:F, "="&Questionnaire!F146)) -> 0 | W146: =IF(AND($J146="N/A", $K146="Child"), 0, SUMIFS('Scoring Matrix'!K:K, 'Scoring Matrix'!A:A, "="&Questionnaire!$C146, 'Scoring Matrix'!F:F, "="&Questionnaire!F146)) -> 0 | Y146: =IF(O146, "", IF(VLOOKUP(C146,'Scoring Matrix'!$A$2:W400,13,FALSE)=1,"N/A", "Yes")) -> Yes | Z146: =IF(O146, "", VLOOKUP(C146, 'Scoring Matrix'!A:D, 3, FALSE)) -> Infrastructure | AA146: =IF(O146, "", VLOOKUP(C146, 'Scoring Matrix'!A:D, 4, FALSE)) -> End User
O147: TRUE | P147: FALSE | Q147: FALSE | S147: =IF(AND($J147="N/A", $K147="Child"), 0, SUMIFS('Scoring Matrix'!G:G, 'Scoring Matrix'!A:A, "="&Questionnaire!$C147, 'Scoring Matrix'!F:F, "="&Questionnaire!F147)) -> 0 | T147: =IF(AND($J147="N/A", $K147="Child"), 0, SUMIFS('Scoring Matrix'!H:H, 'Scoring Matrix'!A:A, "="&Questionnaire!$C147, 'Scoring Matrix'!F:F, "="&Questionnaire!F147)) -> 0 | U147: =IF(AND($J147="N/A", $K147="Child"), 0, SUMIFS('Scoring Matrix'!I:I, 'Scoring Matrix'!A:A, "="&Questionnaire!$C147, 'Scoring Matrix'!F:F, "="&Questionnaire!F147)) -> 0 | V147: =IF(AND($J147="N/A", $K147="Child"), 0, SUMIFS('Scoring Matrix'!J:J, 'Scoring Matrix'!A:A, "="&Questionnaire!$C147, 'Scoring Matrix'!F:F, "="&Questionnaire!F147)) -> 0 | W147: =IF(AND($J147="N/A", $K147="Child"), 0, SUMIFS('Scoring Matrix'!K:K, 'Scoring Matrix'!A:A, "="&Questionnaire!$C147, 'Scoring Matrix'!F:F, "="&Questionnaire!F147)) -> 0 | Y147: =IF(O147, "", IF(VLOOKUP(C147,'Scoring Matrix'!$A$2:W400,13,FALSE)=1,"N/A", "Yes")) ->  | Z147: =IF(O147, "", VLOOKUP(C147, 'Scoring Matrix'!A:D, 3, FALSE)) ->  | AA147: =IF(O147, "", VLOOKUP(C147, 'Scoring Matrix'!A:D, 4, FALSE)) -> 
O148: TRUE | P148: FALSE | Q148: FALSE | S148: =IF(AND($J148="N/A", $K148="Child"), 0, SUMIFS('Scoring Matrix'!G:G, 'Scoring Matrix'!A:A, "="&Questionnaire!$C148, 'Scoring Matrix'!F:F, "="&Questionnaire!F148)) -> 0 | T148: =IF(AND($J148="N/A", $K148="Child"), 0, SUMIFS('Scoring Matrix'!H:H, 'Scoring Matrix'!A:A, "="&Questionnaire!$C148, 'Scoring Matrix'!F:F, "="&Questionnaire!F148)) -> 0 | U148: =IF(AND($J148="N/A", $K148="Child"), 0, SUMIFS('Scoring Matrix'!I:I, 'Scoring Matrix'!A:A, "="&Questionnaire!$C148, 'Scoring Matrix'!F:F, "="&Questionnaire!F148)) -> 0 | V148: =IF(AND($J148="N/A", $K148="Child"), 0, SUMIFS('Scoring Matrix'!J:J, 'Scoring Matrix'!A:A, "="&Questionnaire!$C148, 'Scoring Matrix'!F:F, "="&Questionnaire!F148)) -> 0 | W148: =IF(AND($J148="N/A", $K148="Child"), 0, SUMIFS('Scoring Matrix'!K:K, 'Scoring Matrix'!A:A, "="&Questionnaire!$C148, 'Scoring Matrix'!F:F, "="&Questionnaire!F148)) -> 0 | Y148: =IF(O148, "", IF(VLOOKUP(C148,'Scoring Matrix'!$A$2:W400,13,FALSE)=1,"N/A", "Yes")) ->  | Z148: =IF(O148, "", VLOOKUP(C148, 'Scoring Matrix'!A:D, 3, FALSE)) ->  | AA148: =IF(O148, "", VLOOKUP(C148, 'Scoring Matrix'!A:D, 4, FALSE)) -> 
O149: TRUE | P149: FALSE | Q149: FALSE | S149: =IF(AND($J149="N/A", $K149="Child"), 0, SUMIFS('Scoring Matrix'!G:G, 'Scoring Matrix'!A:A, "="&Questionnaire!$C149, 'Scoring Matrix'!F:F, "="&Questionnaire!F149)) -> 0 | T149: =IF(AND($J149="N/A", $K149="Child"), 0, SUMIFS('Scoring Matrix'!H:H, 'Scoring Matrix'!A:A, "="&Questionnaire!$C149, 'Scoring Matrix'!F:F, "="&Questionnaire!F149)) -> 0 | U149: =IF(AND($J149="N/A", $K149="Child"), 0, SUMIFS('Scoring Matrix'!I:I, 'Scoring Matrix'!A:A, "="&Questionnaire!$C149, 'Scoring Matrix'!F:F, "="&Questionnaire!F149)) -> 0 | V149: =IF(AND($J149="N/A", $K149="Child"), 0, SUMIFS('Scoring Matrix'!J:J, 'Scoring Matrix'!A:A, "="&Questionnaire!$C149, 'Scoring Matrix'!F:F, "="&Questionnaire!F149)) -> 0 | W149: =IF(AND($J149="N/A", $K149="Child"), 0, SUMIFS('Scoring Matrix'!K:K, 'Scoring Matrix'!A:A, "="&Questionnaire!$C149, 'Scoring Matrix'!F:F, "="&Questionnaire!F149)) -> 0 | Y149: =IF(O149, "", IF(VLOOKUP(C149,'Scoring Matrix'!$A$2:W400,13,FALSE)=1,"N/A", "Yes")) ->  | Z149: =IF(O149, "", VLOOKUP(C149, 'Scoring Matrix'!A:D, 3, FALSE)) ->  | AA149: =IF(O149, "", VLOOKUP(C149, 'Scoring Matrix'!A:D, 4, FALSE)) -> 
O150: TRUE | P150: FALSE | Q150: FALSE | S150: =IF(AND($J150="N/A", $K150="Child"), 0, SUMIFS('Scoring Matrix'!G:G, 'Scoring Matrix'!A:A, "="&Questionnaire!$C150, 'Scoring Matrix'!F:F, "="&Questionnaire!F150)) -> 0 | T150: =IF(AND($J150="N/A", $K150="Child"), 0, SUMIFS('Scoring Matrix'!H:H, 'Scoring Matrix'!A:A, "="&Questionnaire!$C150, 'Scoring Matrix'!F:F, "="&Questionnaire!F150)) -> 0 | U150: =IF(AND($J150="N/A", $K150="Child"), 0, SUMIFS('Scoring Matrix'!I:I, 'Scoring Matrix'!A:A, "="&Questionnaire!$C150, 'Scoring Matrix'!F:F, "="&Questionnaire!F150)) -> 0 | V150: =IF(AND($J150="N/A", $K150="Child"), 0, SUMIFS('Scoring Matrix'!J:J, 'Scoring Matrix'!A:A, "="&Questionnaire!$C150, 'Scoring Matrix'!F:F, "="&Questionnaire!F150)) -> 0 | W150: =IF(AND($J150="N/A", $K150="Child"), 0, SUMIFS('Scoring Matrix'!K:K, 'Scoring Matrix'!A:A, "="&Questionnaire!$C150, 'Scoring Matrix'!F:F, "="&Questionnaire!F150)) -> 0 | Y150: =IF(O150, "", IF(VLOOKUP(C150,'Scoring Matrix'!$A$2:W400,13,FALSE)=1,"N/A", "Yes")) ->  | Z150: =IF(O150, "", VLOOKUP(C150, 'Scoring Matrix'!A:D, 3, FALSE)) ->  | AA150: =IF(O150, "", VLOOKUP(C150, 'Scoring Matrix'!A:D, 4, FALSE)) -> 
O151: TRUE | P151: FALSE | Q151: FALSE | S151: =IF(AND($J151="N/A", $K151="Child"), 0, SUMIFS('Scoring Matrix'!G:G, 'Scoring Matrix'!A:A, "="&Questionnaire!$C151, 'Scoring Matrix'!F:F, "="&Questionnaire!F151)) -> 0 | T151: =IF(AND($J151="N/A", $K151="Child"), 0, SUMIFS('Scoring Matrix'!H:H, 'Scoring Matrix'!A:A, "="&Questionnaire!$C151, 'Scoring Matrix'!F:F, "="&Questionnaire!F151)) -> 0 | U151: =IF(AND($J151="N/A", $K151="Child"), 0, SUMIFS('Scoring Matrix'!I:I, 'Scoring Matrix'!A:A, "="&Questionnaire!$C151, 'Scoring Matrix'!F:F, "="&Questionnaire!F151)) -> 0 | V151: =IF(AND($J151="N/A", $K151="Child"), 0, SUMIFS('Scoring Matrix'!J:J, 'Scoring Matrix'!A:A, "="&Questionnaire!$C151, 'Scoring Matrix'!F:F, "="&Questionnaire!F151)) -> 0 | W151: =IF(AND($J151="N/A", $K151="Child"), 0, SUMIFS('Scoring Matrix'!K:K, 'Scoring Matrix'!A:A, "="&Questionnaire!$C151, 'Scoring Matrix'!F:F, "="&Questionnaire!F151)) -> 0 | Y151: =IF(O151, "", IF(VLOOKUP(C151,'Scoring Matrix'!$A$2:W400,13,FALSE)=1,"N/A", "Yes")) ->  | Z151: =IF(O151, "", VLOOKUP(C151, 'Scoring Matrix'!A:D, 3, FALSE)) ->  | AA151: =IF(O151, "", VLOOKUP(C151, 'Scoring Matrix'!A:D, 4, FALSE)) -> 
O152: TRUE | P152: FALSE | Q152: FALSE | S152: =IF(AND($J152="N/A", $K152="Child"), 0, SUMIFS('Scoring Matrix'!G:G, 'Scoring Matrix'!A:A, "="&Questionnaire!$C152, 'Scoring Matrix'!F:F, "="&Questionnaire!F152)) -> 0 | T152: =IF(AND($J152="N/A", $K152="Child"), 0, SUMIFS('Scoring Matrix'!H:H, 'Scoring Matrix'!A:A, "="&Questionnaire!$C152, 'Scoring Matrix'!F:F, "="&Questionnaire!F152)) -> 0 | U152: =IF(AND($J152="N/A", $K152="Child"), 0, SUMIFS('Scoring Matrix'!I:I, 'Scoring Matrix'!A:A, "="&Questionnaire!$C152, 'Scoring Matrix'!F:F, "="&Questionnaire!F152)) -> 0 | V152: =IF(AND($J152="N/A", $K152="Child"), 0, SUMIFS('Scoring Matrix'!J:J, 'Scoring Matrix'!A:A, "="&Questionnaire!$C152, 'Scoring Matrix'!F:F, "="&Questionnaire!F152)) -> 0 | W152: =IF(AND($J152="N/A", $K152="Child"), 0, SUMIFS('Scoring Matrix'!K:K, 'Scoring Matrix'!A:A, "="&Questionnaire!$C152, 'Scoring Matrix'!F:F, "="&Questionnaire!F152)) -> 0 | Y152: =IF(O152, "", IF(VLOOKUP(C152,'Scoring Matrix'!$A$2:W400,13,FALSE)=1,"N/A", "Yes")) ->  | Z152: =IF(O152, "", VLOOKUP(C152, 'Scoring Matrix'!A:D, 3, FALSE)) ->  | AA152: =IF(O152, "", VLOOKUP(C152, 'Scoring Matrix'!A:D, 4, FALSE)) -> 
O153: TRUE | P153: FALSE | Q153: FALSE | S153: =IF(AND($J153="N/A", $K153="Child"), 0, SUMIFS('Scoring Matrix'!G:G, 'Scoring Matrix'!A:A, "="&Questionnaire!$C153, 'Scoring Matrix'!F:F, "="&Questionnaire!F153)) -> 0 | T153: =IF(AND($J153="N/A", $K153="Child"), 0, SUMIFS('Scoring Matrix'!H:H, 'Scoring Matrix'!A:A, "="&Questionnaire!$C153, 'Scoring Matrix'!F:F, "="&Questionnaire!F153)) -> 0 | U153: =IF(AND($J153="N/A", $K153="Child"), 0, SUMIFS('Scoring Matrix'!I:I, 'Scoring Matrix'!A:A, "="&Questionnaire!$C153, 'Scoring Matrix'!F:F, "="&Questionnaire!F153)) -> 0 | V153: =IF(AND($J153="N/A", $K153="Child"), 0, SUMIFS('Scoring Matrix'!J:J, 'Scoring Matrix'!A:A, "="&Questionnaire!$C153, 'Scoring Matrix'!F:F, "="&Questionnaire!F153)) -> 0 | W153: =IF(AND($J153="N/A", $K153="Child"), 0, SUMIFS('Scoring Matrix'!K:K, 'Scoring Matrix'!A:A, "="&Questionnaire!$C153, 'Scoring Matrix'!F:F, "="&Questionnaire!F153)) -> 0 | Y153: =IF(O153, "", IF(VLOOKUP(C153,'Scoring Matrix'!$A$2:W400,13,FALSE)=1,"N/A", "Yes")) ->  | Z153: =IF(O153, "", VLOOKUP(C153, 'Scoring Matrix'!A:D, 3, FALSE)) ->  | AA153: =IF(O153, "", VLOOKUP(C153, 'Scoring Matrix'!A:D, 4, FALSE)) -> 
O154: TRUE | P154: FALSE | Q154: FALSE | S154: =IF(AND($J154="N/A", $K154="Child"), 0, SUMIFS('Scoring Matrix'!G:G, 'Scoring Matrix'!A:A, "="&Questionnaire!$C154, 'Scoring Matrix'!F:F, "="&Questionnaire!F154)) -> 0 | T154: =IF(AND($J154="N/A", $K154="Child"), 0, SUMIFS('Scoring Matrix'!H:H, 'Scoring Matrix'!A:A, "="&Questionnaire!$C154, 'Scoring Matrix'!F:F, "="&Questionnaire!F154)) -> 0 | U154: =IF(AND($J154="N/A", $K154="Child"), 0, SUMIFS('Scoring Matrix'!I:I, 'Scoring Matrix'!A:A, "="&Questionnaire!$C154, 'Scoring Matrix'!F:F, "="&Questionnaire!F154)) -> 0 | V154: =IF(AND($J154="N/A", $K154="Child"), 0, SUMIFS('Scoring Matrix'!J:J, 'Scoring Matrix'!A:A, "="&Questionnaire!$C154, 'Scoring Matrix'!F:F, "="&Questionnaire!F154)) -> 0 | W154: =IF(AND($J154="N/A", $K154="Child"), 0, SUMIFS('Scoring Matrix'!K:K, 'Scoring Matrix'!A:A, "="&Questionnaire!$C154, 'Scoring Matrix'!F:F, "="&Questionnaire!F154)) -> 0 | Y154: =IF(O154, "", IF(VLOOKUP(C154,'Scoring Matrix'!$A$2:W400,13,FALSE)=1,"N/A", "Yes")) ->  | Z154: =IF(O154, "", VLOOKUP(C154, 'Scoring Matrix'!A:D, 3, FALSE)) ->  | AA154: =IF(O154, "", VLOOKUP(C154, 'Scoring Matrix'!A:D, 4, FALSE)) -> 
O155: TRUE | P155: FALSE | Q155: FALSE | S155: =IF(AND($J155="N/A", $K155="Child"), 0, SUMIFS('Scoring Matrix'!G:G, 'Scoring Matrix'!A:A, "="&Questionnaire!$C155, 'Scoring Matrix'!F:F, "="&Questionnaire!F155)) -> 0 | T155: =IF(AND($J155="N/A", $K155="Child"), 0, SUMIFS('Scoring Matrix'!H:H, 'Scoring Matrix'!A:A, "="&Questionnaire!$C155, 'Scoring Matrix'!F:F, "="&Questionnaire!F155)) -> 0 | U155: =IF(AND($J155="N/A", $K155="Child"), 0, SUMIFS('Scoring Matrix'!I:I, 'Scoring Matrix'!A:A, "="&Questionnaire!$C155, 'Scoring Matrix'!F:F, "="&Questionnaire!F155)) -> 0 | V155: =IF(AND($J155="N/A", $K155="Child"), 0, SUMIFS('Scoring Matrix'!J:J, 'Scoring Matrix'!A:A, "="&Questionnaire!$C155, 'Scoring Matrix'!F:F, "="&Questionnaire!F155)) -> 0 | W155: =IF(AND($J155="N/A", $K155="Child"), 0, SUMIFS('Scoring Matrix'!K:K, 'Scoring Matrix'!A:A, "="&Questionnaire!$C155, 'Scoring Matrix'!F:F, "="&Questionnaire!F155)) -> 0 | Y155: =IF(O155, "", IF(VLOOKUP(C155,'Scoring Matrix'!$A$2:W400,13,FALSE)=1,"N/A", "Yes")) ->  | Z155: =IF(O155, "", VLOOKUP(C155, 'Scoring Matrix'!A:D, 3, FALSE)) ->  | AA155: =IF(O155, "", VLOOKUP(C155, 'Scoring Matrix'!A:D, 4, FALSE)) -> 
O156: TRUE | P156: FALSE | Q156: FALSE | S156: =IF(AND($J156="N/A", $K156="Child"), 0, SUMIFS('Scoring Matrix'!G:G, 'Scoring Matrix'!A:A, "="&Questionnaire!$C156, 'Scoring Matrix'!F:F, "="&Questionnaire!F156)) -> 0 | T156: =IF(AND($J156="N/A", $K156="Child"), 0, SUMIFS('Scoring Matrix'!H:H, 'Scoring Matrix'!A:A, "="&Questionnaire!$C156, 'Scoring Matrix'!F:F, "="&Questionnaire!F156)) -> 0 | U156: =IF(AND($J156="N/A", $K156="Child"), 0, SUMIFS('Scoring Matrix'!I:I, 'Scoring Matrix'!A:A, "="&Questionnaire!$C156, 'Scoring Matrix'!F:F, "="&Questionnaire!F156)) -> 0 | V156: =IF(AND($J156="N/A", $K156="Child"), 0, SUMIFS('Scoring Matrix'!J:J, 'Scoring Matrix'!A:A, "="&Questionnaire!$C156, 'Scoring Matrix'!F:F, "="&Questionnaire!F156)) -> 0 | W156: =IF(AND($J156="N/A", $K156="Child"), 0, SUMIFS('Scoring Matrix'!K:K, 'Scoring Matrix'!A:A, "="&Questionnaire!$C156, 'Scoring Matrix'!F:F, "="&Questionnaire!F156)) -> 0 | Y156: =IF(O156, "", IF(VLOOKUP(C156,'Scoring Matrix'!$A$2:W400,13,FALSE)=1,"N/A", "Yes")) ->  | Z156: =IF(O156, "", VLOOKUP(C156, 'Scoring Matrix'!A:D, 3, FALSE)) ->  | AA156: =IF(O156, "", VLOOKUP(C156, 'Scoring Matrix'!A:D, 4, FALSE)) -> 
O157: TRUE | P157: FALSE | Q157: FALSE | S157: =IF(AND($J157="N/A", $K157="Child"), 0, SUMIFS('Scoring Matrix'!G:G, 'Scoring Matrix'!A:A, "="&Questionnaire!$C157, 'Scoring Matrix'!F:F, "="&Questionnaire!F157)) -> 0 | T157: =IF(AND($J157="N/A", $K157="Child"), 0, SUMIFS('Scoring Matrix'!H:H, 'Scoring Matrix'!A:A, "="&Questionnaire!$C157, 'Scoring Matrix'!F:F, "="&Questionnaire!F157)) -> 0 | U157: =IF(AND($J157="N/A", $K157="Child"), 0, SUMIFS('Scoring Matrix'!I:I, 'Scoring Matrix'!A:A, "="&Questionnaire!$C157, 'Scoring Matrix'!F:F, "="&Questionnaire!F157)) -> 0 | V157: =IF(AND($J157="N/A", $K157="Child"), 0, SUMIFS('Scoring Matrix'!J:J, 'Scoring Matrix'!A:A, "="&Questionnaire!$C157, 'Scoring Matrix'!F:F, "="&Questionnaire!F157)) -> 0 | W157: =IF(AND($J157="N/A", $K157="Child"), 0, SUMIFS('Scoring Matrix'!K:K, 'Scoring Matrix'!A:A, "="&Questionnaire!$C157, 'Scoring Matrix'!F:F, "="&Questionnaire!F157)) -> 0 | Y157: =IF(O157, "", IF(VLOOKUP(C157,'Scoring Matrix'!$A$2:W400,13,FALSE)=1,"N/A", "Yes")) ->  | Z157: =IF(O157, "", VLOOKUP(C157, 'Scoring Matrix'!A:D, 3, FALSE)) ->  | AA157: =IF(O157, "", VLOOKUP(C157, 'Scoring Matrix'!A:D, 4, FALSE)) -> 
O158: TRUE | P158: FALSE | Q158: FALSE | S158: =IF(AND($J158="N/A", $K158="Child"), 0, SUMIFS('Scoring Matrix'!G:G, 'Scoring Matrix'!A:A, "="&Questionnaire!$C158, 'Scoring Matrix'!F:F, "="&Questionnaire!F158)) -> 0 | T158: =IF(AND($J158="N/A", $K158="Child"), 0, SUMIFS('Scoring Matrix'!H:H, 'Scoring Matrix'!A:A, "="&Questionnaire!$C158, 'Scoring Matrix'!F:F, "="&Questionnaire!F158)) -> 0 | U158: =IF(AND($J158="N/A", $K158="Child"), 0, SUMIFS('Scoring Matrix'!I:I, 'Scoring Matrix'!A:A, "="&Questionnaire!$C158, 'Scoring Matrix'!F:F, "="&Questionnaire!F158)) -> 0 | V158: =IF(AND($J158="N/A", $K158="Child"), 0, SUMIFS('Scoring Matrix'!J:J, 'Scoring Matrix'!A:A, "="&Questionnaire!$C158, 'Scoring Matrix'!F:F, "="&Questionnaire!F158)) -> 0 | W158: =IF(AND($J158="N/A", $K158="Child"), 0, SUMIFS('Scoring Matrix'!K:K, 'Scoring Matrix'!A:A, "="&Questionnaire!$C158, 'Scoring Matrix'!F:F, "="&Questionnaire!F158)) -> 0 | Y158: =IF(O158, "", IF(VLOOKUP(C158,'Scoring Matrix'!$A$2:W400,13,FALSE)=1,"N/A", "Yes")) ->  | Z158: =IF(O158, "", VLOOKUP(C158, 'Scoring Matrix'!A:D, 3, FALSE)) ->  | AA158: =IF(O158, "", VLOOKUP(C158, 'Scoring Matrix'!A:D, 4, FALSE)) -> 
O159: TRUE | P159: FALSE | Q159: FALSE | S159: =IF(AND($J159="N/A", $K159="Child"), 0, SUMIFS('Scoring Matrix'!G:G, 'Scoring Matrix'!A:A, "="&Questionnaire!$C159, 'Scoring Matrix'!F:F, "="&Questionnaire!F159)) -> 0 | T159: =IF(AND($J159="N/A", $K159="Child"), 0, SUMIFS('Scoring Matrix'!H:H, 'Scoring Matrix'!A:A, "="&Questionnaire!$C159, 'Scoring Matrix'!F:F, "="&Questionnaire!F159)) -> 0 | U159: =IF(AND($J159="N/A", $K159="Child"), 0, SUMIFS('Scoring Matrix'!I:I, 'Scoring Matrix'!A:A, "="&Questionnaire!$C159, 'Scoring Matrix'!F:F, "="&Questionnaire!F159)) -> 0 | V159: =IF(AND($J159="N/A", $K159="Child"), 0, SUMIFS('Scoring Matrix'!J:J, 'Scoring Matrix'!A:A, "="&Questionnaire!$C159, 'Scoring Matrix'!F:F, "="&Questionnaire!F159)) -> 0 | W159: =IF(AND($J159="N/A", $K159="Child"), 0, SUMIFS('Scoring Matrix'!K:K, 'Scoring Matrix'!A:A, "="&Questionnaire!$C159, 'Scoring Matrix'!F:F, "="&Questionnaire!F159)) -> 0 | Y159: =IF(O159, "", IF(VLOOKUP(C159,'Scoring Matrix'!$A$2:W400,13,FALSE)=1,"N/A", "Yes")) ->  | Z159: =IF(O159, "", VLOOKUP(C159, 'Scoring Matrix'!A:D, 3, FALSE)) ->  | AA159: =IF(O159, "", VLOOKUP(C159, 'Scoring Matrix'!A:D, 4, FALSE)) -> 
O160: TRUE | P160: FALSE | Q160: FALSE | S160: =IF(AND($J160="N/A", $K160="Child"), 0, SUMIFS('Scoring Matrix'!G:G, 'Scoring Matrix'!A:A, "="&Questionnaire!$C160, 'Scoring Matrix'!F:F, "="&Questionnaire!F160)) -> 0 | T160: =IF(AND($J160="N/A", $K160="Child"), 0, SUMIFS('Scoring Matrix'!H:H, 'Scoring Matrix'!A:A, "="&Questionnaire!$C160, 'Scoring Matrix'!F:F, "="&Questionnaire!F160)) -> 0 | U160: =IF(AND($J160="N/A", $K160="Child"), 0, SUMIFS('Scoring Matrix'!I:I, 'Scoring Matrix'!A:A, "="&Questionnaire!$C160, 'Scoring Matrix'!F:F, "="&Questionnaire!F160)) -> 0 | V160: =IF(AND($J160="N/A", $K160="Child"), 0, SUMIFS('Scoring Matrix'!J:J, 'Scoring Matrix'!A:A, "="&Questionnaire!$C160, 'Scoring Matrix'!F:F, "="&Questionnaire!F160)) -> 0 | W160: =IF(AND($J160="N/A", $K160="Child"), 0, SUMIFS('Scoring Matrix'!K:K, 'Scoring Matrix'!A:A, "="&Questionnaire!$C160, 'Scoring Matrix'!F:F, "="&Questionnaire!F160)) -> 0 | Y160: =IF(O160, "", IF(VLOOKUP(C160,'Scoring Matrix'!$A$2:W400,13,FALSE)=1,"N/A", "Yes")) ->  | Z160: =IF(O160, "", VLOOKUP(C160, 'Scoring Matrix'!A:D, 3, FALSE)) ->  | AA160: =IF(O160, "", VLOOKUP(C160, 'Scoring Matrix'!A:D, 4, FALSE)) -> 
O161: TRUE | P161: FALSE | Q161: FALSE | S161: =IF(AND($J161="N/A", $K161="Child"), 0, SUMIFS('Scoring Matrix'!G:G, 'Scoring Matrix'!A:A, "="&Questionnaire!$C161, 'Scoring Matrix'!F:F, "="&Questionnaire!F161)) -> 0 | T161: =IF(AND($J161="N/A", $K161="Child"), 0, SUMIFS('Scoring Matrix'!H:H, 'Scoring Matrix'!A:A, "="&Questionnaire!$C161, 'Scoring Matrix'!F:F, "="&Questionnaire!F161)) -> 0 | U161: =IF(AND($J161="N/A", $K161="Child"), 0, SUMIFS('Scoring Matrix'!I:I, 'Scoring Matrix'!A:A, "="&Questionnaire!$C161, 'Scoring Matrix'!F:F, "="&Questionnaire!F161)) -> 0 | V161: =IF(AND($J161="N/A", $K161="Child"), 0, SUMIFS('Scoring Matrix'!J:J, 'Scoring Matrix'!A:A, "="&Questionnaire!$C161, 'Scoring Matrix'!F:F, "="&Questionnaire!F161)) -> 0 | W161: =IF(AND($J161="N/A", $K161="Child"), 0, SUMIFS('Scoring Matrix'!K:K, 'Scoring Matrix'!A:A, "="&Questionnaire!$C161, 'Scoring Matrix'!F:F, "="&Questionnaire!F161)) -> 0 | Y161: =IF(O161, "", IF(VLOOKUP(C161,'Scoring Matrix'!$A$2:W400,13,FALSE)=1,"N/A", "Yes")) ->  | Z161: =IF(O161, "", VLOOKUP(C161, 'Scoring Matrix'!A:D, 3, FALSE)) ->  | AA161: =IF(O161, "", VLOOKUP(C161, 'Scoring Matrix'!A:D, 4, FALSE)) -> 
O162: TRUE | P162: FALSE | Q162: FALSE | S162: =IF(AND($J162="N/A", $K162="Child"), 0, SUMIFS('Scoring Matrix'!G:G, 'Scoring Matrix'!A:A, "="&Questionnaire!$C162, 'Scoring Matrix'!F:F, "="&Questionnaire!F162)) -> 0 | T162: =IF(AND($J162="N/A", $K162="Child"), 0, SUMIFS('Scoring Matrix'!H:H, 'Scoring Matrix'!A:A, "="&Questionnaire!$C162, 'Scoring Matrix'!F:F, "="&Questionnaire!F162)) -> 0 | U162: =IF(AND($J162="N/A", $K162="Child"), 0, SUMIFS('Scoring Matrix'!I:I, 'Scoring Matrix'!A:A, "="&Questionnaire!$C162, 'Scoring Matrix'!F:F, "="&Questionnaire!F162)) -> 0 | V162: =IF(AND($J162="N/A", $K162="Child"), 0, SUMIFS('Scoring Matrix'!J:J, 'Scoring Matrix'!A:A, "="&Questionnaire!$C162, 'Scoring Matrix'!F:F, "="&Questionnaire!F162)) -> 0 | W162: =IF(AND($J162="N/A", $K162="Child"), 0, SUMIFS('Scoring Matrix'!K:K, 'Scoring Matrix'!A:A, "="&Questionnaire!$C162, 'Scoring Matrix'!F:F, "="&Questionnaire!F162)) -> 0 | Y162: =IF(O162, "", IF(VLOOKUP(C162,'Scoring Matrix'!$A$2:W400,13,FALSE)=1,"N/A", "Yes")) ->  | Z162: =IF(O162, "", VLOOKUP(C162, 'Scoring Matrix'!A:D, 3, FALSE)) ->  | AA162: =IF(O162, "", VLOOKUP(C162, 'Scoring Matrix'!A:D, 4, FALSE)) -> 
O163: TRUE | P163: FALSE | Q163: FALSE | S163: =IF(AND($J163="N/A", $K163="Child"), 0, SUMIFS('Scoring Matrix'!G:G, 'Scoring Matrix'!A:A, "="&Questionnaire!$C163, 'Scoring Matrix'!F:F, "="&Questionnaire!F163)) -> 0 | T163: =IF(AND($J163="N/A", $K163="Child"), 0, SUMIFS('Scoring Matrix'!H:H, 'Scoring Matrix'!A:A, "="&Questionnaire!$C163, 'Scoring Matrix'!F:F, "="&Questionnaire!F163)) -> 0 | U163: =IF(AND($J163="N/A", $K163="Child"), 0, SUMIFS('Scoring Matrix'!I:I, 'Scoring Matrix'!A:A, "="&Questionnaire!$C163, 'Scoring Matrix'!F:F, "="&Questionnaire!F163)) -> 0 | V163: =IF(AND($J163="N/A", $K163="Child"), 0, SUMIFS('Scoring Matrix'!J:J, 'Scoring Matrix'!A:A, "="&Questionnaire!$C163, 'Scoring Matrix'!F:F, "="&Questionnaire!F163)) -> 0 | W163: =IF(AND($J163="N/A", $K163="Child"), 0, SUMIFS('Scoring Matrix'!K:K, 'Scoring Matrix'!A:A, "="&Questionnaire!$C163, 'Scoring Matrix'!F:F, "="&Questionnaire!F163)) -> 0 | Y163: =IF(O163, "", IF(VLOOKUP(C163,'Scoring Matrix'!$A$2:W400,13,FALSE)=1,"N/A", "Yes")) ->  | Z163: =IF(O163, "", VLOOKUP(C163, 'Scoring Matrix'!A:D, 3, FALSE)) ->  | AA163: =IF(O163, "", VLOOKUP(C163, 'Scoring Matrix'!A:D, 4, FALSE)) -> 
O164: TRUE | P164: FALSE | Q164: FALSE | S164: =IF(AND($J164="N/A", $K164="Child"), 0, SUMIFS('Scoring Matrix'!G:G, 'Scoring Matrix'!A:A, "="&Questionnaire!$C164, 'Scoring Matrix'!F:F, "="&Questionnaire!F164)) -> 0 | T164: =IF(AND($J164="N/A", $K164="Child"), 0, SUMIFS('Scoring Matrix'!H:H, 'Scoring Matrix'!A:A, "="&Questionnaire!$C164, 'Scoring Matrix'!F:F, "="&Questionnaire!F164)) -> 0 | U164: =IF(AND($J164="N/A", $K164="Child"), 0, SUMIFS('Scoring Matrix'!I:I, 'Scoring Matrix'!A:A, "="&Questionnaire!$C164, 'Scoring Matrix'!F:F, "="&Questionnaire!F164)) -> 0 | V164: =IF(AND($J164="N/A", $K164="Child"), 0, SUMIFS('Scoring Matrix'!J:J, 'Scoring Matrix'!A:A, "="&Questionnaire!$C164, 'Scoring Matrix'!F:F, "="&Questionnaire!F164)) -> 0 | W164: =IF(AND($J164="N/A", $K164="Child"), 0, SUMIFS('Scoring Matrix'!K:K, 'Scoring Matrix'!A:A, "="&Questionnaire!$C164, 'Scoring Matrix'!F:F, "="&Questionnaire!F164)) -> 0 | Y164: =IF(O164, "", IF(VLOOKUP(C164,'Scoring Matrix'!$A$2:W400,13,FALSE)=1,"N/A", "Yes")) ->  | Z164: =IF(O164, "", VLOOKUP(C164, 'Scoring Matrix'!A:D, 3, FALSE)) ->  | AA164: =IF(O164, "", VLOOKUP(C164, 'Scoring Matrix'!A:D, 4, FALSE)) -> 
O165: TRUE | P165: FALSE | Q165: FALSE | S165: =IF(AND($J165="N/A", $K165="Child"), 0, SUMIFS('Scoring Matrix'!G:G, 'Scoring Matrix'!A:A, "="&Questionnaire!$C165, 'Scoring Matrix'!F:F, "="&Questionnaire!F165)) -> 0 | T165: =IF(AND($J165="N/A", $K165="Child"), 0, SUMIFS('Scoring Matrix'!H:H, 'Scoring Matrix'!A:A, "="&Questionnaire!$C165, 'Scoring Matrix'!F:F, "="&Questionnaire!F165)) -> 0 | U165: =IF(AND($J165="N/A", $K165="Child"), 0, SUMIFS('Scoring Matrix'!I:I, 'Scoring Matrix'!A:A, "="&Questionnaire!$C165, 'Scoring Matrix'!F:F, "="&Questionnaire!F165)) -> 0 | V165: =IF(AND($J165="N/A", $K165="Child"), 0, SUMIFS('Scoring Matrix'!J:J, 'Scoring Matrix'!A:A, "="&Questionnaire!$C165, 'Scoring Matrix'!F:F, "="&Questionnaire!F165)) -> 0 | W165: =IF(AND($J165="N/A", $K165="Child"), 0, SUMIFS('Scoring Matrix'!K:K, 'Scoring Matrix'!A:A, "="&Questionnaire!$C165, 'Scoring Matrix'!F:F, "="&Questionnaire!F165)) -> 0 | Y165: =IF(O165, "", IF(VLOOKUP(C165,'Scoring Matrix'!$A$2:W400,13,FALSE)=1,"N/A", "Yes")) ->  | Z165: =IF(O165, "", VLOOKUP(C165, 'Scoring Matrix'!A:D, 3, FALSE)) ->  | AA165: =IF(O165, "", VLOOKUP(C165, 'Scoring Matrix'!A:D, 4, FALSE)) -> 
O166: TRUE | P166: FALSE | Q166: FALSE | S166: =IF(AND($J166="N/A", $K166="Child"), 0, SUMIFS('Scoring Matrix'!G:G, 'Scoring Matrix'!A:A, "="&Questionnaire!$C166, 'Scoring Matrix'!F:F, "="&Questionnaire!F166)) -> 0 | T166: =IF(AND($J166="N/A", $K166="Child"), 0, SUMIFS('Scoring Matrix'!H:H, 'Scoring Matrix'!A:A, "="&Questionnaire!$C166, 'Scoring Matrix'!F:F, "="&Questionnaire!F166)) -> 0 | U166: =IF(AND($J166="N/A", $K166="Child"), 0, SUMIFS('Scoring Matrix'!I:I, 'Scoring Matrix'!A:A, "="&Questionnaire!$C166, 'Scoring Matrix'!F:F, "="&Questionnaire!F166)) -> 0 | V166: =IF(AND($J166="N/A", $K166="Child"), 0, SUMIFS('Scoring Matrix'!J:J, 'Scoring Matrix'!A:A, "="&Questionnaire!$C166, 'Scoring Matrix'!F:F, "="&Questionnaire!F166)) -> 0 | W166: =IF(AND($J166="N/A", $K166="Child"), 0, SUMIFS('Scoring Matrix'!K:K, 'Scoring Matrix'!A:A, "="&Questionnaire!$C166, 'Scoring Matrix'!F:F, "="&Questionnaire!F166)) -> 0 | Y166: =IF(O166, "", IF(VLOOKUP(C166,'Scoring Matrix'!$A$2:W400,13,FALSE)=1,"N/A", "Yes")) ->  | Z166: =IF(O166, "", VLOOKUP(C166, 'Scoring Matrix'!A:D, 3, FALSE)) ->  | AA166: =IF(O166, "", VLOOKUP(C166, 'Scoring Matrix'!A:D, 4, FALSE)) -> 
O167: TRUE | P167: FALSE | Q167: FALSE | S167: =IF(AND($J167="N/A", $K167="Child"), 0, SUMIFS('Scoring Matrix'!G:G, 'Scoring Matrix'!A:A, "="&Questionnaire!$C167, 'Scoring Matrix'!F:F, "="&Questionnaire!F167)) -> 0 | T167: =IF(AND($J167="N/A", $K167="Child"), 0, SUMIFS('Scoring Matrix'!H:H, 'Scoring Matrix'!A:A, "="&Questionnaire!$C167, 'Scoring Matrix'!F:F, "="&Questionnaire!F167)) -> 0 | U167: =IF(AND($J167="N/A", $K167="Child"), 0, SUMIFS('Scoring Matrix'!I:I, 'Scoring Matrix'!A:A, "="&Questionnaire!$C167, 'Scoring Matrix'!F:F, "="&Questionnaire!F167)) -> 0 | V167: =IF(AND($J167="N/A", $K167="Child"), 0, SUMIFS('Scoring Matrix'!J:J, 'Scoring Matrix'!A:A, "="&Questionnaire!$C167, 'Scoring Matrix'!F:F, "="&Questionnaire!F167)) -> 0 | W167: =IF(AND($J167="N/A", $K167="Child"), 0, SUMIFS('Scoring Matrix'!K:K, 'Scoring Matrix'!A:A, "="&Questionnaire!$C167, 'Scoring Matrix'!F:F, "="&Questionnaire!F167)) -> 0 | Y167: =IF(O167, "", IF(VLOOKUP(C167,'Scoring Matrix'!$A$2:W400,13,FALSE)=1,"N/A", "Yes")) ->  | Z167: =IF(O167, "", VLOOKUP(C167, 'Scoring Matrix'!A:D, 3, FALSE)) ->  | AA167: =IF(O167, "", VLOOKUP(C167, 'Scoring Matrix'!A:D, 4, FALSE)) -> 
O168: TRUE | P168: FALSE | Q168: FALSE | S168: =IF(AND($J168="N/A", $K168="Child"), 0, SUMIFS('Scoring Matrix'!G:G, 'Scoring Matrix'!A:A, "="&Questionnaire!$C168, 'Scoring Matrix'!F:F, "="&Questionnaire!F168)) -> 0 | T168: =IF(AND($J168="N/A", $K168="Child"), 0, SUMIFS('Scoring Matrix'!H:H, 'Scoring Matrix'!A:A, "="&Questionnaire!$C168, 'Scoring Matrix'!F:F, "="&Questionnaire!F168)) -> 0 | U168: =IF(AND($J168="N/A", $K168="Child"), 0, SUMIFS('Scoring Matrix'!I:I, 'Scoring Matrix'!A:A, "="&Questionnaire!$C168, 'Scoring Matrix'!F:F, "="&Questionnaire!F168)) -> 0 | V168: =IF(AND($J168="N/A", $K168="Child"), 0, SUMIFS('Scoring Matrix'!J:J, 'Scoring Matrix'!A:A, "="&Questionnaire!$C168, 'Scoring Matrix'!F:F, "="&Questionnaire!F168)) -> 0 | W168: =IF(AND($J168="N/A", $K168="Child"), 0, SUMIFS('Scoring Matrix'!K:K, 'Scoring Matrix'!A:A, "="&Questionnaire!$C168, 'Scoring Matrix'!F:F, "="&Questionnaire!F168)) -> 0 | Y168: =IF(O168, "", IF(VLOOKUP(C168,'Scoring Matrix'!$A$2:W400,13,FALSE)=1,"N/A", "Yes")) ->  | Z168: =IF(O168, "", VLOOKUP(C168, 'Scoring Matrix'!A:D, 3, FALSE)) ->  | AA168: =IF(O168, "", VLOOKUP(C168, 'Scoring Matrix'!A:D, 4, FALSE)) -> 
O169: TRUE | P169: FALSE | Q169: FALSE | S169: =IF(AND($J169="N/A", $K169="Child"), 0, SUMIFS('Scoring Matrix'!G:G, 'Scoring Matrix'!A:A, "="&Questionnaire!$C169, 'Scoring Matrix'!F:F, "="&Questionnaire!F169)) -> 0 | T169: =IF(AND($J169="N/A", $K169="Child"), 0, SUMIFS('Scoring Matrix'!H:H, 'Scoring Matrix'!A:A, "="&Questionnaire!$C169, 'Scoring Matrix'!F:F, "="&Questionnaire!F169)) -> 0 | U169: =IF(AND($J169="N/A", $K169="Child"), 0, SUMIFS('Scoring Matrix'!I:I, 'Scoring Matrix'!A:A, "="&Questionnaire!$C169, 'Scoring Matrix'!F:F, "="&Questionnaire!F169)) -> 0 | V169: =IF(AND($J169="N/A", $K169="Child"), 0, SUMIFS('Scoring Matrix'!J:J, 'Scoring Matrix'!A:A, "="&Questionnaire!$C169, 'Scoring Matrix'!F:F, "="&Questionnaire!F169)) -> 0 | W169: =IF(AND($J169="N/A", $K169="Child"), 0, SUMIFS('Scoring Matrix'!K:K, 'Scoring Matrix'!A:A, "="&Questionnaire!$C169, 'Scoring Matrix'!F:F, "="&Questionnaire!F169)) -> 0 | Y169: =IF(O169, "", IF(VLOOKUP(C169,'Scoring Matrix'!$A$2:W400,13,FALSE)=1,"N/A", "Yes")) ->  | Z169: =IF(O169, "", VLOOKUP(C169, 'Scoring Matrix'!A:D, 3, FALSE)) ->  | AA169: =IF(O169, "", VLOOKUP(C169, 'Scoring Matrix'!A:D, 4, FALSE)) -> 
O170: TRUE | P170: FALSE | Q170: FALSE | S170: =IF(AND($J170="N/A", $K170="Child"), 0, SUMIFS('Scoring Matrix'!G:G, 'Scoring Matrix'!A:A, "="&Questionnaire!$C170, 'Scoring Matrix'!F:F, "="&Questionnaire!F170)) -> 0 | T170: =IF(AND($J170="N/A", $K170="Child"), 0, SUMIFS('Scoring Matrix'!H:H, 'Scoring Matrix'!A:A, "="&Questionnaire!$C170, 'Scoring Matrix'!F:F, "="&Questionnaire!F170)) -> 0 | U170: =IF(AND($J170="N/A", $K170="Child"), 0, SUMIFS('Scoring Matrix'!I:I, 'Scoring Matrix'!A:A, "="&Questionnaire!$C170, 'Scoring Matrix'!F:F, "="&Questionnaire!F170)) -> 0 | V170: =IF(AND($J170="N/A", $K170="Child"), 0, SUMIFS('Scoring Matrix'!J:J, 'Scoring Matrix'!A:A, "="&Questionnaire!$C170, 'Scoring Matrix'!F:F, "="&Questionnaire!F170)) -> 0 | W170: =IF(AND($J170="N/A", $K170="Child"), 0, SUMIFS('Scoring Matrix'!K:K, 'Scoring Matrix'!A:A, "="&Questionnaire!$C170, 'Scoring Matrix'!F:F, "="&Questionnaire!F170)) -> 0 | Y170: =IF(O170, "", IF(VLOOKUP(C170,'Scoring Matrix'!$A$2:W400,13,FALSE)=1,"N/A", "Yes")) ->  | Z170: =IF(O170, "", VLOOKUP(C170, 'Scoring Matrix'!A:D, 3, FALSE)) ->  | AA170: =IF(O170, "", VLOOKUP(C170, 'Scoring Matrix'!A:D, 4, FALSE)) -> 
O171: TRUE | P171: FALSE | Q171: FALSE | S171: =IF(AND($J171="N/A", $K171="Child"), 0, SUMIFS('Scoring Matrix'!G:G, 'Scoring Matrix'!A:A, "="&Questionnaire!$C171, 'Scoring Matrix'!F:F, "="&Questionnaire!F171)) -> 0 | T171: =IF(AND($J171="N/A", $K171="Child"), 0, SUMIFS('Scoring Matrix'!H:H, 'Scoring Matrix'!A:A, "="&Questionnaire!$C171, 'Scoring Matrix'!F:F, "="&Questionnaire!F171)) -> 0 | U171: =IF(AND($J171="N/A", $K171="Child"), 0, SUMIFS('Scoring Matrix'!I:I, 'Scoring Matrix'!A:A, "="&Questionnaire!$C171, 'Scoring Matrix'!F:F, "="&Questionnaire!F171)) -> 0 | V171: =IF(AND($J171="N/A", $K171="Child"), 0, SUMIFS('Scoring Matrix'!J:J, 'Scoring Matrix'!A:A, "="&Questionnaire!$C171, 'Scoring Matrix'!F:F, "="&Questionnaire!F171)) -> 0 | W171: =IF(AND($J171="N/A", $K171="Child"), 0, SUMIFS('Scoring Matrix'!K:K, 'Scoring Matrix'!A:A, "="&Questionnaire!$C171, 'Scoring Matrix'!F:F, "="&Questionnaire!F171)) -> 0 | Y171: =IF(O171, "", IF(VLOOKUP(C171,'Scoring Matrix'!$A$2:W400,13,FALSE)=1,"N/A", "Yes")) ->  | Z171: =IF(O171, "", VLOOKUP(C171, 'Scoring Matrix'!A:D, 3, FALSE)) ->  | AA171: =IF(O171, "", VLOOKUP(C171, 'Scoring Matrix'!A:D, 4, FALSE)) -> 
O172: TRUE | P172: FALSE | Q172: FALSE | S172: =IF(AND($J172="N/A", $K172="Child"), 0, SUMIFS('Scoring Matrix'!G:G, 'Scoring Matrix'!A:A, "="&Questionnaire!$C172, 'Scoring Matrix'!F:F, "="&Questionnaire!F172)) -> 0 | T172: =IF(AND($J172="N/A", $K172="Child"), 0, SUMIFS('Scoring Matrix'!H:H, 'Scoring Matrix'!A:A, "="&Questionnaire!$C172, 'Scoring Matrix'!F:F, "="&Questionnaire!F172)) -> 0 | U172: =IF(AND($J172="N/A", $K172="Child"), 0, SUMIFS('Scoring Matrix'!I:I, 'Scoring Matrix'!A:A, "="&Questionnaire!$C172, 'Scoring Matrix'!F:F, "="&Questionnaire!F172)) -> 0 | V172: =IF(AND($J172="N/A", $K172="Child"), 0, SUMIFS('Scoring Matrix'!J:J, 'Scoring Matrix'!A:A, "="&Questionnaire!$C172, 'Scoring Matrix'!F:F, "="&Questionnaire!F172)) -> 0 | W172: =IF(AND($J172="N/A", $K172="Child"), 0, SUMIFS('Scoring Matrix'!K:K, 'Scoring Matrix'!A:A, "="&Questionnaire!$C172, 'Scoring Matrix'!F:F, "="&Questionnaire!F172)) -> 0 | Y172: =IF(O172, "", IF(VLOOKUP(C172,'Scoring Matrix'!$A$2:W400,13,FALSE)=1,"N/A", "Yes")) ->  | Z172: =IF(O172, "", VLOOKUP(C172, 'Scoring Matrix'!A:D, 3, FALSE)) ->  | AA172: =IF(O172, "", VLOOKUP(C172, 'Scoring Matrix'!A:D, 4, FALSE)) -> 
O173: TRUE | P173: FALSE | Q173: FALSE | S173: =IF(AND($J173="N/A", $K173="Child"), 0, SUMIFS('Scoring Matrix'!G:G, 'Scoring Matrix'!A:A, "="&Questionnaire!$C173, 'Scoring Matrix'!F:F, "="&Questionnaire!F173)) -> 0 | T173: =IF(AND($J173="N/A", $K173="Child"), 0, SUMIFS('Scoring Matrix'!H:H, 'Scoring Matrix'!A:A, "="&Questionnaire!$C173, 'Scoring Matrix'!F:F, "="&Questionnaire!F173)) -> 0 | U173: =IF(AND($J173="N/A", $K173="Child"), 0, SUMIFS('Scoring Matrix'!I:I, 'Scoring Matrix'!A:A, "="&Questionnaire!$C173, 'Scoring Matrix'!F:F, "="&Questionnaire!F173)) -> 0 | V173: =IF(AND($J173="N/A", $K173="Child"), 0, SUMIFS('Scoring Matrix'!J:J, 'Scoring Matrix'!A:A, "="&Questionnaire!$C173, 'Scoring Matrix'!F:F, "="&Questionnaire!F173)) -> 0 | W173: =IF(AND($J173="N/A", $K173="Child"), 0, SUMIFS('Scoring Matrix'!K:K, 'Scoring Matrix'!A:A, "="&Questionnaire!$C173, 'Scoring Matrix'!F:F, "="&Questionnaire!F173)) -> 0 | Y173: =IF(O173, "", IF(VLOOKUP(C173,'Scoring Matrix'!$A$2:W400,13,FALSE)=1,"N/A", "Yes")) ->  | Z173: =IF(O173, "", VLOOKUP(C173, 'Scoring Matrix'!A:D, 3, FALSE)) ->  | AA173: =IF(O173, "", VLOOKUP(C173, 'Scoring Matrix'!A:D, 4, FALSE)) -> 
